Workbook

Sheet INFO
B3: INPUT | I3: REGULAR-NETTO | N3: TRADITIONAL
B4: - | C4: Input new data (qx) | I4: - | J4: Term insurance | N4: - | O4: Model of 1 policy
B5: - | C5: Mortality tables (qx, px, lx, dx) | I5: - | J5: Whole life | N5: - | O5: First order assumption
B6: - | C6: Comutation numbers (Dx, Cx, Mx, Nx, Rx, Sx) | I6: - | J6: Endowment | N6: - | O6: Reserves calculation
I7: - | J7: Pure endowment
B10: SINGLE PREMIUM | I10: NETTO-RESERVES | N10: FLEXIBLE
B11: - | C11: Term insurance | I11: - | J11: Term insurance | N11: - | O11: Model of 1 policy
B12: - | C12: Whole life | I12: - | J12: Whole life
B13: - | C13: Endowment | I13: - | J13: Endowment
B14: - | C14: Pure endowment | I14: - | J14: Pure endowment
B17: ANUITY PREMIUM | I17: BRUTTO-REGULAR-RESERVES | N17: CASH-FLOW
C18: In advance | I18: Brutto premium and reserves | N18: - | O18: Cash-flow analysis
C19: - | D19: temporary annuity | I19: - | J19: Term insurance | N19: - | O19: PV calculation
C20: - | D20: whole life annuity | I20: - | J20: Whole life | N20: - | O20: LAT calculation
C21: - | D21: deferred annuity | I21: - | J21: Endowment
I22: - | J22: Pure endowment
C23: In arrears
C24: - | D24: temporary annuity | N24: Assumptions
C25: - | D25: whole life annuity | N25: - | O25: Assumption for BEST estimate
C26: - | D26: deferred annuity | N26: - | O26: Cash-Flow and Flexible

Sheet INPUT
F2: Gender | H2: Male | J2: Mortality table summary | M2: Commutation numbers summary
F3: Age (X) | H3: 33 | J3: qx | K3: =qx(H3) -> 0.0009393041431 | M3: Dx | N3: =DDx(H3,H5) -> 43553.91496
F4: Policy period (N) | H4: 2 | J4: px | K4: =px(H3) -> 0.9990606959 | M4: Cx | N4: =cx(H3,H5) -> 39.9125588
F5: interest rate (i) | H5: 0.025 | J5: lx | K5: =lx(H3) -> 98381.79831 | M5: Mx | N5: =mx(H3,H5) -> 15379.8547
F6: Discont factor (v) | H6: =1/(1+H5) -> 0.9756097561 | J6: dx | K6: =dx(H3) -> 92.41043076 | M6: Nx | N6: =nx(H3,H5) -> 1155136.471
F7: Last age | H7: =max_vek() -> 105 | J7: npx | K7: =npx(H3,H4) -> 0.9980899046 | M7: Sx | N7: =sx(H3,H5) -> 22163660.43
F8: Sample | H8: 100000 | J8: nqx | K8: =nqx(H3,H4) -> 0.001910095418 | M8: Rx | N8: =rx(H3,H5) -> 614559.3871
J9: n|qx | K9: =n_qx(H3,H4) -> 0.001030478548
B10: input data | F10: Mortality table | L10: Commutation numbers
B11: Age (x) | C11: qx | F11: Age (x) | G11: qx | H11: px | I11: lx | J11: dx | L11: x | M11: Dx | N11: Cx | O11: Mx | P11: Nx | Q11: Sx | R11: Rx
B12: 0 | C12: =pom!D14 -> 0.002712285056 | F12: 0 | G12: =C12 -> 0.002712285056 | H12: =1-G12 -> 0.9972877149 | I12: =H8 -> 100000 | J12: =I12-I13 -> 271.2285056 | L12: =F12 -> 0 | M12: =I12*$H$6^F12 -> 100000 | N12: =J12*$H$6^(F12+1) -> 264.6131762 | O12: =SUM(N12:$N$122) -> 16414.81704 | P12: =SUM($M12:M$122) -> 3426992.501 | Q12: =SUM($P12:P$122) -> 93798792.17 | R12: =SUM($O12:O$122) -> 1139217.082
B13: 1 | C13: =pom!D15 -> 0.0002157109465 | F13: 1 | G13: =C13 -> 0.0002157109465 | H13: =1-G13 -> 0.9997842891 | I13: =I12*H12 -> 99728.77149 | J13: =I13-I14 -> 21.51258769 | L13: =F13 -> 1 | M13: 97296.36243 | N13: 20.47599066 | O13: =SUM(N13:$N$122) -> 16150.20387 | P13: =SUM($M13:M$122) -> 3326992.501 | Q13: =SUM($P13:P$122) -> 90371799.67 | R13: =SUM($O13:O$122) -> 1122802.265
B14: 2 | C14: =pom!D16 -> 0.0001248940629 | F14: 2 | G14: 0.0001248940629 | H14: 0.9998751059 | I14: =I13*H13 -> 99707.25891 | J14: 12.45284467 | L14: 2 | M14: 94902.80443 | N14: 11.56370422 | O14: =SUM(N14:$N$122) -> 16129.72787 | P14: =SUM($M14:M$122) -> 3229696.139 | Q14: =SUM($P14:P$122) -> 87044807.17 | R14: =SUM($O14:O$122) -> 1106652.061
B15: 3 | C15: =pom!D17 -> 0.0001020477583 | F15: 3 | G15: 0.0001020477583 | H15: 0.9998979522 | I15: 99694.80606 | J15: 10.17363147 | L15: 3 | M15: 92576.53818 | N15: 9.216807989 | O15: =SUM(N15:$N$122) -> 16118.16417 | P15: =SUM($M15:M$122) -> 3134793.334 | Q15: =SUM($P15:P$122) -> 83815111.03 | R15: =SUM($O15:O$122) -> 1090522.334
B16: 4 | C16: =pom!D18 -> 7.997012289e-05 | F16: 4 | G16: 7.997012289e-05 | H16: 0.9999200299 | I16: 99684.63243 | J16: 7.971792306 | L16: 4 | M16: 90309.35703 | N16: 7.045902809 | O16: =SUM(N16:$N$122) -> 16108.94736 | P16: =SUM($M16:M$122) -> 3042216.796 | Q16: =SUM($P16:P$122) -> 80680317.7 | R16: =SUM($O16:O$122) -> 1074404.169
B17: 5 | C17: =pom!D19 -> 9.563625564e-05 | F17: 5 | G17: 9.563625564e-05 | H17: 0.9999043637 | I17: 99676.66064 | J17: 9.532702598 | L17: 5 | M17: 88099.64388 | N17: 8.220019575 | O17: =SUM(N17:$N$122) -> 16101.90146 | P17: =SUM($M17:M$122) -> 2951907.439 | Q17: =SUM($P17:P$122) -> 77638100.9 | R17: =SUM($O17:O$122) -> 1058295.222
B18: 6 | C18: =pom!D20 -> 8.692727844e-05 | F18: 6 | G18: 8.692727844e-05 | H18: 0.9999130727 | I18: 99667.12794 | J18: 8.663792181 | L18: 6 | M18: 85942.65206 | N18: 7.288547166 | O18: =SUM(N18:$N$122) -> 16093.68144 | P18: =SUM($M18:M$122) -> 2863807.795 | Q18: =SUM($P18:P$122) -> 74686193.46 | R18: =SUM($O18:O$122) -> 1042193.321
B19: 7 | C19: =pom!D21 -> 9.958429139e-05 | F19: 7 | G19: 9.958429139e-05 | H19: 0.9999004157 | I19: 99658.46414 | J19: 9.924417532 | L19: 7 | M19: 83839.20127 | N19: 8.145431657 | O19: =SUM(N19:$N$122) -> 16086.39289 | P19: =SUM($M19:M$122) -> 2777865.143 | Q19: =SUM($P19:P$122) -> 71822385.67 | R19: =SUM($O19:O$122) -> 1026099.639
B20: 8 | C20: =pom!D22 -> 0.0001088082019 | F20: 8 | G20: 0.0001088082019 | H20: 0.9998911918 | I20: 99648.53973 | J20: 10.84257843 | L20: 8 | M20: 81786.19727 | N20: 8.681960065 | O20: =SUM(N20:$N$122) -> 16078.24746 | P20: =SUM($M20:M$122) -> 2694025.942 | Q20: =SUM($P20:P$122) -> 69044520.53 | R20: =SUM($O20:O$122) -> 1010013.246
B21: 9 | C21: =pom!D23 -> 0.0001206328397 | F21: 9 | G21: 0.0001206328397 | H21: 0.9998793672 | I21: 99637.69715 | J21: 12.01957834 | L21: 9 | M21: 79782.73001 | N21: 9.389675392 | O21: =SUM(N21:$N$122) -> 16069.5655 | P21: =SUM($M21:M$122) -> 2612239.745 | Q21: =SUM($P21:P$122) -> 66350494.58 | R21: =SUM($O21:O$122) -> 993934.9988
B22: 10 | C22: =pom!D24 -> 9.314796794e-05 | F22: 10 | G22: 9.314796794e-05 | H22: 0.999906852 | I22: 99625.67757 | J22: 9.27992942 | L22: 10 | M22: 77827.42009 | N22: 7.072649786 | O22: =SUM(N22:$N$122) -> 16060.17583 | P22: =SUM($M22:M$122) -> 2532457.015 | Q22: =SUM($P22:P$122) -> 63738254.84 | R22: =SUM($O22:O$122) -> 977865.4333
B23: 11 | C23: =pom!D25 -> 8.206765421e-05 | F23: 11 | G23: 8.206765421e-05 | H23: 0.9999179323 | I23: 99616.39764 | J23: 8.175284075 | L23: 11 | M23: 75922.11768 | N23: 6.078780586 | O23: =SUM(N23:$N$122) -> 16053.10318 | P23: =SUM($M23:M$122) -> 2454629.595 | Q23: =SUM($P23:P$122) -> 61205797.82 | R23: =SUM($O23:O$122) -> 961805.2575
B24: 12 | C24: =pom!D26 -> 8.071282186e-05 | F24: 12 | G24: 8.071282186e-05 | H24: 0.9999192872 | I24: 99608.22236 | J24: 8.039660707 | L24: 12 | M24: 74064.27993 | N24: 5.83213369 | O24: =SUM(N24:$N$122) -> 16047.0244 | P24: =SUM($M24:M$122) -> 2378707.477 | Q24: =SUM($P24:P$122) -> 58751168.23 | R24: =SUM($O24:O$122) -> 945752.1543
B25: 13 | C25: =pom!D27 -> 0.0001274378877 | F25: 13 | G25: 0.0001274378877 | H25: 0.9998725621 | I25: 99600.18269 | J25: 12.69283689 | L25: 13 | M25: 72252.00195 | N25: 8.983065862 | O25: =SUM(N25:$N$122) -> 16041.19226 | P25: =SUM($M25:M$122) -> 2304643.197 | Q25: =SUM($P25:P$122) -> 56372460.75 | R25: =SUM($O25:O$122) -> 929705.1299
B26: 14 | C26: =pom!D28 -> 0.0001778436831 | F26: 14 | G26: 0.0001778436831 | H26: 0.9998221563 | I26: 99587.48986 | J26: 17.71100599 | L26: 14 | M26: 70480.77493 | N26: 12.22883961 | O26: =SUM(N26:$N$122) -> 16032.2092 | P26: =SUM($M26:M$122) -> 2232391.195 | Q26: =SUM($P26:P$122) -> 54067817.55 | R26: =SUM($O26:O$122) -> 913663.9377
B27: 15 | C27: =pom!D29 -> 0.0002549768215 | F27: 15 | G27: 0.0002549768215 | H27: 0.9997450232 | I27: 99569.77885 | J27: 25.38798573 | L27: 15 | M27: 68749.5028 | N27: 17.1019802 | O27: =SUM(N27:$N$122) -> 16019.98036 | P27: =SUM($M27:M$122) -> 2161910.42 | Q27: =SUM($P27:P$122) -> 51835426.36 | R27: =SUM($O27:O$122) -> 897631.7285
B28: 16 | C28: =pom!D30 -> 0.0003591055441 | F28: 16 | G28: 0.0003591055441 | H28: 0.9996408945 | I28: 99544.39087 | J28: 35.74694264 | L28: 16 | M28: 67055.58368 | N28: 23.49271401 | O28: =SUM(N28:$N$122) -> 16002.87838 | P28: =SUM($M28:M$122) -> 2093160.917 | Q28: =SUM($P28:P$122) -> 49673515.94 | R28: =SUM($O28:O$122) -> 881611.7481
B29: 17 | C29: =pom!D31 -> 0.0004990370753 | F29: 17 | G29: 0.0004990370753 | H29: 0.9995009629 | I29: 99508.64392 | J29: 49.65850263 | L29: 17 | M29: 65396.58892 | N29: 31.839339 | O29: =SUM(N29:$N$122) -> 15979.38566 | P29: =SUM($M29:M$122) -> 2026105.334 | Q29: =SUM($P29:P$122) -> 47580355.02 | R29: =SUM($O29:O$122) -> 865608.8697
B30: 18 | C30: =pom!D32 -> 0.0006655074752 | F30: 18 | G30: 0.0006655074752 | H30: 0.9993344925 | I30: 99458.98542 | J30: 66.19069827 | L30: 18 | M30: 63769.71083 | N30: 41.40411634 | O30: =SUM(N30:$N$122) -> 15947.54632 | P30: =SUM($M30:M$122) -> 1960708.745 | Q30: =SUM($P30:P$122) -> 45554249.69 | R30: =SUM($O30:O$122) -> 849629.4841
B31: 19 | C31: =pom!D33 -> 0.0007691721917 | F31: 19 | G31: 0.0007691721917 | H31: 0.9992308278 | I31: 99392.79472 | J31: 76.45017375 | L31: 19 | M31: 62172.94791 | N31: 46.65531962 | O31: =SUM(N31:$N$122) -> 15906.14221 | P31: =SUM($M31:M$122) -> 1896939.034 | Q31: =SUM($P31:P$122) -> 43593540.94 | R31: =SUM($O31:O$122) -> 833681.9377
B32: 20 | C32: =pom!D34 -> 0.0007837723515 | F32: 20 | G32: 0.0007837723515 | H32: 0.9992162276 | I32: 99316.34455 | J32: 77.84140491 | L32: 20 | M32: 60609.87923 | N32: 46.34570494 | O32: =SUM(N32:$N$122) -> 15859.48689 | P32: =SUM($M32:M$122) -> 1834766.086 | Q32: =SUM($P32:P$122) -> 41696601.91 | R32: =SUM($O32:O$122) -> 817775.7955
B33: 21 | C33: =pom!D35 -> 0.0006954836945 | F33: 21 | G33: 0.0006954836945 | H33: 0.9993045163 | I33: 99238.50314 | J33: 69.0187608 | L33: 21 | M33: 59085.24379 | N33: 40.09055965 | O33: =SUM(N33:$N$122) -> 15813.14118 | P33: =SUM($M33:M$122) -> 1774156.207 | Q33: =SUM($P33:P$122) -> 39861835.82 | R33: =SUM($O33:O$122) -> 801916.3086
B34: 22 | C34: =pom!D36 -> 0.0006213736998 | F34: 22 | G34: 0.0006213736998 | H34: 0.9993786263 | I34: 99169.48438 | J34: 61.62130941 | L34: 22 | M34: 57604.04972 | N34: 34.92062585 | O34: =SUM(N34:$N$122) -> 15773.05062 | P34: =SUM($M34:M$122) -> 1715070.963 | Q34: =SUM($P34:P$122) -> 38087679.62 | R34: =SUM($O34:O$122) -> 786103.1675
B35: 23 | C35: =pom!D37 -> 0.0006310327852 | F35: 23 | G35: 0.0006310327852 | H35: 0.9993689672 | I35: 99107.86307 | J35: 62.54031087 | L35: 23 | M35: 56164.15227 | N35: 34.57699652 | O35: =SUM(N35:$N$122) -> 15738.13 | P35: =SUM($M35:M$122) -> 1657466.913 | Q35: =SUM($P35:P$122) -> 36372608.65 | R35: =SUM($O35:O$122) -> 770330.1168
B36: 24 | C36: =pom!D38 -> 0.0006358482304 | F36: 24 | G36: 0.0006358482304 | H36: 0.9993641518 | I36: 99045.32276 | J36: 62.97779321 | L36: 24 | M36: 54759.7179 | N36: 33.969629 | O36: =SUM(N36:$N$122) -> 15703.553 | P36: =SUM($M36:M$122) -> 1601302.761 | Q36: =SUM($P36:P$122) -> 34715141.74 | R36: =SUM($O36:O$122) -> 754591.9868
B37: 25 | C37: =pom!D39 -> 0.0006931719486 | F37: 25 | G37: 0.0006931719486 | H37: 0.9993068281 | I37: 98982.34497 | J37: 68.61178494 | L37: 25 | M37: 53390.1454 | N37: 36.10590353 | O37: =SUM(N37:$N$122) -> 15669.58337 | P37: =SUM($M37:M$122) -> 1546543.043 | Q37: =SUM($P37:P$122) -> 33113838.98 | R37: =SUM($O37:O$122) -> 738888.4338
B38: 26 | C38: =pom!D40 -> 0.0007756640636 | F38: 26 | G38: 0.0007756640636 | H38: 0.9992243359 | I38: 98913.73318 | J38: 76.72382823 | L38: 26 | M38: 52051.84083 | N38: 39.38999256 | O38: =SUM(N38:$N$122) -> 15633.47747 | P38: =SUM($M38:M$122) -> 1493152.898 | Q38: =SUM($P38:P$122) -> 31567295.94 | R38: =SUM($O38:O$122) -> 723218.8505
B39: 27 | C39: =pom!D41 -> 0.0007592443168 | F39: 27 | G39: 0.0007592443168 | H39: 0.9992407557 | I39: 98837.00936 | J39: 75.04143764 | L39: 27 | M39: 50742.89374 | N39: 37.58658897 | O39: =SUM(N39:$N$122) -> 15594.08748 | P39: =SUM($M39:M$122) -> 1441101.057 | Q39: =SUM($P39:P$122) -> 30074143.04 | R39: =SUM($O39:O$122) -> 707585.373
B40: 28 | C40: =pom!D42 -> 0.0007338181953 | F40: 28 | G40: 0.0007338181953 | H40: 0.9992661818 | I40: 98761.96792 | J40: 72.47332906 | L40: 28 | M40: 49467.6756 | N40: 35.41490774 | O40: =SUM(N40:$N$122) -> 15556.50089 | P40: =SUM($M40:M$122) -> 1390358.163 | Q40: =SUM($P40:P$122) -> 28633041.98 | R40: =SUM($O40:O$122) -> 691991.2855
B41: 29 | C41: =pom!D43 -> 0.0007541012258 | F41: 29 | G41: 0.0007541012258 | H41: 0.9992458988 | I41: 98689.49459 | J41: 74.42186885 | L41: 29 | M41: 48225.73202 | N41: 35.48008159 | O41: =SUM(N41:$N$122) -> 15521.08598 | P41: =SUM($M41:M$122) -> 1340890.488 | Q41: =SUM($P41:P$122) -> 27242683.82 | R41: =SUM($O41:O$122) -> 676434.7846
B42: 30 | C42: =pom!D44 -> 0.0007412673356 | F42: 30 | G42: 0.0007412673356 | H42: 0.9992587327 | I42: 98615.07272 | J42: 73.1001322 | L42: 30 | M42: 47014.01457 | N42: 33.99995445 | O42: =SUM(N42:$N$122) -> 15485.6059 | P42: =SUM($M42:M$122) -> 1292664.756 | Q42: =SUM($P42:P$122) -> 25901793.33 | R42: =SUM($O42:O$122) -> 660913.6987
B43: 31 | C43: =pom!D45 -> 0.000771683953 | F43: 31 | G43: 0.000771683953 | H43: 0.999228316 | I43: 98541.97259 | J43: 76.04325894 | L43: 31 | M43: 45833.33133 | N43: 34.50619151 | O43: =SUM(N43:$N$122) -> 15451.60594 | P43: =SUM($M43:M$122) -> 1245650.741 | Q43: =SUM($P43:P$122) -> 24609128.58 | R43: =SUM($O43:O$122) -> 645428.0928
B44: 32 | C44: =pom!D46 -> 0.0008544175744 | F44: 32 | G44: 0.0008544175744 | H44: 0.9991455824 | I44: 98465.92933 | J44: 84.1310205 | L44: 32 | M44: =I44*$H$6^F44 -> 44680.93901 | N44: =J44*$H$6^(F44+1) -> 37.2450532 | O44: =SUM(N44:$N$122) -> 15417.09975 | P44: =SUM($M44:M$122) -> 1199817.41 | Q44: =SUM($P44:P$122) -> 23363477.83 | R44: =SUM($O44:O$122) -> 629976.4868
B45: 33 | C45: =pom!D47 -> 0.0009393041431 | F45: 33 | G45: 0.0009393041431 | H45: 0.9990606959 | I45: 98381.79831 | J45: 92.41043076 | L45: 33 | M45: 43553.91496 | N45: 39.9125588 | O45: =SUM(N45:$N$122) -> 15379.8547 | P45: =SUM($M45:M$122) -> 1155136.471 | Q45: =SUM($P45:P$122) -> 22163660.43 | R45: =SUM($O45:O$122) -> 614559.3871
B46: 34 | C46: =pom!D48 -> 0.0009717040009 | F46: 34 | G46: 0.0009717040009 | H46: 0.999028296 | I46: 98289.38788 | J46: 95.50819145 | L46: 34 | M46: 42451.71179 | N46: 40.24438848 | O46: =SUM(N46:$N$122) -> 15339.94214 | P46: =SUM($M46:M$122) -> 1111582.556 | Q46: =SUM($P46:P$122) -> 21008523.95 | R46: =SUM($O46:O$122) -> 599179.5324
B47: 35 | C47: =pom!D49 -> 0.001032450627 | F47: 35 | G47: 0.001032450627 | H47: 0.9989675494 | I47: 98193.87969 | J47: 101.3803326 | L47: 35 | M47: 41376.0598 | N47: 41.67681841 | O47: =SUM(N47:$N$122) -> 15299.69775 | P47: =SUM($M47:M$122) -> 1069130.844 | Q47: =SUM($P47:P$122) -> 19896941.4 | R47: =SUM($O47:O$122) -> 583839.5902
B48: 36 | C48: =pom!D50 -> 0.001066867371 | F48: 36 | G48: 0.001066867371 | H48: 0.9989331326 | I48: 98092.49935 | J48: 104.6516869 | L48: 36 | M48: 40325.21079 | N48: 41.97234304 | O48: =SUM(N48:$N$122) -> 15258.02093 | P48: =SUM($M48:M$122) -> 1027754.784 | Q48: =SUM($P48:P$122) -> 18827810.56 | R48: =SUM($O48:O$122) -> 568539.8925
B49: 37 | C49: =pom!D51 -> 0.001079282305 | F49: 37 | G49: 0.001079282305 | H49: 0.9989207177 | I49: 97987.84767 | J49: 105.7565501 | L49: 37 | M49: 39299.69672 | N49: 41.38094367 | O49: =SUM(N49:$N$122) -> 15216.04859 | P49: =SUM($M49:M$122) -> 987429.5733 | Q49: =SUM($P49:P$122) -> 17800055.77 | R49: =SUM($O49:O$122) -> 553281.8716
B50: 38 | C50: =pom!D52 -> 0.001196941811 | F50: 38 | G50: 0.001196941811 | H50: 0.9988030582 | I50: 97882.09112 | J50: 117.1591674 | L50: 38 | M50: 38299.78659 | N50: 44.72450332 | O50: =SUM(N50:$N$122) -> 15174.66765 | P50: =SUM($M50:M$122) -> 948129.8766 | Q50: =SUM($P50:P$122) -> 16812626.2 | R50: =SUM($O50:O$122) -> 538065.823
B51: 39 | C51: =pom!D53 -> 0.001415422729 | F51: 39 | G51: 0.001415422729 | H51: 0.9985845773 | I51: 97764.93195 | J51: 138.3787067 | L51: 39 | M51: 37320.92095 | N51: 51.53646806 | O51: =SUM(N51:$N$122) -> 15129.94314 | P51: =SUM($M51:M$122) -> 909830.09 | Q51: =SUM($P51:P$122) -> 15864496.32 | R51: =SUM($O51:O$122) -> 522891.1553
B52: 40 | C52: =pom!D54 -> 0.001621132573 | F52: 40 | G52: 0.001621132573 | H52: 0.9983788674 | I52: 97626.55324 | J52: 158.2655854 | L52: 40 | M52: 36359.11811 | N52: 57.50531775 | O52: =SUM(N52:$N$122) -> 15078.40667 | P52: =SUM($M52:M$122) -> 872509.169 | Q52: =SUM($P52:P$122) -> 14954666.23 | R52: =SUM($O52:O$122) -> 507761.2122
B53: 41 | C53: =pom!D55 -> 0.001797152753 | F53: 41 | G53: 0.001797152753 | H53: 0.9982028472 | I53: 97468.28766 | J53: 175.1654015 | L53: 41 | M53: 35414.80504 | N53: 62.09347743 | O53: =SUM(N53:$N$122) -> 15020.90136 | P53: =SUM($M53:M$122) -> 836150.0509 | Q53: =SUM($P53:P$122) -> 14082157.06 | R53: =SUM($O53:O$122) -> 492682.8055
B54: 42 | C54: =pom!D56 -> 0.001941203083 | F54: 42 | G54: 0.001941203083 | H54: 0.9980587969 | I54: 97293.12226 | J54: 188.8657089 | L54: 42 | M54: 34488.93583 | N54: 65.31710103 | O54: =SUM(N54:$N$122) -> 14958.80788 | P54: =SUM($M54:M$122) -> 800735.2459 | Q54: =SUM($P54:P$122) -> 13246007.01 | R54: =SUM($O54:O$122) -> 477661.9041
B55: 43 | C55: =pom!D57 -> 0.002109171298 | F55: 43 | G55: 0.002109171298 | H55: 0.9978908287 | I55: 97104.25655 | J55: 204.8095108 | L55: 43 | M55: 33582.42517 | N55: 69.1034998 | O55: =SUM(N55:$N$122) -> 14893.49078 | P55: =SUM($M55:M$122) -> 766246.3101 | Q55: =SUM($P55:P$122) -> 12445271.77 | R55: =SUM($O55:O$122) -> 462703.0963
B56: 44 | C56: =pom!D58 -> 0.002367274992 | F56: 44 | G56: 0.002367274992 | H56: 0.997632725 | I56: 96899.44704 | J56: 229.3876377 | L56: 44 | M56: 32694.23813 | N56: 75.50853883 | O56: =SUM(N56:$N$122) -> 14824.38728 | P56: =SUM($M56:M$122) -> 732663.8849 | Q56: =SUM($P56:P$122) -> 11679025.46 | R56: =SUM($O56:O$122) -> 447809.6055
B57: 45 | C57: =pom!D59 -> 0.002681792075 | F57: 45 | G57: 0.002681792075 | H57: 0.9973182079 | I57: 96670.0594 | J57: 259.2489991 | L57: 45 | M57: 31821.30915 | N57: 83.25671676 | O57: =SUM(N57:$N$122) -> 14748.87874 | P57: =SUM($M57:M$122) -> 699969.6468 | Q57: =SUM($P57:P$122) -> 10946361.57 | R57: =SUM($O57:O$122) -> 432985.2182
B58: 46 | C58: =pom!D60 -> 0.003095204254 | F58: 46 | G58: 0.003095204254 | H58: 0.9969047957 | I58: 96410.8104 | J58: 298.4111505 | L58: 46 | M58: 30961.92294 | N58: 93.49607375 | O58: =SUM(N58:$N$122) -> 14665.62202 | P58: =SUM($M58:M$122) -> 668148.3376 | Q58: =SUM($P58:P$122) -> 10246391.92 | R58: =SUM($O58:O$122) -> 418236.3395
B59: 47 | C59: =pom!D61 -> 0.003360684516 | F59: 47 | G59: 0.003360684516 | H59: 0.9966393155 | I59: 96112.39925 | J59: 323.003452 | L59: 47 | M59: 30113.25801 | N59: 98.73283896 | O59: =SUM(N59:$N$122) -> 14572.12595 | P59: =SUM($M59:M$122) -> 637186.4147 | Q59: =SUM($P59:P$122) -> 9578243.586 | R59: =SUM($O59:O$122) -> 403570.7175
B60: 48 | C60: =pom!D62 -> 0.003768358563 | F60: 48 | G60: 0.003768358563 | H60: 0.9962316414 | I60: 95789.3958 | J60: 360.9687899 | L60: 48 | M60: 29280.05547 | N60: 107.6465832 | O60: =SUM(N60:$N$122) -> 14473.39311 | P60: =SUM($M60:M$122) -> 607073.1567 | Q60: =SUM($P60:P$122) -> 8941057.171 | R60: =SUM($O60:O$122) -> 388998.5915
B61: 49 | C61: =pom!D63 -> 0.004071819601 | F61: 49 | G61: 0.004071819601 | H61: 0.9959281804 | I61: 95428.42701 | J61: 388.5673395 | L61: 49 | M61: 28458.26119 | N61: 113.0506397 | O61: =SUM(N61:$N$122) -> 14365.74653 | P61: =SUM($M61:M$122) -> 577793.1012 | Q61: =SUM($P61:P$122) -> 8333984.015 | R61: =SUM($O61:O$122) -> 374525.1984
B62: 50 | C62: =pom!D64 -> 0.004581215962 | F62: 50 | G62: 0.004581215962 | H62: 0.995418784 | I62: 95039.85967 | J62: 435.3981222 | L62: 50 | M62: 27651.10662 | N62: 123.58604 | O62: =SUM(N62:$N$122) -> 14252.69589 | P62: =SUM($M62:M$122) -> 549334.84 | Q62: =SUM($P62:P$122) -> 7756190.914 | R62: =SUM($O62:O$122) -> 360159.4519
B63: 51 | C63: =pom!D65 -> 0.004911360184 | F63: 51 | G63: 0.004911360184 | H63: 0.9950886398 | I63: 94604.46155 | J63: 464.6365857 | L63: 51 | M63: 26853.10334 | N63: 128.6685489 | O63: =SUM(N63:$N$122) -> 14129.10985 | P63: =SUM($M63:M$122) -> 521683.7334 | Q63: =SUM($P63:P$122) -> 7206856.074 | R63: =SUM($O63:O$122) -> 345906.756
B64: 52 | C64: =pom!D66 -> 0.005492440835 | F64: 52 | G64: 0.005492440835 | H64: 0.9945075592 | I64: 94139.82496 | J64: 517.0574189 | L64: 52 | M64: 26069.48106 | N64: 139.6927632 | O64: =SUM(N64:$N$122) -> 14000.4413 | P64: =SUM($M64:M$122) -> 494830.63 | Q64: =SUM($P64:P$122) -> 6685172.34 | R64: =SUM($O64:O$122) -> 331777.6461
B65: 53 | C65: =pom!D67 -> 0.005859811439 | F65: 53 | G65: 0.005859811439 | H65: 0.9941401886 | I65: 93622.76754 | J65: 548.6117642 | L65: 53 | M65: 25293.94729 | N65: 144.6026943 | O65: =SUM(N65:$N$122) -> 13860.74853 | P65: =SUM($M65:M$122) -> 468761.149 | Q65: =SUM($P65:P$122) -> 6190341.71 | R65: =SUM($O65:O$122) -> 317777.2048
B66: 54 | C66: =pom!D68 -> 0.006522078741 | F66: 54 | G66: 0.006522078741 | H66: 0.9934779213 | I66: 93074.15578 | J66: 607.0369728 | L66: 54 | M66: 24532.41905 | N66: 156.099872 | O66: =SUM(N66:$N$122) -> 13716.14584 | P66: =SUM($M66:M$122) -> 443467.2017 | Q66: =SUM($P66:P$122) -> 5721580.561 | R66: =SUM($O66:O$122) -> 303916.4563
B67: 55 | C67: =pom!D69 -> 0.007342308075 | F67: 55 | G67: 0.007342308075 | H67: 0.9926576919 | I67: 92467.1188 | J67: 678.9220731 | L67: 55 | M67: 23777.9675 | N67: 170.3269881 | O67: =SUM(N67:$N$122) -> 13560.04597 | P67: =SUM($M67:M$122) -> 418934.7826 | Q67: =SUM($P67:P$122) -> 5278113.359 | R67: =SUM($O67:O$122) -> 290200.3105
B68: 56 | C68: =pom!D70 -> 0.008397208261 | F68: 56 | G68: 0.008397208261 | H68: 0.9916027917 | I68: 91788.19673 | J68: 770.7646039 | L68: 56 | M68: 23027.69008 | N68: 188.6520092 | O68: =SUM(N68:$N$122) -> 13389.71898 | P68: =SUM($M68:M$122) -> 395156.8151 | Q68: =SUM($P68:P$122) -> 4859178.577 | R68: =SUM($O68:O$122) -> 276640.2645
B69: 57 | C69: =pom!D71 -> 0.009416976013 | F69: 57 | G69: 0.009416976013 | H69: 0.990583024 | I69: 91017.43213 | J69: 857.1089751 | L69: 57 | M69: 22277.38709 | N69: 204.6688975 | O69: =SUM(N69:$N$122) -> 13201.06697 | P69: =SUM($M69:M$122) -> 372129.1251 | Q69: =SUM($P69:P$122) -> 4464021.762 | R69: =SUM($O69:O$122) -> 263250.5455
B70: 58 | C70: =pom!D72 -> 0.01060770656 | F70: 58 | G70: 0.01060770656 | H70: 0.9893922934 | I70: 90160.32315 | J70: 956.3942516 | L70: 58 | M70: 21529.36729 | N70: 222.8070349 | O70: =SUM(N70:$N$122) -> 12996.39807 | P70: =SUM($M70:M$122) -> 349851.738 | Q70: =SUM($P70:P$122) -> 4091892.637 | R70: =SUM($O70:O$122) -> 250049.4785
B71: 59 | C71: =pom!D73 -> 0.01168656014 | F71: 59 | G71: 0.01168656014 | H71: 0.9883134399 | I71: 89203.9289 | J71: 1042.48708 | L71: 59 | M71: 20781.45374 | N71: 236.9402038 | O71: =SUM(N71:$N$122) -> 12773.59104 | P71: =SUM($M71:M$122) -> 328322.3707 | Q71: =SUM($P71:P$122) -> 3742040.899 | R71: =SUM($O71:O$122) -> 237053.0805
B72: 60 | C72: =pom!D74 -> 0.01316595757 | F72: 60 | G72: 0.01316595757 | H72: 0.9868340424 | I72: 88161.44182 | J72: 1160.729802 | L72: 60 | M72: 20037.64881 | N72: 257.3803259 | O72: =SUM(N72:$N$122) -> 12536.65084 | P72: =SUM($M72:M$122) -> 307540.9169 | Q72: =SUM($P72:P$122) -> 3413718.528 | R72: =SUM($O72:O$122) -> 224279.4894
B73: 61 | C73: =pom!D75 -> 0.0145644201 | F73: 61 | G73: 0.0145644201 | H73: 0.9854355799 | I73: 87000.71202 | J73: 1267.114919 | L73: 61 | M73: 19291.54534 | N73: 274.1172397 | O73: =SUM(N73:$N$122) -> 12279.27051 | P73: =SUM($M73:M$122) -> 287503.2681 | Q73: =SUM($P73:P$122) -> 3106177.611 | R73: =SUM($O73:O$122) -> 211742.8386
B74: 62 | C74: =pom!D76 -> 0.01601553989 | F74: 62 | G74: 0.01601553989 | H74: 0.9839844601 | I74: 85733.5971 | J74: 1373.069844 | L74: 62 | M74: 18546.90261 | N74: 289.7938132 | O74: =SUM(N74:$N$122) -> 12005.15327 | P74: =SUM($M74:M$122) -> 268211.7228 | Q74: =SUM($P74:P$122) -> 2818674.343 | R74: =SUM($O74:O$122) -> 199463.5681
B75: 63 | C75: =pom!D77 -> 0.01740422478 | F75: 63 | G75: 0.01740422478 | H75: 0.9825957752 | I75: 84360.52726 | J75: 1468.229579 | L75: 63 | M75: 17804.74531 | N75: 302.3197948 | O75: =SUM(N75:$N$122) -> 11715.35946 | P75: =SUM($M75:M$122) -> 249664.8202 | Q75: =SUM($P75:P$122) -> 2550462.62 | R75: =SUM($O75:O$122) -> 187458.4148
B76: 64 | C76: =pom!D78 -> 0.01897702631 | F76: 64 | G76: 0.01897702631 | H76: 0.9810229737 | I76: 82892.29768 | J76: 1573.049314 | L76: 64 | M76: =I76*$H$6^F76 -> 17068.16344 | N76: =J76*$H$6^(F76+1) -> 316.0029139 | O76: =SUM(N76:$N$122) -> 11413.03966 | P76: =SUM($M76:M$122) -> 231860.0749 | Q76: =SUM($P76:P$122) -> 2300797.8 | R76: =SUM($O76:O$122) -> 175743.0554
B77: 65 | C77: =pom!D79 -> 0.02070364303 | F77: 65 | G77: =C77 -> 0.02070364303 | H77: =1-G77 -> 0.979296357 | I77: 81319.24836 | J77: =I77-I78 -> 1683.604689 | L77: =F77 -> 65 | M77: 16335.86386 | N77: 329.9628232 | O77: =SUM(N77:$N$122) -> 11097.03675 | P77: =SUM($M77:M$122) -> 214791.9114 | Q77: =SUM($P77:P$122) -> 2068937.725 | R77: =SUM($O77:O$122) -> 164330.0157
B78: 66 | C78: =pom!D80 -> 0.02318539576 | F78: 66 | G78: 0.02318539576 | H78: 0.9768146042 | I78: =I77*H77 -> 79635.64367 | J78: 1846.383915 | L78: 66 | M78: 15607.46533 | N78: 353.0392785 | O78: =SUM(N78:$N$122) -> 10767.07392 | P78: =SUM($M78:M$122) -> 198456.0476 | Q78: =SUM($P78:P$122) -> 1854145.814 | R78: =SUM($O78:O$122) -> 153232.979
B79: 67 | C79: =pom!D81 -> 0.02519771053 | F79: 67 | G79: 0.02519771053 | H79: 0.9748022895 | I79: 77789.25976 | J79: 1960.11125 | L79: 67 | M79: 14873.75616 | N79: 365.6435145 | O79: =SUM(N79:$N$122) -> 10414.03465 | P79: =SUM($M79:M$122) -> 182848.5822 | Q79: =SUM($P79:P$122) -> 1655689.766 | R79: =SUM($O79:O$122) -> 142465.905
B80: 68 | C80: =pom!D82 -> 0.02736821752 | F80: 68 | G80: 0.02736821752 | H80: 0.9726317825 | I80: 75829.14851 | J80: 2075.308631 | L80: 68 | M80: 14145.33811 | N80: 377.6904295 | O80: =SUM(N80:$N$122) -> 10048.39113 | P80: =SUM($M80:M$122) -> 167974.8261 | Q80: =SUM($P80:P$122) -> 1472841.184 | R80: =SUM($O80:O$122) -> 132051.8704
B81: 69 | C81: =pom!D83 -> 0.02943281024 | F81: 69 | G81: 0.02943281024 | H81: 0.9705671898 | I81: 73753.83988 | J81: 2170.782774 | L81: 69 | M81: 13422.63943 | N81: 385.4302433 | O81: =SUM(N81:$N$122) -> 9670.700702 | P81: =SUM($M81:M$122) -> 153829.488 | Q81: =SUM($P81:P$122) -> 1304866.358 | R81: =SUM($O81:O$122) -> 122003.4792
B82: 70 | C82: =pom!D84 -> 0.03112395379 | F82: 70 | G82: 0.03112395379 | H82: 0.9688760462 | I82: 71583.0571 | J82: 2227.947761 | L82: 70 | M82: 12709.82774 | N82: 385.9317963 | O82: =SUM(N82:$N$122) -> 9285.270459 | P82: =SUM($M82:M$122) -> 140406.8485 | Q82: =SUM($P82:P$122) -> 1151036.87 | R82: =SUM($O82:O$122) -> 112332.7785
B83: 71 | C83: =pom!D85 -> 0.03282388646 | F83: 71 | G83: 0.03282388646 | H83: 0.9671761135 | I83: 69355.10934 | J83: 2276.504235 | L83: 71 | M83: 12013.90015 | N83: 384.724775 | O83: =SUM(N83:$N$122) -> 8899.338662 | P83: =SUM($M83:M$122) -> 127697.0208 | Q83: =SUM($P83:P$122) -> 1010630.021 | R83: =SUM($O83:O$122) -> 103047.5081
B84: 72 | C84: =pom!D86 -> 0.03537776197 | F84: 72 | G84: 0.03537776197 | H84: 0.964622238 | I84: 67078.60511 | J84: 2373.090925 | L84: 72 | M84: 11336.15342 | N84: 391.2660851 | O84: =SUM(N84:$N$122) -> 8514.613887 | P84: =SUM($M84:M$122) -> 115683.1207 | Q84: =SUM($P84:P$122) -> 882933.0004 | R84: =SUM($O84:O$122) -> 94148.16943
B85: 73 | C85: =pom!D87 -> 0.03751029388 | F85: 73 | G85: 0.03751029388 | H85: 0.9624897061 | I85: 64705.51418 | J85: 2427.122853 | L85: 73 | M85: 10668.39578 | N85: 390.4143035 | O85: =SUM(N85:$N$122) -> 8123.347802 | P85: =SUM($M85:M$122) -> 104346.9672 | Q85: =SUM($P85:P$122) -> 767249.8797 | R85: =SUM($O85:O$122) -> 85633.55554
B86: 74 | C86: =pom!D88 -> 0.04100466592 | F86: 74 | G86: 0.04100466592 | H86: 0.9589953341 | I86: 62278.39133 | J86: 2553.70463 | L86: 74 | M86: 10017.7767 | N86: 400.7566703 | O86: =SUM(N86:$N$122) -> 7732.933499 | P86: =SUM($M86:M$122) -> 93678.57145 | Q86: =SUM($P86:P$122) -> 662902.9125 | R86: =SUM($O86:O$122) -> 77510.20774
B87: 75 | C87: =pom!D89 -> 0.04572505664 | F87: 75 | G87: 0.04572505664 | H87: 0.9542749434 | I87: 59724.6867 | J87: 2730.914682 | L87: 75 | M87: 9372.684018 | N87: 418.1136659 | O87: =SUM(N87:$N$122) -> 7332.176829 | P87: =SUM($M87:M$122) -> 83660.79475 | Q87: =SUM($P87:P$122) -> 569224.341 | R87: =SUM($O87:O$122) -> 69777.27424
B88: 76 | C88: =pom!D90 -> 0.05067101498 | F88: 76 | G88: 0.05067101498 | H88: 0.949328985 | I88: 56993.77202 | J88: 2887.932276 | L88: 76 | M88: 8725.968302 | N88: 431.3694347 | O88: =SUM(N88:$N$122) -> 6914.063163 | P88: =SUM($M88:M$122) -> 74288.11073 | Q88: =SUM($P88:P$122) -> 485563.5463 | R88: =SUM($O88:O$122) -> 62445.09741
B89: 77 | C89: =pom!D91 -> 0.05568093077 | F89: 77 | G89: 0.05568093077 | H89: 0.9443190692 | I89: 54105.83974 | J89: 3012.663517 | L89: 77 | M89: 8081.770373 | N89: 439.0248747 | O89: =SUM(N89:$N$122) -> 6482.693728 | P89: =SUM($M89:M$122) -> 65562.14243 | Q89: =SUM($P89:P$122) -> 411275.4355 | R89: =SUM($O89:O$122) -> 55531.03425
B90: 78 | C90: =pom!D92 -> 0.06151702473 | F90: 78 | G90: 0.06151702473 | H90: 0.9384829753 | I90: 51093.17623 | J90: 3143.100185 | L90: 78 | M90: 7445.629147 | N90: 446.8614169 | O90: =SUM(N90:$N$122) -> 6043.668853 | P90: =SUM($M90:M$122) -> 57480.37206 | Q90: =SUM($P90:P$122) -> 345713.2931 | R90: =SUM($O90:O$122) -> 49048.34052
B91: 79 | C91: =pom!D93 -> 0.06720885529 | F91: 79 | G91: 0.06720885529 | H91: 0.9327911447 | I91: 47950.07604 | J91: 3222.669721 | L91: 79 | M91: 6817.167019 | N91: 446.9990163 | O91: =SUM(N91:$N$122) -> 5596.807436 | P91: =SUM($M91:M$122) -> 50034.74291 | Q91: =SUM($P91:P$122) -> 288232.921 | R91: =SUM($O91:O$122) -> 43004.67166
B92: 80 | C92: =pom!D94 -> 0.07365067182 | F92: 80 | G92: 0.07365067182 | H92: 0.9263493282 | I92: 44727.40632 | J92: 3294.203524 | L92: 80 | M92: 6203.895637 | N92: 445.7766649 | O92: =SUM(N92:$N$122) -> 5149.80842 | P92: =SUM($M92:M$122) -> 43217.57589 | Q92: =SUM($P92:P$122) -> 238198.1781 | R92: =SUM($O92:O$122) -> 37407.86423
B93: 81 | C93: =pom!D95 -> 0.08128489912 | F93: 81 | G93: 0.08128489912 | H93: 0.9187151009 | I93: 41433.20279 | J93: 3367.893709 | L93: 81 | M93: 5606.804444 | N93: 444.6327157 | O93: =SUM(N93:$N$122) -> 4704.031755 | P93: =SUM($M93:M$122) -> 37013.68025 | Q93: =SUM($P93:P$122) -> 194980.6022 | R93: =SUM($O93:O$122) -> 32258.05581
B94: 82 | C94: =pom!D96 -> 0.08932226286 | F94: 82 | G94: 0.08932226286 | H94: 0.9106777371 | I94: 38065.30908 | J94: 3400.079544 | L94: 82 | M94: 5025.4204 | N94: 437.9335824 | O94: =SUM(N94:$N$122) -> 4259.399039 | P94: =SUM($M94:M$122) -> 31406.87581 | Q94: =SUM($P94:P$122) -> 157966.922 | R94: =SUM($O94:O$122) -> 27554.02405
B95: 83 | C95: =pom!D97 -> 0.09819590166 | F95: 83 | G95: 0.09819590166 | H95: 0.9018040983 | I95: 34665.22954 | J95: 3403.983471 | L95: 83 | M95: 4464.915589 | N95: 427.742841 | O95: =SUM(N95:$N$122) -> 3821.465457 | P95: =SUM($M95:M$122) -> 26381.45541 | Q95: =SUM($P95:P$122) -> 126560.0462 | R95: =SUM($O95:O$122) -> 23294.62501
B96: 84 | C96: =pom!D98 -> 0.1079020776 | F96: 84 | G96: 0.1079020776 | H96: 0.8920979224 | I96: 31261.24607 | J96: 3373.1534 | L96: 84 | M96: 3928.272368 | N96: 413.5304877 | O96: =SUM(N96:$N$122) -> 3393.722616 | P96: =SUM($M96:M$122) -> 21916.53982 | Q96: =SUM($P96:P$122) -> 100178.5908 | R96: =SUM($O96:O$122) -> 19473.15956
B97: 85 | C97: =pom!D99 -> 0.1186418692 | F97: 85 | G97: 0.1186418692 | H97: 0.8813581308 | I97: 27888.09267 | J97: 3308.695443 | L97: 85 | M97: 3418.930359 | N97: 395.7349156 | O97: =SUM(N97:$N$122) -> 2980.192128 | P97: =SUM($M97:M$122) -> 17988.26745 | Q97: =SUM($P97:P$122) -> 78262.05095 | R97: =SUM($O97:O$122) -> 16079.43694
B98: 86 | C98: =pom!D100 -> 0.1304354871 | F98: 86 | G98: 0.1304354871 | H98: 0.8695645129 | I98: 24579.39723 | J98: 3206.02565 | L98: 86 | M98: 2939.806898 | N98: 374.1025801 | O98: =SUM(N98:$N$122) -> 2584.457213 | P98: =SUM($M98:M$122) -> 14569.33709 | Q98: =SUM($P98:P$122) -> 60273.78349 | R98: =SUM($O98:O$122) -> 13099.24481
B99: 87 | C99: =pom!D101 -> 0.143367757 | F99: 87 | G99: 0.143367757 | H99: 0.856632243 | I99: 21373.37158 | J99: 3064.252342 | L99: 87 | M99: 2494.00171 | N99: 348.8384694 | O99: =SUM(N99:$N$122) -> 2210.354632 | P99: =SUM($M99:M$122) -> 11629.5302 | Q99: =SUM($P99:P$122) -> 45704.4464 | R99: =SUM($O99:O$122) -> 10514.7876
B100: 88 | C100: =pom!D102 -> 0.1575259884 | F100: 88 | G100: 0.1575259884 | H100: 0.8424740116 | I100: 18309.11924 | J100: 2884.162103 | L100: 88 | M100: 2084.333931 | N100: 320.3285488 | O100: =SUM(N100:$N$122) -> 1861.516163 | P100: =SUM($M100:M$122) -> 9135.528486 | Q100: =SUM($P100:P$122) -> 34074.9162 | R100: =SUM($O100:O$122) -> 8304.432969
B101: 89 | C101: =pom!D103 -> 0.172998897 | F101: 89 | G101: 0.172998897 | H101: 0.827001103 | I101: 15424.95713 | J101: 2668.50057 | L101: 89 | M101: 1713.167969 | N101: 289.147482 | O101: =SUM(N101:$N$122) -> 1541.187614 | P101: =SUM($M101:M$122) -> 7051.194555 | Q101: =SUM($P101:P$122) -> 24939.38772 | R101: =SUM($O101:O$122) -> 6442.916806
B102: 90 | C102: =pom!D104 -> 0.1898751907 | F102: 90 | G102: 0.1898751907 | H102: 0.8101248093 | I102: 12756.45656 | J102: 2422.134622 | L102: 90 | M102: 1382.235903 | N102: 256.0510298 | O102: =SUM(N102:$N$122) -> 1252.040132 | P102: =SUM($M102:M$122) -> 5338.026586 | Q102: =SUM($P102:P$122) -> 17888.19316 | R102: =SUM($O102:O$122) -> 4901.729191
B103: 91 | C103: =pom!D105 -> 0.2082417615 | F103: 91 | G103: 0.2082417615 | H103: 0.7917582385 | I103: 10334.32194 | J103: 2152.037405 | L103: 91 | M103: 1092.471802 | N103: 221.9495146 | O103: =SUM(N103:$N$122) -> 995.9891024 | P103: =SUM($M103:M$122) -> 3955.790683 | Q103: =SUM($P103:P$122) -> 12550.16658 | R103: =SUM($O103:O$122) -> 3649.689059
B104: 92 | C104: =pom!D106 -> 0.2281814288 | F104: 92 | G104: 0.2281814288 | H104: 0.7718185712 | I104: 8182.284536 | J104: 1867.045377 | L104: 92 | M104: 843.8766338 | N104: 187.8604644 | O104: =SUM(N104:$N$122) -> 774.0395879 | P104: =SUM($M104:M$122) -> 2863.318881 | Q104: =SUM($P104:P$122) -> 8594.375896 | R104: =SUM($O104:O$122) -> 2653.699957
B105: 93 | C105: =pom!D107 -> 0.2497701787 | F105: 93 | G105: 0.2497701787 | H105: 0.7502298213 | I105: 6315.239159 | J105: 1577.358414 | L105: 93 | M105: 635.4338124 | N105: 154.8413823 | O105: =SUM(N105:$N$122) -> 586.1791234 | P105: =SUM($M105:M$122) -> 2019.442247 | Q105: =SUM($P105:P$122) -> 5731.057015 | R105: =SUM($O105:O$122) -> 1879.660369
B106: 94 | C106: =pom!D108 -> 0.2730738535 | F106: 94 | G106: 0.2730738535 | H106: 0.7269261465 | I106: 4737.880745 | J106: 1293.791353 | L106: 94 | M106: 465.0940444 | N106: 123.9073395 | O106: =SUM(N106:$N$122) -> 431.3377411 | P106: =SUM($M106:M$122) -> 1384.008435 | Q106: =SUM($P106:P$122) -> 3711.614768 | R106: =SUM($O106:O$122) -> 1293.481245
B107: 95 | C107: =pom!D109 -> 0.2981442601 | F107: 95 | G107: 0.2981442601 | H107: 0.7018557399 | I107: 3444.089393 | J107: 1026.835484 | L107: 95 | M107: 329.8429477 | N107: 95.94222596 | O107: =SUM(N107:$N$122) -> 307.4304016 | P107: =SUM($M107:M$122) -> 918.9143904 | Q107: =SUM($P107:P$122) -> 2327.606333 | R107: =SUM($O107:O$122) -> 862.1435042
B108: 96 | C108: =pom!D110 -> 0.3250146896 | F108: 96 | G108: 0.3250146896 | H108: 0.6749853104 | I108: 2417.253909 | J108: 785.6430289 | L108: 96 | M108: =I108*$H$6^F108 -> 225.8557718 | N108: =J108*$H$6^(F108+1) -> 71.61604251 | O108: =SUM(N108:$N$122) -> 211.4881757 | P108: =SUM($M108:M$122) -> 589.0714426 | Q108: =SUM($P108:P$122) -> 1408.691943 | R108: =SUM($O108:O$122) -> 554.7131026
B109: 97 | C109: =pom!D111 -> 0.3536948745 | F109: 97 | G109: 0.3536948745 | H109: 0.6463051255 | I109: 1631.61088 | J109: 577.0924054 | L109: 97 | M109: 148.731052 | N109: 51.32235196 | O109: =SUM(N109:$N$122) -> 139.8721332 | P109: =SUM($M109:M$122) -> 363.2156708 | Q109: =SUM($P109:P$122) -> 819.6205001 | R109: =SUM($O109:O$122) -> 343.2249269
B110: 98 | C110: =pom!D112 -> 0.3841654618 | F110: 98 | G110: 0.3841654618 | H110: 0.6158345382 | I110: 1054.518475 | J110: 405.1095768 | L110: 98 | M110: 93.78111338 | N110: 35.14874607 | O110: =SUM(N110:$N$122) -> 88.54978121 | P110: =SUM($M110:M$122) -> 214.4846188 | Q110: =SUM($P110:P$122) -> 456.4048293 | R110: =SUM($O110:O$122) -> 203.3527937
B111: 99 | C111: =pom!D113 -> 0.4163721424 | F111: 99 | G111: 0.4163721424 | H111: 0.5836278576 | I111: 649.408898 | J111: 270.3957741 | L111: 99 | M111: 56.34502308 | N111: 22.8882907 | O111: =SUM(N111:$N$122) -> 53.40103514 | P111: =SUM($M111:M$122) -> 120.7035055 | Q111: =SUM($P111:P$122) -> 241.9202104 | R111: =SUM($O111:O$122) -> 114.8030125
B112: 100 | C112: =pom!D114 -> 0.4502196626 | F112: 100 | G112: 0.4502196626 | H112: 0.5497803374 | I112: 379.0131238 | J112: 170.6391607 | L112: 100 | M112: 32.08246352 | N112: 14.09185941 | O112: =SUM(N112:$N$122) -> 30.51274443 | P112: =SUM($M112:M$122) -> 64.35848239 | Q112: =SUM($P112:P$122) -> 121.216705 | R112: =SUM($O112:O$122) -> 61.40197739
B113: 101 | C113: =pom!D115 -> 0.4855660398 | F113: 101 | G113: 0.4855660398 | H113: 0.5144339602 | I113: 208.3739631 | J113: 101.1793201 | L113: 101 | M113: 17.20810499 | N113: 8.151874531 | O113: =SUM(N113:$N$122) -> 16.42088502 | P113: =SUM($M113:M$122) -> 32.27601887 | Q113: =SUM($P113:P$122) -> 56.85822259 | R113: =SUM($O113:O$122) -> 30.88923295
B114: 102 | C114: =pom!D116 -> 0.5222174203 | F114: 102 | G114: 0.5222174203 | H114: 0.4777825797 | I114: 107.194643 | J114: 55.97890995 | L114: 102 | M114: 8.636520584 | N114: 4.400138048 | O114: =SUM(N114:$N$122) -> 8.269010489 | P114: =SUM($M114:M$122) -> 15.06791388 | Q114: =SUM($P114:P$122) -> 24.58220372 | R114: =SUM($O114:O$122) -> 14.46834793
B115: 103 | C115: =pom!D117 -> 0.5599241323 | F115: 103 | G115: 0.5599241323 | H115: 0.4400758677 | I115: 51.21573308 | J115: 28.67692491 | L115: 103 | M115: 4.025735692 | N115: 2.199128356 | O115: =SUM(N115:$N$122) -> 3.868872441 | P115: =SUM($M115:M$122) -> 6.431393295 | Q115: =SUM($P115:P$122) -> 9.514289838 | R115: =SUM($O115:O$122) -> 6.199337445
B116: 104 | C116: =pom!D118 -> 0.5983786044 | F116: 104 | G116: 0.5983786044 | H116: 0.4016213956 | I116: 22.53880817 | J116: 13.48674058 | L116: 104 | M116: 1.728418661 | N116: 1.009023167 | O116: =SUM(N116:$N$122) -> 1.669744085 | P116: =SUM($M116:M$122) -> 2.405657602 | Q116: =SUM($P116:P$122) -> 3.082896544 | R116: =SUM($O116:O$122) -> 2.330465004
B117: 105 | C117: =pom!D119 -> 1 | F117: 105 | G117: 1 | H117: 0 | I117: 9.052067594 | J117: 9.052067594 | L117: 105 | M117: 0.6772389413 | N117: 0.6607209183 | O117: =SUM(N117:$N$122) -> 0.6607209183 | P117: =SUM($M117:M$122) -> 0.6772389413 | Q117: =SUM($P117:P$122) -> 0.6772389413 | R117: =SUM($O117:O$122) -> 0.6607209183
B118: 106 | C118: =pom!D120 -> 0 | F118: 106 | G118: 0 | H118: 1 | I118: 0 | J118: 0 | L118: 106 | M118: 0 | N118: 0 | O118: =SUM(N118:$N$122) -> 0 | P118: =SUM($M118:M$122) -> 0 | Q118: =SUM($P118:P$122) -> 0 | R118: =SUM($O118:O$122) -> 0
B119: 107 | C119: =pom!D121 -> 0 | F119: 107 | G119: 0 | H119: 1 | I119: 0 | J119: 0 | L119: 107 | M119: 0 | N119: 0 | O119: =SUM(N119:$N$122) -> 0 | P119: =SUM($M119:M$122) -> 0 | Q119: =SUM($P119:P$122) -> 0 | R119: =SUM($O119:O$122) -> 0
B120: 108 | C120: =pom!D122 -> 0 | F120: 108 | G120: 0 | H120: 1 | I120: 0 | J120: 0 | L120: 108 | M120: 0 | N120: 0 | O120: =SUM(N120:$N$122) -> 0 | P120: =SUM($M120:M$122) -> 0 | Q120: =SUM($P120:P$122) -> 0 | R120: =SUM($O120:O$122) -> 0
B121: 109 | C121: =pom!D123 -> 0 | F121: 109 | G121: 0 | H121: 1 | I121: 0 | J121: 0 | L121: 109 | M121: 0 | N121: 0 | O121: =SUM(N121:$N$122) -> 0 | P121: =SUM($M121:M$122) -> 0 | Q121: =SUM($P121:P$122) -> 0 | R121: =SUM($O121:O$122) -> 0
B122: 110 | C122: =pom!D124 -> 0 | F122: 110 | G122: 0 | H122: =1-G122 -> 1 | I122: =I121*H121 -> 0 | J122: 0 | L122: 110 | M122: 0 | N122: 0 | O122: =SUM(N122:$N$122) -> 0 | P122: =SUM($M122:M$122) -> 0 | Q122: =SUM($P122:P$122) -> 0 | R122: =SUM($O122:O$122) -> 0
B123: 111 | C123: =pom!D125 -> 0 | F123: 111 | G123: 0 | H123: 1 | I123: 0 | J123: 0 | L123: =F123 -> 111 | M123: 0 | N123: 0 | O123: =SUM(N$122:$N123) -> 0 | P123: =SUM($M$122:M123) -> 0 | Q123: =SUM($P$122:P123) -> 0 | R123: =SUM($O$122:O123) -> 0
B124: 112 | C124: =pom!D126 -> 0 | F124: 112 | G124: 0 | H124: 1 | I124: 0 | J124: 0 | L124: =F124 -> 112 | M124: 0 | N124: 0 | O124: =SUM(N$122:$N124) -> 0 | P124: =SUM($M$122:M124) -> 0 | Q124: =SUM($P$122:P124) -> 0 | R124: =SUM($O$122:O124) -> 0
B125: 113 | C125: =pom!D127 -> 0 | F125: 113 | G125: 0 | H125: 1 | I125: 0 | J125: 0 | L125: =F125 -> 113 | M125: 0 | N125: 0 | O125: =SUM(N$122:$N125) -> 0 | P125: =SUM($M$122:M125) -> 0 | Q125: =SUM($P$122:P125) -> 0 | R125: =SUM($O$122:O125) -> 0
B126: 114 | C126: =pom!D128 -> 0 | F126: 114 | G126: 0 | H126: 1 | I126: 0 | J126: 0 | L126: =F126 -> 114 | M126: 0 | N126: 0 | O126: =SUM(N$122:$N126) -> 0 | P126: =SUM($M$122:M126) -> 0 | Q126: =SUM($P$122:P126) -> 0 | R126: =SUM($O$122:O126) -> 0
B127: 115 | C127: =pom!D129 -> 0 | F127: 115 | G127: 0 | H127: 1 | I127: 0 | J127: 0 | L127: =F127 -> 115 | M127: 0 | N127: 0 | O127: =SUM(N$122:$N127) -> 0 | P127: =SUM($M$122:M127) -> 0 | Q127: =SUM($P$122:P127) -> 0 | R127: =SUM($O$122:O127) -> 0

Sheet SINGLE
C2: Contract | D2: Endowment
C4: Age (X) | E4: 25 | F4: Axn˥ | G4: =IF(D2="Pure endowment",nex(E4,E5,E8),IF(D2="Whole life",A1x(E4,E8),IF(D2="Endowment",Axn(E4,E5,E8,E7,E6),A1xn(E4,E5,E8)))) -> 0.5444449324
C5: Policy period (N) | E5: 25 | F5: Single premium | G5: =IF(D2="Pure endowment",G4*E7,G4*E6) -> 108888.9865
C6: Death benefit (K) | E6: 200000
C7: Survival benefit (D) | E7: 200000
C8: Interest rate (i) | E8: 0.025
C9: Discont factor (v) | E9: =1/(1+E8) -> 0.9756097561
C10: Omega (w) | E10: =IF($D$2="Whole life",omega(),$E$4+$E$5) -> 50
I11: Endowment | K11: Axn˥ | W11: Whole life | Y11: A1x | AG11: Term insurance | AK11: A1xn˥ | AQ11: Pure endowment | AS11: nEx
B12: t | C12: x | D12: dx | E12: Cx | F12: t-1|qx | G12: vt | I12: Using Mortality tables | W12: Using Mortality tables | AG12: Using Mortality tables | AQ12: Using Mortality tables
B13: 1 | C13: =E4 -> 25 | D13: =IF(C13<$E$10,dx(C13),0) -> 68.61178494 | E13: =IF(C13<$E$10,cx(C13,$E$8),0) -> 36.10590353 | F13: =IF(C13<$E$10,n_qx($E$4,B13-1),0) -> 0.0006931719486 | G13: =IF(C13<$E$10,$E$9^B13,0) -> 0.9756097561 | I13: Pxn | J13: = | K13: K | L13: * | M13: dx * v + dx+1 * v2 +...+ dx+n-1 * vn | P13: + | Q13: D | R13: * | S13: lx+n | T13: * | U13: vn | W13: Px | X13: = | Y13: K | Z13: * | AA13: dx * v + dx+1 * v2 + … | AG13: Pxn | AH13: = | AI13: K | AJ13: * | AK13: dx * v + dx+1 * v2 +…+ dx+n-1 * vn | AQ13: Pxn | AR13: = | AS13: D | AT13: * | AU13: lx+n | AV13: * | AW13: vn
B14: =(B13+1) -> 2 | C14: =C13+1 -> 26 | D14: =IF(C14<$E$10,dx(C14),0) -> 76.72382823 | E14: =IF(C14<$E$10,cx(C14,$E$8),0) -> 39.38999256 | F14: =IF(C14<$E$10,n_qx($E$4,B14-1),0) -> 0.000775126395 | G14: =IF(C14<$E$10,$E$9^B14,0) -> 0.9518143962 | M14: lx | S14: lx | AA14: lx | AK14: lx | AU14: lx
B15: =(B14+1) -> 3 | C15: =C14+1 -> 27 | D15: 75.04143764 | E15: 37.58658897 | F15: =IF(C15<$E$10,n_qx($E$4,B15-1),0) -> 0.0007581295196 | G15: =IF(C15<$E$10,$E$9^B15,0) -> 0.9285994109
B16: 4 | C16: 28 | D16: 72.47332906 | E16: 35.41490774 | F16: =IF(C16<$E$10,n_qx($E$4,B16-1),0) -> 0.000732184402 | G16: 0.9059506448 | I16: =K16*M16/M17+Q16*S16*U16/S17 -> 108888.9865 | J16: = | K16: =E6 -> 200000 | L16: * | M16: =SUMPRODUCT(D13:D123,G13:G123) -> 2626.83019 | P16: + | Q16: =E7 -> 200000 | R16: * | S16: =lx($E$4+$E$5) -> 95039.85967 | T16: * | U16: =$E$9^$E$5 -> 0.5393905894 | W16: =Y16*AA16/AA17 -> 5307.674193 | X16: = | Y16: =E6 -> 200000 | Z16: * | AA16: =SUMPRODUCT($D$13:$D$123,$G$13:$G$123) -> 2626.83019 | AG16: =AI16*AK16/AK17 -> 5307.674193 | AH16: = | AI16: =$E$6 -> 200000 | AJ16: * | AK16: =SUMPRODUCT($D$13:$D$123,$G$13:$G$123) -> 2626.83019 | AQ16: =AS16*AU16*AW16/AU17 -> 103581.3123 | AR16: = | AS16: =$E$7 -> 200000 | AT16: * | AU16: =lx($E$4+$E$5) -> 95039.85967 | AV16: * | AW16: =$E$9^$E$5 -> 0.5393905894
B17: 5 | C17: 29 | D17: 74.42186885 | E17: 35.48008159 | F17: =IF(C17<$E$10,n_qx($E$4,B17-1),0) -> 0.0007518701327 | G17: 0.8838542876 | M17: =lx(E4) -> 98982.34497 | S17: =lx($E$4) -> 98982.34497 | AA17: =lx($E$4) -> 98982.34497 | AK17: =lx($E$4) -> 98982.34497 | AU17: =lx($E$4) -> 98982.34497
B18: 6 | C18: 30 | D18: 73.1001322 | E18: 33.99995445 | F18: 0.0007385168762 | G18: 0.862296866 | I18: Using probability | W18: Using probability | AG18: Using probabilities | AQ18: Using probability
B19: 7 | C19: 31 | D19: 76.04325894 | E19: 34.50619151 | F19: 0.0007682507316 | G19: 0.8412652351 | I19: Pxn | J19: = | K19: K | L19: * | M19: qx * v + 1|qx * v2 +…+ n-1|qx * vn | P19: + | Q19: D | R19: * | S19: npx | T19: * | U19: vn | W19: Px | X19: = | Y19: K | Z19: * | AA19: qx * v + 1|qx * v2 + 2|qx * v3 + … | AG19: Pxn | AH19: = | AI19: K | AJ19: * | AK19: qx * v + 1|qx * v2 +…+ n-1|qx * vn | AQ19: Pxn | AR19: = | AS19: D | AT19: * | AU19: npx | AV19: * | AW19: vn
B20: 8 | C20: 32 | D20: 84.1310205 | E20: =IF(C20<$E$10,cx(C20,$E$8),0) -> 37.2450532 | F20: 0.0008499598643 | G20: 0.8207465708
B21: 9 | C21: 33 | D21: 92.41043076 | E21: 39.9125588 | F21: 0.0009336051877 | G21: 0.8007283618
B22: 10 | C22: 34 | D22: 95.50819145 | E22: 40.24438848 | F22: 0.0009649012809 | G22: 0.7811984017 | I22: =K22*M22+Q22*S22*U22 -> 108888.9865 | J22: = | K22: =E6 -> 200000 | L22: * | M22: =SUMPRODUCT(F13:F123,G13:G123) -> 0.02653837097 | P22: + | Q22: =E7 -> 200000 | R22: * | S22: =npx($E$4,$E$5) -> 0.9601698131 | T22: * | U22: =$E$9^$E$5 -> 0.5393905894 | W22: =Y22*AA22 -> 5307.674193 | X22: = | Y22: =$E$6 -> 200000 | Z22: * | AA22: =SUMPRODUCT($F$13:$F$123,$G$13:$G$123) -> 0.02653837097 | AG22: =AI22*AK22 -> 5307.674193 | AH22: = | AI22: =$E$6 -> 200000 | AJ22: * | AK22: =SUMPRODUCT($F$13:$F$123,$G$13:$G$123) -> 0.02653837097 | AQ22: =AS22*AU22*AW22 -> 103581.3123 | AR22: = | AS22: =$E$7 -> 200000 | AT22: * | AU22: =npx($E$4,$E$5) -> 0.9601698131 | AV22: * | AW22: =$E$9^$E$5 -> 0.5393905894
B23: 11 | C23: 35 | D23: 101.3803326 | E23: 41.67681841 | F23: 0.001024226418 | G23: 0.7621447822
B24: 12 | C24: 36 | D24: 104.6516869 | E24: 41.97234304 | F24: 0.001057276294 | G24: 0.743555885 | I24: Using Commutation numbers | W24: Using commutation numbers | AG24: Using Commutation numbers | AQ24: Using Commutation numbers
B25: 13 | C25: 37 | D25: 105.7565501 | E25: 41.38094367 | F25: 0.001068438519 | G25: 0.7254203757 | I25: Pxn | J25: = | K25: K | L25: * | M25: Cx + Cx+1 + Cx+2 +...+ Cx+n-1 | P25: + | Q25: D | R25: * | S25: Dx+n | W25: Px | X25: = | Y25: K | Z25: * | AA25: Cx + Cx+1 + Cx+2 + ... | AD25: = | AE25: Mx | AG25: Pxn | AH25: = | AI25: K | AJ25: * | AK25: Cx + Cx+1 + Cx+2 …+ Cx+n-1 | AN25: = | AO25: Mx- Mx+n | AQ25: Pxn | AR25: = | AS25: D | AT25: * | AU25: Dx+n
B26: 14 | C26: 38 | D26: 117.1591674 | E26: 44.72450332 | F26: 0.001183637015 | G26: 0.7077271958 | M26: Dx | S26: Dx | AA26: Dx | AE26: Dx | AK26: Dx | AO26: Dx | AU26: Dx
B27: 15 | C27: 39 | D27: 138.3787067 | E27: 51.53646806 | F27: 0.001398014027 | G27: 0.6904655568
B28: 16 | C28: 40 | D28: 158.2655854 | E28: 57.50531775 | F28: 0.00159892742 | G28: 0.6736249335 | I28: =K28*M28/M29+Q28*S28/S29 -> 108888.9865 | J28: = | K28: =E6 -> 200000 | L28: * | M28: =SUM(E13:E123) -> 1416.887485 | P28: + | Q28: =E7 -> 200000 | R28: * | S28: =DDx($E$4+$E$5,$E$8) -> 27651.10662 | W28: =Y28*AE28/AA29 -> 58698.41056 | X28: = | Y28: =E6 -> 200000 | Z28: * | AA28: =SUM(E13:$E$123) -> 1416.887485 | AD28: = | AE28: =mx($E$4,$E$8) -> 15669.58337 | AG28: =AO28/AO29*AI28 -> 5307.674193 | AH28: = | AI28: =$E$6 -> 200000 | AJ28: * | AK28: =SUM($E13:E$123) -> 1416.887485 | AN28: = | AO28: =mx($E$4,$E$8)-mx($E$4+$E$5,$E$8) -> 1416.887485 | AQ28: =AS28*AU28/AU29 -> 103581.3123 | AR28: = | AS28: =$E$7 -> 200000 | AT28: * | AU28: =DDx($E$4+$E$5,$E$8) -> 27651.10662
B29: 17 | C29: 41 | D29: 175.1654015 | E29: 62.09347743 | F29: 0.00176966308 | G29: 0.6571950571 | M29: =DDx(E4,E8) -> 53390.1454 | S29: =DDx($E$4,$E$8) -> 53390.1454 | AA29: =DDx($E$4,$E$8) -> 53390.1454 | AE29: =DDx($E$4,$E$8) -> 53390.1454 | AK29: =DDx($E$4,$E$8) -> 53390.1454 | AO29: =DDx($E$4,$E$8) -> 53390.1454 | AU29: =DDx($E$4,$E$8) -> 53390.1454
B30: 18 | C30: 42 | D30: 188.8657089 | E30: 65.31710103 | F30: 0.001908074707 | G30: 0.6411659093
B31: 19 | C31: 43 | D31: 204.8095108 | E31: 69.1034998 | F31: 0.002069151937 | G31: 0.6255277164 | I31: Pxn | J31: = | K31: K | L31: * | M31: Mx - Mx+n | P31: + | Q31: D | R31: * | S31: Dx+n
B32: 20 | C32: 44 | D32: 229.3876377 | E32: 75.50853883 | F32: 0.002317460126 | G32: 0.6102709429 | M32: Dx | S32: Dx
B33: 21 | C33: 45 | D33: 259.2489991 | E33: 83.25671676 | F33: 0.00261914384 | G33: 0.5953862857
B34: 22 | C34: 46 | D34: 298.4111505 | E34: 93.49607375 | F34: 0.003014791684 | G34: 0.580864669 | I34: =K34*M34/M35+Q34*S34/S35 -> 108888.9865 | J34: = | K34: =E6 -> 200000 | L34: * | M34: =mx(E4,E8)-mx(E4+E5,E8) -> 1416.887485 | P34: + | Q34: =E7 -> 200000 | R34: * | S34: =DDx($E$4+$E$5,$E$8) -> 27651.10662
B35: 23 | C35: 47 | D35: 323.003452 | E35: 98.73283896 | F35: 0.003263243077 | G35: 0.566697238 | M35: =DDx(E4,E8) -> 53390.1454 | S35: =DDx($E$4,$E$8) -> 53390.1454
B36: 24 | C36: 48 | D36: 360.9687899 | E36: 107.6465832 | F36: 0.00364679974 | G36: 0.5528753542
B37: 25 | C37: 49 | D37: 388.5673395 | E37: 113.0506397 | F37: 0.003925622692 | G37: 0.5393905894
B38: 26 | C38: 50 | D38: 0 | E38: 0 | F38: 0 | G38: 0
B39: 27 | C39: 51 | D39: 0 | E39: 0 | F39: 0 | G39: 0
B40: 28 | C40: 52 | D40: 0 | E40: 0 | F40: 0 | G40: 0
B41: 29 | C41: 53 | D41: 0 | E41: 0 | F41: 0 | G41: 0
B42: 30 | C42: 54 | D42: 0 | E42: 0 | F42: 0 | G42: 0
B43: 31 | C43: 55 | D43: 0 | E43: 0 | F43: 0 | G43: 0
B44: 32 | C44: 56 | D44: 0 | E44: 0 | F44: 0 | G44: 0
B45: 33 | C45: 57 | D45: 0 | E45: 0 | F45: 0 | G45: 0
B46: 34 | C46: 58 | D46: 0 | E46: 0 | F46: 0 | G46: 0
B47: 35 | C47: 59 | D47: 0 | E47: 0 | F47: 0 | G47: 0
B48: 36 | C48: 60 | D48: 0 | E48: 0 | F48: 0 | G48: 0
B49: 37 | C49: 61 | D49: 0 | E49: 0 | F49: 0 | G49: 0
B50: 38 | C50: 62 | D50: 0 | E50: 0 | F50: 0 | G50: 0
B51: 39 | C51: 63 | D51: 0 | E51: 0 | F51: 0 | G51: 0
B52: 40 | C52: 64 | D52: 0 | E52: 0 | F52: 0 | G52: 0
B53: 41 | C53: 65 | D53: 0 | E53: 0 | F53: 0 | G53: 0
B54: 42 | C54: 66 | D54: 0 | E54: 0 | F54: 0 | G54: 0
B55: 43 | C55: 67 | D55: 0 | E55: 0 | F55: 0 | G55: 0
B56: 44 | C56: 68 | D56: 0 | E56: 0 | F56: 0 | G56: 0
B57: 45 | C57: 69 | D57: 0 | E57: 0 | F57: 0 | G57: 0
B58: 46 | C58: 70 | D58: 0 | E58: 0 | F58: 0 | G58: 0
B59: 47 | C59: 71 | D59: 0 | E59: 0 | F59: 0 | G59: 0
B60: 48 | C60: 72 | D60: 0 | E60: 0 | F60: 0 | G60: 0
B61: 49 | C61: 73 | D61: 0 | E61: 0 | F61: 0 | G61: 0
B62: 50 | C62: 74 | D62: 0 | E62: 0 | F62: 0 | G62: 0
B63: 51 | C63: 75 | D63: 0 | E63: 0 | F63: 0 | G63: 0
B64: 52 | C64: 76 | D64: 0 | E64: 0 | F64: 0 | G64: 0
B65: 53 | C65: 77 | D65: 0 | E65: 0 | F65: 0 | G65: 0
B66: 54 | C66: 78 | D66: 0 | E66: 0 | F66: 0 | G66: 0
B67: 55 | C67: 79 | D67: 0 | E67: 0 | F67: 0 | G67: 0
B68: 56 | C68: 80 | D68: 0 | E68: 0 | F68: 0 | G68: 0
B69: 57 | C69: =C68+1 -> 81 | D69: 0 | E69: 0 | F69: 0 | G69: 0
B70: 58 | C70: 82 | D70: 0 | E70: 0 | F70: 0 | G70: 0
B71: 59 | C71: 83 | D71: 0 | E71: 0 | F71: 0 | G71: 0
B72: 60 | C72: 84 | D72: 0 | E72: 0 | F72: 0 | G72: 0
B73: 61 | C73: 85 | D73: 0 | E73: 0 | F73: 0 | G73: 0
B74: 62 | C74: 86 | D74: 0 | E74: 0 | F74: 0 | G74: 0
B75: 63 | C75: 87 | D75: 0 | E75: 0 | F75: 0 | G75: 0
B76: 64 | C76: 88 | D76: 0 | E76: 0 | F76: 0 | G76: 0
B77: 65 | C77: =C76+1 -> 89 | D77: 0 | E77: 0 | F77: 0 | G77: 0
B78: 66 | C78: 90 | D78: =IF(C78<$E$10,dx(C78),0) -> 0 | E78: =IF(C78<$E$10,cx(C78,$E$8),0) -> 0 | F78: =IF(C78<$E$10,n_qx($E$4,B78-1),0) -> 0 | G78: =IF(C78<$E$10,$E$9^B78,0) -> 0
B79: =(B78+1) -> 67 | C79: =C78+1 -> 91 | D79: 0 | E79: 0 | F79: 0 | G79: 0
B80: 68 | C80: 92 | D80: 0 | E80: 0 | F80: 0 | G80: 0
B81: 69 | C81: 93 | D81: 0 | E81: 0 | F81: 0 | G81: 0
B82: 70 | C82: 94 | D82: 0 | E82: 0 | F82: 0 | G82: 0
B83: 71 | C83: 95 | D83: 0 | E83: 0 | F83: 0 | G83: 0
B84: 72 | C84: 96 | D84: 0 | E84: 0 | F84: 0 | G84: 0
B85: 73 | C85: 97 | D85: 0 | E85: 0 | F85: 0 | G85: 0
B86: 74 | C86: 98 | D86: 0 | E86: 0 | F86: 0 | G86: 0
B87: 75 | C87: =C86+1 -> 99 | D87: 0 | E87: 0 | F87: 0 | G87: 0
B88: 76 | C88: =C87+1 -> 100 | D88: 0 | E88: 0 | F88: 0 | G88: 0
B89: 77 | C89: 101 | D89: 0 | E89: 0 | F89: 0 | G89: 0
B90: 78 | C90: 102 | D90: 0 | E90: 0 | F90: 0 | G90: 0
B91: 79 | C91: 103 | D91: 0 | E91: 0 | F91: 0 | G91: 0
B92: 80 | C92: 104 | D92: 0 | E92: 0 | F92: 0 | G92: 0
B93: 81 | C93: 105 | D93: 0 | E93: 0 | F93: 0 | G93: 0
B94: 82 | C94: 106 | D94: 0 | E94: 0 | F94: 0 | G94: 0
B95: 83 | C95: 107 | D95: 0 | E95: 0 | F95: 0 | G95: 0
B96: 84 | C96: =C95+1 -> 108 | D96: 0 | E96: 0 | F96: 0 | G96: 0
B97: 85 | C97: 109 | D97: 0 | E97: 0 | F97: 0 | G97: 0
B98: 86 | C98: 110 | D98: 0 | E98: 0 | F98: 0 | G98: 0
B99: 87 | C99: 111 | D99: 0 | E99: 0 | F99: 0 | G99: 0
B100: 88 | C100: 112 | D100: 0 | E100: 0 | F100: 0 | G100: 0
B101: 89 | C101: 113 | D101: 0 | E101: 0 | F101: 0 | G101: 0
B102: 90 | C102: =C101+1 -> 114 | D102: 0 | E102: 0 | F102: 0 | G102: 0
B103: 91 | C103: 115 | D103: 0 | E103: 0 | F103: 0 | G103: 0
B104: 92 | C104: 116 | D104: 0 | E104: 0 | F104: 0 | G104: 0
B105: 93 | C105: 117 | D105: 0 | E105: 0 | F105: 0 | G105: 0
B106: 94 | C106: 118 | D106: 0 | E106: 0 | F106: 0 | G106: 0
B107: 95 | C107: 119 | D107: 0 | E107: 0 | F107: 0 | G107: 0
B108: 96 | C108: 120 | D108: 0 | E108: 0 | F108: 0 | G108: 0
B109: 97 | C109: 121 | D109: 0 | E109: 0 | F109: 0 | G109: 0
B110: 98 | C110: 122 | D110: 0 | E110: 0 | F110: 0 | G110: 0
B111: 99 | C111: 123 | D111: 0 | E111: 0 | F111: 0 | G111: 0
B112: 100 | C112: 124 | D112: 0 | E112: 0 | F112: 0 | G112: 0
B113: 101 | C113: 125 | D113: 0 | E113: 0 | F113: 0 | G113: 0
B114: 102 | C114: 126 | D114: 0 | E114: 0 | F114: 0 | G114: 0
B115: 103 | C115: 127 | D115: 0 | E115: 0 | F115: 0 | G115: 0
B116: 104 | C116: 128 | D116: 0 | E116: 0 | F116: 0 | G116: 0
B117: 105 | C117: 129 | D117: 0 | E117: 0 | F117: 0 | G117: 0
B118: 106 | C118: 130 | D118: 0 | E118: 0 | F118: 0 | G118: 0
B119: 107 | C119: =C118+1 -> 131 | D119: 0 | E119: 0 | F119: 0 | G119: 0
B120: 108 | C120: =C119+1 -> 132 | D120: 0 | E120: 0 | F120: 0 | G120: 0
B121: 109 | C121: =C120+1 -> 133 | D121: 0 | E121: 0 | F121: 0 | G121: 0
B122: 110 | C122: =C121+1 -> 134 | D122: 0 | E122: 0 | F122: 0 | G122: 0
B123: 111 | C123: =C122+1 -> 135 | D123: 0 | E123: 0 | F123: 0 | G123: 0

Sheet ANNUITY
B2: Contract | C2: in arrears | D2: Whole life | E2: annuity
I4: Frequency of premium (m) | K4: monthly | L4: m = | M4: =IF(K4="Anually",1,IF(K4="Semianually",2,IF(K4="Quarterly",4,12))) -> 12 | S4: Frequency of premium (m) | V4: Semianually | X4: m = | Y4: =IF(V4="Anually",1,IF(V4="Semianually",2,IF(V4="Quarterly",4,12))) -> 2 | AC4: Frequency of premium (m) | AE4: Anually | AF4: m = | AG4: =IF(AE4="Anually",1,IF(AE4="Semianually",2,IF(AE4="Quarterly",4,12))) -> 1 | AO4: Frequency of premium (m) | AR4: Semianually | AT4: m = | AU4: =IF(AR4="Anually",1,IF(AR4="Semianually",2,IF(AR4="Quarterly",4,12))) -> 2 | AZ4: Frequency of premium (m) | BC4: Semianually | BE4: m = | BF4: =IF(BC4="Anually",1,IF(BC4="Semianually",2,IF(BC4="Quarterly",4,12))) -> 2 | BJ4: Frequency of premium (m) | BM4: Semianually | BO4: m = | BP4: =IF(BM4="Anually",1,IF(BM4="Semianually",2,IF(BM4="Quarterly",4,12))) -> 2 | BT4: Frequency of premium (m) | BW4: Anually | BY4: m = | BZ4: =IF(BW4="Anually",1,IF(BW4="Semianually",2,IF(BW4="Quarterly",4,12))) -> 1 | CE4: Frequency of premium (m) | CH4: Anually | CJ4: m = | CK4: =IF(CH4="Anually",1,IF(CH4="Semianually",2,IF(CH4="Quarterly",4,12))) -> 1
B5: Age (X) | D5: 30 | E5: k|ax | F5: =IF(D2="Temporary",Daxn(D5,D6,D10,D13,1,D8),dax(D5,D10,D13,1,D8)) -> 6.115267347 | I5: nPx(m) | J5: = | K5: nPx | L5: - | M5: m - 1 | S5: nPx(m) | T5: = | U5: nPx | V5: - | W5: m - 1 | X5: * | Y5: (1-nEx) | AC5: nPx(m) | AD5: = | AE5: nPx | AF5: + | AG5: m - 1 | AO5: nPx(m) | AP5: = | AQ5: nPx | AR5: + | AS5: m - 1 | AT5: * | AU5: (1-nEx) | AZ5: nPx(m) | BA5: = | BB5: nPx | BC5: - | BD5: m - 1 | BE5: * | BF5: nEx | BJ5: nPx(m) | BK5: = | BL5: nPx | BM5: + | BN5: m - 1 | BO5: * | BP5: nEx | BT5: nPx(m) | BU5: = | BV5: nPx | BW5: - | BX5: m - 1 | BY5: * | BZ5: (1-nEx) | CE5: nPx(m) | CF5: = | CG5: nPx | CH5: + | CI5: m - 1 | CJ5: * | CK5: (1-nEx)
B6: Policy period (N) | D6: 50 | E6: Single premium | F6: =F5*D7 -> 30576.33673 | M6: 2 * m | W6: 2 * m | AG6: 2 * m | AS6: 2 * m | BD6: 2 * m | BN6: 2 * m | BX6: 2 * m | CI6: 2 * m
B7: Annuity (D) | D7: 5000
B8: Deferred (k) | D8: 30 | E8: nPx | F8: =IF(D2="Temporary",regular_Temporary_annuity(D5,D6,D10,D8,D13),regular_Whole_life_annuity(D5,D10,D8,D13)) -> 0.2918447985 | I8: =K8-M8 -> 1458.765659 | J8: = | K8: =F9 -> 1459.223992 | L8: - | M8: =(M4-1)/(2*M4) -> 0.4583333333 | S8: =U8-W8*Y8 -> 1459.006982 | T8: = | U8: =F9 -> 1459.223992 | V8: - | W8: =(Y4-1)/(2*Y4) -> 0.25 | X8: * | Y8: =1-nex($D$5,$D$6,$D$10) -> 0.8680415682 | AC8: =AE8+AG8 -> 1459.223992 | AD8: = | AE8: =F9 -> 1459.223992 | AF8: + | AG8: =(AG4-1)/(2*AG4) -> 0 | AO8: =AQ8+AS8*AU8 -> 1459.441003 | AP8: = | AQ8: =F9 -> 1459.223992 | AR8: + | AS8: =(AU4-1)/(2*AU4) -> 0.25 | AT8: * | AU8: =1-nex($D$5,$D$6,$D$10) -> 0.8680415682 | AZ8: =BB8-BD8*BF8 -> 1459.191003 | BA8: = | BB8: =F9 -> 1459.223992 | BC8: - | BD8: =(BF4-1)/(2*BF4) -> 0.25 | BE8: * | BF8: =nex($D$5,$D$6,$D$10) -> 0.1319584318 | BJ8: =BL8+BN8*BP8 -> 1459.256982 | BK8: = | BL8: =F9 -> 1459.223992 | BM8: + | BN8: =(BP4-1)/(2*BP4) -> 0.25 | BO8: * | BP8: =nex($D$5,$D$6,$D$10) -> 0.1319584318 | BT8: =BV8-BX8*BZ8 -> 1459.223992 | BU8: = | BV8: =F9 -> 1459.223992 | BW8: - | BX8: =(BZ4-1)/(2*BZ4) -> 0 | BY8: * | BZ8: =1-nex($D$5,$D$6,$D$10) -> 0.8680415682 | CE8: =CG8+CI8*CK8 -> 1459.223992 | CF8: = | CG8: =F9 -> 1459.223992 | CH8: + | CI8: =(CK4-1)/(2*CK4) -> 0 | CJ8: * | CK8: =1-nex($D$5,$D$6,$D$10) -> 0.8680415682
B9: t | D9: 12 | E9: Regular premium | F9: =F8*D7 -> 1459.223992
B10: Interest rate (i) | D10: 0.025
B11: Discont factor (v) | D11: =1/(1+D10) -> 0.9756097561 | E11: tVx | F11: =IF(D2="Temporary",tVx_Temporary_annuity(D5,D6,D9,D10,D13,D8),tVx_Whole_life_annuity(D5,D9,D10,D13,D8)) -> 4.162699288
C12: delka vypoc | D12: =IF($D$2="Temporary",$D$6,omega()-D5)-1+D13 -> 76
C13: polhut/predlh | D13: =IF(C2="in arrears",1,0) -> 1 | E13: Netto reserve | F13: =F11*D7 -> 20813.49644
CZ15: overeno pro whole life
B16: t | C16: x | D16: lx | E16: tpx | F16: vt | G16: Dx | I16: In advance whole life annuity | M16: ӓx | S16: In advance temporary annuity | W16: ӓxn˥ | AC16: In arrears whole life annuity | AF16: ax | AO16: In arrears temporary annuity | AR16: axn˥ | AZ16: In advance deferred whole life annuity | BE16: k|ӓx | BJ16: In arrears deferred whole life annuity | BO16: k|ax | BT16: I advance deferred temporary annuity | BY16: k|ӓxn˥ | CE16: In arrears deferred temporary annuity | CH16: k|axn˥ | CQ16: t | CR16: x | CS16: k-tax+t | CT16: ax+t,k-t | CU16: tVx | CV16: k*TvX
B17: =D13+D8 -> 31 | C17: =D5+$D$13+$D$8 -> 61 | D17: =IF(B17<=$D$12,lx(C17),0) -> 87000.71202 | E17: =D17/lx($D$5) -> 0.882225299 | F17: =IF(B17<=$D$12,$D$11^(B17),0) -> 0.4651148148 | G17: =IF(B17<=$D$12,DDx(C17,$D$10),0) -> 19291.54534 | I17: Using Mortality tables | S17: Using Mortality tables | AC17: Using Mortality tables | AO17: Using Mortality tables | AZ17: Using Mortality tables | BJ17: Using Mortality tables | BT17: Using Mortality tables | CE17: Using Mortality tables | CQ17: 0 | CR17: =D5+$D$8+$D$13 -> 61 | CS17: =IF(CQ17<=$D$12,IF($D$8>CQ17,IF($D$2="Whole life",dax($D$5+CQ17,$D$10,$D$13,1,$D$8-CQ17),Daxn($D$5+CQ17,$D$6-CQ17,$D$10,$D$13,1,$D$8-CQ17)),IF($D$2="Whole life",dax($D$5+CQ17,$D$10,$D$13,1,0),Daxn($D$5+CQ17,$D$6-CQ17,$D$10,$D$13,1,0))),0) -> 6.115267347 | CT17: =IF(CQ17<=$D$12,IF($D$8>CQ17,Daxn($D$5+CQ17,$D$8-CQ17,$D$10,0,1,0),0),0) -> 20.95383361 | CU17: =CS17-$F$8*CT17 -> 0 | CV17: =CU17*$D$7 -> 0 | CX17: Netto reserves for k > t | DI17: Netto reserves for k > t | DT17: Netto reserves for k > t | EE17: Netto reserves for k > t
B18: =B17+1 -> 32 | C18: =C17+1 -> 62 | D18: =IF(B18<=$D$12,lx(C18),0) -> 85733.5971 | E18: =D18/lx($D$5) -> 0.8693761991 | F18: 0.453770551 | G18: 18546.90261 | I18: Px | J18: = | K18: D | L18: * | M18: lx + lx+1 * v + lx+2 * v2... | S18: Pxn | T18: = | U18: D | V18: * | W18: lx + lx+1 * v + lx+2 * v2 +…+ lx+n-1 * vn-1 | AC18: Px | AD18: = | AE18: D | AF18: * | AG18: lx+1 * v + lx+2 * v2... | AO18: Pxn | AP18: = | AQ18: D | AR18: * | AS18: lx+1 * v + lx+2 * v2 +…+ lx+n*vn | AZ18: Px | BA18: = | BB18: D | BC18: * | BD18: lx+k * vk + lx+k+1 * vk+1 +… | BJ18: Px | BK18: = | BL18: D | BM18: * | BN18: lx+k+1 * vk+1 + lx+k+2 * vk+2 +... | BT18: Pxn | BU18: = | BV18: D | BW18: * | BX18: lx+k * vk + lx+k+1 * vk+1 +…+ lx+n-1*vn-1 | CE18: Pxn | CF18: = | CG18: D | CH18: * | CI18: lx+k+1 * vk+1 + lx+k+2 * vk+2 +…+ lx+n*vn | CQ18: =CQ17+1 -> 1 | CR18: =CR17+1 -> 62 | CS18: =IF(CQ18<=$D$12,IF($D$8>CQ18,IF($D$2="Whole life",dax($D$5+CQ18,$D$10,$D$13,1,$D$8-CQ18),Daxn($D$5+CQ18,$D$6-CQ18,$D$10,$D$13,1,$D$8-CQ18)),IF($D$2="Whole life",dax($D$5+CQ18,$D$10,$D$13,1,0),Daxn($D$5+CQ18,$D$6-CQ18,$D$10,$D$13,1,0))),0) -> 6.272798851 | CT18: =IF(CQ18<=$D$12,IF($D$8>CQ18,Daxn($D$5+CQ18,$D$8-CQ18,$D$10,0,1,0),0),0) -> 20.4678516 | CU18: =CS18-$F$8*CT18 -> 0.2993628263 | CV18: =CU18*$D$7 -> 1496.814132 | CX18: tVx | CY18: = | CZ18: k-t|ӓx+t | DA18: - | DB18: kPx | DD18: * | DE18: ӓx+t,k-t | DI18: tVx | DJ18: = | DK18: k-t|ӓx+t,n-t | DL18: - | DM18: k|nPx | DO18: * | DP18: ӓx+t,k-t | DT18: tVx | DU18: = | DV18: k-t|ax+t | DW18: - | DX18: kPx | DZ18: * | EA18: ax+t,k-t | EE18: tVx | EF18: = | EG18: k-t|ax+t,n-t | EH18: - | EI18: k|nPx | EK18: * | EL18: ax+t,k-t
B19: =B18+1 -> 33 | C19: =C18+1 -> 63 | D19: 84360.52726 | E19: 0.8554526699 | F19: 0.4427029766 | G19: 17804.74531 | M19: lx | W19: lx | AG19: lx | AS19: lx | BD19: lx | BN19: lx | BX19: lx | CI19: lx | CQ19: =CQ18+1 -> 2 | CR19: 63 | CS19: =IF(CQ19<=$D$12,IF($D$8>CQ19,IF($D$2="Whole life",dax($D$5+CQ19,$D$10,$D$13,1,$D$8-CQ19),Daxn($D$5+CQ19,$D$6-CQ19,$D$10,$D$13,1,$D$8-CQ19)),IF($D$2="Whole life",dax($D$5+CQ19,$D$10,$D$13,1,0),Daxn($D$5+CQ19,$D$6-CQ19,$D$10,$D$13,1,0))),0) -> 6.434584288 | CT19: =IF(CQ19<=$D$12,IF($D$8>CQ19,Daxn($D$5+CQ19,$D$8-CQ19,$D$10,0,1,0),0),0) -> 19.96995839 | CU19: 0.6064558076 | CV19: 3032.279038
B20: 34 | C20: 64 | D20: 82892.29768 | E20: 0.8405641794 | F20: 0.431905343 | G20: 17068.16344 | CQ20: 3 | CR20: 64 | CS20: =IF(CQ20<=$D$12,IF($D$8>CQ20,IF($D$2="Whole life",dax($D$5+CQ20,$D$10,$D$13,1,$D$8-CQ20),Daxn($D$5+CQ20,$D$6-CQ20,$D$10,$D$13,1,$D$8-CQ20)),IF($D$2="Whole life",dax($D$5+CQ20,$D$10,$D$13,1,0),Daxn($D$5+CQ20,$D$6-CQ20,$D$10,$D$13,1,0))),0) -> 6.601088982 | CT20: =IF(CQ20<=$D$12,IF($D$8>CQ20,Daxn($D$5+CQ20,$D$8-CQ20,$D$10,0,1,0),0),0) -> 19.46083503 | CU20: 0.9215455059 | CV20: 4607.727529
B21: 35 | C21: 65 | D21: 81319.24836 | E21: 0.8246127708 | F21: 0.4213710664 | G21: 16335.86386 | I21: =K21*(M21/M22) -> 30576.33673 | J21: = | K21: =$D$7 -> 5000 | L21: * | M21: =SUMPRODUCT(D17:D134,F17:F134) -> 603057.5341 | S21: =U21*(W21/W22) -> 30576.33673 | T21: = | U21: =$D$7 -> 5000 | V21: * | W21: =SUMPRODUCT(D17:D134,F17:F134) -> 603057.5341 | AC21: =AE21*(AG21/AG22) -> 30576.33673 | AD21: = | AE21: =$D$7 -> 5000 | AF21: * | AG21: =SUMPRODUCT($D$17:$D$134,$F$17:$F$134) -> 603057.5341 | AO21: =AQ21*(AS21/AS22) -> 30576.33673 | AP21: = | AQ21: =$D$7 -> 5000 | AR21: * | AS21: =SUMPRODUCT($D$17:$D$134,$F$17:$F$134) -> 603057.5341 | AZ21: =BB21*(BD21/BD22) -> 30576.33673 | BA21: = | BB21: =$D$7 -> 5000 | BC21: * | BD21: =SUMPRODUCT($D$17:$D$134,$F$17:F$134) -> 603057.5341 | BJ21: =BL21*(BN21/BN22) -> 30576.33673 | BK21: = | BL21: =$D$7 -> 5000 | BM21: * | BN21: =SUMPRODUCT($D$17:$D$134,$F$17:$F134) -> 603057.5341 | BT21: =BV21*(BX21/BX22) -> 30576.33673 | BU21: = | BV21: =$D$7 -> 5000 | BW21: * | BX21: =SUMPRODUCT(D17:D134,F17:F134) -> 603057.5341 | CE21: =CG21*(CI21/CI22) -> 30576.33673 | CF21: = | CG21: =$D$7 -> 5000 | CH21: * | CI21: =SUMPRODUCT($D$17:$D$134,$F$17:$F$134) -> 603057.5341 | CQ21: 4 | CR21: 65 | CS21: =IF(CQ21<=$D$12,IF($D$8>CQ21,IF($D$2="Whole life",dax($D$5+CQ21,$D$10,$D$13,1,$D$8-CQ21),Daxn($D$5+CQ21,$D$6-CQ21,$D$10,$D$13,1,$D$8-CQ21)),IF($D$2="Whole life",dax($D$5+CQ21,$D$10,$D$13,1,0),Daxn($D$5+CQ21,$D$6-CQ21,$D$10,$D$13,1,0))),0) -> 6.772477622 | CT21: =IF(CQ21<=$D$12,IF($D$8>CQ21,Daxn($D$5+CQ21,$D$8-CQ21,$D$10,0,1,0),0),0) -> 18.94014646 | CU21: 1.244894396 | CV21: 6224.471982 | CX21: =CZ21-DB21*DE21 -> 4.284985837 | CY21: = | CZ21: =dax($D$5+$D$9,$D$10,$D$13,1,$D$8-$D$9) -> 8.336101455 | DA21: - | DB21: =$F$8 -> 0.2918447985 | DD21: * | DE21: =Daxn($D$5+$D$9,$D$8-$D$9,$D$10,$D$13,1,0) -> 13.88106158 | DI21: =DK21-DM21*DP21 -> 3.211781362 | DJ21: = | DK21: =Daxn($D$5+$D$9,$D$6-$D$9,$D$10,$D$13,1,$D$8-$D$9) -> 7.26289698 | DL21: - | DM21: =$F$8 -> 0.2918447985 | DO21: * | DP21: =Daxn($D$5+$D$9,$D$8-$D$9,$D$10,$D$13,1,0) -> 13.88106158 | DT21: =DV21-DX21*EA21 -> 4.162699288 | DU21: = | DV21: =dax($D$5+$D$9,$D$10,$D$13,1,$D$8-$D$9) -> 8.336101455 | DW21: - | DX21: =$F$8 -> 0.2918447985 | DZ21: * | EA21: =Daxn($D$5+$D$9,$D$8-$D$9,$D$10,0,1,0) -> 14.30007384 | EE21: =EG21-EI21*EL21 -> 3.089494813 | EF21: = | EG21: =Daxn($D$5+$D$9,$D$6-$D$9,$D$10,$D$13,1,$D$8-$D$9) -> 7.26289698 | EH21: - | EI21: =$F$8 -> 0.2918447985 | EK21: * | EL21: =Daxn($D$5+$D$9,$D$8-$D$9,$D$10,0,1,0) -> 14.30007384
B22: 36 | C22: 66 | D22: 79635.64367 | E22: 0.8075402824 | F22: 0.4110937233 | G22: 15607.46533 | M22: =VLOOKUP(D5,umrtnostni,4,0) -> 98615.07272 | W22: =VLOOKUP(D5,umrtnostni,4,0) -> 98615.07272 | AG22: =VLOOKUP($D$5,umrtnostni,4,0) -> 98615.07272 | AS22: =VLOOKUP($D$5,umrtnostni,4,0) -> 98615.07272 | BD22: =VLOOKUP($D$5,umrtnostni,4,0) -> 98615.07272 | BN22: =VLOOKUP($D$5,umrtnostni,4,0) -> 98615.07272 | BX22: =lx(D5) -> 98615.07272 | CI22: =VLOOKUP($D$5,umrtnostni,4,0) -> 98615.07272 | CQ22: 5 | CR22: 66 | CS22: =IF(CQ22<=$D$12,IF($D$8>CQ22,IF($D$2="Whole life",dax($D$5+CQ22,$D$10,$D$13,1,$D$8-CQ22),Daxn($D$5+CQ22,$D$6-CQ22,$D$10,$D$13,1,$D$8-CQ22)),IF($D$2="Whole life",dax($D$5+CQ22,$D$10,$D$13,1,0),Daxn($D$5+CQ22,$D$6-CQ22,$D$10,$D$13,1,0))),0) -> 6.948541489 | CT22: =IF(CQ22<=$D$12,IF($D$8>CQ22,Daxn($D$5+CQ22,$D$8-CQ22,$D$10,0,1,0),0),0) -> 18.40653582 | CU22: 1.57668975 | CV22: 7883.448752
B23: 37 | C23: 67 | D23: 77789.25976 | E23: 0.7888171413 | F23: 0.4010670471 | G23: 14873.75616 | I23: Using probabilities | S23: Using probabilities | AC23: Using probabilities | AO23: Using probabilities | AZ23: Using probabilities | BJ23: Using probabilities | BT23: Using probabilities | CE23: Using probabilities | CQ23: 6 | CR23: 67 | CS23: =IF(CQ23<=$D$12,IF($D$8>CQ23,IF($D$2="Whole life",dax($D$5+CQ23,$D$10,$D$13,1,$D$8-CQ23),Daxn($D$5+CQ23,$D$6-CQ23,$D$10,$D$13,1,$D$8-CQ23)),IF($D$2="Whole life",dax($D$5+CQ23,$D$10,$D$13,1,0),Daxn($D$5+CQ23,$D$6-CQ23,$D$10,$D$13,1,0))),0) -> 7.129616002 | CT23: =IF(CQ23<=$D$12,IF($D$8>CQ23,Daxn($D$5+CQ23,$D$8-CQ23,$D$10,0,1,0),0),0) -> 17.86013893 | CU23: 1.917227355 | CV23: 9586.136776 | CX23: Netto reserves for k ≤ t | DI23: Netto reserves for k ≤ t | DT23: Netto reserves for k ≤ t | EE23: Netto reserves for k ≤ t
B24: 38 | C24: 68 | D24: 75829.14851 | E24: 0.7689407554 | F24: 0.391284924 | G24: 14145.33811 | I24: Px | J24: = | K24: D | L24: * | M24: 1 + 1px * v + 2px * v2 +…. | S24: Pxn | T24: = | U24: D | V24: * | W24: 1 + 1px * v + …+ n-1px * vn-1 | AC24: Px | AD24: = | AE24: D | AF24: * | AG24: 1px * v + 2px * v2 +…. | AO24: Pxn | AP24: = | AQ24: D | AR24: * | AS24: 1px * v + 2px * v2 +…+ npx * vn | AZ24: Px | BA24: = | BB24: D | BC24: * | BD24: kpx * vk + k+1px * vk+1 +…. | BJ24: Px | BK24: = | BL24: D | BM24: * | BN24: k+1px * vk+1 + k+2px * vk+2 +…. | BT24: Pxn | BU24: = | BV24: D | BW24: * | BX24: kpx * vk + k+1px * vk+1 + …+ n-1px * vn-1 | CE24: Pxn | CF24: = | CG24: D | CH24: * | CI24: k+1px * vk+1 + k+2px * vk+2 +…+ npx * vn | CQ24: 7 | CR24: 68 | CS24: =IF(CQ24<=$D$12,IF($D$8>CQ24,IF($D$2="Whole life",dax($D$5+CQ24,$D$10,$D$13,1,$D$8-CQ24),Daxn($D$5+CQ24,$D$6-CQ24,$D$10,$D$13,1,$D$8-CQ24)),IF($D$2="Whole life",dax($D$5+CQ24,$D$10,$D$13,1,0),Daxn($D$5+CQ24,$D$6-CQ24,$D$10,$D$13,1,0))),0) -> 7.315661243 | CT24: =IF(CQ24<=$D$12,IF($D$8>CQ24,Daxn($D$5+CQ24,$D$8-CQ24,$D$10,0,1,0),0),0) -> 17.30009932 | CU24: 2.266717244 | CV24: 11333.58622 | CX24: tVx | CY24: = | CZ24: ӓx+t | DI24: tVx | DJ24: = | DK24: ӓx+t,n-t | DT24: tVx | DU24: = | DV24: ax+t | EE24: tVx | EF24: = | EG24: ax+t,n-t
B25: 39 | C25: 69 | D25: 73753.83988 | E25: 0.7478962175 | F25: 0.3817413893 | G25: 13422.63943 | CQ25: 8 | CR25: 69 | CS25: =IF(CQ25<=$D$12,IF($D$8>CQ25,IF($D$2="Whole life",dax($D$5+CQ25,$D$10,$D$13,1,$D$8-CQ25),Daxn($D$5+CQ25,$D$6-CQ25,$D$10,$D$13,1,$D$8-CQ25)),IF($D$2="Whole life",dax($D$5+CQ25,$D$10,$D$13,1,0),Daxn($D$5+CQ25,$D$6-CQ25,$D$10,$D$13,1,0))),0) -> 7.506654573 | CT25: =IF(CQ25<=$D$12,IF($D$8>CQ25,Daxn($D$5+CQ25,$D$8-CQ25,$D$10,0,1,0),0),0) -> 16.7256535 | CU25: 2.625359598 | CV25: 13126.79799
B26: 40 | C26: 70 | D26: 71583.0571 | E26: 0.7258835301 | F26: 0.3724306237 | G26: 12709.82774 | CQ26: 9 | CR26: 70 | CS26: =IF(CQ26<=$D$12,IF($D$8>CQ26,IF($D$2="Whole life",dax($D$5+CQ26,$D$10,$D$13,1,$D$8-CQ26),Daxn($D$5+CQ26,$D$6-CQ26,$D$10,$D$13,1,$D$8-CQ26)),IF($D$2="Whole life",dax($D$5+CQ26,$D$10,$D$13,1,0),Daxn($D$5+CQ26,$D$6-CQ26,$D$10,$D$13,1,0))),0) -> 7.703541629 | CT26: =IF(CQ26<=$D$12,IF($D$8>CQ26,Daxn($D$5+CQ26,$D$8-CQ26,$D$10,0,1,0),0),0) -> 16.13811122 | CU26: 2.993717812 | CV26: 14968.58906
B27: 41 | C27: 71 | D27: 69355.10934 | E27: 0.7032911646 | F27: 0.3633469499 | G27: 12013.90015 | I27: =K27*M27 -> 30576.33673 | J27: = | K27: =$D$7 -> 5000 | L27: * | M27: =SUMPRODUCT(E17:E134,F17:F134) -> 6.115267347 | S27: =U27*W27 -> 30576.33673 | T27: = | U27: =$D$7 -> 5000 | V27: * | W27: =SUMPRODUCT($E$17:$E$134,$F$17:$F$134) -> 6.115267347 | AC27: =AE27*AG27 -> 30576.33673 | AD27: = | AE27: =$D$7 -> 5000 | AF27: * | AG27: =SUMPRODUCT($E$17:$E$134,$F$17:$F$134) -> 6.115267347 | AO27: =AQ27*AS27 -> 30576.33673 | AP27: = | AQ27: =$D$7 -> 5000 | AR27: * | AS27: =SUMPRODUCT($E$17:$E$134,$F$17:$F$134) -> 6.115267347 | AZ27: =BB27*BD27 -> 30576.33673 | BA27: = | BB27: =$D$7 -> 5000 | BC27: * | BD27: =SUMPRODUCT($E$17:$E$134,$F$17:$F$134) -> 6.115267347 | BJ27: =BL27*BN27 -> 30576.33673 | BK27: = | BL27: =$D$7 -> 5000 | BM27: * | BN27: =SUMPRODUCT($E$17:$E$134,$F$17:$F$134) -> 6.115267347 | BT27: =BV27*BX27 -> 30576.33673 | BU27: = | BV27: =$D$7 -> 5000 | BW27: * | BX27: =SUMPRODUCT($E$17:$E$134,$F$17:$F$134) -> 6.115267347 | CE27: =CG27*CI27 -> 30576.33673 | CF27: = | CG27: =$D$7 -> 5000 | CH27: * | CI27: =SUMPRODUCT($E$17:$E$134,$F$17:$F$134) -> 6.115267347 | CQ27: 10 | CR27: 71 | CS27: =IF(CQ27<=$D$12,IF($D$8>CQ27,IF($D$2="Whole life",dax($D$5+CQ27,$D$10,$D$13,1,$D$8-CQ27),Daxn($D$5+CQ27,$D$6-CQ27,$D$10,$D$13,1,$D$8-CQ27)),IF($D$2="Whole life",dax($D$5+CQ27,$D$10,$D$13,1,0),Daxn($D$5+CQ27,$D$6-CQ27,$D$10,$D$13,1,0))),0) -> 7.907322373 | CT27: =IF(CQ27<=$D$12,IF($D$8>CQ27,Daxn($D$5+CQ27,$D$8-CQ27,$D$10,0,1,0),0),0) -> 15.53855763 | CU27: 3.372475154 | CV27: 16862.37577 | CX27: =CZ27 -> 22.21716303 | CY27: = | CZ27: =dax($D$5+$D$9,$D$10,$D$13,1,0) -> 22.21716303 | DI27: =DK27 -> 21.14395856 | DJ27: = | DK27: =Daxn($D$5+$D$9,$D$6-$D$9,$D$10,$D$13,1,0) -> 21.14395856 | DT27: =DV27 -> 22.21716303 | DU27: = | DV27: =dax($D$5+$D$9,$D$10,$D$13,1,0) -> 22.21716303 | EE27: =EG27 -> 21.14395856 | EF27: = | EG27: =Daxn($D$5+$D$9,$D$6-$D$9,$D$10,$D$13,1,0) -> 21.14395856
B28: 42 | C28: 72 | D28: 67078.60511 | E28: 0.6802064153 | F28: 0.3544848292 | G28: 11336.15342 | CQ28: 11 | CR28: 72 | CS28: =IF(CQ28<=$D$12,IF($D$8>CQ28,IF($D$2="Whole life",dax($D$5+CQ28,$D$10,$D$13,1,$D$8-CQ28),Daxn($D$5+CQ28,$D$6-CQ28,$D$10,$D$13,1,$D$8-CQ28)),IF($D$2="Whole life",dax($D$5+CQ28,$D$10,$D$13,1,0),Daxn($D$5+CQ28,$D$6-CQ28,$D$10,$D$13,1,0))),0) -> 8.118166056 | CT28: =IF(CQ28<=$D$12,IF($D$8>CQ28,Daxn($D$5+CQ28,$D$8-CQ28,$D$10,0,1,0),0),0) -> 14.92621895 | CU28: 3.762026695 | CV28: 18810.13348
B29: 43 | C29: 73 | D29: 64705.51418 | E29: 0.6561422346 | F29: 0.3458388578 | G29: 10668.39578 | I29: Using Commutation numbers | S29: Using Commutation numbers | AC29: Using Commutation numbers | AO29: Using Commutation numbers | AZ29: Using Commutation numbers | BJ29: Using Commutation numbers | BT29: Using Commutation numbers | CE29: Using Commutation numbers | CQ29: 12 | CR29: 73 | CS29: =IF(CQ29<=$D$12,IF($D$8>CQ29,IF($D$2="Whole life",dax($D$5+CQ29,$D$10,$D$13,1,$D$8-CQ29),Daxn($D$5+CQ29,$D$6-CQ29,$D$10,$D$13,1,$D$8-CQ29)),IF($D$2="Whole life",dax($D$5+CQ29,$D$10,$D$13,1,0),Daxn($D$5+CQ29,$D$6-CQ29,$D$10,$D$13,1,0))),0) -> 8.336101455 | CT29: =IF(CQ29<=$D$12,IF($D$8>CQ29,Daxn($D$5+CQ29,$D$8-CQ29,$D$10,0,1,0),0),0) -> 14.30007384 | CU29: 4.162699288 | CV29: 20813.49644
B30: 44 | C30: 74 | D30: 62278.39133 | E30: 0.6315301466 | F30: 0.3374037637 | G30: 10017.7767 | I30: Px | J30: = | K30: D | L30: * | M30: Dx + Dx+1 + Dx+2 ... | P30: = | Q30: Nx | S30: Pxn | T30: = | U30: D | V30: * | W30: Dx + Dx+1 + Dx+2 +…+ Dx+n-1 | Z30: = | AA30: Nx - Nx+n | AC30: Px | AD30: = | AE30: D | AF30: * | AG30: Dx+1 + Dx+2 ... | AJ30: = | AK30: Nx+1 | AO30: Pxn | AP30: = | AQ30: D | AR30: * | AS30: Dx+1 + Dx+2 +…+ Dx+n | AV30: = | AW30: Nx+1 - Nx+n+1 | AZ30: Px | BA30: = | BB30: D | BC30: * | BD30: Dx+k + Dx+k+1 + Dx+k+2 ... | BG30: = | BH30: Nx+k | BJ30: Px | BK30: = | BL30: D | BM30: * | BN30: Dx+k+1 + Dx+k+2 ... | BQ30: = | BR30: Nx+k+1 | BT30: Pxn | BU30: = | BV30: D | BW30: * | BX30: Dx+k + Dx+k+1 +…+ Dx+n-1 | CA30: = | CB30: Nx+k - Nx+n | CE30: Pxn | CF30: = | CG30: D | CH30: * | CI30: Dx+k+1 + Dx+k+2 +…+ Dx+n | CL30: = | CM30: Nx+k+1 - Nx+n+1 | CQ30: 13 | CR30: 74 | CS30: =IF(CQ30<=$D$12,IF($D$8>CQ30,IF($D$2="Whole life",dax($D$5+CQ30,$D$10,$D$13,1,$D$8-CQ30),Daxn($D$5+CQ30,$D$6-CQ30,$D$10,$D$13,1,$D$8-CQ30)),IF($D$2="Whole life",dax($D$5+CQ30,$D$10,$D$13,1,0),Daxn($D$5+CQ30,$D$6-CQ30,$D$10,$D$13,1,0))),0) -> 8.561122869 | CT30: =IF(CQ30<=$D$12,IF($D$8>CQ30,Daxn($D$5+CQ30,$D$8-CQ30,$D$10,0,1,0),0),0) -> 13.65909075 | CU30: 4.574788281 | CV30: 22873.94141
B31: 45 | C31: 75 | D31: 59724.6867 | E31: 0.6056344639 | F31: 0.3291744036 | G31: 9372.684018 | M31: Dx | Q31: Dx | W31: Dx | AA31: Dx | AG31: Dx | AK31: Dx | AS31: Dx | AW31: Dx | BD31: Dx | BH31: Dx | BN31: Dx | BR31: Dx | BX31: Dx | CB31: Dx | CI31: Dx | CM31: Dx | CQ31: 14 | CR31: 75 | CS31: =IF(CQ31<=$D$12,IF($D$8>CQ31,IF($D$2="Whole life",dax($D$5+CQ31,$D$10,$D$13,1,$D$8-CQ31),Daxn($D$5+CQ31,$D$6-CQ31,$D$10,$D$13,1,$D$8-CQ31)),IF($D$2="Whole life",dax($D$5+CQ31,$D$10,$D$13,1,0),Daxn($D$5+CQ31,$D$6-CQ31,$D$10,$D$13,1,0))),0) -> 8.793698357 | CT31: =IF(CQ31<=$D$12,IF($D$8>CQ31,Daxn($D$5+CQ31,$D$8-CQ31,$D$10,0,1,0),0),0) -> 13.00299356 | CU31: 4.998842321 | CV31: 24994.21161
B32: 46 | C32: 76 | D32: 56993.77202 | E32: 0.5779417937 | F32: 0.3211457596 | G32: 8725.968302 | CQ32: 15 | CR32: 76 | CS32: =IF(CQ32<=$D$12,IF($D$8>CQ32,IF($D$2="Whole life",dax($D$5+CQ32,$D$10,$D$13,1,$D$8-CQ32),Daxn($D$5+CQ32,$D$6-CQ32,$D$10,$D$13,1,$D$8-CQ32)),IF($D$2="Whole life",dax($D$5+CQ32,$D$10,$D$13,1,0),Daxn($D$5+CQ32,$D$6-CQ32,$D$10,$D$13,1,0))),0) -> 9.034928978 | CT32: =IF(CQ32<=$D$12,IF($D$8>CQ32,Daxn($D$5+CQ32,$D$8-CQ32,$D$10,0,1,0),0),0) -> 12.33226226 | CU32: 5.435822384 | CV32: 27179.11192
B33: 47 | C33: 77 | D33: 54105.83974 | E33: 0.5486568964 | F33: 0.3133129362 | G33: 8081.770373 | I33: =K33*(M33/M34) -> 30576.33673 | J33: = | K33: =$D$7 -> 5000 | L33: * | M33: =SUM(G17:G134) -> 287503.2681 | P33: = | Q33: =nx($D$5,$D$10) -> 1292664.756 | S33: =U33*(AA33/AA34) -> 132880.2902 | T33: = | U33: =$D$7 -> 5000 | V33: * | W33: =SUM(G17:G134) -> 287503.2681 | Z33: = | AA33: =nx($D$5,$D$10)-nx($D$5+$D$6,$D$10) -> 1249447.18 | AC33: =AE33*(AG33/AG34) -> 30576.33673 | AD33: = | AE33: =$D$7 -> 5000 | AF33: * | AG33: =SUM($G$17:$G$134) -> 287503.2681 | AK33: =nx(D5+1,D10) -> 1245650.741 | AO33: =AQ33*(AS33/AS34) -> 30576.33673 | AP33: = | AQ33: =$D$7 -> 5000 | AR33: * | AS33: =SUM($G$17:$G$134) -> 287503.2681 | AV33: = | AW33: =nx($D$5+1,$D$10)-nx($D$5+$D$6+1,$D$10) -> 1208637.061 | AZ33: =BB33*(BH33/BH34) -> 32707.36607 | BA33: = | BB33: =$D$7 -> 5000 | BC33: * | BD33: =SUM(G17:$G$134) -> 287503.2681 | BG33: = | BH33: =nx($D$5+$D$8,$D$10) -> 307540.9169 | BJ33: =BL33*(BR33/BR34) -> 30576.33673 | BK33: = | BL33: =$D$7 -> 5000 | BM33: * | BN33: =SUM($G19:Q$134) -> 2764060.02 | BQ33: = | BR33: =nx($D$5+$D$8+1,$D$10) -> 287503.2681 | BT33: =BV33*(CB33/CB34) -> 28111.12213 | BU33: = | BV33: =$D$7 -> 5000 | BW33: * | BX33: =SUM(G17:G134) -> 287503.2681 | CA33: = | CB33: =nx($D$5+$D$8,$D$10)-nx($D$5+$D$6,$D$10) -> 264323.341 | CE33: =CG33*(CI33/CI34) -> 30576.33673 | CF33: = | CG33: =$D$7 -> 5000 | CH33: * | CI33: =SUM($G$17:$G$134) -> 287503.2681 | CL33: = | CM33: =nx($D$5+$D$8+1,$D$10)-nx($D$5+$D$6+1,$D$10) -> 250489.5879 | CQ33: 16 | CR33: 77 | CS33: =IF(CQ33<=$D$12,IF($D$8>CQ33,IF($D$2="Whole life",dax($D$5+CQ33,$D$10,$D$13,1,$D$8-CQ33),Daxn($D$5+CQ33,$D$6-CQ33,$D$10,$D$13,1,$D$8-CQ33)),IF($D$2="Whole life",dax($D$5+CQ33,$D$10,$D$13,1,0),Daxn($D$5+CQ33,$D$6-CQ33,$D$10,$D$13,1,0))),0) -> 9.285704531 | CT33: =IF(CQ33<=$D$12,IF($D$8>CQ33,Daxn($D$5+CQ33,$D$8-CQ33,$D$10,0,1,0),0),0) -> 11.64680312 | CU33: 5.886645622 | CV33: 29433.22811
B34: 48 | C34: 78 | D34: 51093.17623 | E34: 0.5181071698 | F34: 0.3056711573 | G34: 7445.629147 | M34: =DDx($D$5,$D$10) -> 47014.01457 | Q34: =DDx($D$5,$D$10) -> 47014.01457 | W34: =DDx($D$5,$D$10) -> 47014.01457 | AA34: =DDx($D$5,$D$10) -> 47014.01457 | AG34: =DDx($D$5,$D$10) -> 47014.01457 | AK34: =DDx(D5,D10) -> 47014.01457 | AS34: =DDx($D$5,$D$10) -> 47014.01457 | AW34: =DDx($D$5,$D$10) -> 47014.01457 | BD34: =DDx($D$5,$D$10) -> 47014.01457 | BH34: =DDx($D$5,$D$10) -> 47014.01457 | BN34: =DDx($D$5,$D$10) -> 47014.01457 | BR34: =DDx($D$5,$D$10) -> 47014.01457 | BX34: =DDx($D$5,$D$10) -> 47014.01457 | CB34: =DDx($D$5,$D$10) -> 47014.01457 | CI34: =DDx($D$5,$D$10) -> 47014.01457 | CM34: =DDx($D$5,$D$10) -> 47014.01457 | CQ34: 17 | CR34: 78 | CS34: =IF(CQ34<=$D$12,IF($D$8>CQ34,IF($D$2="Whole life",dax($D$5+CQ34,$D$10,$D$13,1,$D$8-CQ34),Daxn($D$5+CQ34,$D$6-CQ34,$D$10,$D$13,1,$D$8-CQ34)),IF($D$2="Whole life",dax($D$5+CQ34,$D$10,$D$13,1,0),Daxn($D$5+CQ34,$D$6-CQ34,$D$10,$D$13,1,0))),0) -> 9.547398292 | CT34: =IF(CQ34<=$D$12,IF($D$8>CQ34,Daxn($D$5+CQ34,$D$8-CQ34,$D$10,0,1,0),0),0) -> 10.94685595 | CU34: 6.352615323 | CV34: 31763.07661
B35: 49 | C35: 79 | D35: 47950.07604 | E35: 0.4862347582 | F35: 0.2982157632 | G35: 6817.167019 | AC35: Using actuarial formulas | AO35: Using actuarial formulas | CE35: Using actuarial formulas | CQ35: =CQ34+1 -> 18 | CR35: 79 | CS35: =IF(CQ35<=$D$12,IF($D$8>CQ35,IF($D$2="Whole life",dax($D$5+CQ35,$D$10,$D$13,1,$D$8-CQ35),Daxn($D$5+CQ35,$D$6-CQ35,$D$10,$D$13,1,$D$8-CQ35)),IF($D$2="Whole life",dax($D$5+CQ35,$D$10,$D$13,1,0),Daxn($D$5+CQ35,$D$6-CQ35,$D$10,$D$13,1,0))),0) -> 9.819082086 | CT35: =IF(CQ35<=$D$12,IF($D$8>CQ35,Daxn($D$5+CQ35,$D$8-CQ35,$D$10,0,1,0),0),0) -> 10.22990684 | CU35: 6.833536986 | CV35: 34167.68493
B36: 50 | C36: 80 | D36: 44727.40632 | E36: 0.4535554767 | F36: 0.290942208 | G36: 6203.895637 | AC36: Px | AD36: = | AE36: D | AF36: * | AG36: ( | AH36: ӓx | AI36: - | AJ36: 1 | AK36: ) | AO36: Pxn | AP36: = | AQ36: D | AR36: * | AS36: ( | AT36: ӓxn+1 | AU36: - | AV36: 1 | AW36: ) | CE36: Pxn | CF36: = | CG36: D | CH36: * | CI36: ( | CJ36: ӓxn | CK36: - | CL36: 1 | CM36: ) | CQ36: 19 | CR36: 80 | CS36: =IF(CQ36<=$D$12,IF($D$8>CQ36,IF($D$2="Whole life",dax($D$5+CQ36,$D$10,$D$13,1,$D$8-CQ36),Daxn($D$5+CQ36,$D$6-CQ36,$D$10,$D$13,1,$D$8-CQ36)),IF($D$2="Whole life",dax($D$5+CQ36,$D$10,$D$13,1,0),Daxn($D$5+CQ36,$D$6-CQ36,$D$10,$D$13,1,0))),0) -> 10.10262947 | CT36: =IF(CQ36<=$D$12,IF($D$8>CQ36,Daxn($D$5+CQ36,$D$8-CQ36,$D$10,0,1,0),0),0) -> 9.496440505 | CU36: 7.331142704 | CV36: 36655.71352
B37: 51 | C37: 81 | D37: 41433.20279 | E37: 0.4201508111 | F37: 0.2838460566 | G37: 5606.804444 | I37: Regular premium | S37: Regular premium | AZ37: Regular premium | BJ37: Regular premium | BT37: Regular premium | CQ37: 20 | CR37: 81 | CS37: =IF(CQ37<=$D$12,IF($D$8>CQ37,IF($D$2="Whole life",dax($D$5+CQ37,$D$10,$D$13,1,$D$8-CQ37),Daxn($D$5+CQ37,$D$6-CQ37,$D$10,$D$13,1,$D$8-CQ37)),IF($D$2="Whole life",dax($D$5+CQ37,$D$10,$D$13,1,0),Daxn($D$5+CQ37,$D$6-CQ37,$D$10,$D$13,1,0))),0) -> 10.39753208 | CT37: =IF(CQ37<=$D$12,IF($D$8>CQ37,Daxn($D$5+CQ37,$D$8-CQ37,$D$10,0,1,0),0),0) -> 8.74445737 | CU37: 7.845507682 | CV37: 39227.53841
B38: 52 | C38: 82 | D38: 38065.30908 | E38: 0.3859988948 | F38: 0.276922982 | G38: 5025.4204 | I38: nPx | J38: = | K38: D * ӓxn˥ | S38: nPx | T38: = | U38: D * ӓxn˥ | AZ38: nPx | BA38: = | BB38: ӓxn˥ | BJ38: nPx | BK38: = | BL38: D * k|ӓx | BT38: nPx | BU38: = | BV38: ӓxn˥ | CQ38: 21 | CR38: 82 | CS38: =IF(CQ38<=$D$12,IF($D$8>CQ38,IF($D$2="Whole life",dax($D$5+CQ38,$D$10,$D$13,1,$D$8-CQ38),Daxn($D$5+CQ38,$D$6-CQ38,$D$10,$D$13,1,$D$8-CQ38)),IF($D$2="Whole life",dax($D$5+CQ38,$D$10,$D$13,1,0),Daxn($D$5+CQ38,$D$6-CQ38,$D$10,$D$13,1,0))),0) -> 10.70651926 | CT38: =IF(CQ38<=$D$12,IF($D$8>CQ38,Daxn($D$5+CQ38,$D$8-CQ38,$D$10,0,1,0),0),0) -> 7.974602179 | CU38: 8.379173094 | CV38: 41895.86547
B39: 53 | C39: 83 | D39: 34665.22954 | E39: 0.3515206001 | F39: 0.2701687629 | G39: 4464.915589 | K39: ӓxn˥ | U39: ӓxn˥ | AC39: =AE39*(AH39-AJ39) -> 27707.36607 | AD39: = | AE39: =$D$7 -> 5000 | AF39: * | AG39: ( | AH39: =dax(D5,D10,0,1,D8) -> 6.541473213 | AI39: - | AJ39: 1 | AK39: ) | AO39: =AQ39*(AT39-AV39) -> 128540.0823 | AP39: = | AQ39: =$D$7 -> 5000 | AR39: * | AS39: ( | AT39: =Daxn(D5,D6+1,D10,0,1,0) -> 26.70801647 | AU39: - | AV39: 1 | AW39: ) | BB39: ӓxn˥ | BL39: ӓxk˥ | BV39: ӓxn˥ | CE39: =CG39*(CJ39-CL39) -> 23111.12213 | CF39: = | CG39: =$D$7 -> 5000 | CH39: * | CI39: ( | CJ39: =Daxn(D5,D6,D10,0,1,D8) -> 5.622224426 | CK39: - | CL39: 1 | CM39: ) | CQ39: 22 | CR39: 83 | CS39: =IF(CQ39<=$D$12,IF($D$8>CQ39,IF($D$2="Whole life",dax($D$5+CQ39,$D$10,$D$13,1,$D$8-CQ39),Daxn($D$5+CQ39,$D$6-CQ39,$D$10,$D$13,1,$D$8-CQ39)),IF($D$2="Whole life",dax($D$5+CQ39,$D$10,$D$13,1,0),Daxn($D$5+CQ39,$D$6-CQ39,$D$10,$D$13,1,0))),0) -> 11.02834642 | CT39: =IF(CQ39<=$D$12,IF($D$8>CQ39,Daxn($D$5+CQ39,$D$8-CQ39,$D$10,0,1,0),0),0) -> 7.184251681 | CU39: 8.931659938 | CV39: 44658.29969
B40: 54 | C40: 84 | D40: 31261.24607 | E40: 0.3170027178 | F40: 0.2635792809 | G40: 3928.272368 | CQ40: 23 | CR40: 84 | CS40: =IF(CQ40<=$D$12,IF($D$8>CQ40,IF($D$2="Whole life",dax($D$5+CQ40,$D$10,$D$13,1,$D$8-CQ40),Daxn($D$5+CQ40,$D$6-CQ40,$D$10,$D$13,1,$D$8-CQ40)),IF($D$2="Whole life",dax($D$5+CQ40,$D$10,$D$13,1,0),Daxn($D$5+CQ40,$D$6-CQ40,$D$10,$D$13,1,0))),0) -> 11.36648483 | CT40: =IF(CQ40<=$D$12,IF($D$8>CQ40,Daxn($D$5+CQ40,$D$8-CQ40,$D$10,0,1,0),0),0) -> 6.373866056 | CU40: 9.506305174 | CV40: 47531.52587
B41: 55 | C41: 85 | D41: 27888.09267 | E41: 0.282797466 | F41: 0.257150518 | G41: 3418.930359 | I41: =(K41/K42) -> 1189.369735 | J41: = | K41: =S21 -> 30576.33673 | S41: =(U41/U42) -> 1189.369735 | T41: = | U41: =AC21 -> 30576.33673 | AZ41: =(BB41/BB42) -> 0.3000616046 | BA41: = | BB41: =AZ21/BB21 -> 6.115267347 | BJ41: =(BL41/BL42) -> 1459.223992 | BK41: = | BL41: =BJ21 -> 30576.33673 | BT41: =(BV41/BV42) -> 0.3000616046 | BU41: = | BV41: =BT21/BV21 -> 6.115267347 | CQ41: 24 | CR41: 85 | CS41: =IF(CQ41<=$D$12,IF($D$8>CQ41,IF($D$2="Whole life",dax($D$5+CQ41,$D$10,$D$13,1,$D$8-CQ41),Daxn($D$5+CQ41,$D$6-CQ41,$D$10,$D$13,1,$D$8-CQ41)),IF($D$2="Whole life",dax($D$5+CQ41,$D$10,$D$13,1,0),Daxn($D$5+CQ41,$D$6-CQ41,$D$10,$D$13,1,0))),0) -> 11.71931995 | CT41: =IF(CQ41<=$D$12,IF($D$8>CQ41,Daxn($D$5+CQ41,$D$8-CQ41,$D$10,0,1,0),0),0) -> 5.540680047 | CU41: 10.1023013 | CV41: 50511.50651
B42: 56 | C42: 86 | D42: 24579.39723 | E42: 0.249245846 | F42: 0.2508785541 | G42: 2939.806898 | K42: =Daxn($D$5,$D$6,$D$10,$D$13,1,0) -> 25.70801647 | U42: =Daxn($D$5,$D$6,$D$10,$D$13,1,0) -> 25.70801647 | BB42: =Daxn($D$5,$D$8,$D$10,$D$13,1,0) -> 20.38003948 | BL42: =Daxn($D$5,$D$8,$D$10,0,1,0) -> 20.95383361 | BV42: =Daxn($D$5,$D$8,$D$10,$D$13,1,0) -> 20.38003948 | CQ42: 25 | CR42: 86 | CS42: =IF(CQ42<=$D$12,IF($D$8>CQ42,IF($D$2="Whole life",dax($D$5+CQ42,$D$10,$D$13,1,$D$8-CQ42),Daxn($D$5+CQ42,$D$6-CQ42,$D$10,$D$13,1,$D$8-CQ42)),IF($D$2="Whole life",dax($D$5+CQ42,$D$10,$D$13,1,0),Daxn($D$5+CQ42,$D$6-CQ42,$D$10,$D$13,1,0))),0) -> 12.09116247 | CT42: =IF(CQ42<=$D$12,IF($D$8>CQ42,Daxn($D$5+CQ42,$D$8-CQ42,$D$10,0,1,0),0),0) -> 4.684751366 | CU42: 10.72394215 | CV42: 53619.71074
B43: 57 | C43: 87 | D43: 21373.37158 | E43: 0.2167353427 | F43: 0.244759565 | G43: 2494.00171 | AC43: Regular premium | AO43: Regular premium | CE43: Regular premium | CQ43: 26 | CR43: 87 | CS43: =IF(CQ43<=$D$12,IF($D$8>CQ43,IF($D$2="Whole life",dax($D$5+CQ43,$D$10,$D$13,1,$D$8-CQ43),Daxn($D$5+CQ43,$D$6-CQ43,$D$10,$D$13,1,$D$8-CQ43)),IF($D$2="Whole life",dax($D$5+CQ43,$D$10,$D$13,1,0),Daxn($D$5+CQ43,$D$6-CQ43,$D$10,$D$13,1,0))),0) -> 12.48511106 | CT43: =IF(CQ43<=$D$12,IF($D$8>CQ43,Daxn($D$5+CQ43,$D$8-CQ43,$D$10,0,1,0),0),0) -> 3.804806209 | CU43: 11.37469816 | CV43: 56873.49079
B44: 58 | C44: 88 | D44: 18309.11924 | E44: 0.1856624827 | F44: 0.2387898195 | G44: 2084.333931 | AC44: nPx | AD44: = | AE44: D * ӓxn˥ | AO44: nPx | AP44: = | AQ44: D * ӓxn˥ | CE44: nPx | CF44: = | CG44: D * k|ӓxn˥ | CQ44: 27 | CR44: 88 | CS44: =IF(CQ44<=$D$12,IF($D$8>CQ44,IF($D$2="Whole life",dax($D$5+CQ44,$D$10,$D$13,1,$D$8-CQ44),Daxn($D$5+CQ44,$D$6-CQ44,$D$10,$D$13,1,$D$8-CQ44)),IF($D$2="Whole life",dax($D$5+CQ44,$D$10,$D$13,1,0),Daxn($D$5+CQ44,$D$6-CQ44,$D$10,$D$13,1,0))),0) -> 12.90560993 | CT44: =IF(CQ44<=$D$12,IF($D$8>CQ44,Daxn($D$5+CQ44,$D$8-CQ44,$D$10,0,1,0),0),0) -> 2.899272157 | CU44: 12.05947243 | CV44: 60297.36216
B45: 59 | C45: 89 | D45: 15424.95713 | E45: 0.1564158166 | F45: 0.2329656776 | G45: 1713.167969 | AE45: ӓxn˥ | AQ45: ӓxn˥ | CG45: ӓxk˥ | CQ45: 28 | CR45: 89 | CS45: =IF(CQ45<=$D$12,IF($D$8>CQ45,IF($D$2="Whole life",dax($D$5+CQ45,$D$10,$D$13,1,$D$8-CQ45),Daxn($D$5+CQ45,$D$6-CQ45,$D$10,$D$13,1,$D$8-CQ45)),IF($D$2="Whole life",dax($D$5+CQ45,$D$10,$D$13,1,0),Daxn($D$5+CQ45,$D$6-CQ45,$D$10,$D$13,1,0))),0) -> 13.35400452 | CT45: =IF(CQ45<=$D$12,IF($D$8>CQ45,Daxn($D$5+CQ45,$D$8-CQ45,$D$10,0,1,0),0),0) -> 1.965260774 | CU45: 12.78045339 | CV45: 63902.26693
B46: 60 | C46: 90 | D46: 12756.45656 | E46: 0.1293560529 | F46: 0.2272835879 | G46: 1382.235903 | CQ46: 29 | CR46: 90 | CS46: =IF(CQ46<=$D$12,IF($D$8>CQ46,IF($D$2="Whole life",dax($D$5+CQ46,$D$10,$D$13,1,$D$8-CQ46),Daxn($D$5+CQ46,$D$6-CQ46,$D$10,$D$13,1,$D$8-CQ46)),IF($D$2="Whole life",dax($D$5+CQ46,$D$10,$D$13,1,0),Daxn($D$5+CQ46,$D$6-CQ46,$D$10,$D$13,1,0))),0) -> 13.8346081 | CT46: =IF(CQ46<=$D$12,IF($D$8>CQ46,Daxn($D$5+CQ46,$D$8-CQ46,$D$10,0,1,0),0),0) -> 1 | CU46: 13.5427633 | CV46: 67713.81649
B47: 61 | C47: 91 | D47: 10334.32194 | E47: 0.1047945477 | F47: 0.2217400857 | G47: 1092.471802 | AC47: =(AE47/AE48) -> 0 | AD47: = | AE47: =AM26 -> 0 | AO47: =(AQ47/AQ48) -> 0 | AP47: = | AQ47: =AY26 -> 0 | CE47: =(CG47/CG48) -> 1459.223992 | CF47: = | CG47: =CE21 -> 30576.33673 | CQ47: 30 | CR47: 91 | CS47: =IF(CQ47<=$D$12,IF($D$8>CQ47,IF($D$2="Whole life",dax($D$5+CQ47,$D$10,$D$13,1,$D$8-CQ47),Daxn($D$5+CQ47,$D$6-CQ47,$D$10,$D$13,1,$D$8-CQ47)),IF($D$2="Whole life",dax($D$5+CQ47,$D$10,$D$13,1,0),Daxn($D$5+CQ47,$D$6-CQ47,$D$10,$D$13,1,0))),0) -> 14.34815386 | CT47: =IF(CQ47<=$D$12,IF($D$8>CQ47,Daxn($D$5+CQ47,$D$8-CQ47,$D$10,0,1,0),0),0) -> 0 | CU47: 14.34815386 | CV47: 71740.76931
B48: 62 | C48: 92 | D48: 8182.284536 | E48: 0.08297194648 | F48: 0.216331791 | G48: 843.8766338 | AE48: =Daxn($D$5,$D$6,$D$10,$D$13,1,0) -> 25.70801647 | AQ48: =Daxn($D$5,$D$6,$D$10,$D$13,1,0) -> 25.70801647 | CG48: =Daxn($D$5,$D$8,$D$10,0,1,0) -> 20.95383361 | CQ48: 31 | CR48: 92 | CS48: =IF(CQ48<=$D$12,IF($D$8>CQ48,IF($D$2="Whole life",dax($D$5+CQ48,$D$10,$D$13,1,$D$8-CQ48),Daxn($D$5+CQ48,$D$6-CQ48,$D$10,$D$13,1,$D$8-CQ48)),IF($D$2="Whole life",dax($D$5+CQ48,$D$10,$D$13,1,0),Daxn($D$5+CQ48,$D$6-CQ48,$D$10,$D$13,1,0))),0) -> 13.90307091 | CT48: =IF(CQ48<=$D$12,IF($D$8>CQ48,Daxn($D$5+CQ48,$D$8-CQ48,$D$10,0,1,0),0),0) -> 0 | CU48: 13.90307091 | CV48: 69515.35453
B49: 63 | C49: 93 | D49: 6315.239159 | E49: 0.06403928918 | F49: =IF(B49<=$D$12,$D$11^(B49),0) -> 0.2110554058 | G49: =IF(B49<=$D$12,DDx(C49,$D$10),0) -> 635.4338124 | CQ49: 32 | CR49: 93 | CS49: =IF(CQ49<=$D$12,IF($D$8>CQ49,IF($D$2="Whole life",dax($D$5+CQ49,$D$10,$D$13,1,$D$8-CQ49),Daxn($D$5+CQ49,$D$6-CQ49,$D$10,$D$13,1,$D$8-CQ49)),IF($D$2="Whole life",dax($D$5+CQ49,$D$10,$D$13,1,0),Daxn($D$5+CQ49,$D$6-CQ49,$D$10,$D$13,1,0))),0) -> 13.46126766 | CT49: =IF(CQ49<=$D$12,IF($D$8>CQ49,Daxn($D$5+CQ49,$D$8-CQ49,$D$10,0,1,0),0),0) -> 0 | CU49: 13.46126766 | CV49: 67306.33828
B50: 64 | C50: 94 | D50: 4737.880745 | E50: 0.04804418447 | F50: 0.205907713 | G50: 465.0940444 | CQ50: 33 | CR50: 94 | CS50: =IF(CQ50<=$D$12,IF($D$8>CQ50,IF($D$2="Whole life",dax($D$5+CQ50,$D$10,$D$13,1,$D$8-CQ50),Daxn($D$5+CQ50,$D$6-CQ50,$D$10,$D$13,1,$D$8-CQ50)),IF($D$2="Whole life",dax($D$5+CQ50,$D$10,$D$13,1,0),Daxn($D$5+CQ50,$D$6-CQ50,$D$10,$D$13,1,0))),0) -> 13.02237526 | CT50: =IF(CQ50<=$D$12,IF($D$8>CQ50,Daxn($D$5+CQ50,$D$8-CQ50,$D$10,0,1,0),0),0) -> 0 | CU50: 13.02237526 | CV50: 65111.87629
B51: 65 | C51: 95 | D51: 3444.089393 | E51: 0.03492457388 | F51: 0.2008855736 | G51: 329.8429477 | CQ51: =CQ50+1 -> 34 | CR51: 95 | CS51: =IF(CQ51<=$D$12,IF($D$8>CQ51,IF($D$2="Whole life",dax($D$5+CQ51,$D$10,$D$13,1,$D$8-CQ51),Daxn($D$5+CQ51,$D$6-CQ51,$D$10,$D$13,1,$D$8-CQ51)),IF($D$2="Whole life",dax($D$5+CQ51,$D$10,$D$13,1,0),Daxn($D$5+CQ51,$D$6-CQ51,$D$10,$D$13,1,0))),0) -> 12.58435989 | CT51: =IF(CQ51<=$D$12,IF($D$8>CQ51,Daxn($D$5+CQ51,$D$8-CQ51,$D$10,0,1,0),0),0) -> 0 | CU51: 12.58435989 | CV51: 62921.79947
B52: 66 | C52: 96 | D52: 2417.253909 | E52: 0.02451201264 | F52: 0.1959859255 | G52: 225.8557718 | CQ52: 35 | CR52: 96 | CS52: =IF(CQ52<=$D$12,IF($D$8>CQ52,IF($D$2="Whole life",dax($D$5+CQ52,$D$10,$D$13,1,$D$8-CQ52),Daxn($D$5+CQ52,$D$6-CQ52,$D$10,$D$13,1,$D$8-CQ52)),IF($D$2="Whole life",dax($D$5+CQ52,$D$10,$D$13,1,0),Daxn($D$5+CQ52,$D$6-CQ52,$D$10,$D$13,1,0))),0) -> 12.1484881 | CT52: =IF(CQ52<=$D$12,IF($D$8>CQ52,Daxn($D$5+CQ52,$D$8-CQ52,$D$10,0,1,0),0),0) -> 0 | CU52: 12.1484881 | CV52: 60742.44048
B53: 67 | C53: 97 | D53: 1631.61088 | E53: 0.01654524846 | F53: 0.191205781 | G53: 148.731052 | CQ53: 36 | CR53: 97 | CS53: =IF(CQ53<=$D$12,IF($D$8>CQ53,IF($D$2="Whole life",dax($D$5+CQ53,$D$10,$D$13,1,$D$8-CQ53),Daxn($D$5+CQ53,$D$6-CQ53,$D$10,$D$13,1,$D$8-CQ53)),IF($D$2="Whole life",dax($D$5+CQ53,$D$10,$D$13,1,0),Daxn($D$5+CQ53,$D$6-CQ53,$D$10,$D$13,1,0))),0) -> 11.71545657 | CT53: =IF(CQ53<=$D$12,IF($D$8>CQ53,Daxn($D$5+CQ53,$D$8-CQ53,$D$10,0,1,0),0),0) -> 0 | CU53: 11.71545657 | CV53: 58577.28286
B54: 68 | C54: 98 | D54: 1054.518475 | E54: 0.01069327888 | F54: 0.1865422253 | G54: 93.78111338 | CQ54: 37 | CR54: 98 | CS54: =IF(CQ54<=$D$12,IF($D$8>CQ54,IF($D$2="Whole life",dax($D$5+CQ54,$D$10,$D$13,1,$D$8-CQ54),Daxn($D$5+CQ54,$D$6-CQ54,$D$10,$D$13,1,$D$8-CQ54)),IF($D$2="Whole life",dax($D$5+CQ54,$D$10,$D$13,1,0),Daxn($D$5+CQ54,$D$6-CQ54,$D$10,$D$13,1,0))),0) -> 11.29336963 | CT54: =IF(CQ54<=$D$12,IF($D$8>CQ54,Daxn($D$5+CQ54,$D$8-CQ54,$D$10,0,1,0),0),0) -> 0 | CU54: 11.29336963 | CV54: 56466.84813
B55: 69 | C55: 99 | D55: 649.408898 | E55: 0.006585290464 | F55: 0.181992415 | G55: 56.34502308 | CQ55: 38 | CR55: 99 | CS55: =IF(CQ55<=$D$12,IF($D$8>CQ55,IF($D$2="Whole life",dax($D$5+CQ55,$D$10,$D$13,1,$D$8-CQ55),Daxn($D$5+CQ55,$D$6-CQ55,$D$10,$D$13,1,$D$8-CQ55)),IF($D$2="Whole life",dax($D$5+CQ55,$D$10,$D$13,1,0),Daxn($D$5+CQ55,$D$6-CQ55,$D$10,$D$13,1,0))),0) -> 10.87492478 | CT55: =IF(CQ55<=$D$12,IF($D$8>CQ55,Daxn($D$5+CQ55,$D$8-CQ55,$D$10,0,1,0),0),0) -> 0 | CU55: 10.87492478 | CV55: 54374.62392
B56: 70 | C56: 100 | D56: 379.0131238 | E56: 0.003843358965 | F56: 0.1775535756 | G56: 32.08246352 | CQ56: 39 | CR56: 100 | CS56: =IF(CQ56<=$D$12,IF($D$8>CQ56,IF($D$2="Whole life",dax($D$5+CQ56,$D$10,$D$13,1,$D$8-CQ56),Daxn($D$5+CQ56,$D$6-CQ56,$D$10,$D$13,1,$D$8-CQ56)),IF($D$2="Whole life",dax($D$5+CQ56,$D$10,$D$13,1,0),Daxn($D$5+CQ56,$D$6-CQ56,$D$10,$D$13,1,0))),0) -> 10.46044999 | CT56: =IF(CQ56<=$D$12,IF($D$8>CQ56,Daxn($D$5+CQ56,$D$8-CQ56,$D$10,0,1,0),0),0) -> 0 | CU56: 10.46044999 | CV56: 52302.24996
B57: 71 | C57: 101 | D57: 208.3739631 | E57: 0.002113003189 | F57: 0.1732230006 | G57: 17.20810499 | CQ57: 40 | CR57: 101 | CS57: =IF(CQ57<=$D$12,IF($D$8>CQ57,IF($D$2="Whole life",dax($D$5+CQ57,$D$10,$D$13,1,$D$8-CQ57),Daxn($D$5+CQ57,$D$6-CQ57,$D$10,$D$13,1,$D$8-CQ57)),IF($D$2="Whole life",dax($D$5+CQ57,$D$10,$D$13,1,0),Daxn($D$5+CQ57,$D$6-CQ57,$D$10,$D$13,1,0))),0) -> 10.04710869 | CT57: =IF(CQ57<=$D$12,IF($D$8>CQ57,Daxn($D$5+CQ57,$D$8-CQ57,$D$10,0,1,0),0),0) -> 0 | CU57: 10.04710869 | CV57: 50235.54347
B58: 72 | C58: 102 | D58: 107.194643 | E58: 0.001087000598 | F58: 0.1689980493 | G58: 8.636520584 | CQ58: 41 | CR58: 102 | CS58: =IF(CQ58<=$D$12,IF($D$8>CQ58,IF($D$2="Whole life",dax($D$5+CQ58,$D$10,$D$13,1,$D$8-CQ58),Daxn($D$5+CQ58,$D$6-CQ58,$D$10,$D$13,1,$D$8-CQ58)),IF($D$2="Whole life",dax($D$5+CQ58,$D$10,$D$13,1,0),Daxn($D$5+CQ58,$D$6-CQ58,$D$10,$D$13,1,0))),0) -> 9.629106223 | CT58: =IF(CQ58<=$D$12,IF($D$8>CQ58,Daxn($D$5+CQ58,$D$8-CQ58,$D$10,0,1,0),0),0) -> 0 | CU58: 9.629106223 | CV58: 48145.53112
B59: 73 | C59: 103 | D59: 51.21573308 | E59: 0.00051934995 | F59: 0.1648761457 | G59: 4.025735692 | CQ59: 42 | CR59: 103 | CS59: =IF(CQ59<=$D$12,IF($D$8>CQ59,IF($D$2="Whole life",dax($D$5+CQ59,$D$10,$D$13,1,$D$8-CQ59),Daxn($D$5+CQ59,$D$6-CQ59,$D$10,$D$13,1,$D$8-CQ59)),IF($D$2="Whole life",dax($D$5+CQ59,$D$10,$D$13,1,0),Daxn($D$5+CQ59,$D$6-CQ59,$D$10,$D$13,1,0))),0) -> 9.204794908 | CT59: =IF(CQ59<=$D$12,IF($D$8>CQ59,Daxn($D$5+CQ59,$D$8-CQ59,$D$10,0,1,0),0),0) -> 0 | CU59: 9.204794908 | CV59: 46023.97454
B60: 74 | C60: 104 | D60: 22.53880817 | E60: 0.0002285533798 | F60: 0.1608547763 | G60: 1.728418661 | CQ60: 43 | CR60: 104 | CS60: =IF(CQ60<=$D$12,IF($D$8>CQ60,IF($D$2="Whole life",dax($D$5+CQ60,$D$10,$D$13,1,$D$8-CQ60),Daxn($D$5+CQ60,$D$6-CQ60,$D$10,$D$13,1,$D$8-CQ60)),IF($D$2="Whole life",dax($D$5+CQ60,$D$10,$D$13,1,0),Daxn($D$5+CQ60,$D$6-CQ60,$D$10,$D$13,1,0))),0) -> 8.780942642 | CT60: =IF(CQ60<=$D$12,IF($D$8>CQ60,Daxn($D$5+CQ60,$D$8-CQ60,$D$10,0,1,0),0),0) -> 0 | CU60: 8.780942642 | CV60: 43904.71321
B61: 75 | C61: 105 | D61: 9.052067594 | E61: 9.179192738e-05 | F61: 0.1569314891 | G61: 0.6772389413 | CQ61: 44 | CR61: 105 | CS61: =IF(CQ61<=$D$12,IF($D$8>CQ61,IF($D$2="Whole life",dax($D$5+CQ61,$D$10,$D$13,1,$D$8-CQ61),Daxn($D$5+CQ61,$D$6-CQ61,$D$10,$D$13,1,$D$8-CQ61)),IF($D$2="Whole life",dax($D$5+CQ61,$D$10,$D$13,1,0),Daxn($D$5+CQ61,$D$6-CQ61,$D$10,$D$13,1,0))),0) -> 8.351233733 | CT61: =IF(CQ61<=$D$12,IF($D$8>CQ61,Daxn($D$5+CQ61,$D$8-CQ61,$D$10,0,1,0),0),0) -> 0 | CU61: 8.351233733 | CV61: 41756.16867
B62: 76 | C62: 106 | D62: 0 | E62: 0 | F62: 0.1531038918 | G62: 0 | CQ62: 45 | CR62: 106 | CS62: =IF(CQ62<=$D$12,IF($D$8>CQ62,IF($D$2="Whole life",dax($D$5+CQ62,$D$10,$D$13,1,$D$8-CQ62),Daxn($D$5+CQ62,$D$6-CQ62,$D$10,$D$13,1,$D$8-CQ62)),IF($D$2="Whole life",dax($D$5+CQ62,$D$10,$D$13,1,0),Daxn($D$5+CQ62,$D$6-CQ62,$D$10,$D$13,1,0))),0) -> 7.926023175 | CT62: =IF(CQ62<=$D$12,IF($D$8>CQ62,Daxn($D$5+CQ62,$D$8-CQ62,$D$10,0,1,0),0),0) -> 0 | CU62: 7.926023175 | CV62: 39630.11587
B63: 77 | C63: 107 | D63: 0 | E63: 0 | F63: 0 | G63: 0 | CQ63: 46 | CR63: 107 | CS63: =IF(CQ63<=$D$12,IF($D$8>CQ63,IF($D$2="Whole life",dax($D$5+CQ63,$D$10,$D$13,1,$D$8-CQ63),Daxn($D$5+CQ63,$D$6-CQ63,$D$10,$D$13,1,$D$8-CQ63)),IF($D$2="Whole life",dax($D$5+CQ63,$D$10,$D$13,1,0),Daxn($D$5+CQ63,$D$6-CQ63,$D$10,$D$13,1,0))),0) -> 7.513451821 | CT63: =IF(CQ63<=$D$12,IF($D$8>CQ63,Daxn($D$5+CQ63,$D$8-CQ63,$D$10,0,1,0),0),0) -> 0 | CU63: 7.513451821 | CV63: 37567.2591
B64: 78 | C64: 108 | D64: 0 | E64: 0 | F64: 0 | G64: 0 | CQ64: 47 | CR64: 108 | CS64: =IF(CQ64<=$D$12,IF($D$8>CQ64,IF($D$2="Whole life",dax($D$5+CQ64,$D$10,$D$13,1,$D$8-CQ64),Daxn($D$5+CQ64,$D$6-CQ64,$D$10,$D$13,1,$D$8-CQ64)),IF($D$2="Whole life",dax($D$5+CQ64,$D$10,$D$13,1,0),Daxn($D$5+CQ64,$D$6-CQ64,$D$10,$D$13,1,0))),0) -> 7.112349078 | CT64: =IF(CQ64<=$D$12,IF($D$8>CQ64,Daxn($D$5+CQ64,$D$8-CQ64,$D$10,0,1,0),0),0) -> 0 | CU64: 7.112349078 | CV64: 35561.74539
B65: 79 | C65: 109 | D65: 0 | E65: 0 | F65: 0 | G65: 0 | CQ65: 48 | CR65: 109 | CS65: =IF(CQ65<=$D$12,IF($D$8>CQ65,IF($D$2="Whole life",dax($D$5+CQ65,$D$10,$D$13,1,$D$8-CQ65),Daxn($D$5+CQ65,$D$6-CQ65,$D$10,$D$13,1,$D$8-CQ65)),IF($D$2="Whole life",dax($D$5+CQ65,$D$10,$D$13,1,0),Daxn($D$5+CQ65,$D$6-CQ65,$D$10,$D$13,1,0))),0) -> 6.720015451 | CT65: =IF(CQ65<=$D$12,IF($D$8>CQ65,Daxn($D$5+CQ65,$D$8-CQ65,$D$10,0,1,0),0),0) -> 0 | CU65: 6.720015451 | CV65: 33600.07725
B66: 80 | C66: 110 | D66: 0 | E66: 0 | F66: 0 | G66: 0 | CQ66: 49 | CR66: 110 | CS66: =IF(CQ66<=$D$12,IF($D$8>CQ66,IF($D$2="Whole life",dax($D$5+CQ66,$D$10,$D$13,1,$D$8-CQ66),Daxn($D$5+CQ66,$D$6-CQ66,$D$10,$D$13,1,$D$8-CQ66)),IF($D$2="Whole life",dax($D$5+CQ66,$D$10,$D$13,1,0),Daxn($D$5+CQ66,$D$6-CQ66,$D$10,$D$13,1,0))),0) -> 6.339521354 | CT66: =IF(CQ66<=$D$12,IF($D$8>CQ66,Daxn($D$5+CQ66,$D$8-CQ66,$D$10,0,1,0),0),0) -> 0 | CU66: 6.339521354 | CV66: 31697.60677
B67: 81 | C67: 111 | D67: 0 | E67: 0 | F67: 0 | G67: 0 | CQ67: =CQ66+1 -> 50 | CR67: 111 | CS67: =IF(CQ67<=$D$12,IF($D$8>CQ67,IF($D$2="Whole life",dax($D$5+CQ67,$D$10,$D$13,1,$D$8-CQ67),Daxn($D$5+CQ67,$D$6-CQ67,$D$10,$D$13,1,$D$8-CQ67)),IF($D$2="Whole life",dax($D$5+CQ67,$D$10,$D$13,1,0),Daxn($D$5+CQ67,$D$6-CQ67,$D$10,$D$13,1,0))),0) -> 5.966199695 | CT67: =IF(CQ67<=$D$12,IF($D$8>CQ67,Daxn($D$5+CQ67,$D$8-CQ67,$D$10,0,1,0),0),0) -> 0 | CU67: 5.966199695 | CV67: 29830.99847
B68: 82 | C68: 112 | D68: 0 | E68: 0 | F68: 0 | G68: 0 | CQ68: 51 | CR68: 112 | CS68: =IF(CQ68<=$D$12,IF($D$8>CQ68,IF($D$2="Whole life",dax($D$5+CQ68,$D$10,$D$13,1,$D$8-CQ68),Daxn($D$5+CQ68,$D$6-CQ68,$D$10,$D$13,1,$D$8-CQ68)),IF($D$2="Whole life",dax($D$5+CQ68,$D$10,$D$13,1,0),Daxn($D$5+CQ68,$D$6-CQ68,$D$10,$D$13,1,0))),0) -> 5.601564335 | CT68: =IF(CQ68<=$D$12,IF($D$8>CQ68,Daxn($D$5+CQ68,$D$8-CQ68,$D$10,0,1,0),0),0) -> 0 | CU68: 5.601564335 | CV68: 28007.82168
B69: 83 | C69: 113 | D69: 0 | E69: 0 | F69: 0 | G69: 0 | CQ69: 52 | CR69: 113 | CS69: =IF(CQ69<=$D$12,IF($D$8>CQ69,IF($D$2="Whole life",dax($D$5+CQ69,$D$10,$D$13,1,$D$8-CQ69),Daxn($D$5+CQ69,$D$6-CQ69,$D$10,$D$13,1,$D$8-CQ69)),IF($D$2="Whole life",dax($D$5+CQ69,$D$10,$D$13,1,0),Daxn($D$5+CQ69,$D$6-CQ69,$D$10,$D$13,1,0))),0) -> 5.249601686 | CT69: =IF(CQ69<=$D$12,IF($D$8>CQ69,Daxn($D$5+CQ69,$D$8-CQ69,$D$10,0,1,0),0),0) -> 0 | CU69: 5.249601686 | CV69: 26248.00843
B70: 84 | C70: 114 | D70: 0 | E70: 0 | F70: 0 | G70: 0 | CQ70: 53 | CR70: 114 | CS70: =IF(CQ70<=$D$12,IF($D$8>CQ70,IF($D$2="Whole life",dax($D$5+CQ70,$D$10,$D$13,1,$D$8-CQ70),Daxn($D$5+CQ70,$D$6-CQ70,$D$10,$D$13,1,$D$8-CQ70)),IF($D$2="Whole life",dax($D$5+CQ70,$D$10,$D$13,1,0),Daxn($D$5+CQ70,$D$6-CQ70,$D$10,$D$13,1,0))),0) -> 4.908612354 | CT70: =IF(CQ70<=$D$12,IF($D$8>CQ70,Daxn($D$5+CQ70,$D$8-CQ70,$D$10,0,1,0),0),0) -> 0 | CU70: 4.908612354 | CV70: 24543.06177
B71: 85 | C71: 115 | D71: 0 | E71: 0 | F71: 0 | G71: 0 | CQ71: 54 | CR71: 115 | CS71: =IF(CQ71<=$D$12,IF($D$8>CQ71,IF($D$2="Whole life",dax($D$5+CQ71,$D$10,$D$13,1,$D$8-CQ71),Daxn($D$5+CQ71,$D$6-CQ71,$D$10,$D$13,1,$D$8-CQ71)),IF($D$2="Whole life",dax($D$5+CQ71,$D$10,$D$13,1,0),Daxn($D$5+CQ71,$D$6-CQ71,$D$10,$D$13,1,0))),0) -> 4.579180304 | CT71: =IF(CQ71<=$D$12,IF($D$8>CQ71,Daxn($D$5+CQ71,$D$8-CQ71,$D$10,0,1,0),0),0) -> 0 | CU71: 4.579180304 | CV71: 22895.90152
B72: 86 | C72: 116 | D72: 0 | E72: 0 | F72: 0 | G72: 0 | CQ72: 55 | CR72: 116 | CS72: =IF(CQ72<=$D$12,IF($D$8>CQ72,IF($D$2="Whole life",dax($D$5+CQ72,$D$10,$D$13,1,$D$8-CQ72),Daxn($D$5+CQ72,$D$6-CQ72,$D$10,$D$13,1,$D$8-CQ72)),IF($D$2="Whole life",dax($D$5+CQ72,$D$10,$D$13,1,0),Daxn($D$5+CQ72,$D$6-CQ72,$D$10,$D$13,1,0))),0) -> 4.261372876 | CT72: =IF(CQ72<=$D$12,IF($D$8>CQ72,Daxn($D$5+CQ72,$D$8-CQ72,$D$10,0,1,0),0),0) -> 0 | CU72: 4.261372876 | CV72: 21306.86438
B73: 87 | C73: 117 | D73: 0 | E73: 0 | F73: 0 | G73: 0 | CQ73: 56 | CR73: 117 | CS73: =IF(CQ73<=$D$12,IF($D$8>CQ73,IF($D$2="Whole life",dax($D$5+CQ73,$D$10,$D$13,1,$D$8-CQ73),Daxn($D$5+CQ73,$D$6-CQ73,$D$10,$D$13,1,$D$8-CQ73)),IF($D$2="Whole life",dax($D$5+CQ73,$D$10,$D$13,1,0),Daxn($D$5+CQ73,$D$6-CQ73,$D$10,$D$13,1,0))),0) -> 3.955882342 | CT73: =IF(CQ73<=$D$12,IF($D$8>CQ73,Daxn($D$5+CQ73,$D$8-CQ73,$D$10,0,1,0),0),0) -> 0 | CU73: 3.955882342 | CV73: 19779.41171
B74: 88 | C74: 118 | D74: 0 | E74: 0 | F74: 0 | G74: 0 | CQ74: 57 | CR74: 118 | CS74: =IF(CQ74<=$D$12,IF($D$8>CQ74,IF($D$2="Whole life",dax($D$5+CQ74,$D$10,$D$13,1,$D$8-CQ74),Daxn($D$5+CQ74,$D$6-CQ74,$D$10,$D$13,1,$D$8-CQ74)),IF($D$2="Whole life",dax($D$5+CQ74,$D$10,$D$13,1,0),Daxn($D$5+CQ74,$D$6-CQ74,$D$10,$D$13,1,0))),0) -> 3.663000088 | CT74: =IF(CQ74<=$D$12,IF($D$8>CQ74,Daxn($D$5+CQ74,$D$8-CQ74,$D$10,0,1,0),0),0) -> 0 | CU74: 3.663000088 | CV74: 18315.00044
B75: 89 | C75: 119 | D75: 0 | E75: 0 | F75: 0 | G75: 0 | CQ75: 58 | CR75: 119 | CS75: =IF(CQ75<=$D$12,IF($D$8>CQ75,IF($D$2="Whole life",dax($D$5+CQ75,$D$10,$D$13,1,$D$8-CQ75),Daxn($D$5+CQ75,$D$6-CQ75,$D$10,$D$13,1,$D$8-CQ75)),IF($D$2="Whole life",dax($D$5+CQ75,$D$10,$D$13,1,0),Daxn($D$5+CQ75,$D$6-CQ75,$D$10,$D$13,1,0))),0) -> 3.3829486 | CT75: =IF(CQ75<=$D$12,IF($D$8>CQ75,Daxn($D$5+CQ75,$D$8-CQ75,$D$10,0,1,0),0),0) -> 0 | CU75: 3.3829486 | CV75: 16914.743
B76: 90 | C76: 120 | D76: 0 | E76: 0 | F76: 0 | G76: 0 | CQ76: 59 | CR76: 120 | CS76: =IF(CQ76<=$D$12,IF($D$8>CQ76,IF($D$2="Whole life",dax($D$5+CQ76,$D$10,$D$13,1,$D$8-CQ76),Daxn($D$5+CQ76,$D$6-CQ76,$D$10,$D$13,1,$D$8-CQ76)),IF($D$2="Whole life",dax($D$5+CQ76,$D$10,$D$13,1,0),Daxn($D$5+CQ76,$D$6-CQ76,$D$10,$D$13,1,0))),0) -> 3.115880452 | CT76: =IF(CQ76<=$D$12,IF($D$8>CQ76,Daxn($D$5+CQ76,$D$8-CQ76,$D$10,0,1,0),0),0) -> 0 | CU76: 3.115880452 | CV76: 15579.40226
B77: 91 | C77: 121 | D77: 0 | E77: 0 | F77: 0 | G77: 0 | CQ77: 60 | CR77: 121 | CS77: =IF(CQ77<=$D$12,IF($D$8>CQ77,IF($D$2="Whole life",dax($D$5+CQ77,$D$10,$D$13,1,$D$8-CQ77),Daxn($D$5+CQ77,$D$6-CQ77,$D$10,$D$13,1,$D$8-CQ77)),IF($D$2="Whole life",dax($D$5+CQ77,$D$10,$D$13,1,0),Daxn($D$5+CQ77,$D$6-CQ77,$D$10,$D$13,1,0))),0) -> 2.861878118 | CT77: =IF(CQ77<=$D$12,IF($D$8>CQ77,Daxn($D$5+CQ77,$D$8-CQ77,$D$10,0,1,0),0),0) -> 0 | CU77: 2.861878118 | CV77: 14309.39059
B78: 92 | C78: 122 | D78: 0 | E78: 0 | F78: 0 | G78: 0 | CQ78: 61 | CR78: 122 | CS78: =IF(CQ78<=$D$12,IF($D$8>CQ78,IF($D$2="Whole life",dax($D$5+CQ78,$D$10,$D$13,1,$D$8-CQ78),Daxn($D$5+CQ78,$D$6-CQ78,$D$10,$D$13,1,$D$8-CQ78)),IF($D$2="Whole life",dax($D$5+CQ78,$D$10,$D$13,1,0),Daxn($D$5+CQ78,$D$6-CQ78,$D$10,$D$13,1,0))),0) -> 2.620954496 | CT78: =IF(CQ78<=$D$12,IF($D$8>CQ78,Daxn($D$5+CQ78,$D$8-CQ78,$D$10,0,1,0),0),0) -> 0 | CU78: 2.620954496 | CV78: 13104.77248
B79: 93 | C79: 123 | D79: 0 | E79: 0 | F79: 0 | G79: 0 | CQ79: 62 | CR79: 123 | CS79: =IF(CQ79<=$D$12,IF($D$8>CQ79,IF($D$2="Whole life",dax($D$5+CQ79,$D$10,$D$13,1,$D$8-CQ79),Daxn($D$5+CQ79,$D$6-CQ79,$D$10,$D$13,1,$D$8-CQ79)),IF($D$2="Whole life",dax($D$5+CQ79,$D$10,$D$13,1,0),Daxn($D$5+CQ79,$D$6-CQ79,$D$10,$D$13,1,0))),0) -> 2.393053873 | CT79: =IF(CQ79<=$D$12,IF($D$8>CQ79,Daxn($D$5+CQ79,$D$8-CQ79,$D$10,0,1,0),0),0) -> 0 | CU79: 2.393053873 | CV79: 11965.26937
B80: 94 | C80: 124 | D80: 0 | E80: 0 | F80: 0 | G80: 0 | CQ80: 63 | CR80: 124 | CS80: =IF(CQ80<=$D$12,IF($D$8>CQ80,IF($D$2="Whole life",dax($D$5+CQ80,$D$10,$D$13,1,$D$8-CQ80),Daxn($D$5+CQ80,$D$6-CQ80,$D$10,$D$13,1,$D$8-CQ80)),IF($D$2="Whole life",dax($D$5+CQ80,$D$10,$D$13,1,0),Daxn($D$5+CQ80,$D$6-CQ80,$D$10,$D$13,1,0))),0) -> 2.178052864 | CT80: =IF(CQ80<=$D$12,IF($D$8>CQ80,Daxn($D$5+CQ80,$D$8-CQ80,$D$10,0,1,0),0),0) -> 0 | CU80: 2.178052864 | CV80: 10890.26432
B81: 95 | C81: 125 | D81: 0 | E81: 0 | F81: =IF(B81<=$D$12,$D$11^(B81),0) -> 0 | G81: =IF(B81<=$D$12,DDx(C81,$D$10),0) -> 0 | CQ81: 64 | CR81: 125 | CS81: =IF(CQ81<=$D$12,IF($D$8>CQ81,IF($D$2="Whole life",dax($D$5+CQ81,$D$10,$D$13,1,$D$8-CQ81),Daxn($D$5+CQ81,$D$6-CQ81,$D$10,$D$13,1,$D$8-CQ81)),IF($D$2="Whole life",dax($D$5+CQ81,$D$10,$D$13,1,0),Daxn($D$5+CQ81,$D$6-CQ81,$D$10,$D$13,1,0))),0) -> 1.97576039 | CT81: =IF(CQ81<=$D$12,IF($D$8>CQ81,Daxn($D$5+CQ81,$D$8-CQ81,$D$10,0,1,0),0),0) -> 0 | CU81: 1.97576039 | CV81: 9878.801949
B82: 96 | C82: 126 | D82: =IF(B82<=$D$12,lx(C82),0) -> 0 | E82: =D82/lx($D$5) -> 0 | F82: 0 | G82: 0 | CQ82: 65 | CR82: 126 | CS82: =IF(CQ82<=$D$12,IF($D$8>CQ82,IF($D$2="Whole life",dax($D$5+CQ82,$D$10,$D$13,1,$D$8-CQ82),Daxn($D$5+CQ82,$D$6-CQ82,$D$10,$D$13,1,$D$8-CQ82)),IF($D$2="Whole life",dax($D$5+CQ82,$D$10,$D$13,1,0),Daxn($D$5+CQ82,$D$6-CQ82,$D$10,$D$13,1,0))),0) -> 1.785914923 | CT82: =IF(CQ82<=$D$12,IF($D$8>CQ82,Daxn($D$5+CQ82,$D$8-CQ82,$D$10,0,1,0),0),0) -> 0 | CU82: =CS82-$F$8*CT82 -> 1.785914923 | CV82: =CU82*$D$7 -> 8929.574615
B83: =B82+1 -> 97 | C83: =C82+1 -> 127 | D83: 0 | E83: 0 | F83: 0 | G83: 0 | CQ83: =CQ82+1 -> 66 | CR83: 127 | CS83: =IF(CQ83<=$D$12,IF($D$8>CQ83,IF($D$2="Whole life",dax($D$5+CQ83,$D$10,$D$13,1,$D$8-CQ83),Daxn($D$5+CQ83,$D$6-CQ83,$D$10,$D$13,1,$D$8-CQ83)),IF($D$2="Whole life",dax($D$5+CQ83,$D$10,$D$13,1,0),Daxn($D$5+CQ83,$D$6-CQ83,$D$10,$D$13,1,0))),0) -> 1.608175287 | CT83: =IF(CQ83<=$D$12,IF($D$8>CQ83,Daxn($D$5+CQ83,$D$8-CQ83,$D$10,0,1,0),0),0) -> 0 | CU83: 1.608175287 | CV83: 8040.876437
B84: 98 | C84: 128 | D84: 0 | E84: 0 | F84: 0 | G84: 0 | CQ84: 67 | CR84: 128 | CS84: =IF(CQ84<=$D$12,IF($D$8>CQ84,IF($D$2="Whole life",dax($D$5+CQ84,$D$10,$D$13,1,$D$8-CQ84),Daxn($D$5+CQ84,$D$6-CQ84,$D$10,$D$13,1,$D$8-CQ84)),IF($D$2="Whole life",dax($D$5+CQ84,$D$10,$D$13,1,0),Daxn($D$5+CQ84,$D$6-CQ84,$D$10,$D$13,1,0))),0) -> 1.442097101 | CT84: =IF(CQ84<=$D$12,IF($D$8>CQ84,Daxn($D$5+CQ84,$D$8-CQ84,$D$10,0,1,0),0),0) -> 0 | CU84: 1.442097101 | CV84: 7210.485504
B85: 99 | C85: 129 | D85: 0 | E85: 0 | F85: 0 | G85: 0 | CQ85: 68 | CR85: 129 | CS85: =IF(CQ85<=$D$12,IF($D$8>CQ85,IF($D$2="Whole life",dax($D$5+CQ85,$D$10,$D$13,1,$D$8-CQ85),Daxn($D$5+CQ85,$D$6-CQ85,$D$10,$D$13,1,$D$8-CQ85)),IF($D$2="Whole life",dax($D$5+CQ85,$D$10,$D$13,1,0),Daxn($D$5+CQ85,$D$6-CQ85,$D$10,$D$13,1,0))),0) -> 1.287076908 | CT85: =IF(CQ85<=$D$12,IF($D$8>CQ85,Daxn($D$5+CQ85,$D$8-CQ85,$D$10,0,1,0),0),0) -> 0 | CU85: 1.287076908 | CV85: 6435.384542
B86: 100 | C86: 130 | D86: 0 | E86: 0 | F86: 0 | G86: 0 | CQ86: 69 | CR86: 130 | CS86: =IF(CQ86<=$D$12,IF($D$8>CQ86,IF($D$2="Whole life",dax($D$5+CQ86,$D$10,$D$13,1,$D$8-CQ86),Daxn($D$5+CQ86,$D$6-CQ86,$D$10,$D$13,1,$D$8-CQ86)),IF($D$2="Whole life",dax($D$5+CQ86,$D$10,$D$13,1,0),Daxn($D$5+CQ86,$D$6-CQ86,$D$10,$D$13,1,0))),0) -> 1.142221245 | CT86: =IF(CQ86<=$D$12,IF($D$8>CQ86,Daxn($D$5+CQ86,$D$8-CQ86,$D$10,0,1,0),0),0) -> 0 | CU86: 1.142221245 | CV86: 5711.106223
B87: 101 | C87: 131 | D87: 0 | E87: 0 | F87: 0 | G87: 0 | CQ87: 70 | CR87: 131 | CS87: =IF(CQ87<=$D$12,IF($D$8>CQ87,IF($D$2="Whole life",dax($D$5+CQ87,$D$10,$D$13,1,$D$8-CQ87),Daxn($D$5+CQ87,$D$6-CQ87,$D$10,$D$13,1,$D$8-CQ87)),IF($D$2="Whole life",dax($D$5+CQ87,$D$10,$D$13,1,0),Daxn($D$5+CQ87,$D$6-CQ87,$D$10,$D$13,1,0))),0) -> 1.006033058 | CT87: =IF(CQ87<=$D$12,IF($D$8>CQ87,Daxn($D$5+CQ87,$D$8-CQ87,$D$10,0,1,0),0),0) -> 0 | CU87: 1.006033058 | CV87: 5030.165289
B88: 102 | C88: 132 | D88: 0 | E88: 0 | F88: 0 | G88: 0 | CQ88: 71 | CR88: 132 | CS88: =IF(CQ88<=$D$12,IF($D$8>CQ88,IF($D$2="Whole life",dax($D$5+CQ88,$D$10,$D$13,1,$D$8-CQ88),Daxn($D$5+CQ88,$D$6-CQ88,$D$10,$D$13,1,$D$8-CQ88)),IF($D$2="Whole life",dax($D$5+CQ88,$D$10,$D$13,1,0),Daxn($D$5+CQ88,$D$6-CQ88,$D$10,$D$13,1,0))),0) -> 0.8756288903 | CT88: =IF(CQ88<=$D$12,IF($D$8>CQ88,Daxn($D$5+CQ88,$D$8-CQ88,$D$10,0,1,0),0),0) -> 0 | CU88: 0.8756288903 | CV88: 4378.144451
B89: 103 | C89: 133 | D89: 0 | E89: 0 | F89: 0 | G89: 0 | CQ89: 72 | CR89: 133 | CS89: =IF(CQ89<=$D$12,IF($D$8>CQ89,IF($D$2="Whole life",dax($D$5+CQ89,$D$10,$D$13,1,$D$8-CQ89),Daxn($D$5+CQ89,$D$6-CQ89,$D$10,$D$13,1,$D$8-CQ89)),IF($D$2="Whole life",dax($D$5+CQ89,$D$10,$D$13,1,0),Daxn($D$5+CQ89,$D$6-CQ89,$D$10,$D$13,1,0))),0) -> 0.7446741118 | CT89: =IF(CQ89<=$D$12,IF($D$8>CQ89,Daxn($D$5+CQ89,$D$8-CQ89,$D$10,0,1,0),0),0) -> 0 | CU89: 0.7446741118 | CV89: 3723.370559
B90: 104 | C90: 134 | D90: 0 | E90: 0 | F90: 0 | G90: 0 | CQ90: 73 | CR90: 134 | CS90: =IF(CQ90<=$D$12,IF($D$8>CQ90,IF($D$2="Whole life",dax($D$5+CQ90,$D$10,$D$13,1,$D$8-CQ90),Daxn($D$5+CQ90,$D$6-CQ90,$D$10,$D$13,1,$D$8-CQ90)),IF($D$2="Whole life",dax($D$5+CQ90,$D$10,$D$13,1,0),Daxn($D$5+CQ90,$D$6-CQ90,$D$10,$D$13,1,0))),0) -> 0.5975696833 | CT90: =IF(CQ90<=$D$12,IF($D$8>CQ90,Daxn($D$5+CQ90,$D$8-CQ90,$D$10,0,1,0),0),0) -> 0 | CU90: 0.5975696833 | CV90: 2987.848416
B91: 105 | C91: 135 | D91: 0 | E91: 0 | F91: 0 | G91: 0 | CQ91: 74 | CR91: 135 | CS91: =IF(CQ91<=$D$12,IF($D$8>CQ91,IF($D$2="Whole life",dax($D$5+CQ91,$D$10,$D$13,1,$D$8-CQ91),Daxn($D$5+CQ91,$D$6-CQ91,$D$10,$D$13,1,$D$8-CQ91)),IF($D$2="Whole life",dax($D$5+CQ91,$D$10,$D$13,1,0),Daxn($D$5+CQ91,$D$6-CQ91,$D$10,$D$13,1,0))),0) -> 0.3918257518 | CT91: =IF(CQ91<=$D$12,IF($D$8>CQ91,Daxn($D$5+CQ91,$D$8-CQ91,$D$10,0,1,0),0),0) -> 0 | CU91: 0.3918257518 | CV91: 1959.128759
B92: 106 | C92: 136 | D92: 0 | E92: 0 | F92: 0 | G92: 0 | CQ92: 75 | CR92: 136 | CS92: =IF(CQ92<=$D$12,IF($D$8>CQ92,IF($D$2="Whole life",dax($D$5+CQ92,$D$10,$D$13,1,$D$8-CQ92),Daxn($D$5+CQ92,$D$6-CQ92,$D$10,$D$13,1,$D$8-CQ92)),IF($D$2="Whole life",dax($D$5+CQ92,$D$10,$D$13,1,0),Daxn($D$5+CQ92,$D$6-CQ92,$D$10,$D$13,1,0))),0) -> 0 | CT92: =IF(CQ92<=$D$12,IF($D$8>CQ92,Daxn($D$5+CQ92,$D$8-CQ92,$D$10,0,1,0),0),0) -> 0 | CU92: 0 | CV92: 0
B93: 107 | C93: 137 | D93: 0 | E93: 0 | F93: 0 | G93: 0 | CQ93: 76 | CR93: 137 | CS93: =IF(CQ93<=$D$12,IF($D$8>CQ93,IF($D$2="Whole life",dax($D$5+CQ93,$D$10,$D$13,1,$D$8-CQ93),Daxn($D$5+CQ93,$D$6-CQ93,$D$10,$D$13,1,$D$8-CQ93)),IF($D$2="Whole life",dax($D$5+CQ93,$D$10,$D$13,1,0),Daxn($D$5+CQ93,$D$6-CQ93,$D$10,$D$13,1,0))),0) ->  | CT93: =IF(CQ93<=$D$12,IF($D$8>CQ93,Daxn($D$5+CQ93,$D$8-CQ93,$D$10,0,1,0),0),0) -> 0
B94: 108 | C94: 138 | D94: 0 | E94: 0 | F94: 0 | G94: 0 | CQ94: 77 | CR94: 138 | CS94: =IF(CQ94<=$D$12,IF($D$8>CQ94,IF($D$2="Whole life",dax($D$5+CQ94,$D$10,$D$13,1,$D$8-CQ94),Daxn($D$5+CQ94,$D$6-CQ94,$D$10,$D$13,1,$D$8-CQ94)),IF($D$2="Whole life",dax($D$5+CQ94,$D$10,$D$13,1,0),Daxn($D$5+CQ94,$D$6-CQ94,$D$10,$D$13,1,0))),0) -> 0 | CT94: =IF(CQ94<=$D$12,IF($D$8>CQ94,Daxn($D$5+CQ94,$D$8-CQ94,$D$10,0,1,0),0),0) -> 0 | CU94: 0 | CV94: 0
B95: 109 | C95: 139 | D95: 0 | E95: 0 | F95: 0 | G95: 0 | CQ95: 78 | CR95: 139 | CS95: =IF(CQ95<=$D$12,IF($D$8>CQ95,IF($D$2="Whole life",dax($D$5+CQ95,$D$10,$D$13,1,$D$8-CQ95),Daxn($D$5+CQ95,$D$6-CQ95,$D$10,$D$13,1,$D$8-CQ95)),IF($D$2="Whole life",dax($D$5+CQ95,$D$10,$D$13,1,0),Daxn($D$5+CQ95,$D$6-CQ95,$D$10,$D$13,1,0))),0) -> 0 | CT95: =IF(CQ95<=$D$12,IF($D$8>CQ95,Daxn($D$5+CQ95,$D$8-CQ95,$D$10,0,1,0),0),0) -> 0 | CU95: 0 | CV95: 0
B96: 110 | C96: 140 | D96: 0 | E96: 0 | F96: 0 | G96: 0 | CQ96: 79 | CR96: 140 | CS96: =IF(CQ96<=$D$12,IF($D$8>CQ96,IF($D$2="Whole life",dax($D$5+CQ96,$D$10,$D$13,1,$D$8-CQ96),Daxn($D$5+CQ96,$D$6-CQ96,$D$10,$D$13,1,$D$8-CQ96)),IF($D$2="Whole life",dax($D$5+CQ96,$D$10,$D$13,1,0),Daxn($D$5+CQ96,$D$6-CQ96,$D$10,$D$13,1,0))),0) -> 0 | CT96: =IF(CQ96<=$D$12,IF($D$8>CQ96,Daxn($D$5+CQ96,$D$8-CQ96,$D$10,0,1,0),0),0) -> 0 | CU96: 0 | CV96: 0
B97: 111 | C97: 141 | D97: 0 | E97: 0 | F97: 0 | G97: 0 | CQ97: 80 | CR97: 141 | CS97: =IF(CQ97<=$D$12,IF($D$8>CQ97,IF($D$2="Whole life",dax($D$5+CQ97,$D$10,$D$13,1,$D$8-CQ97),Daxn($D$5+CQ97,$D$6-CQ97,$D$10,$D$13,1,$D$8-CQ97)),IF($D$2="Whole life",dax($D$5+CQ97,$D$10,$D$13,1,0),Daxn($D$5+CQ97,$D$6-CQ97,$D$10,$D$13,1,0))),0) -> 0 | CT97: =IF(CQ97<=$D$12,IF($D$8>CQ97,Daxn($D$5+CQ97,$D$8-CQ97,$D$10,0,1,0),0),0) -> 0 | CU97: 0 | CV97: 0
B98: 112 | C98: 142 | D98: 0 | E98: 0 | F98: 0 | G98: 0 | CQ98: 81 | CR98: 142 | CS98: =IF(CQ98<=$D$12,IF($D$8>CQ98,IF($D$2="Whole life",dax($D$5+CQ98,$D$10,$D$13,1,$D$8-CQ98),Daxn($D$5+CQ98,$D$6-CQ98,$D$10,$D$13,1,$D$8-CQ98)),IF($D$2="Whole life",dax($D$5+CQ98,$D$10,$D$13,1,0),Daxn($D$5+CQ98,$D$6-CQ98,$D$10,$D$13,1,0))),0) -> 0 | CT98: =IF(CQ98<=$D$12,IF($D$8>CQ98,Daxn($D$5+CQ98,$D$8-CQ98,$D$10,0,1,0),0),0) -> 0 | CU98: 0 | CV98: 0
B99: 113 | C99: 143 | D99: 0 | E99: 0 | F99: 0 | G99: 0 | CQ99: =CQ98+1 -> 82 | CR99: 143 | CS99: =IF(CQ99<=$D$12,IF($D$8>CQ99,IF($D$2="Whole life",dax($D$5+CQ99,$D$10,$D$13,1,$D$8-CQ99),Daxn($D$5+CQ99,$D$6-CQ99,$D$10,$D$13,1,$D$8-CQ99)),IF($D$2="Whole life",dax($D$5+CQ99,$D$10,$D$13,1,0),Daxn($D$5+CQ99,$D$6-CQ99,$D$10,$D$13,1,0))),0) -> 0 | CT99: =IF(CQ99<=$D$12,IF($D$8>CQ99,Daxn($D$5+CQ99,$D$8-CQ99,$D$10,0,1,0),0),0) -> 0 | CU99: 0 | CV99: 0
B100: 114 | C100: 144 | D100: 0 | E100: 0 | F100: 0 | G100: 0 | CQ100: 83 | CR100: 144 | CS100: =IF(CQ100<=$D$12,IF($D$8>CQ100,IF($D$2="Whole life",dax($D$5+CQ100,$D$10,$D$13,1,$D$8-CQ100),Daxn($D$5+CQ100,$D$6-CQ100,$D$10,$D$13,1,$D$8-CQ100)),IF($D$2="Whole life",dax($D$5+CQ100,$D$10,$D$13,1,0),Daxn($D$5+CQ100,$D$6-CQ100,$D$10,$D$13,1,0))),0) -> 0 | CT100: =IF(CQ100<=$D$12,IF($D$8>CQ100,Daxn($D$5+CQ100,$D$8-CQ100,$D$10,0,1,0),0),0) -> 0 | CU100: 0 | CV100: 0
B101: 115 | C101: 145 | D101: 0 | E101: 0 | F101: 0 | G101: 0 | CQ101: 84 | CR101: 145 | CS101: =IF(CQ101<=$D$12,IF($D$8>CQ101,IF($D$2="Whole life",dax($D$5+CQ101,$D$10,$D$13,1,$D$8-CQ101),Daxn($D$5+CQ101,$D$6-CQ101,$D$10,$D$13,1,$D$8-CQ101)),IF($D$2="Whole life",dax($D$5+CQ101,$D$10,$D$13,1,0),Daxn($D$5+CQ101,$D$6-CQ101,$D$10,$D$13,1,0))),0) -> 0 | CT101: =IF(CQ101<=$D$12,IF($D$8>CQ101,Daxn($D$5+CQ101,$D$8-CQ101,$D$10,0,1,0),0),0) -> 0 | CU101: 0 | CV101: 0
B102: 116 | C102: 146 | D102: 0 | E102: 0 | F102: 0 | G102: 0 | CQ102: 85 | CR102: 146 | CS102: =IF(CQ102<=$D$12,IF($D$8>CQ102,IF($D$2="Whole life",dax($D$5+CQ102,$D$10,$D$13,1,$D$8-CQ102),Daxn($D$5+CQ102,$D$6-CQ102,$D$10,$D$13,1,$D$8-CQ102)),IF($D$2="Whole life",dax($D$5+CQ102,$D$10,$D$13,1,0),Daxn($D$5+CQ102,$D$6-CQ102,$D$10,$D$13,1,0))),0) -> 0 | CT102: =IF(CQ102<=$D$12,IF($D$8>CQ102,Daxn($D$5+CQ102,$D$8-CQ102,$D$10,0,1,0),0),0) -> 0 | CU102: 0 | CV102: 0
B103: 117 | C103: 147 | D103: 0 | E103: 0 | F103: 0 | G103: 0 | CQ103: 86 | CR103: 147 | CS103: =IF(CQ103<=$D$12,IF($D$8>CQ103,IF($D$2="Whole life",dax($D$5+CQ103,$D$10,$D$13,1,$D$8-CQ103),Daxn($D$5+CQ103,$D$6-CQ103,$D$10,$D$13,1,$D$8-CQ103)),IF($D$2="Whole life",dax($D$5+CQ103,$D$10,$D$13,1,0),Daxn($D$5+CQ103,$D$6-CQ103,$D$10,$D$13,1,0))),0) -> 0 | CT103: =IF(CQ103<=$D$12,IF($D$8>CQ103,Daxn($D$5+CQ103,$D$8-CQ103,$D$10,0,1,0),0),0) -> 0 | CU103: 0 | CV103: 0
B104: 118 | C104: 148 | D104: 0 | E104: 0 | F104: 0 | G104: 0 | CQ104: 87 | CR104: 148 | CS104: =IF(CQ104<=$D$12,IF($D$8>CQ104,IF($D$2="Whole life",dax($D$5+CQ104,$D$10,$D$13,1,$D$8-CQ104),Daxn($D$5+CQ104,$D$6-CQ104,$D$10,$D$13,1,$D$8-CQ104)),IF($D$2="Whole life",dax($D$5+CQ104,$D$10,$D$13,1,0),Daxn($D$5+CQ104,$D$6-CQ104,$D$10,$D$13,1,0))),0) -> 0 | CT104: =IF(CQ104<=$D$12,IF($D$8>CQ104,Daxn($D$5+CQ104,$D$8-CQ104,$D$10,0,1,0),0),0) -> 0 | CU104: 0 | CV104: 0
B105: 119 | C105: 149 | D105: 0 | E105: 0 | F105: 0 | G105: 0 | CQ105: 88 | CR105: 149 | CS105: =IF(CQ105<=$D$12,IF($D$8>CQ105,IF($D$2="Whole life",dax($D$5+CQ105,$D$10,$D$13,1,$D$8-CQ105),Daxn($D$5+CQ105,$D$6-CQ105,$D$10,$D$13,1,$D$8-CQ105)),IF($D$2="Whole life",dax($D$5+CQ105,$D$10,$D$13,1,0),Daxn($D$5+CQ105,$D$6-CQ105,$D$10,$D$13,1,0))),0) -> 0 | CT105: =IF(CQ105<=$D$12,IF($D$8>CQ105,Daxn($D$5+CQ105,$D$8-CQ105,$D$10,0,1,0),0),0) -> 0 | CU105: 0 | CV105: 0
B106: 120 | C106: 150 | D106: 0 | E106: 0 | F106: 0 | G106: 0 | CQ106: 89 | CR106: 150 | CS106: =IF(CQ106<=$D$12,IF($D$8>CQ106,IF($D$2="Whole life",dax($D$5+CQ106,$D$10,$D$13,1,$D$8-CQ106),Daxn($D$5+CQ106,$D$6-CQ106,$D$10,$D$13,1,$D$8-CQ106)),IF($D$2="Whole life",dax($D$5+CQ106,$D$10,$D$13,1,0),Daxn($D$5+CQ106,$D$6-CQ106,$D$10,$D$13,1,0))),0) -> 0 | CT106: =IF(CQ106<=$D$12,IF($D$8>CQ106,Daxn($D$5+CQ106,$D$8-CQ106,$D$10,0,1,0),0),0) -> 0 | CU106: 0 | CV106: 0
B107: 121 | C107: 151 | D107: 0 | E107: 0 | F107: 0 | G107: 0 | CQ107: 90 | CR107: 151 | CS107: =IF(CQ107<=$D$12,IF($D$8>CQ107,IF($D$2="Whole life",dax($D$5+CQ107,$D$10,$D$13,1,$D$8-CQ107),Daxn($D$5+CQ107,$D$6-CQ107,$D$10,$D$13,1,$D$8-CQ107)),IF($D$2="Whole life",dax($D$5+CQ107,$D$10,$D$13,1,0),Daxn($D$5+CQ107,$D$6-CQ107,$D$10,$D$13,1,0))),0) -> 0 | CT107: =IF(CQ107<=$D$12,IF($D$8>CQ107,Daxn($D$5+CQ107,$D$8-CQ107,$D$10,0,1,0),0),0) -> 0 | CU107: 0 | CV107: 0
B108: 122 | C108: 152 | D108: 0 | E108: 0 | F108: 0 | G108: 0 | CQ108: 91 | CR108: 152 | CS108: =IF(CQ108<=$D$12,IF($D$8>CQ108,IF($D$2="Whole life",dax($D$5+CQ108,$D$10,$D$13,1,$D$8-CQ108),Daxn($D$5+CQ108,$D$6-CQ108,$D$10,$D$13,1,$D$8-CQ108)),IF($D$2="Whole life",dax($D$5+CQ108,$D$10,$D$13,1,0),Daxn($D$5+CQ108,$D$6-CQ108,$D$10,$D$13,1,0))),0) -> 0 | CT108: =IF(CQ108<=$D$12,IF($D$8>CQ108,Daxn($D$5+CQ108,$D$8-CQ108,$D$10,0,1,0),0),0) -> 0 | CU108: 0 | CV108: 0
B109: 123 | C109: 153 | D109: 0 | E109: 0 | F109: 0 | G109: 0 | CQ109: 92 | CR109: 153 | CS109: =IF(CQ109<=$D$12,IF($D$8>CQ109,IF($D$2="Whole life",dax($D$5+CQ109,$D$10,$D$13,1,$D$8-CQ109),Daxn($D$5+CQ109,$D$6-CQ109,$D$10,$D$13,1,$D$8-CQ109)),IF($D$2="Whole life",dax($D$5+CQ109,$D$10,$D$13,1,0),Daxn($D$5+CQ109,$D$6-CQ109,$D$10,$D$13,1,0))),0) -> 0 | CT109: =IF(CQ109<=$D$12,IF($D$8>CQ109,Daxn($D$5+CQ109,$D$8-CQ109,$D$10,0,1,0),0),0) -> 0 | CU109: 0 | CV109: 0
B110: 124 | C110: 154 | D110: 0 | E110: 0 | F110: 0 | G110: 0 | CQ110: 93 | CR110: 154 | CS110: =IF(CQ110<=$D$12,IF($D$8>CQ110,IF($D$2="Whole life",dax($D$5+CQ110,$D$10,$D$13,1,$D$8-CQ110),Daxn($D$5+CQ110,$D$6-CQ110,$D$10,$D$13,1,$D$8-CQ110)),IF($D$2="Whole life",dax($D$5+CQ110,$D$10,$D$13,1,0),Daxn($D$5+CQ110,$D$6-CQ110,$D$10,$D$13,1,0))),0) -> 0 | CT110: =IF(CQ110<=$D$12,IF($D$8>CQ110,Daxn($D$5+CQ110,$D$8-CQ110,$D$10,0,1,0),0),0) -> 0 | CU110: 0 | CV110: 0
B111: 125 | C111: 155 | D111: 0 | E111: 0 | F111: 0 | G111: 0 | CQ111: 94 | CR111: 155 | CS111: =IF(CQ111<=$D$12,IF($D$8>CQ111,IF($D$2="Whole life",dax($D$5+CQ111,$D$10,$D$13,1,$D$8-CQ111),Daxn($D$5+CQ111,$D$6-CQ111,$D$10,$D$13,1,$D$8-CQ111)),IF($D$2="Whole life",dax($D$5+CQ111,$D$10,$D$13,1,0),Daxn($D$5+CQ111,$D$6-CQ111,$D$10,$D$13,1,0))),0) -> 0 | CT111: =IF(CQ111<=$D$12,IF($D$8>CQ111,Daxn($D$5+CQ111,$D$8-CQ111,$D$10,0,1,0),0),0) -> 0 | CU111: 0 | CV111: 0
B112: 126 | C112: 156 | D112: 0 | E112: 0 | F112: 0 | G112: 0 | CQ112: 95 | CR112: 156 | CS112: =IF(CQ112<=$D$12,IF($D$8>CQ112,IF($D$2="Whole life",dax($D$5+CQ112,$D$10,$D$13,1,$D$8-CQ112),Daxn($D$5+CQ112,$D$6-CQ112,$D$10,$D$13,1,$D$8-CQ112)),IF($D$2="Whole life",dax($D$5+CQ112,$D$10,$D$13,1,0),Daxn($D$5+CQ112,$D$6-CQ112,$D$10,$D$13,1,0))),0) -> 0 | CT112: =IF(CQ112<=$D$12,IF($D$8>CQ112,Daxn($D$5+CQ112,$D$8-CQ112,$D$10,0,1,0),0),0) -> 0 | CU112: 0 | CV112: 0
B113: 127 | C113: 157 | D113: 0 | E113: 0 | F113: =IF(B113<=$D$12,$D$11^(B113),0) -> 0 | G113: =IF(B113<=$D$12,DDx(C113,$D$10),0) -> 0 | CQ113: 96 | CR113: 157 | CS113: =IF(CQ113<=$D$12,IF($D$8>CQ113,IF($D$2="Whole life",dax($D$5+CQ113,$D$10,$D$13,1,$D$8-CQ113),Daxn($D$5+CQ113,$D$6-CQ113,$D$10,$D$13,1,$D$8-CQ113)),IF($D$2="Whole life",dax($D$5+CQ113,$D$10,$D$13,1,0),Daxn($D$5+CQ113,$D$6-CQ113,$D$10,$D$13,1,0))),0) -> 0 | CT113: =IF(CQ113<=$D$12,IF($D$8>CQ113,Daxn($D$5+CQ113,$D$8-CQ113,$D$10,0,1,0),0),0) -> 0 | CU113: 0 | CV113: 0
B114: 128 | C114: 158 | D114: 0 | E114: 0 | F114: 0 | G114: 0 | CQ114: 97 | CR114: 158 | CS114: =IF(CQ114<=$D$12,IF($D$8>CQ114,IF($D$2="Whole life",dax($D$5+CQ114,$D$10,$D$13,1,$D$8-CQ114),Daxn($D$5+CQ114,$D$6-CQ114,$D$10,$D$13,1,$D$8-CQ114)),IF($D$2="Whole life",dax($D$5+CQ114,$D$10,$D$13,1,0),Daxn($D$5+CQ114,$D$6-CQ114,$D$10,$D$13,1,0))),0) -> 0 | CT114: =IF(CQ114<=$D$12,IF($D$8>CQ114,Daxn($D$5+CQ114,$D$8-CQ114,$D$10,0,1,0),0),0) -> 0 | CU114: 0 | CV114: 0
B115: 129 | C115: 159 | D115: 0 | E115: 0 | F115: 0 | G115: 0 | CQ115: =CQ114+1 -> 98 | CR115: 159 | CS115: =IF(CQ115<=$D$12,IF($D$8>CQ115,IF($D$2="Whole life",dax($D$5+CQ115,$D$10,$D$13,1,$D$8-CQ115),Daxn($D$5+CQ115,$D$6-CQ115,$D$10,$D$13,1,$D$8-CQ115)),IF($D$2="Whole life",dax($D$5+CQ115,$D$10,$D$13,1,0),Daxn($D$5+CQ115,$D$6-CQ115,$D$10,$D$13,1,0))),0) -> 0 | CT115: =IF(CQ115<=$D$12,IF($D$8>CQ115,Daxn($D$5+CQ115,$D$8-CQ115,$D$10,0,1,0),0),0) -> 0 | CU115: 0 | CV115: 0
B116: 130 | C116: 160 | D116: 0 | E116: 0 | F116: 0 | G116: 0 | CQ116: 99 | CR116: 160 | CS116: =IF(CQ116<=$D$12,IF($D$8>CQ116,IF($D$2="Whole life",dax($D$5+CQ116,$D$10,$D$13,1,$D$8-CQ116),Daxn($D$5+CQ116,$D$6-CQ116,$D$10,$D$13,1,$D$8-CQ116)),IF($D$2="Whole life",dax($D$5+CQ116,$D$10,$D$13,1,0),Daxn($D$5+CQ116,$D$6-CQ116,$D$10,$D$13,1,0))),0) -> 0 | CT116: =IF(CQ116<=$D$12,IF($D$8>CQ116,Daxn($D$5+CQ116,$D$8-CQ116,$D$10,0,1,0),0),0) -> 0 | CU116: 0 | CV116: 0
B117: 131 | C117: 161 | D117: 0 | E117: 0 | F117: 0 | G117: 0 | CQ117: 100 | CR117: 161 | CS117: =IF(CQ117<=$D$12,IF($D$8>CQ117,IF($D$2="Whole life",dax($D$5+CQ117,$D$10,$D$13,1,$D$8-CQ117),Daxn($D$5+CQ117,$D$6-CQ117,$D$10,$D$13,1,$D$8-CQ117)),IF($D$2="Whole life",dax($D$5+CQ117,$D$10,$D$13,1,0),Daxn($D$5+CQ117,$D$6-CQ117,$D$10,$D$13,1,0))),0) -> 0 | CT117: =IF(CQ117<=$D$12,IF($D$8>CQ117,Daxn($D$5+CQ117,$D$8-CQ117,$D$10,0,1,0),0),0) -> 0 | CU117: 0 | CV117: 0
B118: 132 | C118: 162 | D118: 0 | E118: 0 | F118: 0 | G118: 0 | CQ118: 101 | CR118: 162 | CS118: =IF(CQ118<=$D$12,IF($D$8>CQ118,IF($D$2="Whole life",dax($D$5+CQ118,$D$10,$D$13,1,$D$8-CQ118),Daxn($D$5+CQ118,$D$6-CQ118,$D$10,$D$13,1,$D$8-CQ118)),IF($D$2="Whole life",dax($D$5+CQ118,$D$10,$D$13,1,0),Daxn($D$5+CQ118,$D$6-CQ118,$D$10,$D$13,1,0))),0) -> 0 | CT118: =IF(CQ118<=$D$12,IF($D$8>CQ118,Daxn($D$5+CQ118,$D$8-CQ118,$D$10,0,1,0),0),0) -> 0 | CU118: 0 | CV118: 0
B119: 133 | C119: 163 | D119: 0 | E119: 0 | F119: 0 | G119: 0 | CQ119: 102 | CR119: 163 | CS119: =IF(CQ119<=$D$12,IF($D$8>CQ119,IF($D$2="Whole life",dax($D$5+CQ119,$D$10,$D$13,1,$D$8-CQ119),Daxn($D$5+CQ119,$D$6-CQ119,$D$10,$D$13,1,$D$8-CQ119)),IF($D$2="Whole life",dax($D$5+CQ119,$D$10,$D$13,1,0),Daxn($D$5+CQ119,$D$6-CQ119,$D$10,$D$13,1,0))),0) -> 0 | CT119: =IF(CQ119<=$D$12,IF($D$8>CQ119,Daxn($D$5+CQ119,$D$8-CQ119,$D$10,0,1,0),0),0) -> 0 | CU119: 0 | CV119: 0
B120: 134 | C120: 164 | D120: 0 | E120: 0 | F120: 0 | G120: 0 | CQ120: 103 | CR120: 164 | CS120: =IF(CQ120<=$D$12,IF($D$8>CQ120,IF($D$2="Whole life",dax($D$5+CQ120,$D$10,$D$13,1,$D$8-CQ120),Daxn($D$5+CQ120,$D$6-CQ120,$D$10,$D$13,1,$D$8-CQ120)),IF($D$2="Whole life",dax($D$5+CQ120,$D$10,$D$13,1,0),Daxn($D$5+CQ120,$D$6-CQ120,$D$10,$D$13,1,0))),0) -> 0 | CT120: =IF(CQ120<=$D$12,IF($D$8>CQ120,Daxn($D$5+CQ120,$D$8-CQ120,$D$10,0,1,0),0),0) -> 0 | CU120: 0 | CV120: 0
B121: 135 | C121: 165 | D121: 0 | E121: 0 | F121: 0 | G121: 0 | CQ121: 104 | CR121: 165 | CS121: =IF(CQ121<=$D$12,IF($D$8>CQ121,IF($D$2="Whole life",dax($D$5+CQ121,$D$10,$D$13,1,$D$8-CQ121),Daxn($D$5+CQ121,$D$6-CQ121,$D$10,$D$13,1,$D$8-CQ121)),IF($D$2="Whole life",dax($D$5+CQ121,$D$10,$D$13,1,0),Daxn($D$5+CQ121,$D$6-CQ121,$D$10,$D$13,1,0))),0) -> 0 | CT121: =IF(CQ121<=$D$12,IF($D$8>CQ121,Daxn($D$5+CQ121,$D$8-CQ121,$D$10,0,1,0),0),0) -> 0 | CU121: 0 | CV121: 0
B122: 136 | C122: 166 | D122: 0 | E122: 0 | F122: 0 | G122: 0 | CQ122: 105 | CR122: 166 | CS122: =IF(CQ122<=$D$12,IF($D$8>CQ122,IF($D$2="Whole life",dax($D$5+CQ122,$D$10,$D$13,1,$D$8-CQ122),Daxn($D$5+CQ122,$D$6-CQ122,$D$10,$D$13,1,$D$8-CQ122)),IF($D$2="Whole life",dax($D$5+CQ122,$D$10,$D$13,1,0),Daxn($D$5+CQ122,$D$6-CQ122,$D$10,$D$13,1,0))),0) -> 0 | CT122: =IF(CQ122<=$D$12,IF($D$8>CQ122,Daxn($D$5+CQ122,$D$8-CQ122,$D$10,0,1,0),0),0) -> 0 | CU122: 0 | CV122: 0
B123: 137 | C123: 167 | D123: 0 | E123: 0 | F123: 0 | G123: 0 | CQ123: 106 | CR123: 167 | CS123: =IF(CQ123<=$D$12,IF($D$8>CQ123,IF($D$2="Whole life",dax($D$5+CQ123,$D$10,$D$13,1,$D$8-CQ123),Daxn($D$5+CQ123,$D$6-CQ123,$D$10,$D$13,1,$D$8-CQ123)),IF($D$2="Whole life",dax($D$5+CQ123,$D$10,$D$13,1,0),Daxn($D$5+CQ123,$D$6-CQ123,$D$10,$D$13,1,0))),0) -> 0 | CT123: =IF(CQ123<=$D$12,IF($D$8>CQ123,Daxn($D$5+CQ123,$D$8-CQ123,$D$10,0,1,0),0),0) -> 0 | CU123: 0 | CV123: 0
B124: 138 | C124: 168 | D124: 0 | E124: 0 | F124: 0 | G124: 0 | CQ124: 107 | CR124: 168 | CS124: =IF(CQ124<=$D$12,IF($D$8>CQ124,IF($D$2="Whole life",dax($D$5+CQ124,$D$10,$D$13,1,$D$8-CQ124),Daxn($D$5+CQ124,$D$6-CQ124,$D$10,$D$13,1,$D$8-CQ124)),IF($D$2="Whole life",dax($D$5+CQ124,$D$10,$D$13,1,0),Daxn($D$5+CQ124,$D$6-CQ124,$D$10,$D$13,1,0))),0) -> 0 | CT124: =IF(CQ124<=$D$12,IF($D$8>CQ124,Daxn($D$5+CQ124,$D$8-CQ124,$D$10,0,1,0),0),0) -> 0 | CU124: 0 | CV124: 0
B125: 139 | C125: 169 | D125: 0 | E125: 0 | F125: 0 | G125: 0 | CQ125: 108 | CR125: 169 | CS125: =IF(CQ125<=$D$12,IF($D$8>CQ125,IF($D$2="Whole life",dax($D$5+CQ125,$D$10,$D$13,1,$D$8-CQ125),Daxn($D$5+CQ125,$D$6-CQ125,$D$10,$D$13,1,$D$8-CQ125)),IF($D$2="Whole life",dax($D$5+CQ125,$D$10,$D$13,1,0),Daxn($D$5+CQ125,$D$6-CQ125,$D$10,$D$13,1,0))),0) -> 0 | CT125: =IF(CQ125<=$D$12,IF($D$8>CQ125,Daxn($D$5+CQ125,$D$8-CQ125,$D$10,0,1,0),0),0) -> 0 | CU125: 0 | CV125: 0
B126: 140 | C126: 170 | D126: 0 | E126: 0 | F126: 0 | G126: 0 | CQ126: 109 | CR126: 170 | CS126: =IF(CQ126<=$D$12,IF($D$8>CQ126,IF($D$2="Whole life",dax($D$5+CQ126,$D$10,$D$13,1,$D$8-CQ126),Daxn($D$5+CQ126,$D$6-CQ126,$D$10,$D$13,1,$D$8-CQ126)),IF($D$2="Whole life",dax($D$5+CQ126,$D$10,$D$13,1,0),Daxn($D$5+CQ126,$D$6-CQ126,$D$10,$D$13,1,0))),0) -> 0 | CT126: =IF(CQ126<=$D$12,IF($D$8>CQ126,Daxn($D$5+CQ126,$D$8-CQ126,$D$10,0,1,0),0),0) -> 0 | CU126: 0 | CV126: 0
B127: 141 | C127: 171 | D127: 0 | E127: 0 | F127: 0 | G127: 0 | CQ127: 110 | CR127: 171 | CS127: =IF(CQ127<=$D$12,IF($D$8>CQ127,IF($D$2="Whole life",dax($D$5+CQ127,$D$10,$D$13,1,$D$8-CQ127),Daxn($D$5+CQ127,$D$6-CQ127,$D$10,$D$13,1,$D$8-CQ127)),IF($D$2="Whole life",dax($D$5+CQ127,$D$10,$D$13,1,0),Daxn($D$5+CQ127,$D$6-CQ127,$D$10,$D$13,1,0))),0) -> 0 | CT127: =IF(CQ127<=$D$12,IF($D$8>CQ127,Daxn($D$5+CQ127,$D$8-CQ127,$D$10,0,1,0),0),0) -> 0 | CU127: 0 | CV127: 0

Sheet REGULAR-NETTO
B2: Contract | D2: Endowment
H4: Frequency of premium (m) | J4: monthly | K4: m = | L4: =IF(J4="Anually",1,IF(J4="Semianually",2,IF(J4="Quarterly",4,12))) -> 12
B5: Age (X) | D5: 50 | E5: nPx | F5: =IF(D2="Whole life",regular_Whole_life(D5,D10),IF(D2="Term insurance",regular_Term_insurance(D5,D6,D10),IF(D2="Endowment",regular_Endowment(D5,D6,D10,D7,D8),regular_Pure_Endowment(D5,D6,D10)))) -> 0.04250137323 | H5: Px(m) | I5: = | J5: Regular netto premium
B6: Policy period (N) | D6: 30 | E6: Regular netto premium | F6: =IF($D$2="Pure endowment",F5*D8,F5*D7) -> 42501.37323 | J6: m * ( 1 - | K6: (m-1)* Dx | L6: )
B7: Death benefit (K) | D7: 1000000 | K7: 2m * Nx
B8: Survival benefit (D) | D8: 2000000
B9: Deferred (k) | D9: 0 | E9: nebude | H9: =J9/J10 -> 3625.421349 | I9: = | J9: =F6 -> 42501.37323
B10: Interest rate (i) | D10: 0.025 | J10: =L4*(1-((L4-1)*DDx($D$5,$D$10))/(2*L4*nx($D$5,$D$10))) -> 11.72315412
B11: Discont factor (v) | D11: =1/(1+D10) -> 0.9756097561
B12: delka vypoctu | D12: =IF(D2="Whole life",omega()-D5,$D$6) -> 30
B17: t | C17: x | D17: lx | E17: tpx | F17: vt-1 | G17: Dx | H17: Cx | I17: dx | J17: t-1|qx | K17: vt | M17: Endowment | O17: nPx | AC17: Term insurance | AE17: nPx | AN17: Pure endowment | AP17: nPx | AW17: Whole life | AY17: Px
B18: =1 -> 1 | C18: =D5+$D$9 -> 50 | D18: =IF(B18<=$D$12,lx(C18),0) -> 95039.85967 | E18: =D18/lx($D$5) -> 1 | F18: =IF(B18<=$D$12,$D$11^(B18-1),0) -> 1 | G18: =IF(B18<=$D$12,DDx(C18,$D$10),0) -> 27651.10662 | H18: =IF(AND(B18>=$D$9,B18<=$D$12),cx(C18,$D$10),0) -> 123.58604 | I18: =IF(AND(B18>=$D$9,B18<=$D$12),dx(C18),0) -> 435.3981222 | J18: =IF(AND(B18>=$D$9,B18<=$D$12),n_qx($D$5,B18-1),0) -> 0.004581215962 | K18: =IF(AND(B18>=$D$9,B18<=$D$12),$D$11^(B18),0) -> 0.9756097561 | M18: Using Actuarial formulas | AC18: Using Actuarial formulas | AN18: Using Actuarial formulas | AW18: Using Actuarial formulas
B19: =B18+1 -> 2 | C19: =C18+1 -> 51 | D19: 94604.46155 | E19: =D19/lx($D$5) -> 0.995418784 | F19: 0.9756097561 | G19: 26853.10334 | H19: 128.6685489 | I19: 464.6365857 | J19: 0.004888860183 | K19: 0.9518143962 | M19: nPx | N19: = | O19: K | P19: * | Q19: A1xn | R19: + | S19: D | T19: * | U19: nEx | AC19: nPx | AD19: = | AE19: K | AF19: * | AG19: A1xn | AN19: nPx | AO19: = | AP19: D | AQ19: * | AR19: nEx | AW19: Px | AX19: = | AY19: K | AZ19: * | BA19: Ax
B20: =B19+1 -> 3 | C20: 52 | D20: 94139.82496 | E20: 0.9905299239 | F20: 0.9518143962 | G20: 26069.48106 | H20: 139.6927632 | I20: 517.0574189 | J20: 0.005440427003 | K20: 0.9285994109 | O20: ӓxn˥ | AG20: ӓxn˥ | AR20: ӓxn˥ | BA20: ӓxn˥
B21: 4 | C21: 53 | D21: 93622.76754 | E21: 0.9850894969 | F21: 0.9285994109 | G21: 25293.94729 | H21: 144.6026943 | I21: 548.6117642 | J21: 0.005772438702 | K21: 0.9059506448
B22: 5 | C22: 54 | D22: 93074.15578 | E22: 0.9793170582 | F22: 0.9059506448 | G22: 24532.41905 | H22: 156.099872 | I22: 607.0369728 | J22: 0.006387182966 | K22: 0.8838542876 | M22: =(O22*Q22+S22*U22)/O23 -> 42501.37323 | N22: = | O22: =$D$7 -> 1000000 | P22: * | Q22: =A1xn($D$5,$D$6,$D$10) -> 0.3292051777 | R22: + | S22: =$D$8 -> 2000000 | T22: * | U22: =nex($D$5,$D$6,$D$10) -> 0.2243633762 | AC22: =AG22/AG23*AE22 -> 17985.72804 | AD22: = | AE22: =$D$7 -> 1000000 | AF22: * | AG22: =A1xn($D$5,$D$6,$D$10) -> 0.3292051777 | AN22: =AR22/AR23*AP22 -> 24515.64519 | AO22: = | AP22: =$D$8 -> 2000000 | AQ22: * | AR22: =nex($D$5,$D$6,$D$10) -> 0.2243633762 | AW22: =BA22/BA23*AY22 -> 25945.37038 | AX22: = | AY22: =$D$7 -> 1000000 | AZ22: * | BA22: =A1x(D5+D9,D10) -> 0.5154475762
B23: 6 | C23: 55 | D23: 92467.1188 | E23: 0.9729298752 | F23: 0.8838542876 | G23: 23777.9675 | H23: 170.3269881 | I23: 678.9220731 | J23: 0.007143550879 | K23: 0.862296866 | O23: =Daxn($D$5,$D$6,$D$10,0,1,0) -> 18.30368929 | Q23: =Daxn($D$5,$D$6,$D$10,0,1) ->  | U23: =Daxn($D$5,$D$6,$D$10,0,1) ->  | AG23: =Daxn($D$5,$D$6,$D$10,0,1,0) -> 18.30368929 | AR23: =Daxn($D$5,$D$6,$D$10,0,1,0) -> 18.30368929 | BA23: =dax($D$5,$D$10,0,1,$D$9) -> 19.86664937
B24: 7 | C24: 56 | D24: 91788.19673 | E24: 0.9657863243 | F24: 0.862296866 | G24: 23027.69008 | H24: 188.6520092 | I24: 770.7646039 | J24: 0.008109908901 | K24: 0.8412652351 | M24: Using Commutation numbers | AC24: Using Commutation numbers | AN24: Using Commutation numbers | AW24: Using Commutation numbers
B25: 8 | C25: 57 | D25: 91017.43213 | E25: 0.9576764154 | F25: 0.8412652351 | G25: 22277.38709 | H25: 204.6688975 | I25: 857.1089751 | J25: 0.009018415832 | K25: 0.8207465708 | M25: nPx | N25: = | O25: K | P25: * | Q25: Mx - Mx+n | R25: + | S25: D | T25: * | U25: Dx+n | AC25: nPx | AD25: = | AE25: K | AF25: * | AG25: Mx - Mx+n | AH25: = | AI25: Cx + Cx+1 + Cx+2 …+ Cx+n-1 | AN25: nPx | AO25: = | AP25: D | AQ25: * | AR25: Dx+n | AW25: Px | AX25: = | AY25: K | AZ25: * | BA25: Mx | BB25: = | BC25: Cx + Cx+1 + Cx+2 +…
B26: 9 | C26: 58 | D26: 90160.32315 | E26: 0.9486579996 | F26: 0.8207465708 | G26: 21529.36729 | H26: 222.8070349 | I26: 956.3942516 | J26: 0.01006308569 | K26: 0.8007283618 | O26: Nx - Nx+n | AG26: Nx - Nx+n | AI26: Nx - Nx+n | AR26: Nx - Nx+n | BA26: Nx | BC26: Nx
B27: 10 | C27: 59 | D27: 89203.9289 | E27: 0.9385949139 | F27: 0.8007283618 | G27: 20781.45374 | H27: 236.9402038 | I27: 1042.48708 | J27: 0.01096894591 | K27: 0.7811984017
B28: 11 | C28: 60 | D28: 88161.44182 | E28: 0.927625968 | F28: 0.7811984017 | G28: 20037.64881 | H28: 257.3803259 | I28: 1160.729802 | J28: 0.01221308414 | K28: 0.7621447822 | M28: =(O28*Q28+S28*U28)/O29 -> 42501.37323 | N28: = | O28: =$D$7 -> 1000000 | P28: * | Q28: =mx($D$5,$D$10)-mx($D$5+$D$6,$D$10) -> 9102.887467 | R28: + | S28: =$D$8 -> 2000000 | T28: * | U28: =DDx($D$5+$D$6,$D$10) -> 6203.895637 | AC28: =AG28/AG29*AE28 -> 17985.72804 | AD28: = | AE28: =$D$7 -> 1000000 | AF28: * | AG28: =mx($D$5+D9,$D$10)-mx($D$5+$D$6,$D$10) -> 9102.887467 | AH28: = | AI28: =SUM($H$18:$H$128) -> 9102.887467 | AN28: =AR28/AR29*AP28 -> 24515.64519 | AO28: = | AP28: =$D$8 -> 2000000 | AQ28: * | AR28: =DDx($D$5+$D$6,$D$10) -> 6203.895637 | AW28: =BA28/BA29*AY28 -> 25945.37038 | AX28: = | AY28: =$D$7 -> 1000000 | AZ28: * | BA28: =mx($D$5+$D$9,$D$10) -> 14252.69589 | BB28: = | BC28: =SUM(H18:H128) -> 9102.887467
B29: 12 | C29: 61 | D29: 87000.71202 | E29: 0.9154128838 | F29: 0.7621447822 | G29: 19291.54534 | H29: 274.1172397 | I29: 1267.114919 | J29: 0.0133324578 | K29: 0.743555885 | O29: =nx($D$5,$D$10)-nx($D$5+$D$6,$D$10) -> 506117.2641 | AG29: =nx($D$5,$D$10)-nx($D$5+$D$6,$D$10) -> 506117.2641 | AI29: =nx($D$5,$D$10)-nx($D$5+$D$6,$D$10) -> 506117.2641 | AR29: =nx($D$5,$D$10)-nx($D$5+$D$6,$D$10) -> 506117.2641 | BA29: =nx($D$5,$D$10) -> 549334.84 | BC29: =nx($D$5,$D$10) -> 549334.84
B30: 13 | C30: 62 | D30: 85733.5971 | E30: 0.902080426 | F30: 0.743555885 | G30: 18546.90261 | H30: 289.7938132 | I30: 1373.069844 | J30: 0.01444730505 | K30: 0.7254203757 | M30: Using Mortality tables | AC30: Using Mortality tables | AN30: Using Mortality tables | AW30: Using Mortality tables
B31: 14 | C31: 63 | D31: 84360.52726 | E31: 0.887633121 | F31: 0.7254203757 | G31: 17804.74531 | H31: 302.3197948 | I31: 1468.229579 | J31: 0.01544856636 | K31: 0.7077271958 | M31: nPx | N31: = | O31: K | P31: * | Q31: dx * v + dx+1 * v2 +…dx+n-1 * vn | U31: + | V31: D | W31: * | X31: lx+n * vn | AC31: nPx | AD31: = | AE31: K | AF31: * | AG31: dx * v + dx+1 * v2 +…dx+n-1 * vn | AN31: nPx | AO31: = | AP31: D | AQ31: * | AR31: lx+n * vn | AW31: Px | AX31: = | AY31: K | AZ31: * | BA31: dx * v + dx+1 * v2 +…
B32: 15 | C32: 64 | D32: 82892.29768 | E32: 0.8721845546 | F32: 0.7077271958 | G32: 17068.16344 | H32: 316.0029139 | I32: 1573.049314 | J32: 0.01655146924 | K32: 0.6904655568 | O32: lx + lx+1 * v + lx+2 * v2 +…+ lx+n-1*vn-1 | AG32: lx + lx+1 * v + lx+2 * v2 +…+ lx+n-1*vn-1 | AR32: lx + lx+1 * v + lx+2 * v2 +…+ lx+n-1 * vn-1 | BA32: lx + lx+1 * v + lx+2 * v2 +…+ lx+n-1*vn-1
B33: 16 | C33: 65 | D33: 81319.24836 | E33: 0.8556330854 | F33: 0.6904655568 | G33: 16335.86386 | H33: 329.9628232 | I33: 1683.604689 | J33: 0.01771472196 | K33: 0.6736249335
B34: 17 | C34: 66 | D34: 79635.64367 | E34: 0.8379183634 | F34: 0.6736249335 | G34: 15607.46533 | H34: 353.0392785 | I34: 1846.383915 | J34: 0.01942746887 | K34: 0.6571950571 | M34: =(O34*Q34+V34*X34)/O35 -> 42501.37323 | N34: = | O34: =$D$7 -> 1000000 | P34: * | Q34: =SUMPRODUCT($I$18:$I$128,$K$18:$K$128) -> 31287.61389 | U34: + | V34: =$D$8 -> 2000000 | W34: * | X34: =lx($D$5+$D$6)*$D$11^$D$6 -> 21323.46379 | AC34: =AG34/AG35*AE34 -> 17985.72804 | AD34: = | AE34: =$D$7 -> 1000000 | AF34: * | AG34: =SUMPRODUCT($I$18:$I$128,$K$18:$K$128) -> 31287.61389 | AN34: =AR34/AR35*AP34 -> 24515.64519 | AO34: = | AP34: =$D$8 -> 2000000 | AQ34: * | AR34: =lx($D$5+$D$6)*$D$11^$D$6 -> 21323.46379 | AW34: =BA34/BA35*AY34 -> 17985.72804 | AX34: = | AY34: =$D$7 -> 1000000 | AZ34: * | BA34: =SUMPRODUCT($I$18:$I$128,$K$18:$K$128) -> 31287.61389
B35: 18 | C35: 67 | D35: 77789.25976 | E35: 0.8184908946 | F35: 0.6571950571 | G35: 14873.75616 | H35: 365.6435145 | I35: 1960.11125 | J35: 0.02062409663 | K35: 0.6411659093 | O35: =SUMPRODUCT($D$18:$D$128,$F$18:$F$128) -> 1739580.062 | AG35: =SUMPRODUCT($D$18:$D$128,$F$18:$F$128) -> 1739580.062 | AR35: =SUMPRODUCT($D$18:$D$128,$F$18:$F$128) -> 1739580.062 | BA35: =SUMPRODUCT($D$18:$D$128,$F$18:$F$128) -> 1739580.062
B36: =B35+1 -> 19 | C36: 68 | D36: 75829.14851 | E36: 0.7978667979 | F36: 0.6411659093 | G36: 14145.33811 | H36: 377.6904295 | I36: 2075.308631 | J36: 0.02183619208 | K36: 0.6255277164 | M36: Using probabilities | AC36: Using probabilities | AN36: Using probabilities | AW36: Using probabilities
B37: 20 | C37: 69 | D37: 73753.83988 | E37: 0.7760306058 | F37: 0.6255277164 | G37: 13422.63943 | H37: 385.4302433 | I37: 2170.782774 | J37: 0.02284076156 | K37: 0.6102709429 | M37: nPx | N37: = | O37: K | P37: * | Q37: qx * v+1|qx * v2+…+ n-1|qx * vn | U37: + | V37: D | W37: * | X37: npx * vn | AC37: nPx | AD37: = | AE37: K | AF37: * | AG37: qx*v+1|qx*v2+…+ n-1|qx * vn | AN37: nPx | AO37: = | AP37: D | AQ37: * | AR37: npx * vn | AW37: Px | AX37: = | AY37: K | AZ37: * | BA37: qx * v + 1|qx * v2 +…
B38: 21 | C38: 70 | D38: 71583.0571 | E38: 0.7531898443 | F38: 0.6102709429 | G38: 12709.82774 | H38: 385.9317963 | I38: 2227.947761 | J38: 0.0234422459 | K38: 0.5953862857 | O38: 1 + 1px * v + …+ n-1px * vn-1 | AG38: 1 + 1px * v + …+ n-1px * vn-1 | AR38: 1 + 1px * v + …+ n-1px * vn-1 | BA38: 1 + 1px * v + …+ n-1px * vn-1
B39: 22 | C39: 71 | D39: 69355.10934 | E39: 0.7297475984 | F39: 0.5953862857 | G39: 12013.90015 | H39: 384.724775 | I39: 2276.504235 | J39: 0.02395315232 | K39: 0.580864669
B40: 23 | C40: 72 | D40: 67078.60511 | E40: 0.7057944461 | F40: 0.580864669 | G40: 11336.15342 | H40: 391.2660851 | I40: 2373.090925 | J40: 0.02496942791 | K40: 0.566697238 | M40: =(O40*Q40+V40*X40)/O41 -> 42501.37323 | N40: = | O40: =$D$7 -> 1000000 | P40: * | Q40: =SUMPRODUCT($J$18:$J$128,$K$18:$K$128) -> 0.3292051777 | U40: + | V40: =$D$8 -> 2000000 | W40: * | X40: =npx($D$5,$D$6)*$D$11^$D$6 -> 0.2243633762 | AC40: =AG40/AG41*AE40 -> 17985.72804 | AD40: = | AE40: =$D$7 -> 1000000 | AF40: * | AG40: =SUMPRODUCT($J$18:$J$128,$K$18:$K$128) -> 0.3292051777 | AN40: =AR40/AR41*AP40 -> 24515.64519 | AO40: = | AP40: =$D$8 -> 2000000 | AQ40: * | AR40: =npx($D$5+$D$9,$D$6)*$D$11^$D$6 -> 0.2243633762 | AW40: =BA40/BA41*AY40 -> 17985.72804 | AX40: = | AY40: =$D$7 -> 1000000 | AZ40: * | BA40: =SUMPRODUCT($J$18:$J$128,$K$18:$K$128) -> 0.3292051777
B41: 24 | C41: 73 | D41: 64705.51418 | E41: 0.6808250181 | F41: 0.566697238 | G41: 10668.39578 | H41: 390.4143035 | I41: 2427.122853 | J41: 0.02553794651 | K41: 0.5528753542 | O41: =SUMPRODUCT($E$18:$E$128,$F$18:$F$128) -> 18.30368929 | AG41: =SUMPRODUCT($E$18:$E$128,$F$18:$F$128) -> 18.30368929 | AR41: =SUMPRODUCT($E$18:$E$128,$F$18:$F$128) -> 18.30368929 | BA41: =SUMPRODUCT($E$18:$E$128,$F$18:$F$128) -> 18.30368929
B42: 25 | C42: 74 | D42: 62278.39133 | E42: 0.6552870716 | F42: 0.5528753542 | G42: 10017.7767 | H42: 400.7566703 | I42: 2553.70463 | J42: 0.02686982745 | K42: 0.5393905894
B43: 26 | C43: 75 | D43: 59724.6867 | E43: 0.6284172442 | F43: 0.5393905894 | G43: 9372.684018 | H43: 418.1136659 | I43: 2730.914682 | J43: 0.02873441408 | K43: 0.5262347214
B44: 27 | C44: 76 | D44: 56993.77202 | E44: 0.5996828301 | F44: 0.5262347214 | G44: 8725.968302 | H44: 431.3694347 | I44: 2887.932276 | J44: 0.03038653767 | K44: 0.5133997282
B45: 28 | C45: 77 | D45: 54105.83974 | E45: 0.5692962924 | F45: 0.5133997282 | G45: 8081.770373 | H45: 439.0248747 | I45: 3012.663517 | J45: 0.03169894744 | K45: 0.5008777836
B46: 29 | C46: 78 | D46: 51093.17623 | E46: 0.537597345 | F46: 0.5008777836 | G46: 7445.629147 | H46: 446.8614169 | I46: 3143.100185 | J46: 0.03307138917 | K46: 0.4886612523
B47: 30 | C47: 79 | D47: 47950.07604 | E47: 0.5045259558 | F47: 0.4886612523 | G47: 6817.167019 | H47: 446.9990163 | I47: 3222.669721 | J47: 0.03390861195 | K47: 0.4767426852
B48: 31 | C48: 80 | D48: 0 | E48: 0 | F48: 0 | G48: 0 | H48: 0 | I48: 0 | J48: 0 | K48: 0
B49: 32 | C49: 81 | D49: 0 | E49: 0 | F49: 0 | G49: 0 | H49: 0 | I49: 0 | J49: 0 | K49: 0
B50: 33 | C50: 82 | D50: =IF(B50<=$D$12,lx(C50),0) -> 0 | E50: 0 | F50: =IF(B50<=$D$12,$D$11^(B50-1),0) -> 0 | G50: =IF(B50<=$D$12,DDx(C50,$D$10),0) -> 0 | H50: =IF(AND(B50>=$D$9,B50<=$D$12),cx(C50,$D$10),0) -> 0 | I50: =IF(AND(B50>=$D$9,B50<=$D$12),dx(C50),0) -> 0 | J50: =IF(AND(B50>=$D$9,B50<=$D$12),n_qx($D$5,B50-1),0) -> 0 | K50: =IF(AND(B50>=$D$9,B50<=$D$12),$D$11^(B50),0) -> 0
B51: 34 | C51: 83 | D51: 0 | E51: 0 | F51: 0 | G51: 0 | H51: 0 | I51: 0 | J51: 0 | K51: 0
B52: =B51+1 -> 35 | C52: 84 | D52: 0 | E52: 0 | F52: 0 | G52: 0 | H52: 0 | I52: 0 | J52: 0 | K52: 0
B53: 36 | C53: 85 | D53: 0 | E53: 0 | F53: 0 | G53: 0 | H53: 0 | I53: 0 | J53: 0 | K53: 0
B54: 37 | C54: 86 | D54: 0 | E54: 0 | F54: 0 | G54: 0 | H54: 0 | I54: 0 | J54: 0 | K54: 0
B55: 38 | C55: 87 | D55: 0 | E55: 0 | F55: 0 | G55: 0 | H55: 0 | I55: 0 | J55: 0 | K55: 0
B56: 39 | C56: 88 | D56: 0 | E56: 0 | F56: 0 | G56: 0 | H56: 0 | I56: 0 | J56: 0 | K56: 0
B57: 40 | C57: 89 | D57: 0 | E57: 0 | F57: 0 | G57: 0 | H57: 0 | I57: 0 | J57: 0 | K57: 0
B58: 41 | C58: 90 | D58: 0 | E58: 0 | F58: 0 | G58: 0 | H58: 0 | I58: 0 | J58: 0 | K58: 0
B59: 42 | C59: 91 | D59: 0 | E59: 0 | F59: 0 | G59: 0 | H59: 0 | I59: 0 | J59: 0 | K59: 0
B60: 43 | C60: 92 | D60: 0 | E60: 0 | F60: 0 | G60: 0 | H60: 0 | I60: 0 | J60: 0 | K60: 0
B61: 44 | C61: 93 | D61: 0 | E61: 0 | F61: 0 | G61: 0 | H61: 0 | I61: 0 | J61: 0 | K61: 0
B62: 45 | C62: 94 | D62: 0 | E62: 0 | F62: 0 | G62: 0 | H62: 0 | I62: 0 | J62: 0 | K62: 0
B63: 46 | C63: 95 | D63: 0 | E63: 0 | F63: 0 | G63: 0 | H63: 0 | I63: 0 | J63: 0 | K63: 0
B64: 47 | C64: 96 | D64: 0 | E64: 0 | F64: 0 | G64: 0 | H64: 0 | I64: 0 | J64: 0 | K64: 0
B65: 48 | C65: 97 | D65: 0 | E65: 0 | F65: 0 | G65: 0 | H65: 0 | I65: 0 | J65: 0 | K65: 0
B66: 49 | C66: 98 | D66: 0 | E66: 0 | F66: 0 | G66: 0 | H66: 0 | I66: 0 | J66: 0 | K66: 0
B67: 50 | C67: 99 | D67: 0 | E67: 0 | F67: 0 | G67: 0 | H67: 0 | I67: 0 | J67: 0 | K67: 0
B68: =B67+1 -> 51 | C68: 100 | D68: 0 | E68: 0 | F68: 0 | G68: 0 | H68: 0 | I68: 0 | J68: 0 | K68: 0
B69: 52 | C69: 101 | D69: 0 | E69: 0 | F69: 0 | G69: 0 | H69: 0 | I69: 0 | J69: 0 | K69: 0
B70: 53 | C70: 102 | D70: 0 | E70: 0 | F70: 0 | G70: 0 | H70: 0 | I70: 0 | J70: 0 | K70: 0
B71: 54 | C71: 103 | D71: 0 | E71: 0 | F71: 0 | G71: 0 | H71: 0 | I71: 0 | J71: 0 | K71: 0
B72: 55 | C72: 104 | D72: 0 | E72: 0 | F72: 0 | G72: 0 | H72: 0 | I72: 0 | J72: 0 | K72: 0
B73: 56 | C73: 105 | D73: 0 | E73: 0 | F73: 0 | G73: 0 | H73: 0 | I73: 0 | J73: 0 | K73: 0
B74: 57 | C74: 106 | D74: 0 | E74: 0 | F74: 0 | G74: 0 | H74: 0 | I74: 0 | J74: 0 | K74: 0
B75: 58 | C75: 107 | D75: 0 | E75: 0 | F75: 0 | G75: 0 | H75: 0 | I75: 0 | J75: 0 | K75: 0
B76: 59 | C76: 108 | D76: 0 | E76: 0 | F76: 0 | G76: 0 | H76: 0 | I76: 0 | J76: 0 | K76: 0
B77: 60 | C77: 109 | D77: 0 | E77: 0 | F77: 0 | G77: 0 | H77: 0 | I77: 0 | J77: 0 | K77: 0
B78: 61 | C78: 110 | D78: 0 | E78: 0 | F78: 0 | G78: 0 | H78: 0 | I78: 0 | J78: 0 | K78: 0
B79: 62 | C79: 111 | D79: 0 | E79: 0 | F79: 0 | G79: 0 | H79: 0 | I79: 0 | J79: 0 | K79: 0
B80: 63 | C80: 112 | D80: 0 | E80: 0 | F80: 0 | G80: 0 | H80: 0 | I80: 0 | J80: 0 | K80: 0
B81: 64 | C81: 113 | D81: 0 | E81: 0 | F81: 0 | G81: 0 | H81: 0 | I81: 0 | J81: 0 | K81: 0
B82: 65 | C82: 114 | D82: =IF(B82<=$D$12,lx(C82),0) -> 0 | E82: 0 | F82: =IF(B82<=$D$12,$D$11^(B82-1),0) -> 0 | G82: =IF(B82<=$D$12,DDx(C82,$D$10),0) -> 0 | H82: =IF(AND(B82>=$D$9,B82<=$D$12),cx(C82,$D$10),0) -> 0 | I82: =IF(AND(B82>=$D$9,B82<=$D$12),dx(C82),0) -> 0 | J82: =IF(AND(B82>=$D$9,B82<=$D$12),n_qx($D$5,B82-1),0) -> 0 | K82: =IF(AND(B82>=$D$9,B82<=$D$12),$D$11^(B82),0) -> 0
B83: 66 | C83: 115 | D83: 0 | E83: =D83/lx($D$5) -> 0 | F83: 0 | G83: 0 | H83: 0 | I83: 0 | J83: 0 | K83: 0
B84: =B83+1 -> 67 | C84: 116 | D84: 0 | E84: 0 | F84: 0 | G84: 0 | H84: 0 | I84: 0 | J84: 0 | K84: 0
B85: 68 | C85: 117 | D85: 0 | E85: 0 | F85: 0 | G85: 0 | H85: 0 | I85: 0 | J85: 0 | K85: 0
B86: 69 | C86: 118 | D86: 0 | E86: 0 | F86: 0 | G86: 0 | H86: 0 | I86: 0 | J86: 0 | K86: 0
B87: 70 | C87: 119 | D87: 0 | E87: 0 | F87: 0 | G87: 0 | H87: 0 | I87: 0 | J87: 0 | K87: 0
B88: 71 | C88: 120 | D88: 0 | E88: 0 | F88: 0 | G88: 0 | H88: 0 | I88: 0 | J88: 0 | K88: 0
B89: 72 | C89: 121 | D89: 0 | E89: 0 | F89: 0 | G89: 0 | H89: 0 | I89: 0 | J89: 0 | K89: 0
B90: 73 | C90: 122 | D90: 0 | E90: 0 | F90: 0 | G90: 0 | H90: 0 | I90: 0 | J90: 0 | K90: 0
B91: 74 | C91: 123 | D91: 0 | E91: 0 | F91: 0 | G91: 0 | H91: 0 | I91: 0 | J91: 0 | K91: 0
B92: 75 | C92: 124 | D92: 0 | E92: 0 | F92: 0 | G92: 0 | H92: 0 | I92: 0 | J92: 0 | K92: 0
B93: 76 | C93: 125 | D93: 0 | E93: 0 | F93: 0 | G93: 0 | H93: 0 | I93: 0 | J93: 0 | K93: 0
B94: 77 | C94: 126 | D94: 0 | E94: 0 | F94: 0 | G94: 0 | H94: 0 | I94: 0 | J94: 0 | K94: 0
B95: 78 | C95: 127 | D95: 0 | E95: 0 | F95: 0 | G95: 0 | H95: 0 | I95: 0 | J95: 0 | K95: 0
B96: 79 | C96: 128 | D96: 0 | E96: 0 | F96: 0 | G96: 0 | H96: 0 | I96: 0 | J96: 0 | K96: 0
B97: 80 | C97: 129 | D97: 0 | E97: 0 | F97: 0 | G97: 0 | H97: 0 | I97: 0 | J97: 0 | K97: 0
B98: 81 | C98: 130 | D98: 0 | E98: 0 | F98: 0 | G98: 0 | H98: 0 | I98: 0 | J98: 0 | K98: 0
B99: 82 | C99: 131 | D99: 0 | E99: 0 | F99: 0 | G99: 0 | H99: 0 | I99: 0 | J99: 0 | K99: 0
B100: =B99+1 -> 83 | C100: 132 | D100: 0 | E100: 0 | F100: 0 | G100: 0 | H100: 0 | I100: 0 | J100: 0 | K100: 0
B101: 84 | C101: 133 | D101: 0 | E101: 0 | F101: 0 | G101: 0 | H101: 0 | I101: 0 | J101: 0 | K101: 0
B102: 85 | C102: 134 | D102: 0 | E102: 0 | F102: 0 | G102: 0 | H102: 0 | I102: 0 | J102: 0 | K102: 0
B103: 86 | C103: 135 | D103: 0 | E103: 0 | F103: 0 | G103: 0 | H103: 0 | I103: 0 | J103: 0 | K103: 0
B104: 87 | C104: 136 | D104: 0 | E104: 0 | F104: 0 | G104: 0 | H104: 0 | I104: 0 | J104: 0 | K104: 0
B105: 88 | C105: 137 | D105: 0 | E105: 0 | F105: 0 | G105: 0 | H105: 0 | I105: 0 | J105: 0 | K105: 0
B106: 89 | C106: 138 | D106: 0 | E106: 0 | F106: 0 | G106: 0 | H106: 0 | I106: 0 | J106: 0 | K106: 0
B107: 90 | C107: 139 | D107: 0 | E107: 0 | F107: 0 | G107: 0 | H107: 0 | I107: 0 | J107: 0 | K107: 0
B108: 91 | C108: 140 | D108: 0 | E108: 0 | F108: 0 | G108: 0 | H108: 0 | I108: 0 | J108: 0 | K108: 0
B109: 92 | C109: 141 | D109: 0 | E109: 0 | F109: 0 | G109: 0 | H109: 0 | I109: 0 | J109: 0 | K109: 0
B110: 93 | C110: 142 | D110: 0 | E110: 0 | F110: 0 | G110: 0 | H110: 0 | I110: 0 | J110: 0 | K110: 0
B111: 94 | C111: 143 | D111: 0 | E111: 0 | F111: 0 | G111: 0 | H111: 0 | I111: 0 | J111: 0 | K111: 0
B112: 95 | C112: 144 | D112: 0 | E112: 0 | F112: 0 | G112: 0 | H112: 0 | I112: 0 | J112: 0 | K112: 0
B113: 96 | C113: 145 | D113: 0 | E113: 0 | F113: 0 | G113: 0 | H113: 0 | I113: 0 | J113: 0 | K113: 0
B114: 97 | C114: 146 | D114: =IF(B114<=$D$12,lx(C114),0) -> 0 | E114: 0 | F114: =IF(B114<=$D$12,$D$11^(B114-1),0) -> 0 | G114: =IF(B114<=$D$12,DDx(C114,$D$10),0) -> 0 | H114: =IF(AND(B114>=$D$9,B114<=$D$12),cx(C114,$D$10),0) -> 0 | I114: =IF(AND(B114>=$D$9,B114<=$D$12),dx(C114),0) -> 0 | J114: =IF(AND(B114>=$D$9,B114<=$D$12),n_qx($D$5,B114-1),0) -> 0 | K114: =IF(AND(B114>=$D$9,B114<=$D$12),$D$11^(B114),0) -> 0
B115: 98 | C115: 147 | D115: 0 | E115: 0 | F115: 0 | G115: 0 | H115: 0 | I115: 0 | J115: 0 | K115: 0
B116: =B115+1 -> 99 | C116: 148 | D116: 0 | E116: 0 | F116: 0 | G116: 0 | H116: 0 | I116: 0 | J116: 0 | K116: 0
B117: 100 | C117: 149 | D117: 0 | E117: 0 | F117: 0 | G117: 0 | H117: 0 | I117: 0 | J117: 0 | K117: 0
B118: 101 | C118: 150 | D118: 0 | E118: 0 | F118: 0 | G118: 0 | H118: 0 | I118: 0 | J118: 0 | K118: 0
B119: 102 | C119: 151 | D119: 0 | E119: 0 | F119: 0 | G119: 0 | H119: 0 | I119: 0 | J119: 0 | K119: 0
B120: 103 | C120: 152 | D120: 0 | E120: 0 | F120: 0 | G120: 0 | H120: 0 | I120: 0 | J120: 0 | K120: 0
B121: 104 | C121: 153 | D121: 0 | E121: 0 | F121: 0 | G121: 0 | H121: 0 | I121: 0 | J121: 0 | K121: 0
B122: 105 | C122: 154 | D122: 0 | E122: 0 | F122: 0 | G122: 0 | H122: 0 | I122: 0 | J122: 0 | K122: 0
B123: 106 | C123: 155 | D123: 0 | E123: 0 | F123: 0 | G123: 0 | H123: 0 | I123: 0 | J123: 0 | K123: 0
B124: 107 | C124: 156 | D124: 0 | E124: 0 | F124: 0 | G124: 0 | H124: 0 | I124: 0 | J124: 0 | K124: 0
B125: 108 | C125: 157 | D125: 0 | E125: 0 | F125: 0 | G125: 0 | H125: 0 | I125: 0 | J125: 0 | K125: 0
B126: 109 | C126: 158 | D126: 0 | E126: 0 | F126: 0 | G126: 0 | H126: 0 | I126: 0 | J126: 0 | K126: 0
B127: 110 | C127: 159 | D127: 0 | E127: 0 | F127: 0 | G127: 0 | H127: 0 | I127: 0 | J127: 0 | K127: 0
B128: 111 | C128: 160 | D128: 0 | E128: 0 | F128: 0 | G128: 0 | H128: 0 | I128: 0 | J128: 0 | K128: 0

Sheet NETTO-RESERVES
C2: Contract | E2: Term insurance
C5: Age (X) | F5: 50 | G5: tVx | H5: =IF($E$2="Whole life",tVx_Whole_live(F5,F7,F10,1),IF($E$2="Term insurance",tVx_Term_insurance(F5,F6,F7,F10,1),IF($E$2="Endowment",tVx_Endowment(F5,F6,F7,F10,1,F8,F9),tVx_Pure_endowment(F5,F6,F7,F10,1)))) -> 0
C6: Policy period (N) | F6: 25
C7: t | F7: 25 | G7: Netto reserves | H7: =IF($E$2="Pure endowment",H5*F9,H5*F8) -> 0
C8: Death benefit (K) | F8: 1000000
C9: Survival benefit (D) | F9: 200000 | G9: nPx | H9: =IF(E2="Whole life",regular_Whole_life(F5,F10),IF(E2="Term insurance",regular_Term_insurance(F5,F6,F10),IF(E2="Endowment",regular_Endowment(F5,F6,F10,F8,F9),regular_Pure_Endowment(F5,F6,F10)))) -> 0.01486129435
C10: Interest rate (i) | F10: 0.025
C11: Discont factor (v) | F11: =1/(1+F10) -> 0.9756097561 | G11: Netto premium | H11: =H9*F8 -> 14861.29435
C12: delka vypoctu | E12: =IF($E$2="Whole life",omega()-$F$5,$F$6) -> 25
C19: t | D19: x | E19: A1x+t,n- t˥ | F19: ӓx+t,n-t˥ | G19: tVx | H19: tVx * K | J19: Endowment | S19: Term insurance | AB19: Whole life | AK19: Pure endowment
C20: 0 | D20: =F5 -> 50 | E20: =IF(C20<=$E$12,IF($E$2="Whole life",A1x($F$5+C20,$F$10),IF($E$2="Term insurance",A1xn($F$5+C20,$F$6-C20,$F$10),IF($E$2="Endowment",Axn($F$5+C20,$F$6-C20,$F$10,$F$9,$F$8),nex($F$5+C20,$F$6-C20,$F$10)))),0) -> 0.2502800034 | F20: =IF(C20<=$E$12,IF($E$2="Whole life",dax($F$5+C20,$F$10,0,1,0),Daxn($F$5+C20,$F$6-C20,$F$10,0,1,0)),0) -> 16.8410636 | G20: =E20-$H$9*F20 -> 0 | H20: =G20*$F$8 -> 0 | J20: Using Actuarial formulas | S20: Using Actuarial formulas | AB20: Using Actuarial formulas | AK20: Using Actuarial formulas
C21: =C20+1 -> 1 | D21: =D20+1 -> 51 | E21: =IF(C21<=$E$12,IF($E$2="Whole life",A1x($F$5+C21,$F$10),IF($E$2="Term insurance",A1xn($F$5+C21,$F$6-C21,$F$10),IF($E$2="Endowment",Axn($F$5+C21,$F$6-C21,$F$10,$F$9,$F$8),nex($F$5+C21,$F$6-C21,$F$10)))),0) -> 0.2531153637 | F21: =IF(C21<=$E$12,IF($E$2="Whole life",dax($F$5+C21,$F$10,0,1,0),Daxn($F$5+C21,$F$6-C21,$F$10,0,1,0)),0) -> 16.31181815 | G21: =E21-$H$9*F21 -> 0.01070063266 | H21: =G21*$F$8 -> 10700.63266 | J21: tVx | K21: = | L21: Ax+t,n-t˥ | M21: - | N21: nPx | O21: * | P21: ӓx+t,n-t˥ | S21: tVx | T21: = | U21: A1x+t,n- t˥ | V21: - | W21: nPx | X21: * | Y21: ӓx+t,n-t˥ | AB21: tVx | AC21: = | AD21: A1x+t | AE21: - | AF21: Px | AG21: * | AH21: ӓx+t | AK21: tVx | AL21: = | AM21: n-tEx+t | AN21: - | AO21: nPx | AP21: * | AQ21: ӓx+t,n-t˥
C22: 2 | D22: 52 | E22: =IF(C22<=$E$12,IF($E$2="Whole life",A1x($F$5+C22,$F$10),IF($E$2="Term insurance",A1xn($F$5+C22,$F$6-C22,$F$10),IF($E$2="Endowment",Axn($F$5+C22,$F$6-C22,$F$10,$F$9,$F$8),nex($F$5+C22,$F$6-C22,$F$10)))),0) -> 0.2557881553 | F22: =IF(C22<=$E$12,IF($E$2="Whole life",dax($F$5+C22,$F$10,0,1,0),Daxn($F$5+C22,$F$6-C22,$F$10,0,1,0)),0) -> 15.77207595 | G22: 0.02139469204 | H22: 21394.69204
C23: 3 | D23: 53 | E23: =IF(C23<=$E$12,IF($E$2="Whole life",A1x($F$5+C23,$F$10),IF($E$2="Term insurance",A1xn($F$5+C23,$F$6-C23,$F$10),IF($E$2="Endowment",Axn($F$5+C23,$F$6-C23,$F$10,$F$9,$F$8),nex($F$5+C23,$F$6-C23,$F$10)))),0) -> 0.2581080616 | F23: =IF(C23<=$E$12,IF($E$2="Whole life",dax($F$5+C23,$F$10,0,1,0),Daxn($F$5+C23,$F$6-C23,$F$10,0,1,0)),0) -> 15.22500027 | G23: 0.03184485117 | H23: 31844.85117
C24: 4 | D24: 54 | E24: =IF(C24<=$E$12,IF($E$2="Whole life",A1x($F$5+C24,$F$10),IF($E$2="Term insurance",A1xn($F$5+C24,$F$6-C24,$F$10),IF($E$2="Endowment",Axn($F$5+C24,$F$6-C24,$F$10,$F$9,$F$8),nex($F$5+C24,$F$6-C24,$F$10)))),0) -> 0.260225826 | F24: =IF(C24<=$E$12,IF($E$2="Whole life",dax($F$5+C24,$F$10,0,1,0),Daxn($F$5+C24,$F$6-C24,$F$10,0,1,0)),0) -> 14.6665686 | G24: 0.04226163292 | H24: 42261.63292 | J24: =L24-N24*P24 -> 0.2 | K24: = | L24: =Axn($F$5+$F$7,$F$6-$F$7,$F$10,$F$9,$F$8) -> 0.2 | M24: - | N24: =regular_Endowment($F$5,$F$6,$F$10,$F$8,$F$9) -> 0.0188867212 | O24: * | P24: =Daxn($F$5+$F$7,$F$6-$F$7,$F$10,0,1,0) -> 0 | S24: =U24-W24*Y24 -> 0 | T24: = | U24: =A1xn($F$5+$F$7,$F$6-$F$7,$F$10) -> 0 | V24: - | W24: =regular_Term_insurance($F$5,$F$6,$F$10) -> 0.01486129435 | X24: * | Y24: =Daxn($F$5+$F$7,$F$6-$F$7,$F$10,0,1,0) -> 0 | AB24: =AD24-AF24*AH24 -> 0.5507031404 | AC24: = | AD24: =A1x($F$5+$F$7,$F$10) -> 0.7822921177 | AE24: - | AF24: =regular_Whole_life($F$5,$F$10) -> 0.02594537038 | AG24: * | AH24: =dax($F$5+$F$7,$F$10,0,1,0) -> 8.926023175 | AK24: =AM24-AO24*AQ24 -> 1 | AL24: = | AM24: =nex($F$5+$F$7,$F$6-$F$7,$F$10) -> 1 | AN24: - | AO24: =regular_Pure_Endowment($F$5,$F$6,$F$10) -> 0.02012713423 | AP24: * | AQ24: =Daxn($F$5+$F$7,$F$6-$F$7,$F$10,0,1,0) -> 0
C25: 5 | D25: 55 | E25: =IF(C25<=$E$12,IF($E$2="Whole life",A1x($F$5+C25,$F$10),IF($E$2="Term insurance",A1xn($F$5+C25,$F$6-C25,$F$10),IF($E$2="Endowment",Axn($F$5+C25,$F$6-C25,$F$10,$F$9,$F$8),nex($F$5+C25,$F$6-C25,$F$10)))),0) -> 0.2619176404 | F25: =IF(C25<=$E$12,IF($E$2="Whole life",dax($F$5+C25,$F$10,0,1,0),Daxn($F$5+C25,$F$6-C25,$F$10,0,1,0)),0) -> 14.1001954 | G25: 0.05237048615 | H25: 52370.48615
C26: 6 | D26: 56 | E26: =IF(C26<=$E$12,IF($E$2="Whole life",A1x($F$5+C26,$F$10),IF($E$2="Term insurance",A1xn($F$5+C26,$F$6-C26,$F$10),IF($E$2="Endowment",Axn($F$5+C26,$F$6-C26,$F$10,$F$9,$F$8),nex($F$5+C26,$F$6-C26,$F$10)))),0) -> 0.263054702 | F26: =IF(C26<=$E$12,IF($E$2="Whole life",dax($F$5+C26,$F$10,0,1,0),Daxn($F$5+C26,$F$6-C26,$F$10,0,1,0)),0) -> 13.52701983 | G26: 0.06202567858 | H26: 62025.67858 | J26: Using Commutation numbers | S26: Using Commutation numbers | AB26: Using Commutation numbers | AK26: Using Commutation numbers
C27: 7 | D27: 57 | E27: =IF(C27<=$E$12,IF($E$2="Whole life",A1x($F$5+C27,$F$10),IF($E$2="Term insurance",A1xn($F$5+C27,$F$6-C27,$F$10),IF($E$2="Endowment",Axn($F$5+C27,$F$6-C27,$F$10,$F$9,$F$8),nex($F$5+C27,$F$6-C27,$F$10)))),0) -> 0.2634460728 | F27: =IF(C27<=$E$12,IF($E$2="Whole life",dax($F$5+C27,$F$10,0,1,0),Daxn($F$5+C27,$F$6-C27,$F$10,0,1,0)),0) -> 12.94893019 | G27: 0.07100820972 | H27: 71008.20972 | J27: tVx | K27: = | L27: 1 | M27: - | N27: Dx | O27: * | P27: Nx+t - Nx+n | S27: tVx | T27: = | U27: Mx+t - Mx+n | V27: - | W27: Mx - Mx+n | X27: * | Y27: Nx+t - Nx+n | AB27: tVx | AC27: = | AD27: 1 | AE27: - | AF27: Dx | AG27: * | AH27: Nx+t | AK27: tVx | AL27: = | AM27: Dx+n | AN27: * | AO27: Nx - Nx+t
C28: 8 | D28: 58 | E28: =IF(C28<=$E$12,IF($E$2="Whole life",A1x($F$5+C28,$F$10),IF($E$2="Term insurance",A1xn($F$5+C28,$F$6-C28,$F$10),IF($E$2="Endowment",Axn($F$5+C28,$F$6-C28,$F$10,$F$9,$F$8),nex($F$5+C28,$F$6-C28,$F$10)))),0) -> 0.2630927871 | F28: =IF(C28<=$E$12,IF($E$2="Whole life",dax($F$5+C28,$F$10,0,1,0),Daxn($F$5+C28,$F$6-C28,$F$10,0,1,0)),0) -> 12.36408574 | G28: 0.07934646946 | H28: 79346.46946 | N28: Dx+t | P28: Nx - Nx+n | U28: Dx+t | W28: Dx+t | Y28: Nx - Nx+n | AF28: Dx+t | AH28: Nx | AM28: Dx+t | AO28: Nx - Nx+n
C29: 9 | D29: 59 | E29: =IF(C29<=$E$12,IF($E$2="Whole life",A1x($F$5+C29,$F$10),IF($E$2="Term insurance",A1xn($F$5+C29,$F$6-C29,$F$10),IF($E$2="Endowment",Axn($F$5+C29,$F$6-C29,$F$10,$F$9,$F$8),nex($F$5+C29,$F$6-C29,$F$10)))),0) -> 0.2618399213 | F29: =IF(C29<=$E$12,IF($E$2="Whole life",dax($F$5+C29,$F$10,0,1,0),Daxn($F$5+C29,$F$6-C29,$F$10,0,1,0)),0) -> 11.77307319 | G29: 0.08687681511 | H29: 86876.81511
C30: 10 | D30: 60 | E30: =IF(C30<=$E$12,IF($E$2="Whole life",A1x($F$5+C30,$F$10),IF($E$2="Term insurance",A1xn($F$5+C30,$F$6-C30,$F$10),IF($E$2="Endowment",Axn($F$5+C30,$F$6-C30,$F$10,$F$9,$F$8),nex($F$5+C30,$F$6-C30,$F$10)))),0) -> 0.2597347651 | F30: =IF(C30<=$E$12,IF($E$2="Whole life",dax($F$5+C30,$F$10,0,1,0),Daxn($F$5+C30,$F$6-C30,$F$10,0,1,0)),0) -> 11.17297365 | G30: 0.09368991488 | H30: 93689.91488 | J30: =L30-N30/N31*P30/P31 -> 1 | K30: = | L30: 1 | M30: - | N30: =DDx($F$5,$F$10) -> 27651.10662 | O30: * | P30: =nx($F$5+$F$7,$F$10)-nx($F$5+$F$6,$F$10) -> 0 | S30: =U30/U31-W30/W31*Y30/Y31 -> 0 | T30: = | U30: =mx($F$5+$F$7,$F$10)-mx($F$5+$F$6,$F$10) -> 0 | V30: - | W30: =mx($F$5,$F$10)-mx($F$5+$F$6,$F$10) -> 6920.519058 | X30: * | Y30: =nx($F$5+$F$7,$F$10)-nx($F$5+$F$6,$F$10) -> 0 | AB30: =$AD$30-AF30/AF31*AH30/AH31 -> 0.5507031404 | AC30: = | AD30: 1 | AE30: - | AF30: =DDx($F$5,$F$10) -> 27651.10662 | AG30: * | AH30: =nx($F$5+$F$7,$F$10) -> 83660.79475 | AK30: =AM30/AM31*AO30/AO31 -> 1 | AL30: = | AM30: =DDx($F$5+$F$6,$F$10) -> 9372.684018 | AN30: * | AO30: =nx($F$5,$F$10)-nx($F$5+$F$7,$F$10) -> 465674.0453
C31: 11 | D31: 61 | E31: =IF(C31<=$E$12,IF($E$2="Whole life",A1x($F$5+C31,$F$10),IF($E$2="Term insurance",A1xn($F$5+C31,$F$6-C31,$F$10),IF($E$2="Endowment",Axn($F$5+C31,$F$6-C31,$F$10,$F$9,$F$8),nex($F$5+C31,$F$6-C31,$F$10)))),0) -> 0.2564384342 | F31: =IF(C31<=$E$12,IF($E$2="Whole life",dax($F$5+C31,$F$10,0,1,0),Daxn($F$5+C31,$F$6-C31,$F$10,0,1,0)),0) -> 10.56641496 | G31: 0.09940783118 | H31: 99407.83118 | N31: =DDx($F$5+$F$7,$F$10) -> 9372.684018 | P31: =nx($F$5,$F$10)-nx($F$5+$F$6,$F$10) -> 465674.0453 | U31: =DDx($F$5+$F$7,$F$10) -> 9372.684018 | W31: =DDx($F$5+$F$7,$F$10) -> 9372.684018 | Y31: =nx($F$5,$F$10)-nx($F$5+$F$6,$F$10) -> 465674.0453 | AF31: =DDx($F$5+$F$7,$F$10) -> 9372.684018 | AH31: =nx($F$5,$F$10) -> 549334.84 | AM31: =DDx($F$5+$F$7,$F$10) -> 9372.684018 | AO31: =nx($F$5,$F$10)-nx($F$5+$F$6,$F$10) -> 465674.0453
C32: 12 | D32: 62 | E32: =IF(C32<=$E$12,IF($E$2="Whole life",A1x($F$5+C32,$F$10),IF($E$2="Term insurance",A1xn($F$5+C32,$F$6-C32,$F$10),IF($E$2="Endowment",Axn($F$5+C32,$F$6-C32,$F$10,$F$9,$F$8),nex($F$5+C32,$F$6-C32,$F$10)))),0) -> 0.2519545468 | F32: =IF(C32<=$E$12,IF($E$2="Whole life",dax($F$5+C32,$F$10,0,1,0),Daxn($F$5+C32,$F$6-C32,$F$10,0,1,0)),0) -> 9.95049858 | G32: 0.1040772585 | H32: 104077.2585
C33: 13 | D33: 63 | E33: =IF(C33<=$E$12,IF($E$2="Whole life",A1x($F$5+C33,$F$10),IF($E$2="Term insurance",A1xn($F$5+C33,$F$6-C33,$F$10),IF($E$2="Endowment",Axn($F$5+C33,$F$6-C33,$F$10,$F$9,$F$8),nex($F$5+C33,$F$6-C33,$F$10)))),0) -> 0.2461805856 | F33: =IF(C33<=$E$12,IF($E$2="Whole life",dax($F$5+C33,$F$10,0,1,0),Daxn($F$5+C33,$F$6-C33,$F$10,0,1,0)),0) -> 9.323583264 | G33: 0.1076200703 | H33: 107620.0703
C34: 14 | D34: 64 | E34: =IF(C34<=$E$12,IF($E$2="Whole life",A1x($F$5+C34,$F$10),IF($E$2="Term insurance",A1xn($F$5+C34,$F$6-C34,$F$10),IF($E$2="Endowment",Axn($F$5+C34,$F$6-C34,$F$10,$F$9,$F$8),nex($F$5+C34,$F$6-C34,$F$10)))),0) -> 0.2390920879 | F34: =IF(C34<=$E$12,IF($E$2="Whole life",dax($F$5+C34,$F$10,0,1,0),Daxn($F$5+C34,$F$6-C34,$F$10,0,1,0)),0) -> 8.682790076 | G34: 0.1100545888 | H34: 110054.5888
C35: 15 | D35: 65 | E35: =IF(C35<=$E$12,IF($E$2="Whole life",A1x($F$5+C35,$F$10),IF($E$2="Term insurance",A1xn($F$5+C35,$F$6-C35,$F$10),IF($E$2="Endowment",Axn($F$5+C35,$F$6-C35,$F$10,$F$9,$F$8),nex($F$5+C35,$F$6-C35,$F$10)))),0) -> 0.2304659216 | F35: =IF(C35<=$E$12,IF($E$2="Whole life",dax($F$5+C35,$F$10,0,1,0),Daxn($F$5+C35,$F$6-C35,$F$10,0,1,0)),0) -> 8.027192063 | G35: 0.1111714576 | H35: 111171.4576
C36: 16 | D36: 66 | E36: =IF(C36<=$E$12,IF($E$2="Whole life",A1x($F$5+C36,$F$10),IF($E$2="Term insurance",A1xn($F$5+C36,$F$6-C36,$F$10),IF($E$2="Endowment",Axn($F$5+C36,$F$6-C36,$F$10,$F$9,$F$8),nex($F$5+C36,$F$6-C36,$F$10)))),0) -> 0.2200803925 | F36: =IF(C36<=$E$12,IF($E$2="Whole life",dax($F$5+C36,$F$10,0,1,0),Daxn($F$5+C36,$F$6-C36,$F$10,0,1,0)),0) -> 7.35515027 | G36: 0.1107733394 | H36: 110773.3394
C37: 17 | D37: 67 | E37: =IF(C37<=$E$12,IF($E$2="Whole life",A1x($F$5+C37,$F$10),IF($E$2="Term insurance",A1xn($F$5+C37,$F$6-C37,$F$10),IF($E$2="Endowment",Axn($F$5+C37,$F$6-C37,$F$10,$F$9,$F$8),nex($F$5+C37,$F$6-C37,$F$10)))),0) -> 0.2072010448 | F37: =IF(C37<=$E$12,IF($E$2="Whole life",dax($F$5+C37,$F$10,0,1,0),Daxn($F$5+C37,$F$6-C37,$F$10,0,1,0)),0) -> 6.668644181 | G37: 0.1080963607 | H37: 108096.3607
C38: 18 | D38: 68 | E38: =IF(C38<=$E$12,IF($E$2="Whole life",A1x($F$5+C38,$F$10),IF($E$2="Term insurance",A1xn($F$5+C38,$F$6-C38,$F$10),IF($E$2="Endowment",Axn($F$5+C38,$F$6-C38,$F$10,$F$9,$F$8),nex($F$5+C38,$F$6-C38,$F$10)))),0) -> 0.1920218719 | F38: =IF(C38<=$E$12,IF($E$2="Whole life",dax($F$5+C38,$F$10,0,1,0),Daxn($F$5+C38,$F$6-C38,$F$10,0,1,0)),0) -> 5.960552564 | G38: 0.1034403458 | H38: 103440.3458
C39: 19 | D39: 69 | E39: =IF(C39<=$E$12,IF($E$2="Whole life",A1x($F$5+C39,$F$10),IF($E$2="Term insurance",A1xn($F$5+C39,$F$6-C39,$F$10),IF($E$2="Endowment",Axn($F$5+C39,$F$6-C39,$F$10,$F$9,$F$8),nex($F$5+C39,$F$6-C39,$F$10)))),0) -> 0.1742223566 | F39: =IF(C39<=$E$12,IF($E$2="Whole life",dax($F$5+C39,$F$10,0,1,0),Daxn($F$5+C39,$F$6-C39,$F$10,0,1,0)),0) -> 5.227637498 | G39: 0.09653289695 | H39: 96532.89695
C40: 20 | D40: 70 | E40: =IF(C40<=$E$12,IF($E$2="Whole life",A1x($F$5+C40,$F$10),IF($E$2="Term insurance",A1xn($F$5+C40,$F$6-C40,$F$10),IF($E$2="Endowment",Axn($F$5+C40,$F$6-C40,$F$10,$F$9,$F$8),nex($F$5+C40,$F$6-C40,$F$10)))),0) -> 0.1536679859 | F40: =IF(C40<=$E$12,IF($E$2="Whole life",dax($F$5+C40,$F$10,0,1,0),Daxn($F$5+C40,$F$6-C40,$F$10,0,1,0)),0) -> 4.464738229 | G40: 0.0873161969 | H40: 87316.1969
C41: 21 | D41: 71 | E41: =IF(C41<=$E$12,IF($E$2="Whole life",A1x($F$5+C41,$F$10),IF($E$2="Term insurance",A1xn($F$5+C41,$F$6-C41,$F$10),IF($E$2="Endowment",Axn($F$5+C41,$F$6-C41,$F$10,$F$9,$F$8),nex($F$5+C41,$F$6-C41,$F$10)))),0) -> 0.1304457183 | F41: =IF(C41<=$E$12,IF($E$2="Whole life",dax($F$5+C41,$F$10,0,1,0),Daxn($F$5+C41,$F$6-C41,$F$10,0,1,0)),0) -> 3.665439659 | G41: 0.07597254058 | H41: 75972.54058
C42: 22 | D42: 72 | E42: =IF(C42<=$E$12,IF($E$2="Whole life",A1x($F$5+C42,$F$10),IF($E$2="Term insurance",A1xn($F$5+C42,$F$6-C42,$F$10),IF($E$2="Endowment",Axn($F$5+C42,$F$6-C42,$F$10,$F$9,$F$8),nex($F$5+C42,$F$6-C42,$F$10)))),0) -> 0.1043067269 | F42: =IF(C42<=$E$12,IF($E$2="Whole life",dax($F$5+C42,$F$10,0,1,0),Daxn($F$5+C42,$F$6-C42,$F$10,0,1,0)),0) -> 2.824796448 | G42: 0.06232659544 | H42: 62326.59544
C43: 23 | D43: 73 | E43: =IF(C43<=$E$12,IF($E$2="Whole life",A1x($F$5+C43,$F$10),IF($E$2="Term insurance",A1xn($F$5+C43,$F$6-C43,$F$10),IF($E$2="Endowment",Axn($F$5+C43,$F$6-C43,$F$10,$F$9,$F$8),nex($F$5+C43,$F$6-C43,$F$10)))),0) -> 0.07416025706 | F43: =IF(C43<=$E$12,IF($E$2="Whole life",dax($F$5+C43,$F$10,0,1,0),Daxn($F$5+C43,$F$6-C43,$F$10,0,1,0)),0) -> 1.939014347 | G43: 0.04534399409 | H43: 45343.99409
C44: 24 | D44: 74 | E44: =IF(C44<=$E$12,IF($E$2="Whole life",A1x($F$5+C44,$F$10),IF($E$2="Term insurance",A1xn($F$5+C44,$F$6-C44,$F$10),IF($E$2="Endowment",Axn($F$5+C44,$F$6-C44,$F$10,$F$9,$F$8),nex($F$5+C44,$F$6-C44,$F$10)))),0) -> 0.04000455212 | F44: =IF(C44<=$E$12,IF($E$2="Whole life",dax($F$5+C44,$F$10,0,1,0),Daxn($F$5+C44,$F$6-C44,$F$10,0,1,0)),0) -> 1 | G44: 0.02514325776 | H44: 25143.25776
C45: 25 | D45: 75 | E45: =IF(C45<=$E$12,IF($E$2="Whole life",A1x($F$5+C45,$F$10),IF($E$2="Term insurance",A1xn($F$5+C45,$F$6-C45,$F$10),IF($E$2="Endowment",Axn($F$5+C45,$F$6-C45,$F$10,$F$9,$F$8),nex($F$5+C45,$F$6-C45,$F$10)))),0) -> 0 | F45: =IF(C45<=$E$12,IF($E$2="Whole life",dax($F$5+C45,$F$10,0,1,0),Daxn($F$5+C45,$F$6-C45,$F$10,0,1,0)),0) -> 0 | G45: 0 | H45: 0
C46: 26 | D46: 76 | E46: =IF(C46<=$E$12,IF($E$2="Whole life",A1x($F$5+C46,$F$10),IF($E$2="Term insurance",A1xn($F$5+C46,$F$6-C46,$F$10),IF($E$2="Endowment",Axn($F$5+C46,$F$6-C46,$F$10,$F$9,$F$8),nex($F$5+C46,$F$6-C46,$F$10)))),0) -> 0 | F46: =IF(C46<=$E$12,IF($E$2="Whole life",dax($F$5+C46,$F$10,0,1,0),Daxn($F$5+C46,$F$6-C46,$F$10,0,1,0)),0) -> 0 | G46: 0 | H46: 0
C47: 27 | D47: 77 | E47: =IF(C47<=$E$12,IF($E$2="Whole life",A1x($F$5+C47,$F$10),IF($E$2="Term insurance",A1xn($F$5+C47,$F$6-C47,$F$10),IF($E$2="Endowment",Axn($F$5+C47,$F$6-C47,$F$10,$F$9,$F$8),nex($F$5+C47,$F$6-C47,$F$10)))),0) -> 0 | F47: =IF(C47<=$E$12,IF($E$2="Whole life",dax($F$5+C47,$F$10,0,1,0),Daxn($F$5+C47,$F$6-C47,$F$10,0,1,0)),0) -> 0 | G47: 0 | H47: 0
C48: 28 | D48: 78 | E48: =IF(C48<=$E$12,IF($E$2="Whole life",A1x($F$5+C48,$F$10),IF($E$2="Term insurance",A1xn($F$5+C48,$F$6-C48,$F$10),IF($E$2="Endowment",Axn($F$5+C48,$F$6-C48,$F$10,$F$9,$F$8),nex($F$5+C48,$F$6-C48,$F$10)))),0) -> 0 | F48: =IF(C48<=$E$12,IF($E$2="Whole life",dax($F$5+C48,$F$10,0,1,0),Daxn($F$5+C48,$F$6-C48,$F$10,0,1,0)),0) -> 0 | G48: 0 | H48: 0
C49: 29 | D49: 79 | E49: =IF(C49<=$E$12,IF($E$2="Whole life",A1x($F$5+C49,$F$10),IF($E$2="Term insurance",A1xn($F$5+C49,$F$6-C49,$F$10),IF($E$2="Endowment",Axn($F$5+C49,$F$6-C49,$F$10,$F$9,$F$8),nex($F$5+C49,$F$6-C49,$F$10)))),0) -> 0 | F49: =IF(C49<=$E$12,IF($E$2="Whole life",dax($F$5+C49,$F$10,0,1,0),Daxn($F$5+C49,$F$6-C49,$F$10,0,1,0)),0) -> 0 | G49: 0 | H49: 0
C50: 30 | D50: 80 | E50: =IF(C50<=$E$12,IF($E$2="Whole life",A1x($F$5+C50,$F$10),IF($E$2="Term insurance",A1xn($F$5+C50,$F$6-C50,$F$10),IF($E$2="Endowment",Axn($F$5+C50,$F$6-C50,$F$10,$F$9,$F$8),nex($F$5+C50,$F$6-C50,$F$10)))),0) -> 0 | F50: =IF(C50<=$E$12,IF($E$2="Whole life",dax($F$5+C50,$F$10,0,1,0),Daxn($F$5+C50,$F$6-C50,$F$10,0,1,0)),0) -> 0 | G50: 0 | H50: 0
C51: 31 | D51: 81 | E51: =IF(C51<=$E$12,IF($E$2="Whole life",A1x($F$5+C51,$F$10),IF($E$2="Term insurance",A1xn($F$5+C51,$F$6-C51,$F$10),IF($E$2="Endowment",Axn($F$5+C51,$F$6-C51,$F$10,$F$9,$F$8),nex($F$5+C51,$F$6-C51,$F$10)))),0) -> 0 | F51: =IF(C51<=$E$12,IF($E$2="Whole life",dax($F$5+C51,$F$10,0,1,0),Daxn($F$5+C51,$F$6-C51,$F$10,0,1,0)),0) -> 0 | G51: 0 | H51: 0
C52: 32 | D52: 82 | E52: =IF(C52<=$E$12,IF($E$2="Whole life",A1x($F$5+C52,$F$10),IF($E$2="Term insurance",A1xn($F$5+C52,$F$6-C52,$F$10),IF($E$2="Endowment",Axn($F$5+C52,$F$6-C52,$F$10,$F$9,$F$8),nex($F$5+C52,$F$6-C52,$F$10)))),0) -> 0 | F52: =IF(C52<=$E$12,IF($E$2="Whole life",dax($F$5+C52,$F$10,0,1,0),Daxn($F$5+C52,$F$6-C52,$F$10,0,1,0)),0) -> 0 | G52: 0 | H52: 0
C53: =C52+1 -> 33 | D53: =D52+1 -> 83 | E53: =IF(C53<=$E$12,IF($E$2="Whole life",A1x($F$5+C53,$F$10),IF($E$2="Term insurance",A1xn($F$5+C53,$F$6-C53,$F$10),IF($E$2="Endowment",Axn($F$5+C53,$F$6-C53,$F$10,$F$9,$F$8),nex($F$5+C53,$F$6-C53,$F$10)))),0) -> 0 | F53: =IF(C53<=$E$12,IF($E$2="Whole life",dax($F$5+C53,$F$10,0,1,0),Daxn($F$5+C53,$F$6-C53,$F$10,0,1,0)),0) -> 0 | G53: 0 | H53: 0
C54: 34 | D54: 84 | E54: =IF(C54<=$E$12,IF($E$2="Whole life",A1x($F$5+C54,$F$10),IF($E$2="Term insurance",A1xn($F$5+C54,$F$6-C54,$F$10),IF($E$2="Endowment",Axn($F$5+C54,$F$6-C54,$F$10,$F$9,$F$8),nex($F$5+C54,$F$6-C54,$F$10)))),0) -> 0 | F54: =IF(C54<=$E$12,IF($E$2="Whole life",dax($F$5+C54,$F$10,0,1,0),Daxn($F$5+C54,$F$6-C54,$F$10,0,1,0)),0) -> 0 | G54: 0 | H54: 0
C55: 35 | D55: 85 | E55: =IF(C55<=$E$12,IF($E$2="Whole life",A1x($F$5+C55,$F$10),IF($E$2="Term insurance",A1xn($F$5+C55,$F$6-C55,$F$10),IF($E$2="Endowment",Axn($F$5+C55,$F$6-C55,$F$10,$F$9,$F$8),nex($F$5+C55,$F$6-C55,$F$10)))),0) -> 0 | F55: =IF(C55<=$E$12,IF($E$2="Whole life",dax($F$5+C55,$F$10,0,1,0),Daxn($F$5+C55,$F$6-C55,$F$10,0,1,0)),0) -> 0 | G55: 0 | H55: 0
C56: 36 | D56: 86 | E56: =IF(C56<=$E$12,IF($E$2="Whole life",A1x($F$5+C56,$F$10),IF($E$2="Term insurance",A1xn($F$5+C56,$F$6-C56,$F$10),IF($E$2="Endowment",Axn($F$5+C56,$F$6-C56,$F$10,$F$9,$F$8),nex($F$5+C56,$F$6-C56,$F$10)))),0) -> 0 | F56: =IF(C56<=$E$12,IF($E$2="Whole life",dax($F$5+C56,$F$10,0,1,0),Daxn($F$5+C56,$F$6-C56,$F$10,0,1,0)),0) -> 0 | G56: 0 | H56: 0
C57: 37 | D57: 87 | E57: =IF(C57<=$E$12,IF($E$2="Whole life",A1x($F$5+C57,$F$10),IF($E$2="Term insurance",A1xn($F$5+C57,$F$6-C57,$F$10),IF($E$2="Endowment",Axn($F$5+C57,$F$6-C57,$F$10,$F$9,$F$8),nex($F$5+C57,$F$6-C57,$F$10)))),0) -> 0 | F57: =IF(C57<=$E$12,IF($E$2="Whole life",dax($F$5+C57,$F$10,0,1,0),Daxn($F$5+C57,$F$6-C57,$F$10,0,1,0)),0) -> 0 | G57: 0 | H57: 0
C58: 38 | D58: 88 | E58: =IF(C58<=$E$12,IF($E$2="Whole life",A1x($F$5+C58,$F$10),IF($E$2="Term insurance",A1xn($F$5+C58,$F$6-C58,$F$10),IF($E$2="Endowment",Axn($F$5+C58,$F$6-C58,$F$10,$F$9,$F$8),nex($F$5+C58,$F$6-C58,$F$10)))),0) -> 0 | F58: =IF(C58<=$E$12,IF($E$2="Whole life",dax($F$5+C58,$F$10,0,1,0),Daxn($F$5+C58,$F$6-C58,$F$10,0,1,0)),0) -> 0 | G58: 0 | H58: 0
C59: 39 | D59: 89 | E59: =IF(C59<=$E$12,IF($E$2="Whole life",A1x($F$5+C59,$F$10),IF($E$2="Term insurance",A1xn($F$5+C59,$F$6-C59,$F$10),IF($E$2="Endowment",Axn($F$5+C59,$F$6-C59,$F$10,$F$9,$F$8),nex($F$5+C59,$F$6-C59,$F$10)))),0) -> 0 | F59: =IF(C59<=$E$12,IF($E$2="Whole life",dax($F$5+C59,$F$10,0,1,0),Daxn($F$5+C59,$F$6-C59,$F$10,0,1,0)),0) -> 0 | G59: 0 | H59: 0
C60: 40 | D60: 90 | E60: =IF(C60<=$E$12,IF($E$2="Whole life",A1x($F$5+C60,$F$10),IF($E$2="Term insurance",A1xn($F$5+C60,$F$6-C60,$F$10),IF($E$2="Endowment",Axn($F$5+C60,$F$6-C60,$F$10,$F$9,$F$8),nex($F$5+C60,$F$6-C60,$F$10)))),0) -> 0 | F60: =IF(C60<=$E$12,IF($E$2="Whole life",dax($F$5+C60,$F$10,0,1,0),Daxn($F$5+C60,$F$6-C60,$F$10,0,1,0)),0) -> 0 | G60: 0 | H60: 0
C61: 41 | D61: 91 | E61: =IF(C61<=$E$12,IF($E$2="Whole life",A1x($F$5+C61,$F$10),IF($E$2="Term insurance",A1xn($F$5+C61,$F$6-C61,$F$10),IF($E$2="Endowment",Axn($F$5+C61,$F$6-C61,$F$10,$F$9,$F$8),nex($F$5+C61,$F$6-C61,$F$10)))),0) -> 0 | F61: =IF(C61<=$E$12,IF($E$2="Whole life",dax($F$5+C61,$F$10,0,1,0),Daxn($F$5+C61,$F$6-C61,$F$10,0,1,0)),0) -> 0 | G61: 0 | H61: 0
C62: 42 | D62: 92 | E62: =IF(C62<=$E$12,IF($E$2="Whole life",A1x($F$5+C62,$F$10),IF($E$2="Term insurance",A1xn($F$5+C62,$F$6-C62,$F$10),IF($E$2="Endowment",Axn($F$5+C62,$F$6-C62,$F$10,$F$9,$F$8),nex($F$5+C62,$F$6-C62,$F$10)))),0) -> 0 | F62: =IF(C62<=$E$12,IF($E$2="Whole life",dax($F$5+C62,$F$10,0,1,0),Daxn($F$5+C62,$F$6-C62,$F$10,0,1,0)),0) -> 0 | G62: 0 | H62: 0
C63: 43 | D63: 93 | E63: =IF(C63<=$E$12,IF($E$2="Whole life",A1x($F$5+C63,$F$10),IF($E$2="Term insurance",A1xn($F$5+C63,$F$6-C63,$F$10),IF($E$2="Endowment",Axn($F$5+C63,$F$6-C63,$F$10,$F$9,$F$8),nex($F$5+C63,$F$6-C63,$F$10)))),0) -> 0 | F63: =IF(C63<=$E$12,IF($E$2="Whole life",dax($F$5+C63,$F$10,0,1,0),Daxn($F$5+C63,$F$6-C63,$F$10,0,1,0)),0) -> 0 | G63: 0 | H63: 0
C64: 44 | D64: 94 | E64: =IF(C64<=$E$12,IF($E$2="Whole life",A1x($F$5+C64,$F$10),IF($E$2="Term insurance",A1xn($F$5+C64,$F$6-C64,$F$10),IF($E$2="Endowment",Axn($F$5+C64,$F$6-C64,$F$10,$F$9,$F$8),nex($F$5+C64,$F$6-C64,$F$10)))),0) -> 0 | F64: =IF(C64<=$E$12,IF($E$2="Whole life",dax($F$5+C64,$F$10,0,1,0),Daxn($F$5+C64,$F$6-C64,$F$10,0,1,0)),0) -> 0 | G64: 0 | H64: 0
C65: 45 | D65: 95 | E65: =IF(C65<=$E$12,IF($E$2="Whole life",A1x($F$5+C65,$F$10),IF($E$2="Term insurance",A1xn($F$5+C65,$F$6-C65,$F$10),IF($E$2="Endowment",Axn($F$5+C65,$F$6-C65,$F$10,$F$9,$F$8),nex($F$5+C65,$F$6-C65,$F$10)))),0) -> 0 | F65: =IF(C65<=$E$12,IF($E$2="Whole life",dax($F$5+C65,$F$10,0,1,0),Daxn($F$5+C65,$F$6-C65,$F$10,0,1,0)),0) -> 0 | G65: 0 | H65: 0
C66: 46 | D66: 96 | E66: =IF(C66<=$E$12,IF($E$2="Whole life",A1x($F$5+C66,$F$10),IF($E$2="Term insurance",A1xn($F$5+C66,$F$6-C66,$F$10),IF($E$2="Endowment",Axn($F$5+C66,$F$6-C66,$F$10,$F$9,$F$8),nex($F$5+C66,$F$6-C66,$F$10)))),0) -> 0 | F66: =IF(C66<=$E$12,IF($E$2="Whole life",dax($F$5+C66,$F$10,0,1,0),Daxn($F$5+C66,$F$6-C66,$F$10,0,1,0)),0) -> 0 | G66: 0 | H66: 0
C67: 47 | D67: 97 | E67: =IF(C67<=$E$12,IF($E$2="Whole life",A1x($F$5+C67,$F$10),IF($E$2="Term insurance",A1xn($F$5+C67,$F$6-C67,$F$10),IF($E$2="Endowment",Axn($F$5+C67,$F$6-C67,$F$10,$F$9,$F$8),nex($F$5+C67,$F$6-C67,$F$10)))),0) -> 0 | F67: =IF(C67<=$E$12,IF($E$2="Whole life",dax($F$5+C67,$F$10,0,1,0),Daxn($F$5+C67,$F$6-C67,$F$10,0,1,0)),0) -> 0 | G67: 0 | H67: 0
C68: 48 | D68: 98 | E68: =IF(C68<=$E$12,IF($E$2="Whole life",A1x($F$5+C68,$F$10),IF($E$2="Term insurance",A1xn($F$5+C68,$F$6-C68,$F$10),IF($E$2="Endowment",Axn($F$5+C68,$F$6-C68,$F$10,$F$9,$F$8),nex($F$5+C68,$F$6-C68,$F$10)))),0) -> 0 | F68: =IF(C68<=$E$12,IF($E$2="Whole life",dax($F$5+C68,$F$10,0,1,0),Daxn($F$5+C68,$F$6-C68,$F$10,0,1,0)),0) -> 0 | G68: 0 | H68: 0
C69: 49 | D69: 99 | E69: =IF(C69<=$E$12,IF($E$2="Whole life",A1x($F$5+C69,$F$10),IF($E$2="Term insurance",A1xn($F$5+C69,$F$6-C69,$F$10),IF($E$2="Endowment",Axn($F$5+C69,$F$6-C69,$F$10,$F$9,$F$8),nex($F$5+C69,$F$6-C69,$F$10)))),0) -> 0 | F69: =IF(C69<=$E$12,IF($E$2="Whole life",dax($F$5+C69,$F$10,0,1,0),Daxn($F$5+C69,$F$6-C69,$F$10,0,1,0)),0) -> 0 | G69: 0 | H69: 0
C70: 50 | D70: 100 | E70: =IF(C70<=$E$12,IF($E$2="Whole life",A1x($F$5+C70,$F$10),IF($E$2="Term insurance",A1xn($F$5+C70,$F$6-C70,$F$10),IF($E$2="Endowment",Axn($F$5+C70,$F$6-C70,$F$10,$F$9,$F$8),nex($F$5+C70,$F$6-C70,$F$10)))),0) -> 0 | F70: =IF(C70<=$E$12,IF($E$2="Whole life",dax($F$5+C70,$F$10,0,1,0),Daxn($F$5+C70,$F$6-C70,$F$10,0,1,0)),0) -> 0 | G70: 0 | H70: 0
C71: 51 | D71: 101 | E71: =IF(C71<=$E$12,IF($E$2="Whole life",A1x($F$5+C71,$F$10),IF($E$2="Term insurance",A1xn($F$5+C71,$F$6-C71,$F$10),IF($E$2="Endowment",Axn($F$5+C71,$F$6-C71,$F$10,$F$9,$F$8),nex($F$5+C71,$F$6-C71,$F$10)))),0) -> 0 | F71: =IF(C71<=$E$12,IF($E$2="Whole life",dax($F$5+C71,$F$10,0,1,0),Daxn($F$5+C71,$F$6-C71,$F$10,0,1,0)),0) -> 0 | G71: 0 | H71: 0
C72: 52 | D72: 102 | E72: =IF(C72<=$E$12,IF($E$2="Whole life",A1x($F$5+C72,$F$10),IF($E$2="Term insurance",A1xn($F$5+C72,$F$6-C72,$F$10),IF($E$2="Endowment",Axn($F$5+C72,$F$6-C72,$F$10,$F$9,$F$8),nex($F$5+C72,$F$6-C72,$F$10)))),0) -> 0 | F72: =IF(C72<=$E$12,IF($E$2="Whole life",dax($F$5+C72,$F$10,0,1,0),Daxn($F$5+C72,$F$6-C72,$F$10,0,1,0)),0) -> 0 | G72: 0 | H72: 0
C73: 53 | D73: 103 | E73: =IF(C73<=$E$12,IF($E$2="Whole life",A1x($F$5+C73,$F$10),IF($E$2="Term insurance",A1xn($F$5+C73,$F$6-C73,$F$10),IF($E$2="Endowment",Axn($F$5+C73,$F$6-C73,$F$10,$F$9,$F$8),nex($F$5+C73,$F$6-C73,$F$10)))),0) -> 0 | F73: =IF(C73<=$E$12,IF($E$2="Whole life",dax($F$5+C73,$F$10,0,1,0),Daxn($F$5+C73,$F$6-C73,$F$10,0,1,0)),0) -> 0 | G73: 0 | H73: 0
C74: 54 | D74: 104 | E74: =IF(C74<=$E$12,IF($E$2="Whole life",A1x($F$5+C74,$F$10),IF($E$2="Term insurance",A1xn($F$5+C74,$F$6-C74,$F$10),IF($E$2="Endowment",Axn($F$5+C74,$F$6-C74,$F$10,$F$9,$F$8),nex($F$5+C74,$F$6-C74,$F$10)))),0) -> 0 | F74: =IF(C74<=$E$12,IF($E$2="Whole life",dax($F$5+C74,$F$10,0,1,0),Daxn($F$5+C74,$F$6-C74,$F$10,0,1,0)),0) -> 0 | G74: 0 | H74: 0
C75: 55 | D75: 105 | E75: =IF(C75<=$E$12,IF($E$2="Whole life",A1x($F$5+C75,$F$10),IF($E$2="Term insurance",A1xn($F$5+C75,$F$6-C75,$F$10),IF($E$2="Endowment",Axn($F$5+C75,$F$6-C75,$F$10,$F$9,$F$8),nex($F$5+C75,$F$6-C75,$F$10)))),0) -> 0 | F75: =IF(C75<=$E$12,IF($E$2="Whole life",dax($F$5+C75,$F$10,0,1,0),Daxn($F$5+C75,$F$6-C75,$F$10,0,1,0)),0) -> 0 | G75: 0 | H75: 0
C76: =C75+1 -> 56 | D76: =D75+1 -> 106 | E76: =IF(C76<=$E$12,IF($E$2="Whole life",A1x($F$5+C76,$F$10),IF($E$2="Term insurance",A1xn($F$5+C76,$F$6-C76,$F$10),IF($E$2="Endowment",Axn($F$5+C76,$F$6-C76,$F$10,$F$9,$F$8),nex($F$5+C76,$F$6-C76,$F$10)))),0) -> 0 | F76: =IF(C76<=$E$12,IF($E$2="Whole life",dax($F$5+C76,$F$10,0,1,0),Daxn($F$5+C76,$F$6-C76,$F$10,0,1,0)),0) -> 0 | G76: 0 | H76: 0
C77: 57 | D77: 107 | E77: =IF(C77<=$E$12,IF($E$2="Whole life",A1x($F$5+C77,$F$10),IF($E$2="Term insurance",A1xn($F$5+C77,$F$6-C77,$F$10),IF($E$2="Endowment",Axn($F$5+C77,$F$6-C77,$F$10,$F$9,$F$8),nex($F$5+C77,$F$6-C77,$F$10)))),0) -> 0 | F77: =IF(C77<=$E$12,IF($E$2="Whole life",dax($F$5+C77,$F$10,0,1,0),Daxn($F$5+C77,$F$6-C77,$F$10,0,1,0)),0) -> 0 | G77: 0 | H77: 0
C78: 58 | D78: 108 | E78: =IF(C78<=$E$12,IF($E$2="Whole life",A1x($F$5+C78,$F$10),IF($E$2="Term insurance",A1xn($F$5+C78,$F$6-C78,$F$10),IF($E$2="Endowment",Axn($F$5+C78,$F$6-C78,$F$10,$F$9,$F$8),nex($F$5+C78,$F$6-C78,$F$10)))),0) -> 0 | F78: =IF(C78<=$E$12,IF($E$2="Whole life",dax($F$5+C78,$F$10,0,1,0),Daxn($F$5+C78,$F$6-C78,$F$10,0,1,0)),0) -> 0 | G78: 0 | H78: 0
C79: 59 | D79: 109 | E79: =IF(C79<=$E$12,IF($E$2="Whole life",A1x($F$5+C79,$F$10),IF($E$2="Term insurance",A1xn($F$5+C79,$F$6-C79,$F$10),IF($E$2="Endowment",Axn($F$5+C79,$F$6-C79,$F$10,$F$9,$F$8),nex($F$5+C79,$F$6-C79,$F$10)))),0) -> 0 | F79: =IF(C79<=$E$12,IF($E$2="Whole life",dax($F$5+C79,$F$10,0,1,0),Daxn($F$5+C79,$F$6-C79,$F$10,0,1,0)),0) -> 0 | G79: 0 | H79: 0
C80: 60 | D80: 110 | E80: =IF(C80<=$E$12,IF($E$2="Whole life",A1x($F$5+C80,$F$10),IF($E$2="Term insurance",A1xn($F$5+C80,$F$6-C80,$F$10),IF($E$2="Endowment",Axn($F$5+C80,$F$6-C80,$F$10,$F$9,$F$8),nex($F$5+C80,$F$6-C80,$F$10)))),0) -> 0 | F80: =IF(C80<=$E$12,IF($E$2="Whole life",dax($F$5+C80,$F$10,0,1,0),Daxn($F$5+C80,$F$6-C80,$F$10,0,1,0)),0) -> 0 | G80: 0 | H80: 0
C81: 61 | D81: 111 | E81: =IF(C81<=$E$12,IF($E$2="Whole life",A1x($F$5+C81,$F$10),IF($E$2="Term insurance",A1xn($F$5+C81,$F$6-C81,$F$10),IF($E$2="Endowment",Axn($F$5+C81,$F$6-C81,$F$10,$F$9,$F$8),nex($F$5+C81,$F$6-C81,$F$10)))),0) -> 0 | F81: =IF(C81<=$E$12,IF($E$2="Whole life",dax($F$5+C81,$F$10,0,1,0),Daxn($F$5+C81,$F$6-C81,$F$10,0,1,0)),0) -> 0 | G81: 0 | H81: 0
C82: 62 | D82: 112 | E82: =IF(C82<=$E$12,IF($E$2="Whole life",A1x($F$5+C82,$F$10),IF($E$2="Term insurance",A1xn($F$5+C82,$F$6-C82,$F$10),IF($E$2="Endowment",Axn($F$5+C82,$F$6-C82,$F$10,$F$9,$F$8),nex($F$5+C82,$F$6-C82,$F$10)))),0) -> 0 | F82: =IF(C82<=$E$12,IF($E$2="Whole life",dax($F$5+C82,$F$10,0,1,0),Daxn($F$5+C82,$F$6-C82,$F$10,0,1,0)),0) -> 0 | G82: 0 | H82: 0
C83: 63 | D83: 113 | E83: =IF(C83<=$E$12,IF($E$2="Whole life",A1x($F$5+C83,$F$10),IF($E$2="Term insurance",A1xn($F$5+C83,$F$6-C83,$F$10),IF($E$2="Endowment",Axn($F$5+C83,$F$6-C83,$F$10,$F$9,$F$8),nex($F$5+C83,$F$6-C83,$F$10)))),0) -> 0 | F83: =IF(C83<=$E$12,IF($E$2="Whole life",dax($F$5+C83,$F$10,0,1,0),Daxn($F$5+C83,$F$6-C83,$F$10,0,1,0)),0) -> 0 | G83: 0 | H83: 0
C84: 64 | D84: 114 | E84: =IF(C84<=$E$12,IF($E$2="Whole life",A1x($F$5+C84,$F$10),IF($E$2="Term insurance",A1xn($F$5+C84,$F$6-C84,$F$10),IF($E$2="Endowment",Axn($F$5+C84,$F$6-C84,$F$10,$F$9,$F$8),nex($F$5+C84,$F$6-C84,$F$10)))),0) -> 0 | F84: =IF(C84<=$E$12,IF($E$2="Whole life",dax($F$5+C84,$F$10,0,1,0),Daxn($F$5+C84,$F$6-C84,$F$10,0,1,0)),0) -> 0 | G84: 0 | H84: 0
C85: 65 | D85: 115 | E85: =IF(C85<=$E$12,IF($E$2="Whole life",A1x($F$5+C85,$F$10),IF($E$2="Term insurance",A1xn($F$5+C85,$F$6-C85,$F$10),IF($E$2="Endowment",Axn($F$5+C85,$F$6-C85,$F$10,$F$9,$F$8),nex($F$5+C85,$F$6-C85,$F$10)))),0) -> 0 | F85: =IF(C85<=$E$12,IF($E$2="Whole life",dax($F$5+C85,$F$10,0,1,0),Daxn($F$5+C85,$F$6-C85,$F$10,0,1,0)),0) -> 0 | G85: =E85-$H$9*F85 -> 0 | H85: =G85*$F$8 -> 0
C86: 66 | D86: =D85+1 -> 116 | E86: =IF(C86<=$E$12,IF($E$2="Whole life",A1x($F$5+C86,$F$10),IF($E$2="Term insurance",A1xn($F$5+C86,$F$6-C86,$F$10),IF($E$2="Endowment",Axn($F$5+C86,$F$6-C86,$F$10,$F$9,$F$8),nex($F$5+C86,$F$6-C86,$F$10)))),0) -> 0 | F86: =IF(C86<=$E$12,IF($E$2="Whole life",dax($F$5+C86,$F$10,0,1,0),Daxn($F$5+C86,$F$6-C86,$F$10,0,1,0)),0) -> 0 | G86: 0 | H86: 0
C87: 67 | D87: 117 | E87: =IF(C87<=$E$12,IF($E$2="Whole life",A1x($F$5+C87,$F$10),IF($E$2="Term insurance",A1xn($F$5+C87,$F$6-C87,$F$10),IF($E$2="Endowment",Axn($F$5+C87,$F$6-C87,$F$10,$F$9,$F$8),nex($F$5+C87,$F$6-C87,$F$10)))),0) -> 0 | F87: =IF(C87<=$E$12,IF($E$2="Whole life",dax($F$5+C87,$F$10,0,1,0),Daxn($F$5+C87,$F$6-C87,$F$10,0,1,0)),0) -> 0 | G87: 0 | H87: 0
C88: 68 | D88: 118 | E88: =IF(C88<=$E$12,IF($E$2="Whole life",A1x($F$5+C88,$F$10),IF($E$2="Term insurance",A1xn($F$5+C88,$F$6-C88,$F$10),IF($E$2="Endowment",Axn($F$5+C88,$F$6-C88,$F$10,$F$9,$F$8),nex($F$5+C88,$F$6-C88,$F$10)))),0) -> 0 | F88: =IF(C88<=$E$12,IF($E$2="Whole life",dax($F$5+C88,$F$10,0,1,0),Daxn($F$5+C88,$F$6-C88,$F$10,0,1,0)),0) -> 0 | G88: 0 | H88: 0
C89: 69 | D89: 119 | E89: =IF(C89<=$E$12,IF($E$2="Whole life",A1x($F$5+C89,$F$10),IF($E$2="Term insurance",A1xn($F$5+C89,$F$6-C89,$F$10),IF($E$2="Endowment",Axn($F$5+C89,$F$6-C89,$F$10,$F$9,$F$8),nex($F$5+C89,$F$6-C89,$F$10)))),0) -> 0 | F89: =IF(C89<=$E$12,IF($E$2="Whole life",dax($F$5+C89,$F$10,0,1,0),Daxn($F$5+C89,$F$6-C89,$F$10,0,1,0)),0) -> 0 | G89: 0 | H89: 0
C90: 70 | D90: 120 | E90: =IF(C90<=$E$12,IF($E$2="Whole life",A1x($F$5+C90,$F$10),IF($E$2="Term insurance",A1xn($F$5+C90,$F$6-C90,$F$10),IF($E$2="Endowment",Axn($F$5+C90,$F$6-C90,$F$10,$F$9,$F$8),nex($F$5+C90,$F$6-C90,$F$10)))),0) -> 0 | F90: =IF(C90<=$E$12,IF($E$2="Whole life",dax($F$5+C90,$F$10,0,1,0),Daxn($F$5+C90,$F$6-C90,$F$10,0,1,0)),0) -> 0 | G90: 0 | H90: 0
C91: 71 | D91: 121 | E91: =IF(C91<=$E$12,IF($E$2="Whole life",A1x($F$5+C91,$F$10),IF($E$2="Term insurance",A1xn($F$5+C91,$F$6-C91,$F$10),IF($E$2="Endowment",Axn($F$5+C91,$F$6-C91,$F$10,$F$9,$F$8),nex($F$5+C91,$F$6-C91,$F$10)))),0) -> 0 | F91: =IF(C91<=$E$12,IF($E$2="Whole life",dax($F$5+C91,$F$10,0,1,0),Daxn($F$5+C91,$F$6-C91,$F$10,0,1,0)),0) -> 0 | G91: 0 | H91: 0
C92: 72 | D92: 122 | E92: =IF(C92<=$E$12,IF($E$2="Whole life",A1x($F$5+C92,$F$10),IF($E$2="Term insurance",A1xn($F$5+C92,$F$6-C92,$F$10),IF($E$2="Endowment",Axn($F$5+C92,$F$6-C92,$F$10,$F$9,$F$8),nex($F$5+C92,$F$6-C92,$F$10)))),0) -> 0 | F92: =IF(C92<=$E$12,IF($E$2="Whole life",dax($F$5+C92,$F$10,0,1,0),Daxn($F$5+C92,$F$6-C92,$F$10,0,1,0)),0) -> 0 | G92: 0 | H92: 0
C93: 73 | D93: 123 | E93: =IF(C93<=$E$12,IF($E$2="Whole life",A1x($F$5+C93,$F$10),IF($E$2="Term insurance",A1xn($F$5+C93,$F$6-C93,$F$10),IF($E$2="Endowment",Axn($F$5+C93,$F$6-C93,$F$10,$F$9,$F$8),nex($F$5+C93,$F$6-C93,$F$10)))),0) -> 0 | F93: =IF(C93<=$E$12,IF($E$2="Whole life",dax($F$5+C93,$F$10,0,1,0),Daxn($F$5+C93,$F$6-C93,$F$10,0,1,0)),0) -> 0 | G93: 0 | H93: 0
C94: 74 | D94: =D93+1 -> 124 | E94: =IF(C94<=$E$12,IF($E$2="Whole life",A1x($F$5+C94,$F$10),IF($E$2="Term insurance",A1xn($F$5+C94,$F$6-C94,$F$10),IF($E$2="Endowment",Axn($F$5+C94,$F$6-C94,$F$10,$F$9,$F$8),nex($F$5+C94,$F$6-C94,$F$10)))),0) -> 0 | F94: =IF(C94<=$E$12,IF($E$2="Whole life",dax($F$5+C94,$F$10,0,1,0),Daxn($F$5+C94,$F$6-C94,$F$10,0,1,0)),0) -> 0 | G94: 0 | H94: 0
C95: 75 | D95: =D94+1 -> 125 | E95: =IF(C95<=$E$12,IF($E$2="Whole life",A1x($F$5+C95,$F$10),IF($E$2="Term insurance",A1xn($F$5+C95,$F$6-C95,$F$10),IF($E$2="Endowment",Axn($F$5+C95,$F$6-C95,$F$10,$F$9,$F$8),nex($F$5+C95,$F$6-C95,$F$10)))),0) -> 0 | F95: =IF(C95<=$E$12,IF($E$2="Whole life",dax($F$5+C95,$F$10,0,1,0),Daxn($F$5+C95,$F$6-C95,$F$10,0,1,0)),0) -> 0 | G95: 0 | H95: 0
C96: 76 | D96: 126 | E96: =IF(C96<=$E$12,IF($E$2="Whole life",A1x($F$5+C96,$F$10),IF($E$2="Term insurance",A1xn($F$5+C96,$F$6-C96,$F$10),IF($E$2="Endowment",Axn($F$5+C96,$F$6-C96,$F$10,$F$9,$F$8),nex($F$5+C96,$F$6-C96,$F$10)))),0) -> 0 | F96: =IF(C96<=$E$12,IF($E$2="Whole life",dax($F$5+C96,$F$10,0,1,0),Daxn($F$5+C96,$F$6-C96,$F$10,0,1,0)),0) -> 0 | G96: 0 | H96: 0
C97: 77 | D97: 127 | E97: =IF(C97<=$E$12,IF($E$2="Whole life",A1x($F$5+C97,$F$10),IF($E$2="Term insurance",A1xn($F$5+C97,$F$6-C97,$F$10),IF($E$2="Endowment",Axn($F$5+C97,$F$6-C97,$F$10,$F$9,$F$8),nex($F$5+C97,$F$6-C97,$F$10)))),0) -> 0 | F97: =IF(C97<=$E$12,IF($E$2="Whole life",dax($F$5+C97,$F$10,0,1,0),Daxn($F$5+C97,$F$6-C97,$F$10,0,1,0)),0) -> 0 | G97: 0 | H97: 0
C98: 78 | D98: 128 | E98: =IF(C98<=$E$12,IF($E$2="Whole life",A1x($F$5+C98,$F$10),IF($E$2="Term insurance",A1xn($F$5+C98,$F$6-C98,$F$10),IF($E$2="Endowment",Axn($F$5+C98,$F$6-C98,$F$10,$F$9,$F$8),nex($F$5+C98,$F$6-C98,$F$10)))),0) -> 0 | F98: =IF(C98<=$E$12,IF($E$2="Whole life",dax($F$5+C98,$F$10,0,1,0),Daxn($F$5+C98,$F$6-C98,$F$10,0,1,0)),0) -> 0 | G98: 0 | H98: 0
C99: 79 | D99: 129 | E99: =IF(C99<=$E$12,IF($E$2="Whole life",A1x($F$5+C99,$F$10),IF($E$2="Term insurance",A1xn($F$5+C99,$F$6-C99,$F$10),IF($E$2="Endowment",Axn($F$5+C99,$F$6-C99,$F$10,$F$9,$F$8),nex($F$5+C99,$F$6-C99,$F$10)))),0) -> 0 | F99: =IF(C99<=$E$12,IF($E$2="Whole life",dax($F$5+C99,$F$10,0,1,0),Daxn($F$5+C99,$F$6-C99,$F$10,0,1,0)),0) -> 0 | G99: 0 | H99: 0
C100: 80 | D100: 130 | E100: =IF(C100<=$E$12,IF($E$2="Whole life",A1x($F$5+C100,$F$10),IF($E$2="Term insurance",A1xn($F$5+C100,$F$6-C100,$F$10),IF($E$2="Endowment",Axn($F$5+C100,$F$6-C100,$F$10,$F$9,$F$8),nex($F$5+C100,$F$6-C100,$F$10)))),0) -> 0 | F100: =IF(C100<=$E$12,IF($E$2="Whole life",dax($F$5+C100,$F$10,0,1,0),Daxn($F$5+C100,$F$6-C100,$F$10,0,1,0)),0) -> 0 | G100: 0 | H100: 0
C101: 81 | D101: 131 | E101: =IF(C101<=$E$12,IF($E$2="Whole life",A1x($F$5+C101,$F$10),IF($E$2="Term insurance",A1xn($F$5+C101,$F$6-C101,$F$10),IF($E$2="Endowment",Axn($F$5+C101,$F$6-C101,$F$10,$F$9,$F$8),nex($F$5+C101,$F$6-C101,$F$10)))),0) -> 0 | F101: =IF(C101<=$E$12,IF($E$2="Whole life",dax($F$5+C101,$F$10,0,1,0),Daxn($F$5+C101,$F$6-C101,$F$10,0,1,0)),0) -> 0 | G101: 0 | H101: 0
C102: 82 | D102: 132 | E102: =IF(C102<=$E$12,IF($E$2="Whole life",A1x($F$5+C102,$F$10),IF($E$2="Term insurance",A1xn($F$5+C102,$F$6-C102,$F$10),IF($E$2="Endowment",Axn($F$5+C102,$F$6-C102,$F$10,$F$9,$F$8),nex($F$5+C102,$F$6-C102,$F$10)))),0) -> 0 | F102: =IF(C102<=$E$12,IF($E$2="Whole life",dax($F$5+C102,$F$10,0,1,0),Daxn($F$5+C102,$F$6-C102,$F$10,0,1,0)),0) -> 0 | G102: 0 | H102: 0
C103: 83 | D103: =D102+1 -> 133 | E103: =IF(C103<=$E$12,IF($E$2="Whole life",A1x($F$5+C103,$F$10),IF($E$2="Term insurance",A1xn($F$5+C103,$F$6-C103,$F$10),IF($E$2="Endowment",Axn($F$5+C103,$F$6-C103,$F$10,$F$9,$F$8),nex($F$5+C103,$F$6-C103,$F$10)))),0) -> 0 | F103: =IF(C103<=$E$12,IF($E$2="Whole life",dax($F$5+C103,$F$10,0,1,0),Daxn($F$5+C103,$F$6-C103,$F$10,0,1,0)),0) -> 0 | G103: 0 | H103: 0
C104: 84 | D104: 134 | E104: =IF(C104<=$E$12,IF($E$2="Whole life",A1x($F$5+C104,$F$10),IF($E$2="Term insurance",A1xn($F$5+C104,$F$6-C104,$F$10),IF($E$2="Endowment",Axn($F$5+C104,$F$6-C104,$F$10,$F$9,$F$8),nex($F$5+C104,$F$6-C104,$F$10)))),0) -> 0 | F104: =IF(C104<=$E$12,IF($E$2="Whole life",dax($F$5+C104,$F$10,0,1,0),Daxn($F$5+C104,$F$6-C104,$F$10,0,1,0)),0) -> 0 | G104: 0 | H104: 0
C105: 85 | D105: 135 | E105: =IF(C105<=$E$12,IF($E$2="Whole life",A1x($F$5+C105,$F$10),IF($E$2="Term insurance",A1xn($F$5+C105,$F$6-C105,$F$10),IF($E$2="Endowment",Axn($F$5+C105,$F$6-C105,$F$10,$F$9,$F$8),nex($F$5+C105,$F$6-C105,$F$10)))),0) -> 0 | F105: =IF(C105<=$E$12,IF($E$2="Whole life",dax($F$5+C105,$F$10,0,1,0),Daxn($F$5+C105,$F$6-C105,$F$10,0,1,0)),0) -> 0 | G105: 0 | H105: 0
C106: 86 | D106: 136 | E106: =IF(C106<=$E$12,IF($E$2="Whole life",A1x($F$5+C106,$F$10),IF($E$2="Term insurance",A1xn($F$5+C106,$F$6-C106,$F$10),IF($E$2="Endowment",Axn($F$5+C106,$F$6-C106,$F$10,$F$9,$F$8),nex($F$5+C106,$F$6-C106,$F$10)))),0) -> 0 | F106: =IF(C106<=$E$12,IF($E$2="Whole life",dax($F$5+C106,$F$10,0,1,0),Daxn($F$5+C106,$F$6-C106,$F$10,0,1,0)),0) -> 0 | G106: 0 | H106: 0
C107: 87 | D107: 137 | E107: =IF(C107<=$E$12,IF($E$2="Whole life",A1x($F$5+C107,$F$10),IF($E$2="Term insurance",A1xn($F$5+C107,$F$6-C107,$F$10),IF($E$2="Endowment",Axn($F$5+C107,$F$6-C107,$F$10,$F$9,$F$8),nex($F$5+C107,$F$6-C107,$F$10)))),0) -> 0 | F107: =IF(C107<=$E$12,IF($E$2="Whole life",dax($F$5+C107,$F$10,0,1,0),Daxn($F$5+C107,$F$6-C107,$F$10,0,1,0)),0) -> 0 | G107: 0 | H107: 0
C108: 88 | D108: 138 | E108: =IF(C108<=$E$12,IF($E$2="Whole life",A1x($F$5+C108,$F$10),IF($E$2="Term insurance",A1xn($F$5+C108,$F$6-C108,$F$10),IF($E$2="Endowment",Axn($F$5+C108,$F$6-C108,$F$10,$F$9,$F$8),nex($F$5+C108,$F$6-C108,$F$10)))),0) -> 0 | F108: =IF(C108<=$E$12,IF($E$2="Whole life",dax($F$5+C108,$F$10,0,1,0),Daxn($F$5+C108,$F$6-C108,$F$10,0,1,0)),0) -> 0 | G108: 0 | H108: 0
C109: 89 | D109: =D108+1 -> 139 | E109: =IF(C109<=$E$12,IF($E$2="Whole life",A1x($F$5+C109,$F$10),IF($E$2="Term insurance",A1xn($F$5+C109,$F$6-C109,$F$10),IF($E$2="Endowment",Axn($F$5+C109,$F$6-C109,$F$10,$F$9,$F$8),nex($F$5+C109,$F$6-C109,$F$10)))),0) -> 0 | F109: =IF(C109<=$E$12,IF($E$2="Whole life",dax($F$5+C109,$F$10,0,1,0),Daxn($F$5+C109,$F$6-C109,$F$10,0,1,0)),0) -> 0 | G109: 0 | H109: 0
C110: 90 | D110: 140 | E110: =IF(C110<=$E$12,IF($E$2="Whole life",A1x($F$5+C110,$F$10),IF($E$2="Term insurance",A1xn($F$5+C110,$F$6-C110,$F$10),IF($E$2="Endowment",Axn($F$5+C110,$F$6-C110,$F$10,$F$9,$F$8),nex($F$5+C110,$F$6-C110,$F$10)))),0) -> 0 | F110: =IF(C110<=$E$12,IF($E$2="Whole life",dax($F$5+C110,$F$10,0,1,0),Daxn($F$5+C110,$F$6-C110,$F$10,0,1,0)),0) -> 0 | G110: 0 | H110: 0
C111: 91 | D111: 141 | E111: =IF(C111<=$E$12,IF($E$2="Whole life",A1x($F$5+C111,$F$10),IF($E$2="Term insurance",A1xn($F$5+C111,$F$6-C111,$F$10),IF($E$2="Endowment",Axn($F$5+C111,$F$6-C111,$F$10,$F$9,$F$8),nex($F$5+C111,$F$6-C111,$F$10)))),0) -> 0 | F111: =IF(C111<=$E$12,IF($E$2="Whole life",dax($F$5+C111,$F$10,0,1,0),Daxn($F$5+C111,$F$6-C111,$F$10,0,1,0)),0) -> 0 | G111: 0 | H111: 0
C112: 92 | D112: 142 | E112: =IF(C112<=$E$12,IF($E$2="Whole life",A1x($F$5+C112,$F$10),IF($E$2="Term insurance",A1xn($F$5+C112,$F$6-C112,$F$10),IF($E$2="Endowment",Axn($F$5+C112,$F$6-C112,$F$10,$F$9,$F$8),nex($F$5+C112,$F$6-C112,$F$10)))),0) -> 0 | F112: =IF(C112<=$E$12,IF($E$2="Whole life",dax($F$5+C112,$F$10,0,1,0),Daxn($F$5+C112,$F$6-C112,$F$10,0,1,0)),0) -> 0 | G112: 0 | H112: 0
C113: 93 | D113: 143 | E113: =IF(C113<=$E$12,IF($E$2="Whole life",A1x($F$5+C113,$F$10),IF($E$2="Term insurance",A1xn($F$5+C113,$F$6-C113,$F$10),IF($E$2="Endowment",Axn($F$5+C113,$F$6-C113,$F$10,$F$9,$F$8),nex($F$5+C113,$F$6-C113,$F$10)))),0) -> 0 | F113: =IF(C113<=$E$12,IF($E$2="Whole life",dax($F$5+C113,$F$10,0,1,0),Daxn($F$5+C113,$F$6-C113,$F$10,0,1,0)),0) -> 0 | G113: 0 | H113: 0
C114: 94 | D114: 144 | E114: =IF(C114<=$E$12,IF($E$2="Whole life",A1x($F$5+C114,$F$10),IF($E$2="Term insurance",A1xn($F$5+C114,$F$6-C114,$F$10),IF($E$2="Endowment",Axn($F$5+C114,$F$6-C114,$F$10,$F$9,$F$8),nex($F$5+C114,$F$6-C114,$F$10)))),0) -> 0 | F114: =IF(C114<=$E$12,IF($E$2="Whole life",dax($F$5+C114,$F$10,0,1,0),Daxn($F$5+C114,$F$6-C114,$F$10,0,1,0)),0) -> 0 | G114: 0 | H114: 0
C115: 95 | D115: 145 | E115: =IF(C115<=$E$12,IF($E$2="Whole life",A1x($F$5+C115,$F$10),IF($E$2="Term insurance",A1xn($F$5+C115,$F$6-C115,$F$10),IF($E$2="Endowment",Axn($F$5+C115,$F$6-C115,$F$10,$F$9,$F$8),nex($F$5+C115,$F$6-C115,$F$10)))),0) -> 0 | F115: =IF(C115<=$E$12,IF($E$2="Whole life",dax($F$5+C115,$F$10,0,1,0),Daxn($F$5+C115,$F$6-C115,$F$10,0,1,0)),0) -> 0 | G115: 0 | H115: 0
C116: 96 | D116: 146 | E116: =IF(C116<=$E$12,IF($E$2="Whole life",A1x($F$5+C116,$F$10),IF($E$2="Term insurance",A1xn($F$5+C116,$F$6-C116,$F$10),IF($E$2="Endowment",Axn($F$5+C116,$F$6-C116,$F$10,$F$9,$F$8),nex($F$5+C116,$F$6-C116,$F$10)))),0) -> 0 | F116: =IF(C116<=$E$12,IF($E$2="Whole life",dax($F$5+C116,$F$10,0,1,0),Daxn($F$5+C116,$F$6-C116,$F$10,0,1,0)),0) -> 0 | G116: 0 | H116: 0
C117: 97 | D117: 147 | E117: =IF(C117<=$E$12,IF($E$2="Whole life",A1x($F$5+C117,$F$10),IF($E$2="Term insurance",A1xn($F$5+C117,$F$6-C117,$F$10),IF($E$2="Endowment",Axn($F$5+C117,$F$6-C117,$F$10,$F$9,$F$8),nex($F$5+C117,$F$6-C117,$F$10)))),0) -> 0 | F117: =IF(C117<=$E$12,IF($E$2="Whole life",dax($F$5+C117,$F$10,0,1,0),Daxn($F$5+C117,$F$6-C117,$F$10,0,1,0)),0) -> 0 | G117: 0 | H117: 0
C118: 98 | D118: 148 | E118: =IF(C118<=$E$12,IF($E$2="Whole life",A1x($F$5+C118,$F$10),IF($E$2="Term insurance",A1xn($F$5+C118,$F$6-C118,$F$10),IF($E$2="Endowment",Axn($F$5+C118,$F$6-C118,$F$10,$F$9,$F$8),nex($F$5+C118,$F$6-C118,$F$10)))),0) -> 0 | F118: =IF(C118<=$E$12,IF($E$2="Whole life",dax($F$5+C118,$F$10,0,1,0),Daxn($F$5+C118,$F$6-C118,$F$10,0,1,0)),0) -> 0 | G118: 0 | H118: 0
C119: 99 | D119: 149 | E119: =IF(C119<=$E$12,IF($E$2="Whole life",A1x($F$5+C119,$F$10),IF($E$2="Term insurance",A1xn($F$5+C119,$F$6-C119,$F$10),IF($E$2="Endowment",Axn($F$5+C119,$F$6-C119,$F$10,$F$9,$F$8),nex($F$5+C119,$F$6-C119,$F$10)))),0) -> 0 | F119: =IF(C119<=$E$12,IF($E$2="Whole life",dax($F$5+C119,$F$10,0,1,0),Daxn($F$5+C119,$F$6-C119,$F$10,0,1,0)),0) -> 0 | G119: 0 | H119: 0
C120: 100 | D120: 150 | E120: =IF(C120<=$E$12,IF($E$2="Whole life",A1x($F$5+C120,$F$10),IF($E$2="Term insurance",A1xn($F$5+C120,$F$6-C120,$F$10),IF($E$2="Endowment",Axn($F$5+C120,$F$6-C120,$F$10,$F$9,$F$8),nex($F$5+C120,$F$6-C120,$F$10)))),0) -> 0 | F120: =IF(C120<=$E$12,IF($E$2="Whole life",dax($F$5+C120,$F$10,0,1,0),Daxn($F$5+C120,$F$6-C120,$F$10,0,1,0)),0) -> 0 | G120: 0 | H120: 0
C121: 101 | D121: 151 | E121: =IF(C121<=$E$12,IF($E$2="Whole life",A1x($F$5+C121,$F$10),IF($E$2="Term insurance",A1xn($F$5+C121,$F$6-C121,$F$10),IF($E$2="Endowment",Axn($F$5+C121,$F$6-C121,$F$10,$F$9,$F$8),nex($F$5+C121,$F$6-C121,$F$10)))),0) -> 0 | F121: =IF(C121<=$E$12,IF($E$2="Whole life",dax($F$5+C121,$F$10,0,1,0),Daxn($F$5+C121,$F$6-C121,$F$10,0,1,0)),0) -> 0 | G121: 0 | H121: 0
C122: 102 | D122: 152 | E122: =IF(C122<=$E$12,IF($E$2="Whole life",A1x($F$5+C122,$F$10),IF($E$2="Term insurance",A1xn($F$5+C122,$F$6-C122,$F$10),IF($E$2="Endowment",Axn($F$5+C122,$F$6-C122,$F$10,$F$9,$F$8),nex($F$5+C122,$F$6-C122,$F$10)))),0) -> 0 | F122: =IF(C122<=$E$12,IF($E$2="Whole life",dax($F$5+C122,$F$10,0,1,0),Daxn($F$5+C122,$F$6-C122,$F$10,0,1,0)),0) -> 0 | G122: 0 | H122: 0
C123: 103 | D123: 153 | E123: =IF(C123<=$E$12,IF($E$2="Whole life",A1x($F$5+C123,$F$10),IF($E$2="Term insurance",A1xn($F$5+C123,$F$6-C123,$F$10),IF($E$2="Endowment",Axn($F$5+C123,$F$6-C123,$F$10,$F$9,$F$8),nex($F$5+C123,$F$6-C123,$F$10)))),0) -> 0 | F123: =IF(C123<=$E$12,IF($E$2="Whole life",dax($F$5+C123,$F$10,0,1,0),Daxn($F$5+C123,$F$6-C123,$F$10,0,1,0)),0) -> 0 | G123: 0 | H123: 0
C124: 104 | D124: 154 | E124: =IF(C124<=$E$12,IF($E$2="Whole life",A1x($F$5+C124,$F$10),IF($E$2="Term insurance",A1xn($F$5+C124,$F$6-C124,$F$10),IF($E$2="Endowment",Axn($F$5+C124,$F$6-C124,$F$10,$F$9,$F$8),nex($F$5+C124,$F$6-C124,$F$10)))),0) -> 0 | F124: =IF(C124<=$E$12,IF($E$2="Whole life",dax($F$5+C124,$F$10,0,1,0),Daxn($F$5+C124,$F$6-C124,$F$10,0,1,0)),0) -> 0 | G124: 0 | H124: 0
C125: 105 | D125: 155 | E125: =IF(C125<=$E$12,IF($E$2="Whole life",A1x($F$5+C125,$F$10),IF($E$2="Term insurance",A1xn($F$5+C125,$F$6-C125,$F$10),IF($E$2="Endowment",Axn($F$5+C125,$F$6-C125,$F$10,$F$9,$F$8),nex($F$5+C125,$F$6-C125,$F$10)))),0) -> 0 | F125: =IF(C125<=$E$12,IF($E$2="Whole life",dax($F$5+C125,$F$10,0,1,0),Daxn($F$5+C125,$F$6-C125,$F$10,0,1,0)),0) -> 0 | G125: 0 | H125: 0
C126: 106 | D126: =D125+1 -> 156 | E126: =IF(C126<=$E$12,IF($E$2="Whole life",A1x($F$5+C126,$F$10),IF($E$2="Term insurance",A1xn($F$5+C126,$F$6-C126,$F$10),IF($E$2="Endowment",Axn($F$5+C126,$F$6-C126,$F$10,$F$9,$F$8),nex($F$5+C126,$F$6-C126,$F$10)))),0) -> 0 | F126: =IF(C126<=$E$12,IF($E$2="Whole life",dax($F$5+C126,$F$10,0,1,0),Daxn($F$5+C126,$F$6-C126,$F$10,0,1,0)),0) -> 0 | G126: 0 | H126: 0
C127: 107 | D127: =D126+1 -> 157 | E127: =IF(C127<=$E$12,IF($E$2="Whole life",A1x($F$5+C127,$F$10),IF($E$2="Term insurance",A1xn($F$5+C127,$F$6-C127,$F$10),IF($E$2="Endowment",Axn($F$5+C127,$F$6-C127,$F$10,$F$9,$F$8),nex($F$5+C127,$F$6-C127,$F$10)))),0) -> 0 | F127: =IF(C127<=$E$12,IF($E$2="Whole life",dax($F$5+C127,$F$10,0,1,0),Daxn($F$5+C127,$F$6-C127,$F$10,0,1,0)),0) -> 0 | G127: 0 | H127: 0
C128: 108 | D128: =D127+1 -> 158 | E128: =IF(C128<=$E$12,IF($E$2="Whole life",A1x($F$5+C128,$F$10),IF($E$2="Term insurance",A1xn($F$5+C128,$F$6-C128,$F$10),IF($E$2="Endowment",Axn($F$5+C128,$F$6-C128,$F$10,$F$9,$F$8),nex($F$5+C128,$F$6-C128,$F$10)))),0) -> 0 | F128: =IF(C128<=$E$12,IF($E$2="Whole life",dax($F$5+C128,$F$10,0,1,0),Daxn($F$5+C128,$F$6-C128,$F$10,0,1,0)),0) -> 0 | G128: 0 | H128: 0
C129: 109 | D129: =D128+1 -> 159 | E129: =IF(C129<=$E$12,IF($E$2="Whole life",A1x($F$5+C129,$F$10),IF($E$2="Term insurance",A1xn($F$5+C129,$F$6-C129,$F$10),IF($E$2="Endowment",Axn($F$5+C129,$F$6-C129,$F$10,$F$9,$F$8),nex($F$5+C129,$F$6-C129,$F$10)))),0) -> 0 | F129: =IF(C129<=$E$12,IF($E$2="Whole life",dax($F$5+C129,$F$10,0,1,0),Daxn($F$5+C129,$F$6-C129,$F$10,0,1,0)),0) -> 0 | G129: 0 | H129: 0
C130: 110 | D130: =D129+1 -> 160 | E130: =IF(C130<=$E$12,IF($E$2="Whole life",A1x($F$5+C130,$F$10),IF($E$2="Term insurance",A1xn($F$5+C130,$F$6-C130,$F$10),IF($E$2="Endowment",Axn($F$5+C130,$F$6-C130,$F$10,$F$9,$F$8),nex($F$5+C130,$F$6-C130,$F$10)))),0) -> 0 | F130: =IF(C130<=$E$12,IF($E$2="Whole life",dax($F$5+C130,$F$10,0,1,0),Daxn($F$5+C130,$F$6-C130,$F$10,0,1,0)),0) -> 0 | G130: 0 | H130: 0

Sheet BRUTTO-REGULAR-RESERVES
C2: Contract | D2: Term insurance | L2: http://statistika.vse.cz/predmety/stp419.php
C5: Age (X) | E5: 35 | F5: A1xn | G5: =IF(D2="Pure endowment",nex(E5,E6,E10),IF(D2="Whole life",A1x(E5,E10),IF(D2="Endowment",Axn(E5,E6,E10,E8,E7),A1xn(E5,E6,E10)))) -> 0.0133125052
C6: Policy period (N) | E6: 10 | F6: Single premium | G6: =IF(D2="Pure endowment",G5*E8,G5*E7) -> 1331.25052
C7: Death benefit (K) | E7: 100000
C8: Survival benefit (D) | E8: 20000 | F8: Regular netto premium | G8: =G6/IF($D$2="Whole life",dax(E5,E10,0,1,0),Daxn(E5,E6,E10,0,1,0)) -> 149.2082634
C9: t | E9: 25
C10: Interest rate (i) | E10: 0.025 | F10: Regular brutto premium | G10: =(G6+E14+E15+(E18+E19+E22+E23)*IF(D2="Whole life",dax(E5,E10,0,1,0),Daxn(E5,E6,E10,0,1,0)))/(IF(D2="Whole life",dax(E5,E10,0,1,0),Daxn(E5,E6,E10,0,1,0))*(1-D20-D24)-D16) -> 381.887399
C11: Discont factor (v) | E11: =1/(1+E10) -> 0.9756097561
C12: delka vypoctu | E12: =IF($D$2="Whole life",omega()-$E$5,$E$6) -> 10 | F12: Netto reserve | G12: =IF(D2="whole life",L31,IF(D2="Term insurance",W31,IF(D2="Endowment",AG31,AQ31))) -> -8118.177071
C14: aK | D14: 2e-05 | E14: =D14*$E$7 -> 2 | F14: Brutto reserve | G14: =IF(D2="whole life",J31,IF(D2="Term insurance",U31,IF(D2="Endowment",AE31,AO31))) -> -3723.491978
C15: afix | D15: 2000 | E15: =D15 -> 2000
C16: aBxn | D16: 0.0002 | E16: =D16*$G$10 -> 0.0763774798
C18: bK | D18: 1e-06 | E18: =D18*$E$7 -> 0.1
C19: bfix | D19: 1 | E19: =D19 -> 1
C20: bBxn | D20: 0.0001 | E20: =D20*$G$10 -> 0.0381887399 | J20: Whole life brutto premium | U20: Term insurance brutto premium | AE20: Endowment brutto premium | AO20: Pure endowment brutto premium
J21: Bxn | K21: = | L21: K * A1x | M21: + | N21: aK + afix | O21: + | P21: ӓx | Q21: * | R21: (bfix + bK + gfix + gK) | U21: Bxn | V21: = | W21: K * A1xn | X21: + | Y21: aK + afix | Z21: + | AA21: ӓxn | AB21: * | AC21: (bfix + bK + gfix + gK) | AE21: Bxn | AF21: = | AG21: K * Axn | AH21: + | AI21: aK + afix | AJ21: + | AK21: ӓxn | AL21: * | AM21: (bfix + bK + gfix + gK) | AO21: Bxn | AP21: = | AQ21: D * nEx | AR21: + | AS21: aK + afix | AT21: + | AU21: ӓxn | AV21: * | AW21: (bfix + bK + gfix + gK)
C22: gK | D22: 3e-05 | E22: =D22*$E$7 -> 3 | L22: ӓx | M22: * | N22: (1 - bBxn - gBxn) | O22: - | P22: aBxn | W22: ӓxn | X22: * | Y22: (1 - bBxn - gBxn) | Z22: - | AA22: aBxn | AG22: ӓxn | AH22: * | AI22: (1 - bBxn - gBxn) | AJ22: - | AK22: aBxn | AQ22: ӓxn | AR22: * | AS22: (1 - bBxn - gBxn) | AT22: - | AU22: aBxn
C23: gfix | D23: 3 | E23: =D23 -> 3
C24: gBxn | D24: 0.003 | E24: =D24*$G$10 -> 1.145662197 | J24: =(L24+N24+P24*R24)/(L25*N25-P25) -> 136.5232443 | K24: = | L24: =$G$5*$E$7 -> 1331.25052 | M24: + | N24: =$E$14+$E$15 -> 2002 | O24: + | P24: =dax($E$5,$E$10,0,1,0) -> 25.83935854 | Q24: * | R24: =$E$19+$E$18+$E$22+$E$23 -> 7.1 | U24: =(W24+Y24+AA24*AC24)/(W25*Y25-AA25) -> 381.887399 | V24: = | W24: =$G$5*$E$7 -> 1331.25052 | X24: + | Y24: =$E$14+$E$15 -> 2002 | Z24: + | AA24: =Daxn($E$5,$E$6,$E$10,0,1,0) -> 8.922096471 | AB24: * | AC24: =$E$19+$E$18+$E$22+$E$23 -> 7.1 | AE24: =(AG24+AI24+AK24*AM24)/(AG25*AI25-AK25) -> 381.887399 | AF24: = | AG24: =$G$5*$E$7 -> 1331.25052 | AH24: + | AI24: =$E$14+$E$15 -> 2002 | AJ24: + | AK24: =Daxn($E$5,$E$6,$E$10,0,1,0) -> 8.922096471 | AL24: * | AM24: =$E$19+$E$18+$E$22+$E$23 -> 7.1 | AO24: =(AQ24+AS24+AU24*AW24)/(AQ25*AS25-AU25) -> 262.1469086 | AP24: = | AQ24: =$G$5*$E$8 -> 266.2501041 | AR24: + | AS24: =$E$14+$E$15 -> 2002 | AT24: + | AU24: =Daxn($E$5,$E$6,$E$10,0,1,0) -> 8.922096471 | AV24: * | AW24: =$E$19+$E$18+$E$22+$E$23 -> 7.1
L25: =P24 -> 25.83935854 | M25: * | N25: =1-$D$20-$D$24 -> 0.9969 | O25: - | P25: =$D$16 -> 0.0002 | W25: =AA24 -> 8.922096471 | X25: * | Y25: =1-$D$20-$D$24 -> 0.9969 | Z25: - | AA25: =$D$16 -> 0.0002 | AG25: =AK24 -> 8.922096471 | AH25: * | AI25: =1-$D$20-$D$24 -> 0.9969 | AJ25: - | AK25: =$D$16 -> 0.0002 | AQ25: =AU24 -> 8.922096471 | AR25: * | AS25: =1-$D$20-$D$24 -> 0.9969 | AT25: - | AU25: =$D$16 -> 0.0002
C27: t | D27: x | E27: A1x+t,n- t˥ | F27: ӓx+t,n-t˥ | G27: K*tVxNetto | H27: K*tVxBrutto | J27: Whole life brutto reserve | U27: Term insurance brutto reserve | AE27: Endowment brutto reserve | AO27: Pure endowment neeto reserve
C28: 0 | D28: =E5 -> 35 | E28: =IF(C28<=$E$12,IF($D$2="Whole life",A1x($E$5+C28,$E$10),IF($D$2="Endowment",Axn($E$5+C28,$E$6-C28,$E$10,$E$8,$E$7),IF($D$2="Pure endowment",nex($E$5+C28,$E$6-C28,$E$10),A1xn($E$5+C28,$E$6-C28,$E$10)))),0) -> 0.0133125052 | F28: =IF(C28<=$E$12,IF($D$2="Whole life",dax($E$5+C28,$E$10,0,1,0),Daxn($E$5+C28,$E$6-C28,$E$10,0,1,0)),0) -> 8.922096471 | G28: =E28*IF($D$2="Pure endowment",$E$8,$E$7)-F28*$G$8 -> 0 | H28: =G28-SUM($E$14:$E$16)*F28/IF($D$2="Whole life",dax($E$5,$E$10,0,1,0),Daxn($E$5,$E$6,$E$10,0,1,0)) -> -2002.076377 | J28: K * tVxbrutto | K28: = | L28: K * tVxnetto | M28: - | N28: (aK + afix + aBxn) | O28: * | P28: ӓx+t | U28: tVxbrutto | V28: = | W28: tVxnetto | X28: - | Y28: (aK + afix + aBxn) | Z28: * | AA28: ӓx+t,n-t | AE28: tVxbrutto | AF28: = | AG28: tVxnetto | AH28: - | AI28: (aK + afix + aBxn) | AJ28: * | AK28: ӓx+t,n-t | AO28: tVxbrutto | AP28: = | AQ28: tVxnetto | AR28: - | AS28: (aK + afix + aBxn) | AT28: * | AU28: ӓx+t,n-t
C29: =C28+1 -> 1 | D29: =D28+1 -> 36 | E29: =IF(C29<=$E$12,IF($D$2="Whole life",A1x($E$5+C29,$E$10),IF($D$2="Endowment",Axn($E$5+C29,$E$6-C29,$E$10,$E$8,$E$7),IF($D$2="Pure endowment",nex($E$5+C29,$E$6-C29,$E$10),A1xn($E$5+C29,$E$6-C29,$E$10)))),0) -> 0.01262590283 | F29: =IF(C29<=$E$12,IF($D$2="Whole life",dax($E$5+C29,$E$10,0,1,0),Daxn($E$5+C29,$E$6-C29,$E$10,0,1,0)),0) -> 8.128541201 | G29: =E29*IF($D$2="Pure endowment",$E$8,$E$7)-F29*$G$8 -> 49.74476631 | H29: =G29-SUM($E$14:$E$16)*F29/IF($D$2="Whole life",dax($E$5,$E$10,0,1,0),Daxn($E$5,$E$6,$E$10,0,1,0)) -> -1774.26155 | N29: ӓx | Y29: ӓx,n | AI29: ӓx,n | AS29: ӓx,n
C30: 2 | D30: 37 | E30: =IF(C30<=$E$12,IF($D$2="Whole life",A1x($E$5+C30,$E$10),IF($D$2="Endowment",Axn($E$5+C30,$E$6-C30,$E$10,$E$8,$E$7),IF($D$2="Pure endowment",nex($E$5+C30,$E$6-C30,$E$10),A1xn($E$5+C30,$E$6-C30,$E$10)))),0) -> 0.01188736527 | F30: =IF(C30<=$E$12,IF($D$2="Whole life",dax($E$5+C30,$E$10,0,1,0),Daxn($E$5+C30,$E$6-C30,$E$10,0,1,0)),0) -> 7.314558394 | G30: 97.34397145 | H30: =G30-SUM($E$14:$E$16)*F30/IF($D$2="Whole life",dax($E$5,$E$10,0,1,0),Daxn($E$5,$E$6,$E$10,0,1,0)) -> -1544.008442
C31: 3 | D31: 38 | E31: =IF(C31<=$E$12,IF($D$2="Whole life",A1x($E$5+C31,$E$10),IF($D$2="Endowment",Axn($E$5+C31,$E$6-C31,$E$10,$E$8,$E$7),IF($D$2="Pure endowment",nex($E$5+C31,$E$6-C31,$E$10),A1xn($E$5+C31,$E$6-C31,$E$10)))),0) -> 0.01111726576 | F31: =IF(C31<=$E$12,IF($D$2="Whole life",dax($E$5+C31,$E$10,0,1,0),Daxn($E$5+C31,$E$6-C31,$E$10,0,1,0)),0) -> 6.479415473 | G31: 144.944246 | H31: =G31-SUM($E$14:$E$16)*F31/IF($D$2="Whole life",dax($E$5,$E$10,0,1,0),Daxn($E$5,$E$6,$E$10,0,1,0)) -> -1309.006033 | J31: =L31-(N31*P31)/N32 -> 39412.44477 | K31: = | L31: =tVx_Whole_live($E$5,$E$9,$E$10,1)*E7 -> 40601.6452 | M31: - | N31: =SUM($E$14:$E$16) -> 2002.076377 | O31: * | P31: =dax($E$5+$E$9,$E$10,0,1,0) -> 15.34815386 | U31: =W31-(Y31*AA31)/Y32 -> -3723.491978 | V31: = | W31: =tVx_Term_insurance($E$5,$E$6,$E$9,$E$10,1)*$E$7 -> -8118.177071 | X31: - | Y31: =SUM($E$14:$E$16) -> 2002.076377 | Z31: * | AA31: =Daxn($E$5+$E$9,$E$6-$E$9,$E$10,0,1,0) -> -19.5845697 | AE31: =AG31-(AI31*AK31)/AI32 -> 61801.41657 | AF31: = | AG31: =tVx_Endowment($E$5,$E$6,$E$9,$E$10,1,$E$7,$E$8)*$E$7 -> 57406.73147 | AH31: - | AI31: =SUM($E$14:$E$16) -> 2002.076377 | AJ31: * | AK31: =Daxn($E$5+$E$9,$E$6-$E$9,$E$10,0,1,0) -> -19.5845697 | AO31: =AQ31-(AS31*AU31)/AS32 -> 69919.59364 | AP31: = | AQ31: =tVx_Pure_endowment($E$5,$E$6,$E$9,$E$10,1)*$E$8 -> 65524.90855 | AR31: - | AS31: =SUM($E$14:$E$16) -> 2002.076377 | AT31: * | AU31: =Daxn($E$5+$E$9,$E$6-$E$9,$E$10,0,1,0) -> -19.5845697
C32: 4 | D32: 39 | E32: =IF(C32<=$E$12,IF($D$2="Whole life",A1x($E$5+C32,$E$10),IF($D$2="Endowment",Axn($E$5+C32,$E$6-C32,$E$10,$E$8,$E$7),IF($D$2="Pure endowment",nex($E$5+C32,$E$6-C32,$E$10),A1xn($E$5+C32,$E$6-C32,$E$10)))),0) -> 0.01021047694 | F32: =IF(C32<=$E$12,IF($D$2="Whole life",dax($E$5+C32,$E$10,0,1,0),Daxn($E$5+C32,$E$6-C32,$E$10,0,1,0)),0) -> 5.623131421 | G32: 182.0300204 | H32: =G32-SUM($E$14:$E$16)*F32/IF($D$2="Whole life",dax($E$5,$E$10,0,1,0),Daxn($E$5,$E$6,$E$10,0,1,0)) -> -1079.774155 | N32: =L25 -> 25.83935854 | Y32: =W25 -> 8.922096471 | AI32: =AG25 -> 8.922096471 | AS32: =AQ25 -> 8.922096471
C33: 5 | D33: 40 | E33: =IF(C33<=$E$12,IF($D$2="Whole life",A1x($E$5+C33,$E$10),IF($D$2="Endowment",Axn($E$5+C33,$E$6-C33,$E$10,$E$8,$E$7),IF($D$2="Pure endowment",nex($E$5+C33,$E$6-C33,$E$10),A1xn($E$5+C33,$E$6-C33,$E$10)))),0) -> 0.00906314432 | F33: =IF(C33<=$E$12,IF($D$2="Whole life",dax($E$5+C33,$E$10,0,1,0),Daxn($E$5+C33,$E$6-C33,$E$10,0,1,0)),0) -> 4.745426491 | G33: 198.2575863 | H33: =G33-SUM($E$14:$E$16)*F33/IF($D$2="Whole life",dax($E$5,$E$10,0,1,0),Daxn($E$5,$E$6,$E$10,0,1,0)) -> -866.5937419
C34: 6 | D34: 41 | E34: =IF(C34<=$E$12,IF($D$2="Whole life",A1x($E$5+C34,$E$10),IF($D$2="Endowment",Axn($E$5+C34,$E$6-C34,$E$10,$E$8,$E$7),IF($D$2="Pure endowment",nex($E$5+C34,$E$6-C34,$E$10),A1xn($E$5+C34,$E$6-C34,$E$10)))),0) -> 0.007681042344 | F34: =IF(C34<=$E$12,IF($D$2="Whole life",dax($E$5+C34,$E$10,0,1,0),Daxn($E$5+C34,$E$6-C34,$E$10,0,1,0)),0) -> 3.845295887 | G34: 194.3543128 | H34: =G34-SUM($E$14:$E$16)*F34/IF($D$2="Whole life",dax($E$5,$E$10,0,1,0),Daxn($E$5,$E$6,$E$10,0,1,0)) -> -668.5119525
C35: 7 | D35: 42 | E35: =IF(C35<=$E$12,IF($D$2="Whole life",A1x($E$5+C35,$E$10),IF($D$2="Endowment",Axn($E$5+C35,$E$6-C35,$E$10,$E$8,$E$7),IF($D$2="Pure endowment",nex($E$5+C35,$E$6-C35,$E$10),A1xn($E$5+C35,$E$6-C35,$E$10)))),0) -> 0.006086854657 | F35: =IF(C35<=$E$12,IF($D$2="Whole life",dax($E$5+C35,$E$10,0,1,0),Daxn($E$5+C35,$E$6-C35,$E$10,0,1,0)),0) -> 2.921678988 | G35: 172.7468177 | H35: =G35-SUM($E$14:$E$16)*F35/IF($D$2="Whole life",dax($E$5,$E$10,0,1,0),Daxn($E$5,$E$6,$E$10,0,1,0)) -> -482.8641705
C36: 8 | D36: 43 | E36: =IF(C36<=$E$12,IF($D$2="Whole life",A1x($E$5+C36,$E$10),IF($D$2="Endowment",Axn($E$5+C36,$E$6-C36,$E$10,$E$8,$E$7),IF($D$2="Pure endowment",nex($E$5+C36,$E$6-C36,$E$10),A1xn($E$5+C36,$E$6-C36,$E$10)))),0) -> 0.004306182114 | F36: =IF(C36<=$E$12,IF($D$2="Whole life",dax($E$5+C36,$E$10,0,1,0),Daxn($E$5+C36,$E$6-C36,$E$10,0,1,0)),0) -> 1.973552028 | G36: 136.1479406 | H36: =G36-SUM($E$14:$E$16)*F36/IF($D$2="Whole life",dax($E$5,$E$10,0,1,0),Daxn($E$5,$E$6,$E$10,0,1,0)) -> -306.7078285
C37: 9 | D37: 44 | E37: =IF(C37<=$E$12,IF($D$2="Whole life",A1x($E$5+C37,$E$10),IF($D$2="Endowment",Axn($E$5+C37,$E$6-C37,$E$10,$E$8,$E$7),IF($D$2="Pure endowment",nex($E$5+C37,$E$6-C37,$E$10),A1xn($E$5+C37,$E$6-C37,$E$10)))),0) -> 0.002309536577 | F37: =IF(C37<=$E$12,IF($D$2="Whole life",dax($E$5+C37,$E$10,0,1,0),Daxn($E$5+C37,$E$6-C37,$E$10,0,1,0)),0) -> 1 | G37: 81.74539434 | H37: =G37-SUM($E$14:$E$16)*F37/IF($D$2="Whole life",dax($E$5,$E$10,0,1,0),Daxn($E$5,$E$6,$E$10,0,1,0)) -> -142.6498903
C38: 10 | D38: 45 | E38: =IF(C38<=$E$12,IF($D$2="Whole life",A1x($E$5+C38,$E$10),IF($D$2="Endowment",Axn($E$5+C38,$E$6-C38,$E$10,$E$8,$E$7),IF($D$2="Pure endowment",nex($E$5+C38,$E$6-C38,$E$10),A1xn($E$5+C38,$E$6-C38,$E$10)))),0) -> 0 | F38: =IF(C38<=$E$12,IF($D$2="Whole life",dax($E$5+C38,$E$10,0,1,0),Daxn($E$5+C38,$E$6-C38,$E$10,0,1,0)),0) -> 0 | G38: 0 | H38: =G38-SUM($E$14:$E$16)*F38/IF($D$2="Whole life",dax($E$5,$E$10,0,1,0),Daxn($E$5,$E$6,$E$10,0,1,0)) -> 0
C39: 11 | D39: 46 | E39: =IF(C39<=$E$12,IF($D$2="Whole life",A1x($E$5+C39,$E$10),IF($D$2="Endowment",Axn($E$5+C39,$E$6-C39,$E$10,$E$8,$E$7),IF($D$2="Pure endowment",nex($E$5+C39,$E$6-C39,$E$10),A1xn($E$5+C39,$E$6-C39,$E$10)))),0) -> 0 | F39: =IF(C39<=$E$12,IF($D$2="Whole life",dax($E$5+C39,$E$10,0,1,0),Daxn($E$5+C39,$E$6-C39,$E$10,0,1,0)),0) -> 0 | G39: 0 | H39: =G39-SUM($E$14:$E$16)*F39/IF($D$2="Whole life",dax($E$5,$E$10,0,1,0),Daxn($E$5,$E$6,$E$10,0,1,0)) -> 0
C40: 12 | D40: 47 | E40: =IF(C40<=$E$12,IF($D$2="Whole life",A1x($E$5+C40,$E$10),IF($D$2="Endowment",Axn($E$5+C40,$E$6-C40,$E$10,$E$8,$E$7),IF($D$2="Pure endowment",nex($E$5+C40,$E$6-C40,$E$10),A1xn($E$5+C40,$E$6-C40,$E$10)))),0) -> 0 | F40: =IF(C40<=$E$12,IF($D$2="Whole life",dax($E$5+C40,$E$10,0,1,0),Daxn($E$5+C40,$E$6-C40,$E$10,0,1,0)),0) -> 0 | G40: 0 | H40: =G40-SUM($E$14:$E$16)*F40/IF($D$2="Whole life",dax($E$5,$E$10,0,1,0),Daxn($E$5,$E$6,$E$10,0,1,0)) -> 0
C41: 13 | D41: 48 | E41: =IF(C41<=$E$12,IF($D$2="Whole life",A1x($E$5+C41,$E$10),IF($D$2="Endowment",Axn($E$5+C41,$E$6-C41,$E$10,$E$8,$E$7),IF($D$2="Pure endowment",nex($E$5+C41,$E$6-C41,$E$10),A1xn($E$5+C41,$E$6-C41,$E$10)))),0) -> 0 | F41: =IF(C41<=$E$12,IF($D$2="Whole life",dax($E$5+C41,$E$10,0,1,0),Daxn($E$5+C41,$E$6-C41,$E$10,0,1,0)),0) -> 0 | G41: 0 | H41: =G41-SUM($E$14:$E$16)*F41/IF($D$2="Whole life",dax($E$5,$E$10,0,1,0),Daxn($E$5,$E$6,$E$10,0,1,0)) -> 0
C42: 14 | D42: 49 | E42: =IF(C42<=$E$12,IF($D$2="Whole life",A1x($E$5+C42,$E$10),IF($D$2="Endowment",Axn($E$5+C42,$E$6-C42,$E$10,$E$8,$E$7),IF($D$2="Pure endowment",nex($E$5+C42,$E$6-C42,$E$10),A1xn($E$5+C42,$E$6-C42,$E$10)))),0) -> 0 | F42: =IF(C42<=$E$12,IF($D$2="Whole life",dax($E$5+C42,$E$10,0,1,0),Daxn($E$5+C42,$E$6-C42,$E$10,0,1,0)),0) -> 0 | G42: 0 | H42: =G42-SUM($E$14:$E$16)*F42/IF($D$2="Whole life",dax($E$5,$E$10,0,1,0),Daxn($E$5,$E$6,$E$10,0,1,0)) -> 0
C43: 15 | D43: 50 | E43: =IF(C43<=$E$12,IF($D$2="Whole life",A1x($E$5+C43,$E$10),IF($D$2="Endowment",Axn($E$5+C43,$E$6-C43,$E$10,$E$8,$E$7),IF($D$2="Pure endowment",nex($E$5+C43,$E$6-C43,$E$10),A1xn($E$5+C43,$E$6-C43,$E$10)))),0) -> 0 | F43: =IF(C43<=$E$12,IF($D$2="Whole life",dax($E$5+C43,$E$10,0,1,0),Daxn($E$5+C43,$E$6-C43,$E$10,0,1,0)),0) -> 0 | G43: 0 | H43: =G43-SUM($E$14:$E$16)*F43/IF($D$2="Whole life",dax($E$5,$E$10,0,1,0),Daxn($E$5,$E$6,$E$10,0,1,0)) -> 0
C44: 16 | D44: 51 | E44: =IF(C44<=$E$12,IF($D$2="Whole life",A1x($E$5+C44,$E$10),IF($D$2="Endowment",Axn($E$5+C44,$E$6-C44,$E$10,$E$8,$E$7),IF($D$2="Pure endowment",nex($E$5+C44,$E$6-C44,$E$10),A1xn($E$5+C44,$E$6-C44,$E$10)))),0) -> 0 | F44: =IF(C44<=$E$12,IF($D$2="Whole life",dax($E$5+C44,$E$10,0,1,0),Daxn($E$5+C44,$E$6-C44,$E$10,0,1,0)),0) -> 0 | G44: 0 | H44: =G44-SUM($E$14:$E$16)*F44/IF($D$2="Whole life",dax($E$5,$E$10,0,1,0),Daxn($E$5,$E$6,$E$10,0,1,0)) -> 0
C45: 17 | D45: 52 | E45: =IF(C45<=$E$12,IF($D$2="Whole life",A1x($E$5+C45,$E$10),IF($D$2="Endowment",Axn($E$5+C45,$E$6-C45,$E$10,$E$8,$E$7),IF($D$2="Pure endowment",nex($E$5+C45,$E$6-C45,$E$10),A1xn($E$5+C45,$E$6-C45,$E$10)))),0) -> 0 | F45: =IF(C45<=$E$12,IF($D$2="Whole life",dax($E$5+C45,$E$10,0,1,0),Daxn($E$5+C45,$E$6-C45,$E$10,0,1,0)),0) -> 0 | G45: 0 | H45: =G45-SUM($E$14:$E$16)*F45/IF($D$2="Whole life",dax($E$5,$E$10,0,1,0),Daxn($E$5,$E$6,$E$10,0,1,0)) -> 0
C46: 18 | D46: 53 | E46: =IF(C46<=$E$12,IF($D$2="Whole life",A1x($E$5+C46,$E$10),IF($D$2="Endowment",Axn($E$5+C46,$E$6-C46,$E$10,$E$8,$E$7),IF($D$2="Pure endowment",nex($E$5+C46,$E$6-C46,$E$10),A1xn($E$5+C46,$E$6-C46,$E$10)))),0) -> 0 | F46: =IF(C46<=$E$12,IF($D$2="Whole life",dax($E$5+C46,$E$10,0,1,0),Daxn($E$5+C46,$E$6-C46,$E$10,0,1,0)),0) -> 0 | G46: 0 | H46: =G46-SUM($E$14:$E$16)*F46/IF($D$2="Whole life",dax($E$5,$E$10,0,1,0),Daxn($E$5,$E$6,$E$10,0,1,0)) -> 0
C47: 19 | D47: 54 | E47: =IF(C47<=$E$12,IF($D$2="Whole life",A1x($E$5+C47,$E$10),IF($D$2="Endowment",Axn($E$5+C47,$E$6-C47,$E$10,$E$8,$E$7),IF($D$2="Pure endowment",nex($E$5+C47,$E$6-C47,$E$10),A1xn($E$5+C47,$E$6-C47,$E$10)))),0) -> 0 | F47: =IF(C47<=$E$12,IF($D$2="Whole life",dax($E$5+C47,$E$10,0,1,0),Daxn($E$5+C47,$E$6-C47,$E$10,0,1,0)),0) -> 0 | G47: 0 | H47: =G47-SUM($E$14:$E$16)*F47/IF($D$2="Whole life",dax($E$5,$E$10,0,1,0),Daxn($E$5,$E$6,$E$10,0,1,0)) -> 0
C48: 20 | D48: 55 | E48: =IF(C48<=$E$12,IF($D$2="Whole life",A1x($E$5+C48,$E$10),IF($D$2="Endowment",Axn($E$5+C48,$E$6-C48,$E$10,$E$8,$E$7),IF($D$2="Pure endowment",nex($E$5+C48,$E$6-C48,$E$10),A1xn($E$5+C48,$E$6-C48,$E$10)))),0) -> 0 | F48: =IF(C48<=$E$12,IF($D$2="Whole life",dax($E$5+C48,$E$10,0,1,0),Daxn($E$5+C48,$E$6-C48,$E$10,0,1,0)),0) -> 0 | G48: 0 | H48: =G48-SUM($E$14:$E$16)*F48/IF($D$2="Whole life",dax($E$5,$E$10,0,1,0),Daxn($E$5,$E$6,$E$10,0,1,0)) -> 0
C49: 21 | D49: 56 | E49: =IF(C49<=$E$12,IF($D$2="Whole life",A1x($E$5+C49,$E$10),IF($D$2="Endowment",Axn($E$5+C49,$E$6-C49,$E$10,$E$8,$E$7),IF($D$2="Pure endowment",nex($E$5+C49,$E$6-C49,$E$10),A1xn($E$5+C49,$E$6-C49,$E$10)))),0) -> 0 | F49: =IF(C49<=$E$12,IF($D$2="Whole life",dax($E$5+C49,$E$10,0,1,0),Daxn($E$5+C49,$E$6-C49,$E$10,0,1,0)),0) -> 0 | G49: 0 | H49: =G49-SUM($E$14:$E$16)*F49/IF($D$2="Whole life",dax($E$5,$E$10,0,1,0),Daxn($E$5,$E$6,$E$10,0,1,0)) -> 0
C50: 22 | D50: 57 | E50: =IF(C50<=$E$12,IF($D$2="Whole life",A1x($E$5+C50,$E$10),IF($D$2="Endowment",Axn($E$5+C50,$E$6-C50,$E$10,$E$8,$E$7),IF($D$2="Pure endowment",nex($E$5+C50,$E$6-C50,$E$10),A1xn($E$5+C50,$E$6-C50,$E$10)))),0) -> 0 | F50: =IF(C50<=$E$12,IF($D$2="Whole life",dax($E$5+C50,$E$10,0,1,0),Daxn($E$5+C50,$E$6-C50,$E$10,0,1,0)),0) -> 0 | G50: 0 | H50: =G50-SUM($E$14:$E$16)*F50/IF($D$2="Whole life",dax($E$5,$E$10,0,1,0),Daxn($E$5,$E$6,$E$10,0,1,0)) -> 0
C51: 23 | D51: 58 | E51: =IF(C51<=$E$12,IF($D$2="Whole life",A1x($E$5+C51,$E$10),IF($D$2="Endowment",Axn($E$5+C51,$E$6-C51,$E$10,$E$8,$E$7),IF($D$2="Pure endowment",nex($E$5+C51,$E$6-C51,$E$10),A1xn($E$5+C51,$E$6-C51,$E$10)))),0) -> 0 | F51: =IF(C51<=$E$12,IF($D$2="Whole life",dax($E$5+C51,$E$10,0,1,0),Daxn($E$5+C51,$E$6-C51,$E$10,0,1,0)),0) -> 0 | G51: 0 | H51: =G51-SUM($E$14:$E$16)*F51/IF($D$2="Whole life",dax($E$5,$E$10,0,1,0),Daxn($E$5,$E$6,$E$10,0,1,0)) -> 0
C52: 24 | D52: 59 | E52: =IF(C52<=$E$12,IF($D$2="Whole life",A1x($E$5+C52,$E$10),IF($D$2="Endowment",Axn($E$5+C52,$E$6-C52,$E$10,$E$8,$E$7),IF($D$2="Pure endowment",nex($E$5+C52,$E$6-C52,$E$10),A1xn($E$5+C52,$E$6-C52,$E$10)))),0) -> 0 | F52: =IF(C52<=$E$12,IF($D$2="Whole life",dax($E$5+C52,$E$10,0,1,0),Daxn($E$5+C52,$E$6-C52,$E$10,0,1,0)),0) -> 0 | G52: 0 | H52: =G52-SUM($E$14:$E$16)*F52/IF($D$2="Whole life",dax($E$5,$E$10,0,1,0),Daxn($E$5,$E$6,$E$10,0,1,0)) -> 0
C53: 25 | D53: 60 | E53: =IF(C53<=$E$12,IF($D$2="Whole life",A1x($E$5+C53,$E$10),IF($D$2="Endowment",Axn($E$5+C53,$E$6-C53,$E$10,$E$8,$E$7),IF($D$2="Pure endowment",nex($E$5+C53,$E$6-C53,$E$10),A1xn($E$5+C53,$E$6-C53,$E$10)))),0) -> 0 | F53: =IF(C53<=$E$12,IF($D$2="Whole life",dax($E$5+C53,$E$10,0,1,0),Daxn($E$5+C53,$E$6-C53,$E$10,0,1,0)),0) -> 0 | G53: =E53*IF($D$2="Pure endowment",$E$8,$E$7)-F53*$G$8 -> 0 | H53: =G53-SUM($E$14:$E$16)*F53/IF($D$2="Whole life",dax($E$5,$E$10,0,1,0),Daxn($E$5,$E$6,$E$10,0,1,0)) -> 0
C54: 26 | D54: 61 | E54: =IF(C54<=$E$12,IF($D$2="Whole life",A1x($E$5+C54,$E$10),IF($D$2="Endowment",Axn($E$5+C54,$E$6-C54,$E$10,$E$8,$E$7),IF($D$2="Pure endowment",nex($E$5+C54,$E$6-C54,$E$10),A1xn($E$5+C54,$E$6-C54,$E$10)))),0) -> 0 | F54: =IF(C54<=$E$12,IF($D$2="Whole life",dax($E$5+C54,$E$10,0,1,0),Daxn($E$5+C54,$E$6-C54,$E$10,0,1,0)),0) -> 0 | G54: 0 | H54: =G54-SUM($E$14:$E$16)*F54/IF($D$2="Whole life",dax($E$5,$E$10,0,1,0),Daxn($E$5,$E$6,$E$10,0,1,0)) -> 0
C55: 27 | D55: 62 | E55: =IF(C55<=$E$12,IF($D$2="Whole life",A1x($E$5+C55,$E$10),IF($D$2="Endowment",Axn($E$5+C55,$E$6-C55,$E$10,$E$8,$E$7),IF($D$2="Pure endowment",nex($E$5+C55,$E$6-C55,$E$10),A1xn($E$5+C55,$E$6-C55,$E$10)))),0) -> 0 | F55: =IF(C55<=$E$12,IF($D$2="Whole life",dax($E$5+C55,$E$10,0,1,0),Daxn($E$5+C55,$E$6-C55,$E$10,0,1,0)),0) -> 0 | G55: 0 | H55: =G55-SUM($E$14:$E$16)*F55/IF($D$2="Whole life",dax($E$5,$E$10,0,1,0),Daxn($E$5,$E$6,$E$10,0,1,0)) -> 0
C56: 28 | D56: 63 | E56: =IF(C56<=$E$12,IF($D$2="Whole life",A1x($E$5+C56,$E$10),IF($D$2="Endowment",Axn($E$5+C56,$E$6-C56,$E$10,$E$8,$E$7),IF($D$2="Pure endowment",nex($E$5+C56,$E$6-C56,$E$10),A1xn($E$5+C56,$E$6-C56,$E$10)))),0) -> 0 | F56: =IF(C56<=$E$12,IF($D$2="Whole life",dax($E$5+C56,$E$10,0,1,0),Daxn($E$5+C56,$E$6-C56,$E$10,0,1,0)),0) -> 0 | G56: 0 | H56: =G56-SUM($E$14:$E$16)*F56/IF($D$2="Whole life",dax($E$5,$E$10,0,1,0),Daxn($E$5,$E$6,$E$10,0,1,0)) -> 0
C57: 29 | D57: 64 | E57: =IF(C57<=$E$12,IF($D$2="Whole life",A1x($E$5+C57,$E$10),IF($D$2="Endowment",Axn($E$5+C57,$E$6-C57,$E$10,$E$8,$E$7),IF($D$2="Pure endowment",nex($E$5+C57,$E$6-C57,$E$10),A1xn($E$5+C57,$E$6-C57,$E$10)))),0) -> 0 | F57: =IF(C57<=$E$12,IF($D$2="Whole life",dax($E$5+C57,$E$10,0,1,0),Daxn($E$5+C57,$E$6-C57,$E$10,0,1,0)),0) -> 0 | G57: 0 | H57: =G57-SUM($E$14:$E$16)*F57/IF($D$2="Whole life",dax($E$5,$E$10,0,1,0),Daxn($E$5,$E$6,$E$10,0,1,0)) -> 0
C58: 30 | D58: 65 | E58: =IF(C58<=$E$12,IF($D$2="Whole life",A1x($E$5+C58,$E$10),IF($D$2="Endowment",Axn($E$5+C58,$E$6-C58,$E$10,$E$8,$E$7),IF($D$2="Pure endowment",nex($E$5+C58,$E$6-C58,$E$10),A1xn($E$5+C58,$E$6-C58,$E$10)))),0) -> 0 | F58: =IF(C58<=$E$12,IF($D$2="Whole life",dax($E$5+C58,$E$10,0,1,0),Daxn($E$5+C58,$E$6-C58,$E$10,0,1,0)),0) -> 0 | G58: 0 | H58: =G58-SUM($E$14:$E$16)*F58/IF($D$2="Whole life",dax($E$5,$E$10,0,1,0),Daxn($E$5,$E$6,$E$10,0,1,0)) -> 0
C59: 31 | D59: 66 | E59: =IF(C59<=$E$12,IF($D$2="Whole life",A1x($E$5+C59,$E$10),IF($D$2="Endowment",Axn($E$5+C59,$E$6-C59,$E$10,$E$8,$E$7),IF($D$2="Pure endowment",nex($E$5+C59,$E$6-C59,$E$10),A1xn($E$5+C59,$E$6-C59,$E$10)))),0) -> 0 | F59: =IF(C59<=$E$12,IF($D$2="Whole life",dax($E$5+C59,$E$10,0,1,0),Daxn($E$5+C59,$E$6-C59,$E$10,0,1,0)),0) -> 0 | G59: 0 | H59: =G59-SUM($E$14:$E$16)*F59/IF($D$2="Whole life",dax($E$5,$E$10,0,1,0),Daxn($E$5,$E$6,$E$10,0,1,0)) -> 0
C60: 32 | D60: 67 | E60: =IF(C60<=$E$12,IF($D$2="Whole life",A1x($E$5+C60,$E$10),IF($D$2="Endowment",Axn($E$5+C60,$E$6-C60,$E$10,$E$8,$E$7),IF($D$2="Pure endowment",nex($E$5+C60,$E$6-C60,$E$10),A1xn($E$5+C60,$E$6-C60,$E$10)))),0) -> 0 | F60: =IF(C60<=$E$12,IF($D$2="Whole life",dax($E$5+C60,$E$10,0,1,0),Daxn($E$5+C60,$E$6-C60,$E$10,0,1,0)),0) -> 0 | G60: 0 | H60: =G60-SUM($E$14:$E$16)*F60/IF($D$2="Whole life",dax($E$5,$E$10,0,1,0),Daxn($E$5,$E$6,$E$10,0,1,0)) -> 0
C61: =C60+1 -> 33 | D61: =D60+1 -> 68 | E61: =IF(C61<=$E$12,IF($D$2="Whole life",A1x($E$5+C61,$E$10),IF($D$2="Endowment",Axn($E$5+C61,$E$6-C61,$E$10,$E$8,$E$7),IF($D$2="Pure endowment",nex($E$5+C61,$E$6-C61,$E$10),A1xn($E$5+C61,$E$6-C61,$E$10)))),0) -> 0 | F61: =IF(C61<=$E$12,IF($D$2="Whole life",dax($E$5+C61,$E$10,0,1,0),Daxn($E$5+C61,$E$6-C61,$E$10,0,1,0)),0) -> 0 | G61: 0 | H61: =G61-SUM($E$14:$E$16)*F61/IF($D$2="Whole life",dax($E$5,$E$10,0,1,0),Daxn($E$5,$E$6,$E$10,0,1,0)) -> 0
C62: 34 | D62: 69 | E62: =IF(C62<=$E$12,IF($D$2="Whole life",A1x($E$5+C62,$E$10),IF($D$2="Endowment",Axn($E$5+C62,$E$6-C62,$E$10,$E$8,$E$7),IF($D$2="Pure endowment",nex($E$5+C62,$E$6-C62,$E$10),A1xn($E$5+C62,$E$6-C62,$E$10)))),0) -> 0 | F62: =IF(C62<=$E$12,IF($D$2="Whole life",dax($E$5+C62,$E$10,0,1,0),Daxn($E$5+C62,$E$6-C62,$E$10,0,1,0)),0) -> 0 | G62: 0 | H62: =G62-SUM($E$14:$E$16)*F62/IF($D$2="Whole life",dax($E$5,$E$10,0,1,0),Daxn($E$5,$E$6,$E$10,0,1,0)) -> 0
C63: 35 | D63: 70 | E63: =IF(C63<=$E$12,IF($D$2="Whole life",A1x($E$5+C63,$E$10),IF($D$2="Endowment",Axn($E$5+C63,$E$6-C63,$E$10,$E$8,$E$7),IF($D$2="Pure endowment",nex($E$5+C63,$E$6-C63,$E$10),A1xn($E$5+C63,$E$6-C63,$E$10)))),0) -> 0 | F63: =IF(C63<=$E$12,IF($D$2="Whole life",dax($E$5+C63,$E$10,0,1,0),Daxn($E$5+C63,$E$6-C63,$E$10,0,1,0)),0) -> 0 | G63: 0 | H63: =G63-SUM($E$14:$E$16)*F63/IF($D$2="Whole life",dax($E$5,$E$10,0,1,0),Daxn($E$5,$E$6,$E$10,0,1,0)) -> 0
C64: 36 | D64: 71 | E64: =IF(C64<=$E$12,IF($D$2="Whole life",A1x($E$5+C64,$E$10),IF($D$2="Endowment",Axn($E$5+C64,$E$6-C64,$E$10,$E$8,$E$7),IF($D$2="Pure endowment",nex($E$5+C64,$E$6-C64,$E$10),A1xn($E$5+C64,$E$6-C64,$E$10)))),0) -> 0 | F64: =IF(C64<=$E$12,IF($D$2="Whole life",dax($E$5+C64,$E$10,0,1,0),Daxn($E$5+C64,$E$6-C64,$E$10,0,1,0)),0) -> 0 | G64: 0 | H64: =G64-SUM($E$14:$E$16)*F64/IF($D$2="Whole life",dax($E$5,$E$10,0,1,0),Daxn($E$5,$E$6,$E$10,0,1,0)) -> 0
C65: 37 | D65: 72 | E65: =IF(C65<=$E$12,IF($D$2="Whole life",A1x($E$5+C65,$E$10),IF($D$2="Endowment",Axn($E$5+C65,$E$6-C65,$E$10,$E$8,$E$7),IF($D$2="Pure endowment",nex($E$5+C65,$E$6-C65,$E$10),A1xn($E$5+C65,$E$6-C65,$E$10)))),0) -> 0 | F65: =IF(C65<=$E$12,IF($D$2="Whole life",dax($E$5+C65,$E$10,0,1,0),Daxn($E$5+C65,$E$6-C65,$E$10,0,1,0)),0) -> 0 | G65: 0 | H65: =G65-SUM($E$14:$E$16)*F65/IF($D$2="Whole life",dax($E$5,$E$10,0,1,0),Daxn($E$5,$E$6,$E$10,0,1,0)) -> 0
C66: 38 | D66: 73 | E66: =IF(C66<=$E$12,IF($D$2="Whole life",A1x($E$5+C66,$E$10),IF($D$2="Endowment",Axn($E$5+C66,$E$6-C66,$E$10,$E$8,$E$7),IF($D$2="Pure endowment",nex($E$5+C66,$E$6-C66,$E$10),A1xn($E$5+C66,$E$6-C66,$E$10)))),0) -> 0 | F66: =IF(C66<=$E$12,IF($D$2="Whole life",dax($E$5+C66,$E$10,0,1,0),Daxn($E$5+C66,$E$6-C66,$E$10,0,1,0)),0) -> 0 | G66: 0 | H66: =G66-SUM($E$14:$E$16)*F66/IF($D$2="Whole life",dax($E$5,$E$10,0,1,0),Daxn($E$5,$E$6,$E$10,0,1,0)) -> 0
C67: 39 | D67: 74 | E67: =IF(C67<=$E$12,IF($D$2="Whole life",A1x($E$5+C67,$E$10),IF($D$2="Endowment",Axn($E$5+C67,$E$6-C67,$E$10,$E$8,$E$7),IF($D$2="Pure endowment",nex($E$5+C67,$E$6-C67,$E$10),A1xn($E$5+C67,$E$6-C67,$E$10)))),0) -> 0 | F67: =IF(C67<=$E$12,IF($D$2="Whole life",dax($E$5+C67,$E$10,0,1,0),Daxn($E$5+C67,$E$6-C67,$E$10,0,1,0)),0) -> 0 | G67: 0 | H67: =G67-SUM($E$14:$E$16)*F67/IF($D$2="Whole life",dax($E$5,$E$10,0,1,0),Daxn($E$5,$E$6,$E$10,0,1,0)) -> 0
C68: 40 | D68: 75 | E68: =IF(C68<=$E$12,IF($D$2="Whole life",A1x($E$5+C68,$E$10),IF($D$2="Endowment",Axn($E$5+C68,$E$6-C68,$E$10,$E$8,$E$7),IF($D$2="Pure endowment",nex($E$5+C68,$E$6-C68,$E$10),A1xn($E$5+C68,$E$6-C68,$E$10)))),0) -> 0 | F68: =IF(C68<=$E$12,IF($D$2="Whole life",dax($E$5+C68,$E$10,0,1,0),Daxn($E$5+C68,$E$6-C68,$E$10,0,1,0)),0) -> 0 | G68: 0 | H68: =G68-SUM($E$14:$E$16)*F68/IF($D$2="Whole life",dax($E$5,$E$10,0,1,0),Daxn($E$5,$E$6,$E$10,0,1,0)) -> 0
C69: 41 | D69: 76 | E69: =IF(C69<=$E$12,IF($D$2="Whole life",A1x($E$5+C69,$E$10),IF($D$2="Endowment",Axn($E$5+C69,$E$6-C69,$E$10,$E$8,$E$7),IF($D$2="Pure endowment",nex($E$5+C69,$E$6-C69,$E$10),A1xn($E$5+C69,$E$6-C69,$E$10)))),0) -> 0 | F69: =IF(C69<=$E$12,IF($D$2="Whole life",dax($E$5+C69,$E$10,0,1,0),Daxn($E$5+C69,$E$6-C69,$E$10,0,1,0)),0) -> 0 | G69: 0 | H69: =G69-SUM($E$14:$E$16)*F69/IF($D$2="Whole life",dax($E$5,$E$10,0,1,0),Daxn($E$5,$E$6,$E$10,0,1,0)) -> 0
C70: 42 | D70: 77 | E70: =IF(C70<=$E$12,IF($D$2="Whole life",A1x($E$5+C70,$E$10),IF($D$2="Endowment",Axn($E$5+C70,$E$6-C70,$E$10,$E$8,$E$7),IF($D$2="Pure endowment",nex($E$5+C70,$E$6-C70,$E$10),A1xn($E$5+C70,$E$6-C70,$E$10)))),0) -> 0 | F70: =IF(C70<=$E$12,IF($D$2="Whole life",dax($E$5+C70,$E$10,0,1,0),Daxn($E$5+C70,$E$6-C70,$E$10,0,1,0)),0) -> 0 | G70: 0 | H70: =G70-SUM($E$14:$E$16)*F70/IF($D$2="Whole life",dax($E$5,$E$10,0,1,0),Daxn($E$5,$E$6,$E$10,0,1,0)) -> 0
C71: 43 | D71: 78 | E71: =IF(C71<=$E$12,IF($D$2="Whole life",A1x($E$5+C71,$E$10),IF($D$2="Endowment",Axn($E$5+C71,$E$6-C71,$E$10,$E$8,$E$7),IF($D$2="Pure endowment",nex($E$5+C71,$E$6-C71,$E$10),A1xn($E$5+C71,$E$6-C71,$E$10)))),0) -> 0 | F71: =IF(C71<=$E$12,IF($D$2="Whole life",dax($E$5+C71,$E$10,0,1,0),Daxn($E$5+C71,$E$6-C71,$E$10,0,1,0)),0) -> 0 | G71: 0 | H71: =G71-SUM($E$14:$E$16)*F71/IF($D$2="Whole life",dax($E$5,$E$10,0,1,0),Daxn($E$5,$E$6,$E$10,0,1,0)) -> 0
C72: 44 | D72: 79 | E72: =IF(C72<=$E$12,IF($D$2="Whole life",A1x($E$5+C72,$E$10),IF($D$2="Endowment",Axn($E$5+C72,$E$6-C72,$E$10,$E$8,$E$7),IF($D$2="Pure endowment",nex($E$5+C72,$E$6-C72,$E$10),A1xn($E$5+C72,$E$6-C72,$E$10)))),0) -> 0 | F72: =IF(C72<=$E$12,IF($D$2="Whole life",dax($E$5+C72,$E$10,0,1,0),Daxn($E$5+C72,$E$6-C72,$E$10,0,1,0)),0) -> 0 | G72: 0 | H72: =G72-SUM($E$14:$E$16)*F72/IF($D$2="Whole life",dax($E$5,$E$10,0,1,0),Daxn($E$5,$E$6,$E$10,0,1,0)) -> 0
C73: 45 | D73: 80 | E73: =IF(C73<=$E$12,IF($D$2="Whole life",A1x($E$5+C73,$E$10),IF($D$2="Endowment",Axn($E$5+C73,$E$6-C73,$E$10,$E$8,$E$7),IF($D$2="Pure endowment",nex($E$5+C73,$E$6-C73,$E$10),A1xn($E$5+C73,$E$6-C73,$E$10)))),0) -> 0 | F73: =IF(C73<=$E$12,IF($D$2="Whole life",dax($E$5+C73,$E$10,0,1,0),Daxn($E$5+C73,$E$6-C73,$E$10,0,1,0)),0) -> 0 | G73: 0 | H73: =G73-SUM($E$14:$E$16)*F73/IF($D$2="Whole life",dax($E$5,$E$10,0,1,0),Daxn($E$5,$E$6,$E$10,0,1,0)) -> 0
C74: 46 | D74: 81 | E74: =IF(C74<=$E$12,IF($D$2="Whole life",A1x($E$5+C74,$E$10),IF($D$2="Endowment",Axn($E$5+C74,$E$6-C74,$E$10,$E$8,$E$7),IF($D$2="Pure endowment",nex($E$5+C74,$E$6-C74,$E$10),A1xn($E$5+C74,$E$6-C74,$E$10)))),0) -> 0 | F74: =IF(C74<=$E$12,IF($D$2="Whole life",dax($E$5+C74,$E$10,0,1,0),Daxn($E$5+C74,$E$6-C74,$E$10,0,1,0)),0) -> 0 | G74: 0 | H74: =G74-SUM($E$14:$E$16)*F74/IF($D$2="Whole life",dax($E$5,$E$10,0,1,0),Daxn($E$5,$E$6,$E$10,0,1,0)) -> 0
C75: 47 | D75: 82 | E75: =IF(C75<=$E$12,IF($D$2="Whole life",A1x($E$5+C75,$E$10),IF($D$2="Endowment",Axn($E$5+C75,$E$6-C75,$E$10,$E$8,$E$7),IF($D$2="Pure endowment",nex($E$5+C75,$E$6-C75,$E$10),A1xn($E$5+C75,$E$6-C75,$E$10)))),0) -> 0 | F75: =IF(C75<=$E$12,IF($D$2="Whole life",dax($E$5+C75,$E$10,0,1,0),Daxn($E$5+C75,$E$6-C75,$E$10,0,1,0)),0) -> 0 | G75: 0 | H75: =G75-SUM($E$14:$E$16)*F75/IF($D$2="Whole life",dax($E$5,$E$10,0,1,0),Daxn($E$5,$E$6,$E$10,0,1,0)) -> 0
C76: 48 | D76: 83 | E76: =IF(C76<=$E$12,IF($D$2="Whole life",A1x($E$5+C76,$E$10),IF($D$2="Endowment",Axn($E$5+C76,$E$6-C76,$E$10,$E$8,$E$7),IF($D$2="Pure endowment",nex($E$5+C76,$E$6-C76,$E$10),A1xn($E$5+C76,$E$6-C76,$E$10)))),0) -> 0 | F76: =IF(C76<=$E$12,IF($D$2="Whole life",dax($E$5+C76,$E$10,0,1,0),Daxn($E$5+C76,$E$6-C76,$E$10,0,1,0)),0) -> 0 | G76: 0 | H76: =G76-SUM($E$14:$E$16)*F76/IF($D$2="Whole life",dax($E$5,$E$10,0,1,0),Daxn($E$5,$E$6,$E$10,0,1,0)) -> 0
C77: 49 | D77: 84 | E77: =IF(C77<=$E$12,IF($D$2="Whole life",A1x($E$5+C77,$E$10),IF($D$2="Endowment",Axn($E$5+C77,$E$6-C77,$E$10,$E$8,$E$7),IF($D$2="Pure endowment",nex($E$5+C77,$E$6-C77,$E$10),A1xn($E$5+C77,$E$6-C77,$E$10)))),0) -> 0 | F77: =IF(C77<=$E$12,IF($D$2="Whole life",dax($E$5+C77,$E$10,0,1,0),Daxn($E$5+C77,$E$6-C77,$E$10,0,1,0)),0) -> 0 | G77: 0 | H77: =G77-SUM($E$14:$E$16)*F77/IF($D$2="Whole life",dax($E$5,$E$10,0,1,0),Daxn($E$5,$E$6,$E$10,0,1,0)) -> 0
C78: 50 | D78: 85 | E78: =IF(C78<=$E$12,IF($D$2="Whole life",A1x($E$5+C78,$E$10),IF($D$2="Endowment",Axn($E$5+C78,$E$6-C78,$E$10,$E$8,$E$7),IF($D$2="Pure endowment",nex($E$5+C78,$E$6-C78,$E$10),A1xn($E$5+C78,$E$6-C78,$E$10)))),0) -> 0 | F78: =IF(C78<=$E$12,IF($D$2="Whole life",dax($E$5+C78,$E$10,0,1,0),Daxn($E$5+C78,$E$6-C78,$E$10,0,1,0)),0) -> 0 | G78: 0 | H78: =G78-SUM($E$14:$E$16)*F78/IF($D$2="Whole life",dax($E$5,$E$10,0,1,0),Daxn($E$5,$E$6,$E$10,0,1,0)) -> 0
C79: 51 | D79: 86 | E79: =IF(C79<=$E$12,IF($D$2="Whole life",A1x($E$5+C79,$E$10),IF($D$2="Endowment",Axn($E$5+C79,$E$6-C79,$E$10,$E$8,$E$7),IF($D$2="Pure endowment",nex($E$5+C79,$E$6-C79,$E$10),A1xn($E$5+C79,$E$6-C79,$E$10)))),0) -> 0 | F79: =IF(C79<=$E$12,IF($D$2="Whole life",dax($E$5+C79,$E$10,0,1,0),Daxn($E$5+C79,$E$6-C79,$E$10,0,1,0)),0) -> 0 | G79: 0 | H79: =G79-SUM($E$14:$E$16)*F79/IF($D$2="Whole life",dax($E$5,$E$10,0,1,0),Daxn($E$5,$E$6,$E$10,0,1,0)) -> 0
C80: 52 | D80: 87 | E80: =IF(C80<=$E$12,IF($D$2="Whole life",A1x($E$5+C80,$E$10),IF($D$2="Endowment",Axn($E$5+C80,$E$6-C80,$E$10,$E$8,$E$7),IF($D$2="Pure endowment",nex($E$5+C80,$E$6-C80,$E$10),A1xn($E$5+C80,$E$6-C80,$E$10)))),0) -> 0 | F80: =IF(C80<=$E$12,IF($D$2="Whole life",dax($E$5+C80,$E$10,0,1,0),Daxn($E$5+C80,$E$6-C80,$E$10,0,1,0)),0) -> 0 | G80: 0 | H80: =G80-SUM($E$14:$E$16)*F80/IF($D$2="Whole life",dax($E$5,$E$10,0,1,0),Daxn($E$5,$E$6,$E$10,0,1,0)) -> 0
C81: 53 | D81: 88 | E81: =IF(C81<=$E$12,IF($D$2="Whole life",A1x($E$5+C81,$E$10),IF($D$2="Endowment",Axn($E$5+C81,$E$6-C81,$E$10,$E$8,$E$7),IF($D$2="Pure endowment",nex($E$5+C81,$E$6-C81,$E$10),A1xn($E$5+C81,$E$6-C81,$E$10)))),0) -> 0 | F81: =IF(C81<=$E$12,IF($D$2="Whole life",dax($E$5+C81,$E$10,0,1,0),Daxn($E$5+C81,$E$6-C81,$E$10,0,1,0)),0) -> 0 | G81: 0 | H81: =G81-SUM($E$14:$E$16)*F81/IF($D$2="Whole life",dax($E$5,$E$10,0,1,0),Daxn($E$5,$E$6,$E$10,0,1,0)) -> 0
C82: 54 | D82: 89 | E82: =IF(C82<=$E$12,IF($D$2="Whole life",A1x($E$5+C82,$E$10),IF($D$2="Endowment",Axn($E$5+C82,$E$6-C82,$E$10,$E$8,$E$7),IF($D$2="Pure endowment",nex($E$5+C82,$E$6-C82,$E$10),A1xn($E$5+C82,$E$6-C82,$E$10)))),0) -> 0 | F82: =IF(C82<=$E$12,IF($D$2="Whole life",dax($E$5+C82,$E$10,0,1,0),Daxn($E$5+C82,$E$6-C82,$E$10,0,1,0)),0) -> 0 | G82: 0 | H82: =G82-SUM($E$14:$E$16)*F82/IF($D$2="Whole life",dax($E$5,$E$10,0,1,0),Daxn($E$5,$E$6,$E$10,0,1,0)) -> 0
C83: 55 | D83: 90 | E83: =IF(C83<=$E$12,IF($D$2="Whole life",A1x($E$5+C83,$E$10),IF($D$2="Endowment",Axn($E$5+C83,$E$6-C83,$E$10,$E$8,$E$7),IF($D$2="Pure endowment",nex($E$5+C83,$E$6-C83,$E$10),A1xn($E$5+C83,$E$6-C83,$E$10)))),0) -> 0 | F83: =IF(C83<=$E$12,IF($D$2="Whole life",dax($E$5+C83,$E$10,0,1,0),Daxn($E$5+C83,$E$6-C83,$E$10,0,1,0)),0) -> 0 | G83: 0 | H83: =G83-SUM($E$14:$E$16)*F83/IF($D$2="Whole life",dax($E$5,$E$10,0,1,0),Daxn($E$5,$E$6,$E$10,0,1,0)) -> 0
C84: 56 | D84: 91 | E84: =IF(C84<=$E$12,IF($D$2="Whole life",A1x($E$5+C84,$E$10),IF($D$2="Endowment",Axn($E$5+C84,$E$6-C84,$E$10,$E$8,$E$7),IF($D$2="Pure endowment",nex($E$5+C84,$E$6-C84,$E$10),A1xn($E$5+C84,$E$6-C84,$E$10)))),0) -> 0 | F84: =IF(C84<=$E$12,IF($D$2="Whole life",dax($E$5+C84,$E$10,0,1,0),Daxn($E$5+C84,$E$6-C84,$E$10,0,1,0)),0) -> 0 | G84: 0 | H84: =G84-SUM($E$14:$E$16)*F84/IF($D$2="Whole life",dax($E$5,$E$10,0,1,0),Daxn($E$5,$E$6,$E$10,0,1,0)) -> 0
C85: 57 | D85: 92 | E85: =IF(C85<=$E$12,IF($D$2="Whole life",A1x($E$5+C85,$E$10),IF($D$2="Endowment",Axn($E$5+C85,$E$6-C85,$E$10,$E$8,$E$7),IF($D$2="Pure endowment",nex($E$5+C85,$E$6-C85,$E$10),A1xn($E$5+C85,$E$6-C85,$E$10)))),0) -> 0 | F85: =IF(C85<=$E$12,IF($D$2="Whole life",dax($E$5+C85,$E$10,0,1,0),Daxn($E$5+C85,$E$6-C85,$E$10,0,1,0)),0) -> 0 | G85: 0 | H85: =G85-SUM($E$14:$E$16)*F85/IF($D$2="Whole life",dax($E$5,$E$10,0,1,0),Daxn($E$5,$E$6,$E$10,0,1,0)) -> 0
C86: 58 | D86: 93 | E86: =IF(C86<=$E$12,IF($D$2="Whole life",A1x($E$5+C86,$E$10),IF($D$2="Endowment",Axn($E$5+C86,$E$6-C86,$E$10,$E$8,$E$7),IF($D$2="Pure endowment",nex($E$5+C86,$E$6-C86,$E$10),A1xn($E$5+C86,$E$6-C86,$E$10)))),0) -> 0 | F86: =IF(C86<=$E$12,IF($D$2="Whole life",dax($E$5+C86,$E$10,0,1,0),Daxn($E$5+C86,$E$6-C86,$E$10,0,1,0)),0) -> 0 | G86: 0 | H86: =G86-SUM($E$14:$E$16)*F86/IF($D$2="Whole life",dax($E$5,$E$10,0,1,0),Daxn($E$5,$E$6,$E$10,0,1,0)) -> 0
C87: 59 | D87: 94 | E87: =IF(C87<=$E$12,IF($D$2="Whole life",A1x($E$5+C87,$E$10),IF($D$2="Endowment",Axn($E$5+C87,$E$6-C87,$E$10,$E$8,$E$7),IF($D$2="Pure endowment",nex($E$5+C87,$E$6-C87,$E$10),A1xn($E$5+C87,$E$6-C87,$E$10)))),0) -> 0 | F87: =IF(C87<=$E$12,IF($D$2="Whole life",dax($E$5+C87,$E$10,0,1,0),Daxn($E$5+C87,$E$6-C87,$E$10,0,1,0)),0) -> 0 | G87: 0 | H87: =G87-SUM($E$14:$E$16)*F87/IF($D$2="Whole life",dax($E$5,$E$10,0,1,0),Daxn($E$5,$E$6,$E$10,0,1,0)) -> 0
C88: 60 | D88: 95 | E88: =IF(C88<=$E$12,IF($D$2="Whole life",A1x($E$5+C88,$E$10),IF($D$2="Endowment",Axn($E$5+C88,$E$6-C88,$E$10,$E$8,$E$7),IF($D$2="Pure endowment",nex($E$5+C88,$E$6-C88,$E$10),A1xn($E$5+C88,$E$6-C88,$E$10)))),0) -> 0 | F88: =IF(C88<=$E$12,IF($D$2="Whole life",dax($E$5+C88,$E$10,0,1,0),Daxn($E$5+C88,$E$6-C88,$E$10,0,1,0)),0) -> 0 | G88: 0 | H88: =G88-SUM($E$14:$E$16)*F88/IF($D$2="Whole life",dax($E$5,$E$10,0,1,0),Daxn($E$5,$E$6,$E$10,0,1,0)) -> 0
C89: 61 | D89: 96 | E89: =IF(C89<=$E$12,IF($D$2="Whole life",A1x($E$5+C89,$E$10),IF($D$2="Endowment",Axn($E$5+C89,$E$6-C89,$E$10,$E$8,$E$7),IF($D$2="Pure endowment",nex($E$5+C89,$E$6-C89,$E$10),A1xn($E$5+C89,$E$6-C89,$E$10)))),0) -> 0 | F89: =IF(C89<=$E$12,IF($D$2="Whole life",dax($E$5+C89,$E$10,0,1,0),Daxn($E$5+C89,$E$6-C89,$E$10,0,1,0)),0) -> 0 | G89: 0 | H89: =G89-SUM($E$14:$E$16)*F89/IF($D$2="Whole life",dax($E$5,$E$10,0,1,0),Daxn($E$5,$E$6,$E$10,0,1,0)) -> 0
C90: 62 | D90: 97 | E90: =IF(C90<=$E$12,IF($D$2="Whole life",A1x($E$5+C90,$E$10),IF($D$2="Endowment",Axn($E$5+C90,$E$6-C90,$E$10,$E$8,$E$7),IF($D$2="Pure endowment",nex($E$5+C90,$E$6-C90,$E$10),A1xn($E$5+C90,$E$6-C90,$E$10)))),0) -> 0 | F90: =IF(C90<=$E$12,IF($D$2="Whole life",dax($E$5+C90,$E$10,0,1,0),Daxn($E$5+C90,$E$6-C90,$E$10,0,1,0)),0) -> 0 | G90: 0 | H90: =G90-SUM($E$14:$E$16)*F90/IF($D$2="Whole life",dax($E$5,$E$10,0,1,0),Daxn($E$5,$E$6,$E$10,0,1,0)) -> 0
C91: 63 | D91: 98 | E91: =IF(C91<=$E$12,IF($D$2="Whole life",A1x($E$5+C91,$E$10),IF($D$2="Endowment",Axn($E$5+C91,$E$6-C91,$E$10,$E$8,$E$7),IF($D$2="Pure endowment",nex($E$5+C91,$E$6-C91,$E$10),A1xn($E$5+C91,$E$6-C91,$E$10)))),0) -> 0 | F91: =IF(C91<=$E$12,IF($D$2="Whole life",dax($E$5+C91,$E$10,0,1,0),Daxn($E$5+C91,$E$6-C91,$E$10,0,1,0)),0) -> 0 | G91: 0 | H91: =G91-SUM($E$14:$E$16)*F91/IF($D$2="Whole life",dax($E$5,$E$10,0,1,0),Daxn($E$5,$E$6,$E$10,0,1,0)) -> 0
C92: 64 | D92: 99 | E92: =IF(C92<=$E$12,IF($D$2="Whole life",A1x($E$5+C92,$E$10),IF($D$2="Endowment",Axn($E$5+C92,$E$6-C92,$E$10,$E$8,$E$7),IF($D$2="Pure endowment",nex($E$5+C92,$E$6-C92,$E$10),A1xn($E$5+C92,$E$6-C92,$E$10)))),0) -> 0 | F92: =IF(C92<=$E$12,IF($D$2="Whole life",dax($E$5+C92,$E$10,0,1,0),Daxn($E$5+C92,$E$6-C92,$E$10,0,1,0)),0) -> 0 | G92: 0 | H92: =G92-SUM($E$14:$E$16)*F92/IF($D$2="Whole life",dax($E$5,$E$10,0,1,0),Daxn($E$5,$E$6,$E$10,0,1,0)) -> 0
C93: =C92+1 -> 65 | D93: =D92+1 -> 100 | E93: =IF(C93<=$E$12,IF($D$2="Whole life",A1x($E$5+C93,$E$10),IF($D$2="Endowment",Axn($E$5+C93,$E$6-C93,$E$10,$E$8,$E$7),IF($D$2="Pure endowment",nex($E$5+C93,$E$6-C93,$E$10),A1xn($E$5+C93,$E$6-C93,$E$10)))),0) -> 0 | F93: =IF(C93<=$E$12,IF($D$2="Whole life",dax($E$5+C93,$E$10,0,1,0),Daxn($E$5+C93,$E$6-C93,$E$10,0,1,0)),0) -> 0 | G93: =E93*IF($D$2="Pure endowment",$E$8,$E$7)-F93*$G$8 -> 0 | H93: =G93-SUM($E$14:$E$16)*F93/IF($D$2="Whole life",dax($E$5,$E$10,0,1,0),Daxn($E$5,$E$6,$E$10,0,1,0)) -> 0
C94: 66 | D94: 101 | E94: =IF(C94<=$E$12,IF($D$2="Whole life",A1x($E$5+C94,$E$10),IF($D$2="Endowment",Axn($E$5+C94,$E$6-C94,$E$10,$E$8,$E$7),IF($D$2="Pure endowment",nex($E$5+C94,$E$6-C94,$E$10),A1xn($E$5+C94,$E$6-C94,$E$10)))),0) -> 0 | F94: =IF(C94<=$E$12,IF($D$2="Whole life",dax($E$5+C94,$E$10,0,1,0),Daxn($E$5+C94,$E$6-C94,$E$10,0,1,0)),0) -> 0 | G94: 0 | H94: =G94-SUM($E$14:$E$16)*F94/IF($D$2="Whole life",dax($E$5,$E$10,0,1,0),Daxn($E$5,$E$6,$E$10,0,1,0)) -> 0
C95: 67 | D95: 102 | E95: =IF(C95<=$E$12,IF($D$2="Whole life",A1x($E$5+C95,$E$10),IF($D$2="Endowment",Axn($E$5+C95,$E$6-C95,$E$10,$E$8,$E$7),IF($D$2="Pure endowment",nex($E$5+C95,$E$6-C95,$E$10),A1xn($E$5+C95,$E$6-C95,$E$10)))),0) -> 0 | F95: =IF(C95<=$E$12,IF($D$2="Whole life",dax($E$5+C95,$E$10,0,1,0),Daxn($E$5+C95,$E$6-C95,$E$10,0,1,0)),0) -> 0 | G95: 0 | H95: =G95-SUM($E$14:$E$16)*F95/IF($D$2="Whole life",dax($E$5,$E$10,0,1,0),Daxn($E$5,$E$6,$E$10,0,1,0)) -> 0
C96: 68 | D96: 103 | E96: =IF(C96<=$E$12,IF($D$2="Whole life",A1x($E$5+C96,$E$10),IF($D$2="Endowment",Axn($E$5+C96,$E$6-C96,$E$10,$E$8,$E$7),IF($D$2="Pure endowment",nex($E$5+C96,$E$6-C96,$E$10),A1xn($E$5+C96,$E$6-C96,$E$10)))),0) -> 0 | F96: =IF(C96<=$E$12,IF($D$2="Whole life",dax($E$5+C96,$E$10,0,1,0),Daxn($E$5+C96,$E$6-C96,$E$10,0,1,0)),0) -> 0 | G96: 0 | H96: =G96-SUM($E$14:$E$16)*F96/IF($D$2="Whole life",dax($E$5,$E$10,0,1,0),Daxn($E$5,$E$6,$E$10,0,1,0)) -> 0
C97: 69 | D97: 104 | E97: =IF(C97<=$E$12,IF($D$2="Whole life",A1x($E$5+C97,$E$10),IF($D$2="Endowment",Axn($E$5+C97,$E$6-C97,$E$10,$E$8,$E$7),IF($D$2="Pure endowment",nex($E$5+C97,$E$6-C97,$E$10),A1xn($E$5+C97,$E$6-C97,$E$10)))),0) -> 0 | F97: =IF(C97<=$E$12,IF($D$2="Whole life",dax($E$5+C97,$E$10,0,1,0),Daxn($E$5+C97,$E$6-C97,$E$10,0,1,0)),0) -> 0 | G97: 0 | H97: =G97-SUM($E$14:$E$16)*F97/IF($D$2="Whole life",dax($E$5,$E$10,0,1,0),Daxn($E$5,$E$6,$E$10,0,1,0)) -> 0
C98: 70 | D98: 105 | E98: =IF(C98<=$E$12,IF($D$2="Whole life",A1x($E$5+C98,$E$10),IF($D$2="Endowment",Axn($E$5+C98,$E$6-C98,$E$10,$E$8,$E$7),IF($D$2="Pure endowment",nex($E$5+C98,$E$6-C98,$E$10),A1xn($E$5+C98,$E$6-C98,$E$10)))),0) -> 0 | F98: =IF(C98<=$E$12,IF($D$2="Whole life",dax($E$5+C98,$E$10,0,1,0),Daxn($E$5+C98,$E$6-C98,$E$10,0,1,0)),0) -> 0 | G98: 0 | H98: =G98-SUM($E$14:$E$16)*F98/IF($D$2="Whole life",dax($E$5,$E$10,0,1,0),Daxn($E$5,$E$6,$E$10,0,1,0)) -> 0
C99: 71 | D99: 106 | E99: =IF(C99<=$E$12,IF($D$2="Whole life",A1x($E$5+C99,$E$10),IF($D$2="Endowment",Axn($E$5+C99,$E$6-C99,$E$10,$E$8,$E$7),IF($D$2="Pure endowment",nex($E$5+C99,$E$6-C99,$E$10),A1xn($E$5+C99,$E$6-C99,$E$10)))),0) -> 0 | F99: =IF(C99<=$E$12,IF($D$2="Whole life",dax($E$5+C99,$E$10,0,1,0),Daxn($E$5+C99,$E$6-C99,$E$10,0,1,0)),0) -> 0 | G99: 0 | H99: =G99-SUM($E$14:$E$16)*F99/IF($D$2="Whole life",dax($E$5,$E$10,0,1,0),Daxn($E$5,$E$6,$E$10,0,1,0)) -> 0
C100: 72 | D100: 107 | E100: =IF(C100<=$E$12,IF($D$2="Whole life",A1x($E$5+C100,$E$10),IF($D$2="Endowment",Axn($E$5+C100,$E$6-C100,$E$10,$E$8,$E$7),IF($D$2="Pure endowment",nex($E$5+C100,$E$6-C100,$E$10),A1xn($E$5+C100,$E$6-C100,$E$10)))),0) -> 0 | F100: =IF(C100<=$E$12,IF($D$2="Whole life",dax($E$5+C100,$E$10,0,1,0),Daxn($E$5+C100,$E$6-C100,$E$10,0,1,0)),0) -> 0 | G100: 0 | H100: =G100-SUM($E$14:$E$16)*F100/IF($D$2="Whole life",dax($E$5,$E$10,0,1,0),Daxn($E$5,$E$6,$E$10,0,1,0)) -> 0
C101: 73 | D101: 108 | E101: =IF(C101<=$E$12,IF($D$2="Whole life",A1x($E$5+C101,$E$10),IF($D$2="Endowment",Axn($E$5+C101,$E$6-C101,$E$10,$E$8,$E$7),IF($D$2="Pure endowment",nex($E$5+C101,$E$6-C101,$E$10),A1xn($E$5+C101,$E$6-C101,$E$10)))),0) -> 0 | F101: =IF(C101<=$E$12,IF($D$2="Whole life",dax($E$5+C101,$E$10,0,1,0),Daxn($E$5+C101,$E$6-C101,$E$10,0,1,0)),0) -> 0 | G101: 0 | H101: =G101-SUM($E$14:$E$16)*F101/IF($D$2="Whole life",dax($E$5,$E$10,0,1,0),Daxn($E$5,$E$6,$E$10,0,1,0)) -> 0
C102: 74 | D102: 109 | E102: =IF(C102<=$E$12,IF($D$2="Whole life",A1x($E$5+C102,$E$10),IF($D$2="Endowment",Axn($E$5+C102,$E$6-C102,$E$10,$E$8,$E$7),IF($D$2="Pure endowment",nex($E$5+C102,$E$6-C102,$E$10),A1xn($E$5+C102,$E$6-C102,$E$10)))),0) -> 0 | F102: =IF(C102<=$E$12,IF($D$2="Whole life",dax($E$5+C102,$E$10,0,1,0),Daxn($E$5+C102,$E$6-C102,$E$10,0,1,0)),0) -> 0 | G102: 0 | H102: =G102-SUM($E$14:$E$16)*F102/IF($D$2="Whole life",dax($E$5,$E$10,0,1,0),Daxn($E$5,$E$6,$E$10,0,1,0)) -> 0
C103: 75 | D103: 110 | E103: =IF(C103<=$E$12,IF($D$2="Whole life",A1x($E$5+C103,$E$10),IF($D$2="Endowment",Axn($E$5+C103,$E$6-C103,$E$10,$E$8,$E$7),IF($D$2="Pure endowment",nex($E$5+C103,$E$6-C103,$E$10),A1xn($E$5+C103,$E$6-C103,$E$10)))),0) -> 0 | F103: =IF(C103<=$E$12,IF($D$2="Whole life",dax($E$5+C103,$E$10,0,1,0),Daxn($E$5+C103,$E$6-C103,$E$10,0,1,0)),0) -> 0 | G103: 0 | H103: =G103-SUM($E$14:$E$16)*F103/IF($D$2="Whole life",dax($E$5,$E$10,0,1,0),Daxn($E$5,$E$6,$E$10,0,1,0)) -> 0
C104: 76 | D104: 111 | E104: =IF(C104<=$E$12,IF($D$2="Whole life",A1x($E$5+C104,$E$10),IF($D$2="Endowment",Axn($E$5+C104,$E$6-C104,$E$10,$E$8,$E$7),IF($D$2="Pure endowment",nex($E$5+C104,$E$6-C104,$E$10),A1xn($E$5+C104,$E$6-C104,$E$10)))),0) -> 0 | F104: =IF(C104<=$E$12,IF($D$2="Whole life",dax($E$5+C104,$E$10,0,1,0),Daxn($E$5+C104,$E$6-C104,$E$10,0,1,0)),0) -> 0 | G104: 0 | H104: =G104-SUM($E$14:$E$16)*F104/IF($D$2="Whole life",dax($E$5,$E$10,0,1,0),Daxn($E$5,$E$6,$E$10,0,1,0)) -> 0
C105: 77 | D105: 112 | E105: =IF(C105<=$E$12,IF($D$2="Whole life",A1x($E$5+C105,$E$10),IF($D$2="Endowment",Axn($E$5+C105,$E$6-C105,$E$10,$E$8,$E$7),IF($D$2="Pure endowment",nex($E$5+C105,$E$6-C105,$E$10),A1xn($E$5+C105,$E$6-C105,$E$10)))),0) -> 0 | F105: =IF(C105<=$E$12,IF($D$2="Whole life",dax($E$5+C105,$E$10,0,1,0),Daxn($E$5+C105,$E$6-C105,$E$10,0,1,0)),0) -> 0 | G105: 0 | H105: =G105-SUM($E$14:$E$16)*F105/IF($D$2="Whole life",dax($E$5,$E$10,0,1,0),Daxn($E$5,$E$6,$E$10,0,1,0)) -> 0
C106: 78 | D106: 113 | E106: =IF(C106<=$E$12,IF($D$2="Whole life",A1x($E$5+C106,$E$10),IF($D$2="Endowment",Axn($E$5+C106,$E$6-C106,$E$10,$E$8,$E$7),IF($D$2="Pure endowment",nex($E$5+C106,$E$6-C106,$E$10),A1xn($E$5+C106,$E$6-C106,$E$10)))),0) -> 0 | F106: =IF(C106<=$E$12,IF($D$2="Whole life",dax($E$5+C106,$E$10,0,1,0),Daxn($E$5+C106,$E$6-C106,$E$10,0,1,0)),0) -> 0 | G106: 0 | H106: =G106-SUM($E$14:$E$16)*F106/IF($D$2="Whole life",dax($E$5,$E$10,0,1,0),Daxn($E$5,$E$6,$E$10,0,1,0)) -> 0
C107: 79 | D107: 114 | E107: =IF(C107<=$E$12,IF($D$2="Whole life",A1x($E$5+C107,$E$10),IF($D$2="Endowment",Axn($E$5+C107,$E$6-C107,$E$10,$E$8,$E$7),IF($D$2="Pure endowment",nex($E$5+C107,$E$6-C107,$E$10),A1xn($E$5+C107,$E$6-C107,$E$10)))),0) -> 0 | F107: =IF(C107<=$E$12,IF($D$2="Whole life",dax($E$5+C107,$E$10,0,1,0),Daxn($E$5+C107,$E$6-C107,$E$10,0,1,0)),0) -> 0 | G107: 0 | H107: =G107-SUM($E$14:$E$16)*F107/IF($D$2="Whole life",dax($E$5,$E$10,0,1,0),Daxn($E$5,$E$6,$E$10,0,1,0)) -> 0
C108: 80 | D108: 115 | E108: =IF(C108<=$E$12,IF($D$2="Whole life",A1x($E$5+C108,$E$10),IF($D$2="Endowment",Axn($E$5+C108,$E$6-C108,$E$10,$E$8,$E$7),IF($D$2="Pure endowment",nex($E$5+C108,$E$6-C108,$E$10),A1xn($E$5+C108,$E$6-C108,$E$10)))),0) -> 0 | F108: =IF(C108<=$E$12,IF($D$2="Whole life",dax($E$5+C108,$E$10,0,1,0),Daxn($E$5+C108,$E$6-C108,$E$10,0,1,0)),0) -> 0 | G108: 0 | H108: =G108-SUM($E$14:$E$16)*F108/IF($D$2="Whole life",dax($E$5,$E$10,0,1,0),Daxn($E$5,$E$6,$E$10,0,1,0)) -> 0
C109: 81 | D109: 116 | E109: =IF(C109<=$E$12,IF($D$2="Whole life",A1x($E$5+C109,$E$10),IF($D$2="Endowment",Axn($E$5+C109,$E$6-C109,$E$10,$E$8,$E$7),IF($D$2="Pure endowment",nex($E$5+C109,$E$6-C109,$E$10),A1xn($E$5+C109,$E$6-C109,$E$10)))),0) -> 0 | F109: =IF(C109<=$E$12,IF($D$2="Whole life",dax($E$5+C109,$E$10,0,1,0),Daxn($E$5+C109,$E$6-C109,$E$10,0,1,0)),0) -> 0 | G109: 0 | H109: =G109-SUM($E$14:$E$16)*F109/IF($D$2="Whole life",dax($E$5,$E$10,0,1,0),Daxn($E$5,$E$6,$E$10,0,1,0)) -> 0
C110: 82 | D110: 117 | E110: =IF(C110<=$E$12,IF($D$2="Whole life",A1x($E$5+C110,$E$10),IF($D$2="Endowment",Axn($E$5+C110,$E$6-C110,$E$10,$E$8,$E$7),IF($D$2="Pure endowment",nex($E$5+C110,$E$6-C110,$E$10),A1xn($E$5+C110,$E$6-C110,$E$10)))),0) -> 0 | F110: =IF(C110<=$E$12,IF($D$2="Whole life",dax($E$5+C110,$E$10,0,1,0),Daxn($E$5+C110,$E$6-C110,$E$10,0,1,0)),0) -> 0 | G110: 0 | H110: =G110-SUM($E$14:$E$16)*F110/IF($D$2="Whole life",dax($E$5,$E$10,0,1,0),Daxn($E$5,$E$6,$E$10,0,1,0)) -> 0
C111: 83 | D111: 118 | E111: =IF(C111<=$E$12,IF($D$2="Whole life",A1x($E$5+C111,$E$10),IF($D$2="Endowment",Axn($E$5+C111,$E$6-C111,$E$10,$E$8,$E$7),IF($D$2="Pure endowment",nex($E$5+C111,$E$6-C111,$E$10),A1xn($E$5+C111,$E$6-C111,$E$10)))),0) -> 0 | F111: =IF(C111<=$E$12,IF($D$2="Whole life",dax($E$5+C111,$E$10,0,1,0),Daxn($E$5+C111,$E$6-C111,$E$10,0,1,0)),0) -> 0 | G111: 0 | H111: =G111-SUM($E$14:$E$16)*F111/IF($D$2="Whole life",dax($E$5,$E$10,0,1,0),Daxn($E$5,$E$6,$E$10,0,1,0)) -> 0
C112: 84 | D112: 119 | E112: =IF(C112<=$E$12,IF($D$2="Whole life",A1x($E$5+C112,$E$10),IF($D$2="Endowment",Axn($E$5+C112,$E$6-C112,$E$10,$E$8,$E$7),IF($D$2="Pure endowment",nex($E$5+C112,$E$6-C112,$E$10),A1xn($E$5+C112,$E$6-C112,$E$10)))),0) -> 0 | F112: =IF(C112<=$E$12,IF($D$2="Whole life",dax($E$5+C112,$E$10,0,1,0),Daxn($E$5+C112,$E$6-C112,$E$10,0,1,0)),0) -> 0 | G112: 0 | H112: =G112-SUM($E$14:$E$16)*F112/IF($D$2="Whole life",dax($E$5,$E$10,0,1,0),Daxn($E$5,$E$6,$E$10,0,1,0)) -> 0
C113: 85 | D113: 120 | E113: =IF(C113<=$E$12,IF($D$2="Whole life",A1x($E$5+C113,$E$10),IF($D$2="Endowment",Axn($E$5+C113,$E$6-C113,$E$10,$E$8,$E$7),IF($D$2="Pure endowment",nex($E$5+C113,$E$6-C113,$E$10),A1xn($E$5+C113,$E$6-C113,$E$10)))),0) -> 0 | F113: =IF(C113<=$E$12,IF($D$2="Whole life",dax($E$5+C113,$E$10,0,1,0),Daxn($E$5+C113,$E$6-C113,$E$10,0,1,0)),0) -> 0 | G113: 0 | H113: =G113-SUM($E$14:$E$16)*F113/IF($D$2="Whole life",dax($E$5,$E$10,0,1,0),Daxn($E$5,$E$6,$E$10,0,1,0)) -> 0
C114: 86 | D114: 121 | E114: =IF(C114<=$E$12,IF($D$2="Whole life",A1x($E$5+C114,$E$10),IF($D$2="Endowment",Axn($E$5+C114,$E$6-C114,$E$10,$E$8,$E$7),IF($D$2="Pure endowment",nex($E$5+C114,$E$6-C114,$E$10),A1xn($E$5+C114,$E$6-C114,$E$10)))),0) -> 0 | F114: =IF(C114<=$E$12,IF($D$2="Whole life",dax($E$5+C114,$E$10,0,1,0),Daxn($E$5+C114,$E$6-C114,$E$10,0,1,0)),0) -> 0 | G114: 0 | H114: =G114-SUM($E$14:$E$16)*F114/IF($D$2="Whole life",dax($E$5,$E$10,0,1,0),Daxn($E$5,$E$6,$E$10,0,1,0)) -> 0
C115: 87 | D115: 122 | E115: =IF(C115<=$E$12,IF($D$2="Whole life",A1x($E$5+C115,$E$10),IF($D$2="Endowment",Axn($E$5+C115,$E$6-C115,$E$10,$E$8,$E$7),IF($D$2="Pure endowment",nex($E$5+C115,$E$6-C115,$E$10),A1xn($E$5+C115,$E$6-C115,$E$10)))),0) -> 0 | F115: =IF(C115<=$E$12,IF($D$2="Whole life",dax($E$5+C115,$E$10,0,1,0),Daxn($E$5+C115,$E$6-C115,$E$10,0,1,0)),0) -> 0 | G115: 0 | H115: =G115-SUM($E$14:$E$16)*F115/IF($D$2="Whole life",dax($E$5,$E$10,0,1,0),Daxn($E$5,$E$6,$E$10,0,1,0)) -> 0
C116: 88 | D116: 123 | E116: =IF(C116<=$E$12,IF($D$2="Whole life",A1x($E$5+C116,$E$10),IF($D$2="Endowment",Axn($E$5+C116,$E$6-C116,$E$10,$E$8,$E$7),IF($D$2="Pure endowment",nex($E$5+C116,$E$6-C116,$E$10),A1xn($E$5+C116,$E$6-C116,$E$10)))),0) -> 0 | F116: =IF(C116<=$E$12,IF($D$2="Whole life",dax($E$5+C116,$E$10,0,1,0),Daxn($E$5+C116,$E$6-C116,$E$10,0,1,0)),0) -> 0 | G116: 0 | H116: =G116-SUM($E$14:$E$16)*F116/IF($D$2="Whole life",dax($E$5,$E$10,0,1,0),Daxn($E$5,$E$6,$E$10,0,1,0)) -> 0
C117: 89 | D117: 124 | E117: =IF(C117<=$E$12,IF($D$2="Whole life",A1x($E$5+C117,$E$10),IF($D$2="Endowment",Axn($E$5+C117,$E$6-C117,$E$10,$E$8,$E$7),IF($D$2="Pure endowment",nex($E$5+C117,$E$6-C117,$E$10),A1xn($E$5+C117,$E$6-C117,$E$10)))),0) -> 0 | F117: =IF(C117<=$E$12,IF($D$2="Whole life",dax($E$5+C117,$E$10,0,1,0),Daxn($E$5+C117,$E$6-C117,$E$10,0,1,0)),0) -> 0 | G117: 0 | H117: =G117-SUM($E$14:$E$16)*F117/IF($D$2="Whole life",dax($E$5,$E$10,0,1,0),Daxn($E$5,$E$6,$E$10,0,1,0)) -> 0
C118: 90 | D118: 125 | E118: =IF(C118<=$E$12,IF($D$2="Whole life",A1x($E$5+C118,$E$10),IF($D$2="Endowment",Axn($E$5+C118,$E$6-C118,$E$10,$E$8,$E$7),IF($D$2="Pure endowment",nex($E$5+C118,$E$6-C118,$E$10),A1xn($E$5+C118,$E$6-C118,$E$10)))),0) -> 0 | F118: =IF(C118<=$E$12,IF($D$2="Whole life",dax($E$5+C118,$E$10,0,1,0),Daxn($E$5+C118,$E$6-C118,$E$10,0,1,0)),0) -> 0 | G118: 0 | H118: =G118-SUM($E$14:$E$16)*F118/IF($D$2="Whole life",dax($E$5,$E$10,0,1,0),Daxn($E$5,$E$6,$E$10,0,1,0)) -> 0
C119: 91 | D119: 126 | E119: =IF(C119<=$E$12,IF($D$2="Whole life",A1x($E$5+C119,$E$10),IF($D$2="Endowment",Axn($E$5+C119,$E$6-C119,$E$10,$E$8,$E$7),IF($D$2="Pure endowment",nex($E$5+C119,$E$6-C119,$E$10),A1xn($E$5+C119,$E$6-C119,$E$10)))),0) -> 0 | F119: =IF(C119<=$E$12,IF($D$2="Whole life",dax($E$5+C119,$E$10,0,1,0),Daxn($E$5+C119,$E$6-C119,$E$10,0,1,0)),0) -> 0 | G119: 0 | H119: =G119-SUM($E$14:$E$16)*F119/IF($D$2="Whole life",dax($E$5,$E$10,0,1,0),Daxn($E$5,$E$6,$E$10,0,1,0)) -> 0
C120: 92 | D120: 127 | E120: =IF(C120<=$E$12,IF($D$2="Whole life",A1x($E$5+C120,$E$10),IF($D$2="Endowment",Axn($E$5+C120,$E$6-C120,$E$10,$E$8,$E$7),IF($D$2="Pure endowment",nex($E$5+C120,$E$6-C120,$E$10),A1xn($E$5+C120,$E$6-C120,$E$10)))),0) -> 0 | F120: =IF(C120<=$E$12,IF($D$2="Whole life",dax($E$5+C120,$E$10,0,1,0),Daxn($E$5+C120,$E$6-C120,$E$10,0,1,0)),0) -> 0 | G120: 0 | H120: =G120-SUM($E$14:$E$16)*F120/IF($D$2="Whole life",dax($E$5,$E$10,0,1,0),Daxn($E$5,$E$6,$E$10,0,1,0)) -> 0
C121: 93 | D121: 128 | E121: =IF(C121<=$E$12,IF($D$2="Whole life",A1x($E$5+C121,$E$10),IF($D$2="Endowment",Axn($E$5+C121,$E$6-C121,$E$10,$E$8,$E$7),IF($D$2="Pure endowment",nex($E$5+C121,$E$6-C121,$E$10),A1xn($E$5+C121,$E$6-C121,$E$10)))),0) -> 0 | F121: =IF(C121<=$E$12,IF($D$2="Whole life",dax($E$5+C121,$E$10,0,1,0),Daxn($E$5+C121,$E$6-C121,$E$10,0,1,0)),0) -> 0 | G121: 0 | H121: =G121-SUM($E$14:$E$16)*F121/IF($D$2="Whole life",dax($E$5,$E$10,0,1,0),Daxn($E$5,$E$6,$E$10,0,1,0)) -> 0
C122: 94 | D122: 129 | E122: =IF(C122<=$E$12,IF($D$2="Whole life",A1x($E$5+C122,$E$10),IF($D$2="Endowment",Axn($E$5+C122,$E$6-C122,$E$10,$E$8,$E$7),IF($D$2="Pure endowment",nex($E$5+C122,$E$6-C122,$E$10),A1xn($E$5+C122,$E$6-C122,$E$10)))),0) -> 0 | F122: =IF(C122<=$E$12,IF($D$2="Whole life",dax($E$5+C122,$E$10,0,1,0),Daxn($E$5+C122,$E$6-C122,$E$10,0,1,0)),0) -> 0 | G122: 0 | H122: =G122-SUM($E$14:$E$16)*F122/IF($D$2="Whole life",dax($E$5,$E$10,0,1,0),Daxn($E$5,$E$6,$E$10,0,1,0)) -> 0
C123: 95 | D123: 130 | E123: =IF(C123<=$E$12,IF($D$2="Whole life",A1x($E$5+C123,$E$10),IF($D$2="Endowment",Axn($E$5+C123,$E$6-C123,$E$10,$E$8,$E$7),IF($D$2="Pure endowment",nex($E$5+C123,$E$6-C123,$E$10),A1xn($E$5+C123,$E$6-C123,$E$10)))),0) -> 0 | F123: =IF(C123<=$E$12,IF($D$2="Whole life",dax($E$5+C123,$E$10,0,1,0),Daxn($E$5+C123,$E$6-C123,$E$10,0,1,0)),0) -> 0 | G123: 0 | H123: =G123-SUM($E$14:$E$16)*F123/IF($D$2="Whole life",dax($E$5,$E$10,0,1,0),Daxn($E$5,$E$6,$E$10,0,1,0)) -> 0
C124: 96 | D124: 131 | E124: =IF(C124<=$E$12,IF($D$2="Whole life",A1x($E$5+C124,$E$10),IF($D$2="Endowment",Axn($E$5+C124,$E$6-C124,$E$10,$E$8,$E$7),IF($D$2="Pure endowment",nex($E$5+C124,$E$6-C124,$E$10),A1xn($E$5+C124,$E$6-C124,$E$10)))),0) -> 0 | F124: =IF(C124<=$E$12,IF($D$2="Whole life",dax($E$5+C124,$E$10,0,1,0),Daxn($E$5+C124,$E$6-C124,$E$10,0,1,0)),0) -> 0 | G124: 0 | H124: =G124-SUM($E$14:$E$16)*F124/IF($D$2="Whole life",dax($E$5,$E$10,0,1,0),Daxn($E$5,$E$6,$E$10,0,1,0)) -> 0
C125: =C124+1 -> 97 | D125: =D124+1 -> 132 | E125: =IF(C125<=$E$12,IF($D$2="Whole life",A1x($E$5+C125,$E$10),IF($D$2="Endowment",Axn($E$5+C125,$E$6-C125,$E$10,$E$8,$E$7),IF($D$2="Pure endowment",nex($E$5+C125,$E$6-C125,$E$10),A1xn($E$5+C125,$E$6-C125,$E$10)))),0) -> 0 | F125: =IF(C125<=$E$12,IF($D$2="Whole life",dax($E$5+C125,$E$10,0,1,0),Daxn($E$5+C125,$E$6-C125,$E$10,0,1,0)),0) -> 0 | G125: 0 | H125: =G125-SUM($E$14:$E$16)*F125/IF($D$2="Whole life",dax($E$5,$E$10,0,1,0),Daxn($E$5,$E$6,$E$10,0,1,0)) -> 0
C126: 98 | D126: 133 | E126: =IF(C126<=$E$12,IF($D$2="Whole life",A1x($E$5+C126,$E$10),IF($D$2="Endowment",Axn($E$5+C126,$E$6-C126,$E$10,$E$8,$E$7),IF($D$2="Pure endowment",nex($E$5+C126,$E$6-C126,$E$10),A1xn($E$5+C126,$E$6-C126,$E$10)))),0) -> 0 | F126: =IF(C126<=$E$12,IF($D$2="Whole life",dax($E$5+C126,$E$10,0,1,0),Daxn($E$5+C126,$E$6-C126,$E$10,0,1,0)),0) -> 0 | G126: 0 | H126: =G126-SUM($E$14:$E$16)*F126/IF($D$2="Whole life",dax($E$5,$E$10,0,1,0),Daxn($E$5,$E$6,$E$10,0,1,0)) -> 0
C127: 99 | D127: 134 | E127: =IF(C127<=$E$12,IF($D$2="Whole life",A1x($E$5+C127,$E$10),IF($D$2="Endowment",Axn($E$5+C127,$E$6-C127,$E$10,$E$8,$E$7),IF($D$2="Pure endowment",nex($E$5+C127,$E$6-C127,$E$10),A1xn($E$5+C127,$E$6-C127,$E$10)))),0) -> 0 | F127: =IF(C127<=$E$12,IF($D$2="Whole life",dax($E$5+C127,$E$10,0,1,0),Daxn($E$5+C127,$E$6-C127,$E$10,0,1,0)),0) -> 0 | G127: 0 | H127: =G127-SUM($E$14:$E$16)*F127/IF($D$2="Whole life",dax($E$5,$E$10,0,1,0),Daxn($E$5,$E$6,$E$10,0,1,0)) -> 0
C128: 100 | D128: 135 | E128: =IF(C128<=$E$12,IF($D$2="Whole life",A1x($E$5+C128,$E$10),IF($D$2="Endowment",Axn($E$5+C128,$E$6-C128,$E$10,$E$8,$E$7),IF($D$2="Pure endowment",nex($E$5+C128,$E$6-C128,$E$10),A1xn($E$5+C128,$E$6-C128,$E$10)))),0) -> 0 | F128: =IF(C128<=$E$12,IF($D$2="Whole life",dax($E$5+C128,$E$10,0,1,0),Daxn($E$5+C128,$E$6-C128,$E$10,0,1,0)),0) -> 0 | G128: 0 | H128: =G128-SUM($E$14:$E$16)*F128/IF($D$2="Whole life",dax($E$5,$E$10,0,1,0),Daxn($E$5,$E$6,$E$10,0,1,0)) -> 0
C129: 101 | D129: 136 | E129: =IF(C129<=$E$12,IF($D$2="Whole life",A1x($E$5+C129,$E$10),IF($D$2="Endowment",Axn($E$5+C129,$E$6-C129,$E$10,$E$8,$E$7),IF($D$2="Pure endowment",nex($E$5+C129,$E$6-C129,$E$10),A1xn($E$5+C129,$E$6-C129,$E$10)))),0) -> 0 | F129: =IF(C129<=$E$12,IF($D$2="Whole life",dax($E$5+C129,$E$10,0,1,0),Daxn($E$5+C129,$E$6-C129,$E$10,0,1,0)),0) -> 0 | G129: 0 | H129: =G129-SUM($E$14:$E$16)*F129/IF($D$2="Whole life",dax($E$5,$E$10,0,1,0),Daxn($E$5,$E$6,$E$10,0,1,0)) -> 0
C130: 102 | D130: 137 | E130: =IF(C130<=$E$12,IF($D$2="Whole life",A1x($E$5+C130,$E$10),IF($D$2="Endowment",Axn($E$5+C130,$E$6-C130,$E$10,$E$8,$E$7),IF($D$2="Pure endowment",nex($E$5+C130,$E$6-C130,$E$10),A1xn($E$5+C130,$E$6-C130,$E$10)))),0) -> 0 | F130: =IF(C130<=$E$12,IF($D$2="Whole life",dax($E$5+C130,$E$10,0,1,0),Daxn($E$5+C130,$E$6-C130,$E$10,0,1,0)),0) -> 0 | G130: 0 | H130: =G130-SUM($E$14:$E$16)*F130/IF($D$2="Whole life",dax($E$5,$E$10,0,1,0),Daxn($E$5,$E$6,$E$10,0,1,0)) -> 0
C131: 103 | D131: 138 | E131: =IF(C131<=$E$12,IF($D$2="Whole life",A1x($E$5+C131,$E$10),IF($D$2="Endowment",Axn($E$5+C131,$E$6-C131,$E$10,$E$8,$E$7),IF($D$2="Pure endowment",nex($E$5+C131,$E$6-C131,$E$10),A1xn($E$5+C131,$E$6-C131,$E$10)))),0) -> 0 | F131: =IF(C131<=$E$12,IF($D$2="Whole life",dax($E$5+C131,$E$10,0,1,0),Daxn($E$5+C131,$E$6-C131,$E$10,0,1,0)),0) -> 0 | G131: 0 | H131: =G131-SUM($E$14:$E$16)*F131/IF($D$2="Whole life",dax($E$5,$E$10,0,1,0),Daxn($E$5,$E$6,$E$10,0,1,0)) -> 0
C132: 104 | D132: 139 | E132: =IF(C132<=$E$12,IF($D$2="Whole life",A1x($E$5+C132,$E$10),IF($D$2="Endowment",Axn($E$5+C132,$E$6-C132,$E$10,$E$8,$E$7),IF($D$2="Pure endowment",nex($E$5+C132,$E$6-C132,$E$10),A1xn($E$5+C132,$E$6-C132,$E$10)))),0) -> 0 | F132: =IF(C132<=$E$12,IF($D$2="Whole life",dax($E$5+C132,$E$10,0,1,0),Daxn($E$5+C132,$E$6-C132,$E$10,0,1,0)),0) -> 0 | G132: 0 | H132: =G132-SUM($E$14:$E$16)*F132/IF($D$2="Whole life",dax($E$5,$E$10,0,1,0),Daxn($E$5,$E$6,$E$10,0,1,0)) -> 0
C133: 105 | D133: 140 | E133: =IF(C133<=$E$12,IF($D$2="Whole life",A1x($E$5+C133,$E$10),IF($D$2="Endowment",Axn($E$5+C133,$E$6-C133,$E$10,$E$8,$E$7),IF($D$2="Pure endowment",nex($E$5+C133,$E$6-C133,$E$10),A1xn($E$5+C133,$E$6-C133,$E$10)))),0) -> 0 | F133: =IF(C133<=$E$12,IF($D$2="Whole life",dax($E$5+C133,$E$10,0,1,0),Daxn($E$5+C133,$E$6-C133,$E$10,0,1,0)),0) -> 0 | G133: 0 | H133: =G133-SUM($E$14:$E$16)*F133/IF($D$2="Whole life",dax($E$5,$E$10,0,1,0),Daxn($E$5,$E$6,$E$10,0,1,0)) -> 0
C134: 106 | D134: 141 | E134: =IF(C134<=$E$12,IF($D$2="Whole life",A1x($E$5+C134,$E$10),IF($D$2="Endowment",Axn($E$5+C134,$E$6-C134,$E$10,$E$8,$E$7),IF($D$2="Pure endowment",nex($E$5+C134,$E$6-C134,$E$10),A1xn($E$5+C134,$E$6-C134,$E$10)))),0) -> 0 | F134: =IF(C134<=$E$12,IF($D$2="Whole life",dax($E$5+C134,$E$10,0,1,0),Daxn($E$5+C134,$E$6-C134,$E$10,0,1,0)),0) -> 0 | G134: 0 | H134: =G134-SUM($E$14:$E$16)*F134/IF($D$2="Whole life",dax($E$5,$E$10,0,1,0),Daxn($E$5,$E$6,$E$10,0,1,0)) -> 0
C135: 107 | D135: 142 | E135: =IF(C135<=$E$12,IF($D$2="Whole life",A1x($E$5+C135,$E$10),IF($D$2="Endowment",Axn($E$5+C135,$E$6-C135,$E$10,$E$8,$E$7),IF($D$2="Pure endowment",nex($E$5+C135,$E$6-C135,$E$10),A1xn($E$5+C135,$E$6-C135,$E$10)))),0) -> 0 | F135: =IF(C135<=$E$12,IF($D$2="Whole life",dax($E$5+C135,$E$10,0,1,0),Daxn($E$5+C135,$E$6-C135,$E$10,0,1,0)),0) -> 0 | G135: 0 | H135: =G135-SUM($E$14:$E$16)*F135/IF($D$2="Whole life",dax($E$5,$E$10,0,1,0),Daxn($E$5,$E$6,$E$10,0,1,0)) -> 0
C136: 108 | D136: 143 | E136: =IF(C136<=$E$12,IF($D$2="Whole life",A1x($E$5+C136,$E$10),IF($D$2="Endowment",Axn($E$5+C136,$E$6-C136,$E$10,$E$8,$E$7),IF($D$2="Pure endowment",nex($E$5+C136,$E$6-C136,$E$10),A1xn($E$5+C136,$E$6-C136,$E$10)))),0) -> 0 | F136: =IF(C136<=$E$12,IF($D$2="Whole life",dax($E$5+C136,$E$10,0,1,0),Daxn($E$5+C136,$E$6-C136,$E$10,0,1,0)),0) -> 0 | G136: 0 | H136: =G136-SUM($E$14:$E$16)*F136/IF($D$2="Whole life",dax($E$5,$E$10,0,1,0),Daxn($E$5,$E$6,$E$10,0,1,0)) -> 0
C137: 109 | D137: 144 | E137: =IF(C137<=$E$12,IF($D$2="Whole life",A1x($E$5+C137,$E$10),IF($D$2="Endowment",Axn($E$5+C137,$E$6-C137,$E$10,$E$8,$E$7),IF($D$2="Pure endowment",nex($E$5+C137,$E$6-C137,$E$10),A1xn($E$5+C137,$E$6-C137,$E$10)))),0) -> 0 | F137: =IF(C137<=$E$12,IF($D$2="Whole life",dax($E$5+C137,$E$10,0,1,0),Daxn($E$5+C137,$E$6-C137,$E$10,0,1,0)),0) -> 0 | G137: 0 | H137: =G137-SUM($E$14:$E$16)*F137/IF($D$2="Whole life",dax($E$5,$E$10,0,1,0),Daxn($E$5,$E$6,$E$10,0,1,0)) -> 0
C138: 110 | D138: 145 | E138: =IF(C138<=$E$12,IF($D$2="Whole life",A1x($E$5+C138,$E$10),IF($D$2="Endowment",Axn($E$5+C138,$E$6-C138,$E$10,$E$8,$E$7),IF($D$2="Pure endowment",nex($E$5+C138,$E$6-C138,$E$10),A1xn($E$5+C138,$E$6-C138,$E$10)))),0) -> 0 | F138: =IF(C138<=$E$12,IF($D$2="Whole life",dax($E$5+C138,$E$10,0,1,0),Daxn($E$5+C138,$E$6-C138,$E$10,0,1,0)),0) -> 0 | G138: 0 | H138: =G138-SUM($E$14:$E$16)*F138/IF($D$2="Whole life",dax($E$5,$E$10,0,1,0),Daxn($E$5,$E$6,$E$10,0,1,0)) -> 0

Sheet TRADITIONAL
C2: Contract | D2: Other temporary
C5: Age (X) | E5: 35
C6: Policy period (N) | E6: 10
C7: Death benefit (K) | E7: 0
C8: Survival benefit (D) | E8: 0
C9: Reserve (t) | E9: 5
C10: Interest rate (i) | E10: 0.025
C11: Discont factor (v) | E11: =1/(1+E10) -> 0.9756097561
C13: Single premium | E13: =SUM($J$34:$K$144) -> 16712.75824
C15: Regular netto premium | E15: =SUM($J$34:$K$144)/SUM($AF$34:$AF$144) -> 1873.187349
C17: Regular brutto premium | E17: =(SUM($J$34:$K$144)+(F28+F30+F31)+SUM($AE$34:$AE$144))/(SUM($AG$34:$AG$144)-E29) -> 2146.577853
C19: Netto Reserve | E19: =VLOOKUP(E9,$C$34:$AP$144,39,0) -> 7540.668581
C21: Brutto reserve | E21: =VLOOKUP(E9,$C$34:$AP$144,40,0) -> 6279.902462
C23: omega | E23: =omega()-$E$5 -> 71
C24: delka vypoctu | E24: =IF($D$2="Whole life",E23,E6) -> 10
C28: alfa fix | E28: 2000 | F28: =E28 -> 2000
C29: alfa from premium | E29: 0.0002 | F29: =E29*E17 -> 0.4293155706
C30: alfa z K | E30: 0 | F30: =E30*E7 -> 0
C31: alfa z D | E31: 0 | F31: =E31*E8 -> 0
C33: Time (t) | D33: Age (x) | E33: In force | F33: Premium transfer | G33: Death benefit | H33: Survival benefit | I33: Exp. Premium | J33: Exp. Death benefit | K33: Exp. Survival benefit | L33: beta fix | M33: beta from K | N33: beta from P | O33: Exp. beta fix | P33: Exp. beta from K | Q33: Exp. beta from P | R33: gamma fix | S33: gamma from K | T33: gamma from P | U33: Exp. gamma fix | V33: Exp. gamma from K | W33: Exp. gamma from P | X33: delta fix | Y33: delta from D | Z33: Exp. delta fix | AA33: Exp. delta from D | AB33: t-1|qx * vt | AC33: t-1px * vt-1 | AD33: tpx * vt | AE33: Exp. Charges | AF33: adjusted premium | AG33: adjusted brutto premium | AH33: t Reserves | AI33: Age | AJ33: Dx+t+1 * Dt | AK33: Cx+t * Kt | AL33: Ax+t,n-t | AM33: Dx+t | AN33: ax+t,n-t | AO33: tVxNetto | AP33: tVxBrutto
C34: 1 | D34: =E5 -> 35 | E34: 1 | F34: 1 | G34: 100000 | I34: =E34*F34*$E$17*AC34 -> 2146.577853 | J34: =G34*AB34 -> 100.7268904 | K34: =H34*AD34 -> 0 | L34: 1 | M34: 1e-06 | N34: 0.0001 | O34: =L34*$AC34 -> 1 | P34: =M34*$AC34*G34 -> 0.1 | Q34: =N34*I34 -> 0.2146577853 | R34: 3 | S34: 3e-05 | T34: 0.003 | U34: =R34*$AC34 -> 3 | V34: =S34*G34*$AC34 -> 3 | W34: =T34*I34 -> 6.439733559 | X34: 0 | Y34: 0.02 | Z34: =IF(H34>0,X34*AC34,0) -> 0 | AA34: =Y34*AC34*H34 -> 0 | AB34: =n_qx($E$5,C34-1)*$E$11^C34*E34 -> 0.001007268904 | AC34: =npx($E$5,C34-1)*$E$11^(C34-1)*E34*F34 -> 1 | AD34: =npx($E$5,C34)*$E$11^(C34)*E34 -> 0.9746024872 | AE34: =(O34+P34+U34+V34+Z34+AA34) -> 7.1 | AF34: =AC34*F34 -> 1 | AG34: =(1-N34-T34)*AC34*F34 -> 0.9969 | AH34: 0 | AI34: =E5 -> 35 | AJ34: =IF(AH34<$E$24,DDx($E$5+AH34+1,$E$10)*H34,0) -> 0 | AK34: =IF(AH34<=$E$24,cx($E$5+AH34,$E$10)*G34,0) -> 4167681.841 | AL34: =IF(AH34<$E$24,SUM(AJ34:$AK$144)/DDx($E$5+AH34,$E$10),0) -> 16712.75824 | AM34: =IF(AH34<$E$24,DDx($E$5+AH34,$E$10)*E34,0) -> 41376.0598 | AN34: =IF(AH34<$E$24,SUM(AM34:AM$144)/DDx($E$5+AH34,$E$10),0) -> 8.922096471 | AO34: =AL34-$E$15*AN34 -> 0 | AP34: =AO34-SUM($F$28:$F$31)*AN34/Daxn($E$5,$E$6,$E$10,0,1,0) -> -2000.429316
C35: =(C34+1) -> 2 | D35: =D34+1 -> 36 | E35: 1 | F35: 1 | G35: 100000 | I35: 2092.060114 | J35: =G35*AB35 -> 101.441131 | K35: =H35*AD35 -> 0 | L35: 1 | M35: 1e-06 | N35: 0.0001 | O35: 0.9746024872 | P35: =M35*$AC35*G35 -> 0.09746024872 | Q35: =N35*I35 -> 0.2092060114 | R35: 3 | S35: 3e-05 | T35: 0.003 | U35: 2.923807462 | V35: =S35*G35*$AC35 -> 2.923807462 | W35: =T35*I35 -> 6.276180343 | X35: 0 | Y35: 0.02 | Z35: =IF(H35>0,X35*AC35,0) -> 0 | AA35: =Y35*AC35*H35 -> 0 | AB35: 0.00101441131 | AC35: =npx($E$5,C35-1)*$E$11^(C35-1)*E35 -> 0.9746024872 | AD35: 0.9498172835 | AE35: =(O35+P35+U35+V35+Z35+AA35) -> 6.919677659 | AF35: =AC35*F35 -> 0.9746024872 | AG35: 0.9715812195 | AH35: =AH34+1 -> 1 | AI35: =AI34+1 -> 36 | AJ35: 0 | AK35: =IF(AH35<$E$24,cx($E$5+AH35,$E$10)*G35,0) -> 4197234.304 | AL35: =IF(AH35<$E$24,SUM(AJ35:$AK$144)/DDx($E$5+AH35,$E$10),0) -> 17044.93018 | AM35: 40325.21079 | AN35: =IF(AH35<$E$24,SUM(AM35:AM$144)/DDx($E$5+AH35,$E$10),0) -> 8.128541201 | AO35: =AL35-$E$15*AN35 -> 1818.649636 | AP35: =AO35-SUM($F$28:$F$31)*AN35/Daxn($E$5,$E$6,$E$10,0,1,0) -> -3.856113036
C36: =(C35+1) -> 3 | D36: =D35+1 -> 37 | E36: 1 | F36: 1 | G36: 100000 | I36: 2038.856745 | J36: 100.0118036 | K36: =H36*AD36 -> 0 | L36: 1 | M36: 1e-06 | N36: 0.0001 | O36: 0.9498172835 | P36: 0.09498172835 | Q36: 0.2038856745 | R36: 3 | S36: 3e-05 | T36: 0.003 | U36: 2.849451851 | V36: 2.849451851 | W36: 6.116570235 | X36: 0 | Y36: 0.02 | Z36: =IF(H36>0,X36*AC36,0) -> 0 | AA36: =Y36*AC36*H36 -> 0 | AB36: 0.001000118036 | AC36: 0.9498172835 | AD36: 0.9256508903 | AE36: 6.743702713 | AF36: 0.9498172835 | AG36: 0.9468728499 | AH36: =AH35+1 -> 2 | AI36: =AI35+1 -> 37 | AJ36: 0 | AK36: 4138094.367 | AL36: =IF(AH36<$E$24,SUM(AJ36:$AK$144)/DDx($E$5+AH36,$E$10),0) -> 17382.91196 | AM36: 39299.69672 | AN36: =IF(AH36<$E$24,SUM(AM36:AM$144)/DDx($E$5+AH36,$E$10),0) -> 7.314558394 | AO36: =AL36-$E$15*AN36 -> 3681.37371 | AP36: =AO36-SUM($F$28:$F$31)*AN36/Daxn($E$5,$E$6,$E$10,0,1,0) -> 2041.371599
C37: 4 | D37: 38 | E37: =IF(C37<=$E$24,1,0) -> 1 | F37: 1 | G37: 100000 | I37: 1986.981701 | J37: 108.0927076 | K37: 0 | L37: 1 | M37: 1e-06 | N37: 0.0001 | O37: 0.9256508903 | P37: 0.09256508903 | Q37: 0.1986981701 | R37: 3 | S37: 3e-05 | T37: 0.003 | U37: 2.776952671 | V37: 2.776952671 | W37: 5.960945102 | X37: 0 | Y37: 0.02 | Z37: 0 | AA37: 0 | AB37: 0.001080927076 | AC37: 0.9256508903 | AD37: 0.9019931122 | AE37: 6.572121321 | AF37: 0.9256508903 | AG37: 0.9227813725 | AH37: 3 | AI37: 38 | AJ37: 0 | AK37: 4472450.332 | AL37: =IF(AH37<$E$24,SUM(AJ37:$AK$144)/DDx($E$5+AH37,$E$10),0) -> 17728.69079 | AM37: 38299.78659 | AN37: =IF(AH37<$E$24,SUM(AM37:AM$144)/DDx($E$5+AH37,$E$10),0) -> 6.479415473 | AO37: 5591.531696 | AP37: =AO37-SUM($F$28:$F$31)*AN37/Daxn($E$5,$E$6,$E$10,0,1,0) -> 4138.777547
C38: 5 | D38: 39 | E38: 1 | F38: 1 | G38: 100000 | I38: 1936.198438 | J38: 124.556249 | K38: 0 | L38: 1 | M38: 1e-06 | N38: 0.0001 | O38: 0.9019931122 | P38: 0.09019931122 | Q38: 0.1936198438 | R38: 3 | S38: 3e-05 | T38: 0.003 | U38: 2.705979337 | V38: 2.705979337 | W38: 5.808595315 | X38: 0 | Y38: 0.02 | Z38: 0 | AA38: 0 | AB38: 0.00124556249 | AC38: 0.9019931122 | AD38: 0.8787477177 | AE38: 6.404151097 | AF38: 0.9019931122 | AG38: 0.8991969336 | AH38: 4 | AI38: 39 | AJ38: 0 | AK38: 5153646.806 | AL38: =IF(AH38<$E$24,SUM(AJ38:$AK$144)/DDx($E$5+AH38,$E$10),0) -> 18073.84722 | AM38: 37320.92095 | AN38: =IF(AH38<$E$24,SUM(AM38:AM$144)/DDx($E$5+AH38,$E$10),0) -> 5.623131421 | AO38: 7540.668581 | AP38: =AO38-SUM($F$28:$F$31)*AN38/Daxn($E$5,$E$6,$E$10,0,1,0) -> 6279.902462
C39: 6 | D39: 40 | E39: 1 | F39: 1 | G39: 100000 | I39: 1886.300389 | J39: 138.9821023 | K39: 0 | L39: 1 | M39: 1e-06 | N39: 0.0001 | O39: 0.8787477177 | P39: 0.08787477177 | Q39: 0.1886300389 | R39: 3 | S39: 3e-05 | T39: 0.003 | U39: 2.636243153 | V39: 2.636243153 | W39: 5.658901168 | X39: 0 | Y39: 0.02 | Z39: 0 | AA39: 0 | AB39: 0.001389821023 | AC39: 0.8787477177 | AD39: 0.8559250255 | AE39: 6.239108796 | AF39: 0.8787477177 | AG39: 0.8760235998 | AH39: 5 | AI39: 40 | AJ39: 0 | AK39: 5750531.775 | AL39: =IF(AH39<$E$24,SUM(AJ39:$AK$144)/DDx($E$5+AH39,$E$10),0) -> 18410.20936 | AM39: 36359.11811 | AN39: =IF(AH39<$E$24,SUM(AM39:AM$144)/DDx($E$5+AH39,$E$10),0) -> 4.745426491 | AO39: 9521.136488 | AP39: =AO39-SUM($F$28:$F$31)*AN39/Daxn($E$5,$E$6,$E$10,0,1,0) -> 8457.161188
C40: 7 | D40: 41 | E40: 1 | F40: 1 | G40: 100000 | I40: 1837.309704 | J40: 150.0710259 | K40: 0 | L40: 1 | M40: 1e-06 | N40: 0.0001 | O40: 0.8559250255 | P40: 0.08559250255 | Q40: 0.1837309704 | R40: 3 | S40: 3e-05 | T40: 0.003 | U40: 2.567775077 | V40: 2.567775077 | W40: 5.511929111 | X40: 0 | Y40: 0.02 | Z40: 0 | AA40: 0 | AB40: 0.001500710259 | AC40: 0.8559250255 | AD40: 0.8335480951 | AE40: 6.077067681 | AF40: 0.8559250255 | AG40: 0.8532716579 | AH40: 6 | AI40: 41 | AJ40: 0 | AK40: 6209347.743 | AL40: =IF(AH40<$E$24,SUM(AJ40:$AK$144)/DDx($E$5+AH40,$E$10),0) -> 18738.7293 | AM40: 35414.80504 | AN40: =IF(AH40<$E$24,SUM(AM40:AM$144)/DDx($E$5+AH40,$E$10),0) -> 3.845295887 | AO40: 11535.76969 | AP40: =AO40-SUM($F$28:$F$31)*AN40/Daxn($E$5,$E$6,$E$10,0,1,0) -> 10673.61328
C41: 8 | D41: 42 | E41: 1 | F41: 1 | G41: 100000 | I41: 1789.27588 | J41: 157.8620617 | K41: 0 | L41: 1 | M41: 1e-06 | N41: 0.0001 | O41: 0.8335480951 | P41: 0.08335480951 | Q41: 0.178927588 | R41: 3 | S41: 3e-05 | T41: 0.003 | U41: 2.500644285 | V41: 2.500644285 | W41: 5.367827641 | X41: 0 | Y41: 0.02 | Z41: 0 | AA41: 0 | AB41: 0.001578620617 | AC41: 0.8335480951 | AD41: 0.8116390332 | AE41: 5.918191475 | AF41: 0.8335480951 | AG41: 0.830964096 | AH41: 7 | AI41: 42 | AJ41: 0 | AK41: 6531710.103 | AL41: =IF(AH41<$E$24,SUM(AJ41:$AK$144)/DDx($E$5+AH41,$E$10),0) -> 19061.73911 | AM41: 34488.93583 | AN41: =IF(AH41<$E$24,SUM(AM41:AM$144)/DDx($E$5+AH41,$E$10),0) -> 2.921678988 | AO41: 13588.88699 | AP41: =AO41-SUM($F$28:$F$31)*AN41/Daxn($E$5,$E$6,$E$10,0,1,0) -> 12933.81536
C42: 9 | D42: 43 | E42: 1 | F42: 1 | G42: 100000 | I42: 1742.246373 | J42: 167.0132442 | K42: 0 | L42: 1 | M42: 1e-06 | N42: 0.0001 | O42: 0.8116390332 | P42: 0.08116390332 | Q42: 0.1742246373 | R42: 3 | S42: 3e-05 | T42: 0.003 | U42: 2.4349171 | V42: 2.4349171 | W42: 5.22673912 | X42: 0 | Y42: 0.02 | Z42: 0 | AA42: 0 | AB42: 0.001670132442 | AC42: 0.8116390332 | AD42: 0.7901728268 | AE42: 5.762637136 | AF42: 0.8116390332 | AG42: 0.8091229522 | AH42: 8 | AI42: 43 | AJ42: 0 | AK42: 6910349.98 | AL42: =IF(AH42<$E$24,SUM(AJ42:$AK$144)/DDx($E$5+AH42,$E$10),0) -> 19381.78626 | AM42: 33582.42517 | AN42: =IF(AH42<$E$24,SUM(AM42:AM$144)/DDx($E$5+AH42,$E$10),0) -> 1.973552028 | AO42: 15684.95357 | AP42: =AO42-SUM($F$28:$F$31)*AN42/Daxn($E$5,$E$6,$E$10,0,1,0) -> 15242.46213
C43: 10 | D43: 44 | E43: 1 | F43: 1 | G43: 100000 | H43: 20000 | I43: 1696.16749 | J43: 182.4933046 | K43: 15381.50771 | L43: 1 | M43: 1e-06 | N43: 0.0001 | O43: 0.7901728268 | P43: 0.07901728268 | Q43: 0.169616749 | R43: 3 | S43: 3e-05 | T43: 0.003 | U43: 2.37051848 | V43: 2.37051848 | W43: 5.08850247 | X43: 0 | Y43: 0.02 | Z43: 0 | AA43: 316.0691307 | AB43: 0.001824933046 | AC43: 0.7901728268 | AD43: 0.7690753857 | AE43: 321.6793578 | AF43: 0.7901728268 | AG43: 0.787723291 | AH43: 9 | AI43: 44 | AJ43: 636426183 | AK43: 7550853.883 | AL43: =IF(AH43<$E$24,SUM(AJ43:$AK$144)/DDx($E$5+AH43,$E$10),0) -> 19696.95805 | AM43: 32694.23813 | AN43: =IF(AH43<$E$24,SUM(AM43:AM$144)/DDx($E$5+AH43,$E$10),0) -> 1 | AO43: 17823.7707 | AP43: =AO43-SUM($F$28:$F$31)*AN43/Daxn($E$5,$E$6,$E$10,0,1,0) -> 17599.56002
C44: 11 | D44: 45 | E44: 0 | I44: 0 | J44: 0 | K44: 0 | L44: 1 | M44: 1e-06 | N44: 0.0001 | O44: 0 | P44: 0 | Q44: 0 | R44: 3 | S44: 3e-05 | T44: 0.003 | U44: 0 | V44: 0 | W44: 0 | X44: 0 | Y44: 0.02 | Z44: 0 | AA44: 0 | AB44: 0 | AC44: 0 | AD44: 0 | AE44: 0 | AF44: 0 | AG44: 0 | AH44: 10 | AI44: 45 | AJ44: 0 | AK44: 0 | AL44: =IF(AH44<=$E$24,SUM(AJ44:$AK$144)/DDx($E$5+AH44,$E$10),0) -> 0 | AM44: 0 | AN44: =IF(AH44<$E$24,SUM(AM44:AM$144)/DDx($E$5+AH44,$E$10),0) -> 0 | AO44: 0 | AP44: =AO44-SUM($F$28:$F$31)*AN44/Daxn($E$5,$E$6,$E$10,0,1,0) -> 0
C45: 12 | D45: 46 | E45: 0 | I45: 0 | J45: 0 | K45: 0 | L45: 1 | M45: 1e-06 | N45: 0.0001 | O45: 0 | P45: 0 | Q45: 0 | R45: 3 | S45: 3e-05 | T45: 0.003 | U45: 0 | V45: 0 | W45: 0 | X45: 0 | Y45: 0.02 | Z45: 0 | AA45: 0 | AB45: 0 | AC45: 0 | AD45: 0 | AE45: 0 | AF45: 0 | AG45: 0 | AH45: 11 | AI45: 46 | AJ45: 0 | AK45: 0 | AL45: =IF(AH45<$E$24,SUM(AJ45:$AK$144)/DDx($E$5+AH45,$E$10),0) -> 0 | AM45: 0 | AN45: =IF(AH45<$E$24,SUM(AM45:AM$144)/DDx($E$5+AH45,$E$10),0) -> 0 | AO45: 0 | AP45: =AO45-SUM($F$28:$F$31)*AN45/Daxn($E$5,$E$6,$E$10,0,1,0) -> 0
C46: 13 | D46: 47 | E46: 0 | I46: 0 | J46: 0 | K46: 0 | L46: 1 | M46: 1e-06 | N46: 0.0001 | O46: 0 | P46: 0 | Q46: 0 | R46: 3 | S46: 3e-05 | T46: 0.003 | U46: 0 | V46: 0 | W46: 0 | X46: 0 | Y46: 0.02 | Z46: 0 | AA46: 0 | AB46: 0 | AC46: 0 | AD46: 0 | AE46: 0 | AF46: 0 | AG46: 0 | AH46: 12 | AI46: 47 | AJ46: 0 | AK46: 0 | AL46: =IF(AH46<$E$24,SUM(AJ46:$AK$144)/DDx($E$5+AH46,$E$10),0) -> 0 | AM46: 0 | AN46: =IF(AH46<$E$24,SUM(AM46:AM$144)/DDx($E$5+AH46,$E$10),0) -> 0 | AO46: 0 | AP46: =AO46-SUM($F$28:$F$31)*AN46/Daxn($E$5,$E$6,$E$10,0,1,0) -> 0
C47: 14 | D47: 48 | E47: 0 | I47: 0 | J47: 0 | K47: 0 | L47: 1 | M47: 1e-06 | N47: 0.0001 | O47: 0 | P47: 0 | Q47: 0 | R47: 3 | S47: 3e-05 | T47: 0.003 | U47: 0 | V47: 0 | W47: 0 | X47: 0 | Y47: 0.02 | Z47: 0 | AA47: 0 | AB47: 0 | AC47: 0 | AD47: 0 | AE47: 0 | AF47: 0 | AG47: 0 | AH47: 13 | AI47: 48 | AJ47: 0 | AK47: 0 | AL47: =IF(AH47<$E$24,SUM(AJ47:$AK$144)/DDx($E$5+AH47,$E$10),0) -> 0 | AM47: 0 | AN47: =IF(AH47<$E$24,SUM(AM47:AM$144)/DDx($E$5+AH47,$E$10),0) -> 0 | AO47: 0 | AP47: =AO47-SUM($F$28:$F$31)*AN47/Daxn($E$5,$E$6,$E$10,0,1,0) -> 0
C48: 15 | D48: 49 | E48: 0 | I48: 0 | J48: 0 | K48: 0 | L48: 1 | M48: 1e-06 | N48: 0.0001 | O48: 0 | P48: 0 | Q48: 0 | R48: 3 | S48: 3e-05 | T48: 0.003 | U48: 0 | V48: 0 | W48: 0 | X48: 0 | Y48: 0.02 | Z48: 0 | AA48: 0 | AB48: 0 | AC48: 0 | AD48: 0 | AE48: 0 | AF48: 0 | AG48: 0 | AH48: 14 | AI48: 49 | AJ48: 0 | AK48: 0 | AL48: =IF(AH48<$E$24,SUM(AJ48:$AK$144)/DDx($E$5+AH48,$E$10),0) -> 0 | AM48: 0 | AN48: =IF(AH48<$E$24,SUM(AM48:AM$144)/DDx($E$5+AH48,$E$10),0) -> 0 | AO48: 0 | AP48: =AO48-SUM($F$28:$F$31)*AN48/Daxn($E$5,$E$6,$E$10,0,1,0) -> 0
C49: 16 | D49: 50 | E49: 0 | I49: 0 | J49: 0 | K49: 0 | L49: 1 | M49: 1e-06 | N49: 0.0001 | O49: 0 | P49: 0 | Q49: 0 | R49: 3 | S49: 3e-05 | T49: 0.003 | U49: 0 | V49: 0 | W49: 0 | X49: 0 | Y49: 0.02 | Z49: 0 | AA49: 0 | AB49: 0 | AC49: 0 | AD49: 0 | AE49: 0 | AF49: 0 | AG49: 0 | AH49: 15 | AI49: 50 | AJ49: 0 | AK49: 0 | AL49: =IF(AH49<$E$24,SUM(AJ49:$AK$144)/DDx($E$5+AH49,$E$10),0) -> 0 | AM49: 0 | AN49: =IF(AH49<$E$24,SUM(AM49:AM$144)/DDx($E$5+AH49,$E$10),0) -> 0 | AO49: 0 | AP49: =AO49-SUM($F$28:$F$31)*AN49/Daxn($E$5,$E$6,$E$10,0,1,0) -> 0
C50: 17 | D50: 51 | E50: 0 | I50: 0 | J50: 0 | K50: 0 | L50: 1 | M50: 1e-06 | N50: 0.0001 | O50: 0 | P50: 0 | Q50: 0 | R50: 3 | S50: 3e-05 | T50: 0.003 | U50: 0 | V50: 0 | W50: 0 | X50: 0 | Y50: 0.02 | Z50: 0 | AA50: 0 | AB50: 0 | AC50: 0 | AD50: 0 | AE50: 0 | AF50: 0 | AG50: 0 | AH50: 16 | AI50: 51 | AJ50: 0 | AK50: 0 | AL50: =IF(AH50<$E$24,SUM(AJ50:$AK$144)/DDx($E$5+AH50,$E$10),0) -> 0 | AM50: 0 | AN50: =IF(AH50<$E$24,SUM(AM50:AM$144)/DDx($E$5+AH50,$E$10),0) -> 0 | AO50: 0 | AP50: =AO50-SUM($F$28:$F$31)*AN50/Daxn($E$5,$E$6,$E$10,0,1,0) -> 0
C51: 18 | D51: 52 | E51: 0 | I51: 0 | J51: 0 | K51: 0 | L51: 1 | M51: 1e-06 | N51: 0.0001 | O51: 0 | P51: 0 | Q51: 0 | R51: 3 | S51: 3e-05 | T51: 0.003 | U51: 0 | V51: 0 | W51: 0 | X51: 0 | Y51: 0.02 | Z51: 0 | AA51: 0 | AB51: 0 | AC51: 0 | AD51: 0 | AE51: 0 | AF51: 0 | AG51: 0 | AH51: 17 | AI51: 52 | AJ51: 0 | AK51: 0 | AL51: =IF(AH51<$E$24,SUM(AJ51:$AK$144)/DDx($E$5+AH51,$E$10),0) -> 0 | AM51: 0 | AN51: =IF(AH51<$E$24,SUM(AM51:AM$144)/DDx($E$5+AH51,$E$10),0) -> 0 | AO51: 0 | AP51: =AO51-SUM($F$28:$F$31)*AN51/Daxn($E$5,$E$6,$E$10,0,1,0) -> 0
C52: 19 | D52: 53 | E52: 0 | I52: 0 | J52: 0 | K52: 0 | L52: 1 | M52: 1e-06 | N52: 0.0001 | O52: 0 | P52: 0 | Q52: 0 | R52: 3 | S52: 3e-05 | T52: 0.003 | U52: 0 | V52: 0 | W52: 0 | X52: 0 | Y52: 0.02 | Z52: 0 | AA52: 0 | AB52: 0 | AC52: 0 | AD52: 0 | AE52: 0 | AF52: 0 | AG52: 0 | AH52: 18 | AI52: 53 | AJ52: 0 | AK52: 0 | AL52: =IF(AH52<$E$24,SUM(AJ52:$AK$144)/DDx($E$5+AH52,$E$10),0) -> 0 | AM52: 0 | AN52: =IF(AH52<$E$24,SUM(AM52:AM$144)/DDx($E$5+AH52,$E$10),0) -> 0 | AO52: 0 | AP52: =AO52-SUM($F$28:$F$31)*AN52/Daxn($E$5,$E$6,$E$10,0,1,0) -> 0
C53: 20 | D53: 54 | E53: 0 | I53: 0 | J53: 0 | K53: 0 | L53: 1 | M53: 1e-06 | N53: 0.0001 | O53: 0 | P53: 0 | Q53: 0 | R53: 3 | S53: 3e-05 | T53: 0.003 | U53: 0 | V53: 0 | W53: 0 | X53: 0 | Y53: 0.02 | Z53: 0 | AA53: 0 | AB53: 0 | AC53: 0 | AD53: 0 | AE53: 0 | AF53: 0 | AG53: 0 | AH53: 19 | AI53: 54 | AJ53: 0 | AK53: 0 | AL53: =IF(AH53<$E$24,SUM(AJ53:$AK$144)/DDx($E$5+AH53,$E$10),0) -> 0 | AM53: 0 | AN53: =IF(AH53<$E$24,SUM(AM53:AM$144)/DDx($E$5+AH53,$E$10),0) -> 0 | AO53: 0 | AP53: =AO53-SUM($F$28:$F$31)*AN53/Daxn($E$5,$E$6,$E$10,0,1,0) -> 0
C54: 21 | D54: 55 | E54: 0 | I54: 0 | J54: 0 | K54: 0 | L54: 1 | M54: 1e-06 | N54: 0.0001 | O54: 0 | P54: 0 | Q54: 0 | R54: 3 | S54: 3e-05 | T54: 0.003 | U54: 0 | V54: 0 | W54: 0 | X54: 0 | Y54: 0.02 | Z54: 0 | AA54: 0 | AB54: 0 | AC54: 0 | AD54: 0 | AE54: 0 | AF54: 0 | AG54: 0 | AH54: 20 | AI54: 55 | AJ54: 0 | AK54: 0 | AL54: =IF(AH54<$E$24,SUM(AJ54:$AK$144)/DDx($E$5+AH54,$E$10),0) -> 0 | AM54: 0 | AN54: =IF(AH54<$E$24,SUM(AM54:AM$144)/DDx($E$5+AH54,$E$10),0) -> 0 | AO54: 0 | AP54: =AO54-SUM($F$28:$F$31)*AN54/Daxn($E$5,$E$6,$E$10,0,1,0) -> 0
C55: 22 | D55: 56 | E55: 0 | I55: 0 | J55: 0 | K55: 0 | L55: 1 | M55: 1e-06 | N55: 0.0001 | O55: 0 | P55: 0 | Q55: 0 | R55: 3 | S55: 3e-05 | T55: 0.003 | U55: 0 | V55: 0 | W55: 0 | X55: 0 | Y55: 0.02 | Z55: 0 | AA55: 0 | AB55: 0 | AC55: 0 | AD55: 0 | AE55: 0 | AF55: 0 | AG55: 0 | AH55: 21 | AI55: 56 | AJ55: 0 | AK55: 0 | AL55: =IF(AH55<$E$24,SUM(AJ55:$AK$144)/DDx($E$5+AH55,$E$10),0) -> 0 | AM55: 0 | AN55: =IF(AH55<$E$24,SUM(AM55:AM$144)/DDx($E$5+AH55,$E$10),0) -> 0 | AO55: 0 | AP55: =AO55-SUM($F$28:$F$31)*AN55/Daxn($E$5,$E$6,$E$10,0,1,0) -> 0
C56: 23 | D56: 57 | E56: 0 | I56: 0 | J56: 0 | K56: 0 | L56: 1 | M56: 1e-06 | N56: 0.0001 | O56: 0 | P56: 0 | Q56: 0 | R56: 3 | S56: 3e-05 | T56: 0.003 | U56: 0 | V56: 0 | W56: 0 | X56: 0 | Y56: 0.02 | Z56: 0 | AA56: 0 | AB56: 0 | AC56: 0 | AD56: 0 | AE56: 0 | AF56: 0 | AG56: 0 | AH56: 22 | AI56: 57 | AJ56: 0 | AK56: 0 | AL56: =IF(AH56<$E$24,SUM(AJ56:$AK$144)/DDx($E$5+AH56,$E$10),0) -> 0 | AM56: 0 | AN56: =IF(AH56<$E$24,SUM(AM56:AM$144)/DDx($E$5+AH56,$E$10),0) -> 0 | AO56: 0 | AP56: =AO56-SUM($F$28:$F$31)*AN56/Daxn($E$5,$E$6,$E$10,0,1,0) -> 0
C57: 24 | D57: 58 | E57: 0 | I57: 0 | J57: 0 | K57: 0 | L57: 1 | M57: 1e-06 | N57: 0.0001 | O57: 0 | P57: 0 | Q57: 0 | R57: 3 | S57: 3e-05 | T57: 0.003 | U57: 0 | V57: 0 | W57: 0 | X57: 0 | Y57: 0.02 | Z57: 0 | AA57: 0 | AB57: 0 | AC57: 0 | AD57: 0 | AE57: 0 | AF57: 0 | AG57: 0 | AH57: 23 | AI57: 58 | AJ57: 0 | AK57: 0 | AL57: =IF(AH57<$E$24,SUM(AJ57:$AK$144)/DDx($E$5+AH57,$E$10),0) -> 0 | AM57: 0 | AN57: =IF(AH57<$E$24,SUM(AM57:AM$144)/DDx($E$5+AH57,$E$10),0) -> 0 | AO57: 0 | AP57: =AO57-SUM($F$28:$F$31)*AN57/Daxn($E$5,$E$6,$E$10,0,1,0) -> 0
C58: 25 | D58: 59 | E58: 0 | I58: 0 | J58: 0 | K58: 0 | L58: 1 | M58: 1e-06 | N58: 0.0001 | O58: 0 | P58: 0 | Q58: 0 | R58: 3 | S58: 3e-05 | T58: 0.003 | U58: 0 | V58: 0 | W58: 0 | X58: 0 | Y58: 0.02 | Z58: 0 | AA58: 0 | AB58: 0 | AC58: 0 | AD58: 0 | AE58: 0 | AF58: 0 | AG58: 0 | AH58: 24 | AI58: 59 | AJ58: 0 | AK58: 0 | AL58: =IF(AH58<$E$24,SUM(AJ58:$AK$144)/DDx($E$5+AH58,$E$10),0) -> 0 | AM58: 0 | AN58: =IF(AH58<$E$24,SUM(AM58:AM$144)/DDx($E$5+AH58,$E$10),0) -> 0 | AO58: 0 | AP58: =AO58-SUM($F$28:$F$31)*AN58/Daxn($E$5,$E$6,$E$10,0,1,0) -> 0
C59: 26 | D59: 60 | E59: 0 | I59: 0 | J59: 0 | K59: 0 | L59: 1 | M59: 1e-06 | N59: 0.0001 | O59: 0 | P59: 0 | Q59: 0 | R59: 3 | S59: 3e-05 | T59: 0.003 | U59: 0 | V59: 0 | W59: 0 | X59: 0 | Y59: 0.02 | Z59: 0 | AA59: 0 | AB59: 0 | AC59: 0 | AD59: 0 | AE59: 0 | AF59: 0 | AG59: 0 | AH59: 25 | AI59: 60 | AJ59: 0 | AK59: 0 | AL59: =IF(AH59<$E$24,SUM(AJ59:$AK$144)/DDx($E$5+AH59,$E$10),0) -> 0 | AM59: 0 | AN59: =IF(AH59<$E$24,SUM(AM59:AM$144)/DDx($E$5+AH59,$E$10),0) -> 0 | AO59: 0 | AP59: =AO59-SUM($F$28:$F$31)*AN59/Daxn($E$5,$E$6,$E$10,0,1,0) -> 0
C60: 27 | D60: 61 | E60: 0 | I60: 0 | J60: 0 | K60: 0 | L60: 1 | M60: 1e-06 | N60: 0.0001 | O60: 0 | P60: 0 | Q60: 0 | R60: 3 | S60: 3e-05 | T60: 0.003 | U60: 0 | V60: 0 | W60: 0 | X60: 0 | Y60: 0.02 | Z60: 0 | AA60: 0 | AB60: 0 | AC60: 0 | AD60: 0 | AE60: 0 | AF60: 0 | AG60: 0 | AH60: 26 | AI60: 61 | AJ60: 0 | AK60: 0 | AL60: =IF(AH60<$E$24,SUM(AJ60:$AK$144)/DDx($E$5+AH60,$E$10),0) -> 0 | AM60: 0 | AN60: =IF(AH60<$E$24,SUM(AM60:AM$144)/DDx($E$5+AH60,$E$10),0) -> 0 | AO60: 0 | AP60: =AO60-SUM($F$28:$F$31)*AN60/Daxn($E$5,$E$6,$E$10,0,1,0) -> 0
C61: 28 | D61: 62 | E61: 0 | I61: 0 | J61: 0 | K61: 0 | L61: 1 | M61: 1e-06 | N61: 0.0001 | O61: 0 | P61: 0 | Q61: 0 | R61: 3 | S61: 3e-05 | T61: 0.003 | U61: 0 | V61: 0 | W61: 0 | X61: 0 | Y61: 0.02 | Z61: 0 | AA61: 0 | AB61: 0 | AC61: 0 | AD61: 0 | AE61: 0 | AF61: 0 | AG61: 0 | AH61: 27 | AI61: 62 | AJ61: 0 | AK61: 0 | AL61: =IF(AH61<$E$24,SUM(AJ61:$AK$144)/DDx($E$5+AH61,$E$10),0) -> 0 | AM61: 0 | AN61: =IF(AH61<$E$24,SUM(AM61:AM$144)/DDx($E$5+AH61,$E$10),0) -> 0 | AO61: 0 | AP61: =AO61-SUM($F$28:$F$31)*AN61/Daxn($E$5,$E$6,$E$10,0,1,0) -> 0
C62: 29 | D62: 63 | E62: 0 | I62: 0 | J62: 0 | K62: 0 | L62: 1 | M62: 1e-06 | N62: 0.0001 | O62: 0 | P62: 0 | Q62: 0 | R62: 3 | S62: 3e-05 | T62: 0.003 | U62: 0 | V62: 0 | W62: 0 | X62: 0 | Y62: 0.02 | Z62: 0 | AA62: 0 | AB62: 0 | AC62: 0 | AD62: 0 | AE62: 0 | AF62: 0 | AG62: 0 | AH62: 28 | AI62: 63 | AJ62: 0 | AK62: 0 | AL62: =IF(AH62<$E$24,SUM(AJ62:$AK$144)/DDx($E$5+AH62,$E$10),0) -> 0 | AM62: 0 | AN62: =IF(AH62<$E$24,SUM(AM62:AM$144)/DDx($E$5+AH62,$E$10),0) -> 0 | AO62: 0 | AP62: =AO62-SUM($F$28:$F$31)*AN62/Daxn($E$5,$E$6,$E$10,0,1,0) -> 0
C63: 30 | D63: 64 | E63: 0 | I63: 0 | J63: 0 | K63: 0 | L63: 1 | M63: 1e-06 | N63: 0.0001 | O63: 0 | P63: 0 | Q63: 0 | R63: 3 | S63: 3e-05 | T63: 0.003 | U63: 0 | V63: 0 | W63: 0 | X63: 0 | Y63: 0.02 | Z63: 0 | AA63: 0 | AB63: 0 | AC63: 0 | AD63: 0 | AE63: 0 | AF63: 0 | AG63: 0 | AH63: 29 | AI63: 64 | AJ63: 0 | AK63: 0 | AL63: =IF(AH63<$E$24,SUM(AJ63:$AK$144)/DDx($E$5+AH63,$E$10),0) -> 0 | AM63: 0 | AN63: =IF(AH63<$E$24,SUM(AM63:AM$144)/DDx($E$5+AH63,$E$10),0) -> 0 | AO63: 0 | AP63: =AO63-SUM($F$28:$F$31)*AN63/Daxn($E$5,$E$6,$E$10,0,1,0) -> 0
C64: 31 | D64: 65 | E64: 0 | I64: 0 | J64: 0 | K64: 0 | L64: 1 | M64: 1e-06 | N64: 0.0001 | O64: 0 | P64: 0 | Q64: 0 | R64: 3 | S64: 3e-05 | T64: 0.003 | U64: 0 | V64: 0 | W64: 0 | X64: 0 | Y64: 0.02 | Z64: 0 | AA64: 0 | AB64: 0 | AC64: 0 | AD64: 0 | AE64: 0 | AF64: 0 | AG64: 0 | AH64: 30 | AI64: 65 | AJ64: 0 | AK64: 0 | AL64: =IF(AH64<$E$24,SUM(AJ64:$AK$144)/DDx($E$5+AH64,$E$10),0) -> 0 | AM64: 0 | AN64: =IF(AH64<$E$24,SUM(AM64:AM$144)/DDx($E$5+AH64,$E$10),0) -> 0 | AO64: 0 | AP64: =AO64-SUM($F$28:$F$31)*AN64/Daxn($E$5,$E$6,$E$10,0,1,0) -> 0
C65: 32 | D65: 66 | E65: 0 | I65: 0 | J65: 0 | K65: 0 | L65: 1 | M65: 1e-06 | N65: 0.0001 | O65: 0 | P65: 0 | Q65: 0 | R65: 3 | S65: 3e-05 | T65: 0.003 | U65: 0 | V65: 0 | W65: 0 | X65: 0 | Y65: 0.02 | Z65: 0 | AA65: 0 | AB65: 0 | AC65: 0 | AD65: 0 | AE65: 0 | AF65: 0 | AG65: 0 | AH65: 31 | AI65: 66 | AJ65: 0 | AK65: 0 | AL65: =IF(AH65<$E$24,SUM(AJ65:$AK$144)/DDx($E$5+AH65,$E$10),0) -> 0 | AM65: 0 | AN65: =IF(AH65<$E$24,SUM(AM65:AM$144)/DDx($E$5+AH65,$E$10),0) -> 0 | AO65: 0 | AP65: =AO65-SUM($F$28:$F$31)*AN65/Daxn($E$5,$E$6,$E$10,0,1,0) -> 0
C66: 33 | D66: 67 | E66: 0 | I66: =E66*F66*$E$17*AC66 -> 0 | J66: =G66*AB66 -> 0 | K66: 0 | L66: 1 | M66: 1e-06 | N66: 0.0001 | O66: =L66*$AC66 -> 0 | P66: =M66*$AC66*G66 -> 0 | Q66: 0 | R66: 3 | S66: 3e-05 | T66: 0.003 | U66: =R66*$AC66 -> 0 | V66: =S66*G66*$AC66 -> 0 | W66: 0 | X66: 0 | Y66: 0.02 | Z66: 0 | AA66: 0 | AB66: =n_qx($E$5,C66-1)*$E$11^C66*E66 -> 0 | AC66: 0 | AD66: =npx($E$5,C66)*$E$11^(C66)*E66 -> 0 | AE66: 0 | AF66: 0 | AG66: =(1-N66-T66)*AC66*F66 -> 0 | AH66: 32 | AI66: 67 | AJ66: =IF(AH66<$E$24,DDx($E$5+AH66+1,$E$10)*H66,0) -> 0 | AK66: 0 | AL66: =IF(AH66<$E$24,SUM(AJ66:$AK$144)/DDx($E$5+AH66,$E$10),0) -> 0 | AM66: =IF(AH66<$E$24,DDx($E$5+AH66,$E$10)*E66,0) -> 0 | AN66: =IF(AH66<$E$24,SUM(AM66:AM$144)/DDx($E$5+AH66,$E$10),0) -> 0 | AO66: 0 | AP66: =AO66-SUM($F$28:$F$31)*AN66/Daxn($E$5,$E$6,$E$10,0,1,0) -> 0
C67: 34 | D67: 68 | E67: 0 | I67: 0 | J67: 0 | K67: 0 | L67: 1 | M67: 1e-06 | N67: 0.0001 | O67: 0 | P67: 0 | Q67: 0 | R67: 3 | S67: 3e-05 | T67: 0.003 | U67: 0 | V67: 0 | W67: 0 | X67: 0 | Y67: 0.02 | Z67: 0 | AA67: 0 | AB67: 0 | AC67: =npx($E$5,C67-1)*$E$11^(C67-1)*E67 -> 0 | AD67: 0 | AE67: 0 | AF67: 0 | AG67: 0 | AH67: 33 | AI67: 68 | AJ67: 0 | AK67: =IF(AH67<$E$24,cx($E$5+AH67,$E$10)*G67,0) -> 0 | AL67: =IF(AH67<$E$24,SUM(AJ67:$AK$144)/DDx($E$5+AH67,$E$10),0) -> 0 | AM67: 0 | AN67: =IF(AH67<$E$24,SUM(AM67:AM$144)/DDx($E$5+AH67,$E$10),0) -> 0 | AO67: 0 | AP67: =AO67-SUM($F$28:$F$31)*AN67/Daxn($E$5,$E$6,$E$10,0,1,0) -> 0
C68: 35 | D68: 69 | E68: 0 | I68: 0 | J68: 0 | K68: 0 | L68: 1 | M68: 1e-06 | N68: 0.0001 | O68: 0 | P68: 0 | Q68: 0 | R68: 3 | S68: 3e-05 | T68: 0.003 | U68: 0 | V68: 0 | W68: 0 | X68: 0 | Y68: 0.02 | Z68: 0 | AA68: 0 | AB68: 0 | AC68: 0 | AD68: 0 | AE68: 0 | AF68: 0 | AG68: 0 | AH68: 34 | AI68: 69 | AJ68: 0 | AK68: 0 | AL68: =IF(AH68<$E$24,SUM(AJ68:$AK$144)/DDx($E$5+AH68,$E$10),0) -> 0 | AM68: 0 | AN68: =IF(AH68<$E$24,SUM(AM68:AM$144)/DDx($E$5+AH68,$E$10),0) -> 0 | AO68: 0 | AP68: =AO68-SUM($F$28:$F$31)*AN68/Daxn($E$5,$E$6,$E$10,0,1,0) -> 0
C69: 36 | D69: 70 | E69: 0 | I69: 0 | J69: 0 | K69: 0 | L69: 1 | M69: 1e-06 | N69: 0.0001 | O69: 0 | P69: 0 | Q69: 0 | R69: 3 | S69: 3e-05 | T69: 0.003 | U69: 0 | V69: 0 | W69: 0 | X69: 0 | Y69: 0.02 | Z69: 0 | AA69: 0 | AB69: 0 | AC69: 0 | AD69: 0 | AE69: 0 | AF69: 0 | AG69: 0 | AH69: 35 | AI69: 70 | AJ69: 0 | AK69: 0 | AL69: =IF(AH69<$E$24,SUM(AJ69:$AK$144)/DDx($E$5+AH69,$E$10),0) -> 0 | AM69: 0 | AN69: =IF(AH69<$E$24,SUM(AM69:AM$144)/DDx($E$5+AH69,$E$10),0) -> 0 | AO69: 0 | AP69: =AO69-SUM($F$28:$F$31)*AN69/Daxn($E$5,$E$6,$E$10,0,1,0) -> 0
C70: 37 | D70: 71 | E70: 0 | I70: 0 | J70: 0 | K70: 0 | L70: 1 | M70: 1e-06 | N70: 0.0001 | O70: 0 | P70: 0 | Q70: 0 | R70: 3 | S70: 3e-05 | T70: 0.003 | U70: 0 | V70: 0 | W70: 0 | X70: 0 | Y70: 0.02 | Z70: 0 | AA70: 0 | AB70: 0 | AC70: 0 | AD70: 0 | AE70: 0 | AF70: 0 | AG70: 0 | AH70: 36 | AI70: 71 | AJ70: 0 | AK70: 0 | AL70: =IF(AH70<$E$24,SUM(AJ70:$AK$144)/DDx($E$5+AH70,$E$10),0) -> 0 | AM70: 0 | AN70: =IF(AH70<$E$24,SUM(AM70:AM$144)/DDx($E$5+AH70,$E$10),0) -> 0 | AO70: 0 | AP70: =AO70-SUM($F$28:$F$31)*AN70/Daxn($E$5,$E$6,$E$10,0,1,0) -> 0
C71: 38 | D71: 72 | E71: 0 | I71: 0 | J71: 0 | K71: 0 | L71: 1 | M71: 1e-06 | N71: 0.0001 | O71: 0 | P71: 0 | Q71: 0 | R71: 3 | S71: 3e-05 | T71: 0.003 | U71: 0 | V71: 0 | W71: 0 | X71: 0 | Y71: 0.02 | Z71: 0 | AA71: 0 | AB71: 0 | AC71: 0 | AD71: 0 | AE71: 0 | AF71: 0 | AG71: 0 | AH71: 37 | AI71: 72 | AJ71: 0 | AK71: 0 | AL71: =IF(AH71<$E$24,SUM(AJ71:$AK$144)/DDx($E$5+AH71,$E$10),0) -> 0 | AM71: 0 | AN71: =IF(AH71<$E$24,SUM(AM71:AM$144)/DDx($E$5+AH71,$E$10),0) -> 0 | AO71: 0 | AP71: =AO71-SUM($F$28:$F$31)*AN71/Daxn($E$5,$E$6,$E$10,0,1,0) -> 0
C72: 39 | D72: 73 | E72: 0 | I72: 0 | J72: 0 | K72: 0 | L72: 1 | M72: 1e-06 | N72: 0.0001 | O72: 0 | P72: 0 | Q72: 0 | R72: 3 | S72: 3e-05 | T72: 0.003 | U72: 0 | V72: 0 | W72: 0 | X72: 0 | Y72: 0.02 | Z72: 0 | AA72: 0 | AB72: 0 | AC72: 0 | AD72: 0 | AE72: 0 | AF72: 0 | AG72: 0 | AH72: 38 | AI72: 73 | AJ72: 0 | AK72: 0 | AL72: =IF(AH72<$E$24,SUM(AJ72:$AK$144)/DDx($E$5+AH72,$E$10),0) -> 0 | AM72: 0 | AN72: =IF(AH72<$E$24,SUM(AM72:AM$144)/DDx($E$5+AH72,$E$10),0) -> 0 | AO72: 0 | AP72: =AO72-SUM($F$28:$F$31)*AN72/Daxn($E$5,$E$6,$E$10,0,1,0) -> 0
C73: 40 | D73: 74 | E73: 0 | I73: 0 | J73: 0 | K73: 0 | L73: 1 | M73: 1e-06 | N73: 0.0001 | O73: 0 | P73: 0 | Q73: 0 | R73: 3 | S73: 3e-05 | T73: 0.003 | U73: 0 | V73: 0 | W73: 0 | X73: 0 | Y73: 0.02 | Z73: 0 | AA73: 0 | AB73: 0 | AC73: 0 | AD73: 0 | AE73: 0 | AF73: 0 | AG73: 0 | AH73: 39 | AI73: 74 | AJ73: 0 | AK73: 0 | AL73: =IF(AH73<$E$24,SUM(AJ73:$AK$144)/DDx($E$5+AH73,$E$10),0) -> 0 | AM73: 0 | AN73: =IF(AH73<$E$24,SUM(AM73:AM$144)/DDx($E$5+AH73,$E$10),0) -> 0 | AO73: 0 | AP73: =AO73-SUM($F$28:$F$31)*AN73/Daxn($E$5,$E$6,$E$10,0,1,0) -> 0
C74: 41 | D74: 75 | E74: 0 | I74: 0 | J74: 0 | K74: 0 | L74: 1 | M74: 1e-06 | N74: 0.0001 | O74: 0 | P74: 0 | Q74: 0 | R74: 3 | S74: 3e-05 | T74: 0.003 | U74: 0 | V74: 0 | W74: 0 | X74: 0 | Y74: 0.02 | Z74: 0 | AA74: 0 | AB74: 0 | AC74: 0 | AD74: 0 | AE74: 0 | AF74: 0 | AG74: 0 | AH74: 40 | AI74: 75 | AJ74: 0 | AK74: 0 | AL74: =IF(AH74<$E$24,SUM(AJ74:$AK$144)/DDx($E$5+AH74,$E$10),0) -> 0 | AM74: 0 | AN74: =IF(AH74<$E$24,SUM(AM74:AM$144)/DDx($E$5+AH74,$E$10),0) -> 0 | AO74: 0 | AP74: =AO74-SUM($F$28:$F$31)*AN74/Daxn($E$5,$E$6,$E$10,0,1,0) -> 0
C75: 42 | D75: 76 | E75: 0 | I75: 0 | J75: 0 | K75: 0 | L75: 1 | M75: 1e-06 | N75: 0.0001 | O75: 0 | P75: 0 | Q75: 0 | R75: 3 | S75: 3e-05 | T75: 0.003 | U75: 0 | V75: 0 | W75: 0 | X75: 0 | Y75: 0.02 | Z75: 0 | AA75: 0 | AB75: 0 | AC75: 0 | AD75: 0 | AE75: 0 | AF75: 0 | AG75: 0 | AH75: 41 | AI75: 76 | AJ75: 0 | AK75: 0 | AL75: =IF(AH75<$E$24,SUM(AJ75:$AK$144)/DDx($E$5+AH75,$E$10),0) -> 0 | AM75: 0 | AN75: =IF(AH75<$E$24,SUM(AM75:AM$144)/DDx($E$5+AH75,$E$10),0) -> 0 | AO75: 0 | AP75: =AO75-SUM($F$28:$F$31)*AN75/Daxn($E$5,$E$6,$E$10,0,1,0) -> 0
C76: 43 | D76: 77 | E76: 0 | I76: 0 | J76: 0 | K76: 0 | L76: 1 | M76: 1e-06 | N76: 0.0001 | O76: 0 | P76: 0 | Q76: 0 | R76: 3 | S76: 3e-05 | T76: 0.003 | U76: 0 | V76: 0 | W76: 0 | X76: 0 | Y76: 0.02 | Z76: 0 | AA76: 0 | AB76: 0 | AC76: 0 | AD76: 0 | AE76: 0 | AF76: 0 | AG76: 0 | AH76: 42 | AI76: 77 | AJ76: 0 | AK76: 0 | AL76: =IF(AH76<$E$24,SUM(AJ76:$AK$144)/DDx($E$5+AH76,$E$10),0) -> 0 | AM76: 0 | AN76: =IF(AH76<$E$24,SUM(AM76:AM$144)/DDx($E$5+AH76,$E$10),0) -> 0 | AO76: 0 | AP76: =AO76-SUM($F$28:$F$31)*AN76/Daxn($E$5,$E$6,$E$10,0,1,0) -> 0
C77: 44 | D77: 78 | E77: 0 | I77: 0 | J77: 0 | K77: 0 | L77: 1 | M77: 1e-06 | N77: 0.0001 | O77: 0 | P77: 0 | Q77: 0 | R77: 3 | S77: 3e-05 | T77: 0.003 | U77: 0 | V77: 0 | W77: 0 | X77: 0 | Y77: 0.02 | Z77: 0 | AA77: 0 | AB77: 0 | AC77: 0 | AD77: 0 | AE77: 0 | AF77: 0 | AG77: 0 | AH77: 43 | AI77: 78 | AJ77: 0 | AK77: 0 | AL77: =IF(AH77<$E$24,SUM(AJ77:$AK$144)/DDx($E$5+AH77,$E$10),0) -> 0 | AM77: 0 | AN77: =IF(AH77<$E$24,SUM(AM77:AM$144)/DDx($E$5+AH77,$E$10),0) -> 0 | AO77: 0 | AP77: =AO77-SUM($F$28:$F$31)*AN77/Daxn($E$5,$E$6,$E$10,0,1,0) -> 0
C78: 45 | D78: 79 | E78: 0 | I78: 0 | J78: 0 | K78: 0 | L78: 1 | M78: 1e-06 | N78: 0.0001 | O78: 0 | P78: 0 | Q78: 0 | R78: 3 | S78: 3e-05 | T78: 0.003 | U78: 0 | V78: 0 | W78: 0 | X78: 0 | Y78: 0.02 | Z78: 0 | AA78: 0 | AB78: 0 | AC78: 0 | AD78: 0 | AE78: 0 | AF78: 0 | AG78: 0 | AH78: 44 | AI78: 79 | AJ78: 0 | AK78: 0 | AL78: =IF(AH78<$E$24,SUM(AJ78:$AK$144)/DDx($E$5+AH78,$E$10),0) -> 0 | AM78: 0 | AN78: =IF(AH78<$E$24,SUM(AM78:AM$144)/DDx($E$5+AH78,$E$10),0) -> 0 | AO78: 0 | AP78: =AO78-SUM($F$28:$F$31)*AN78/Daxn($E$5,$E$6,$E$10,0,1,0) -> 0
C79: 46 | D79: 80 | E79: 0 | I79: 0 | J79: 0 | K79: 0 | L79: 1 | M79: 1e-06 | N79: 0.0001 | O79: 0 | P79: 0 | Q79: 0 | R79: 3 | S79: 3e-05 | T79: 0.003 | U79: 0 | V79: 0 | W79: 0 | X79: 0 | Y79: 0.02 | Z79: 0 | AA79: 0 | AB79: 0 | AC79: 0 | AD79: 0 | AE79: 0 | AF79: 0 | AG79: 0 | AH79: 45 | AI79: 80 | AJ79: 0 | AK79: 0 | AL79: =IF(AH79<$E$24,SUM(AJ79:$AK$144)/DDx($E$5+AH79,$E$10),0) -> 0 | AM79: 0 | AN79: =IF(AH79<$E$24,SUM(AM79:AM$144)/DDx($E$5+AH79,$E$10),0) -> 0 | AO79: 0 | AP79: =AO79-SUM($F$28:$F$31)*AN79/Daxn($E$5,$E$6,$E$10,0,1,0) -> 0
C80: 47 | D80: 81 | E80: 0 | I80: 0 | J80: 0 | K80: 0 | L80: 1 | M80: 1e-06 | N80: 0.0001 | O80: 0 | P80: 0 | Q80: 0 | R80: 3 | S80: 3e-05 | T80: 0.003 | U80: 0 | V80: 0 | W80: 0 | X80: 0 | Y80: 0.02 | Z80: 0 | AA80: 0 | AB80: 0 | AC80: 0 | AD80: 0 | AE80: 0 | AF80: 0 | AG80: 0 | AH80: 46 | AI80: 81 | AJ80: 0 | AK80: 0 | AL80: =IF(AH80<$E$24,SUM(AJ80:$AK$144)/DDx($E$5+AH80,$E$10),0) -> 0 | AM80: 0 | AN80: =IF(AH80<$E$24,SUM(AM80:AM$144)/DDx($E$5+AH80,$E$10),0) -> 0 | AO80: 0 | AP80: =AO80-SUM($F$28:$F$31)*AN80/Daxn($E$5,$E$6,$E$10,0,1,0) -> 0
C81: 48 | D81: 82 | E81: 0 | I81: 0 | J81: 0 | K81: 0 | L81: 1 | M81: 1e-06 | N81: 0.0001 | O81: 0 | P81: 0 | Q81: 0 | R81: 3 | S81: 3e-05 | T81: 0.003 | U81: 0 | V81: 0 | W81: 0 | X81: 0 | Y81: 0.02 | Z81: 0 | AA81: 0 | AB81: 0 | AC81: 0 | AD81: 0 | AE81: 0 | AF81: 0 | AG81: 0 | AH81: 47 | AI81: 82 | AJ81: 0 | AK81: 0 | AL81: =IF(AH81<$E$24,SUM(AJ81:$AK$144)/DDx($E$5+AH81,$E$10),0) -> 0 | AM81: 0 | AN81: =IF(AH81<$E$24,SUM(AM81:AM$144)/DDx($E$5+AH81,$E$10),0) -> 0 | AO81: 0 | AP81: =AO81-SUM($F$28:$F$31)*AN81/Daxn($E$5,$E$6,$E$10,0,1,0) -> 0
C82: 49 | D82: 83 | E82: 0 | I82: 0 | J82: 0 | K82: 0 | L82: 1 | M82: 1e-06 | N82: 0.0001 | O82: 0 | P82: 0 | Q82: 0 | R82: 3 | S82: 3e-05 | T82: 0.003 | U82: 0 | V82: 0 | W82: 0 | X82: 0 | Y82: 0.02 | Z82: 0 | AA82: 0 | AB82: 0 | AC82: 0 | AD82: 0 | AE82: 0 | AF82: 0 | AG82: 0 | AH82: 48 | AI82: 83 | AJ82: 0 | AK82: 0 | AL82: =IF(AH82<$E$24,SUM(AJ82:$AK$144)/DDx($E$5+AH82,$E$10),0) -> 0 | AM82: 0 | AN82: =IF(AH82<$E$24,SUM(AM82:AM$144)/DDx($E$5+AH82,$E$10),0) -> 0 | AO82: 0 | AP82: =AO82-SUM($F$28:$F$31)*AN82/Daxn($E$5,$E$6,$E$10,0,1,0) -> 0
C83: 50 | D83: 84 | E83: 0 | I83: 0 | J83: 0 | K83: 0 | L83: 1 | M83: 1e-06 | N83: 0.0001 | O83: 0 | P83: 0 | Q83: 0 | R83: 3 | S83: 3e-05 | T83: 0.003 | U83: 0 | V83: 0 | W83: 0 | X83: 0 | Y83: 0.02 | Z83: 0 | AA83: 0 | AB83: 0 | AC83: 0 | AD83: 0 | AE83: 0 | AF83: 0 | AG83: 0 | AH83: 49 | AI83: 84 | AJ83: 0 | AK83: 0 | AL83: =IF(AH83<$E$24,SUM(AJ83:$AK$144)/DDx($E$5+AH83,$E$10),0) -> 0 | AM83: 0 | AN83: =IF(AH83<$E$24,SUM(AM83:AM$144)/DDx($E$5+AH83,$E$10),0) -> 0 | AO83: 0 | AP83: =AO83-SUM($F$28:$F$31)*AN83/Daxn($E$5,$E$6,$E$10,0,1,0) -> 0
C84: 51 | D84: 85 | E84: 0 | I84: 0 | J84: 0 | K84: 0 | L84: 1 | M84: 1e-06 | N84: 0.0001 | O84: 0 | P84: 0 | Q84: 0 | R84: 3 | S84: 3e-05 | T84: 0.003 | U84: 0 | V84: 0 | W84: 0 | X84: 0 | Y84: 0.02 | Z84: 0 | AA84: 0 | AB84: 0 | AC84: 0 | AD84: 0 | AE84: 0 | AF84: 0 | AG84: 0 | AH84: 50 | AI84: 85 | AJ84: 0 | AK84: 0 | AL84: =IF(AH84<$E$24,SUM(AJ84:$AK$144)/DDx($E$5+AH84,$E$10),0) -> 0 | AM84: 0 | AN84: =IF(AH84<$E$24,SUM(AM84:AM$144)/DDx($E$5+AH84,$E$10),0) -> 0 | AO84: 0 | AP84: =AO84-SUM($F$28:$F$31)*AN84/Daxn($E$5,$E$6,$E$10,0,1,0) -> 0
C85: 52 | D85: 86 | E85: 0 | I85: 0 | J85: 0 | K85: 0 | L85: 1 | M85: 1e-06 | N85: 0.0001 | O85: 0 | P85: 0 | Q85: 0 | R85: 3 | S85: 3e-05 | T85: 0.003 | U85: 0 | V85: 0 | W85: 0 | X85: 0 | Y85: 0.02 | Z85: 0 | AA85: 0 | AB85: 0 | AC85: 0 | AD85: 0 | AE85: 0 | AF85: 0 | AG85: 0 | AH85: 51 | AI85: 86 | AJ85: 0 | AK85: 0 | AL85: =IF(AH85<$E$24,SUM(AJ85:$AK$144)/DDx($E$5+AH85,$E$10),0) -> 0 | AM85: 0 | AN85: =IF(AH85<$E$24,SUM(AM85:AM$144)/DDx($E$5+AH85,$E$10),0) -> 0 | AO85: 0 | AP85: =AO85-SUM($F$28:$F$31)*AN85/Daxn($E$5,$E$6,$E$10,0,1,0) -> 0
C86: 53 | D86: 87 | E86: 0 | I86: 0 | J86: 0 | K86: 0 | L86: 1 | M86: 1e-06 | N86: 0.0001 | O86: 0 | P86: 0 | Q86: 0 | R86: 3 | S86: 3e-05 | T86: 0.003 | U86: 0 | V86: 0 | W86: 0 | X86: 0 | Y86: 0.02 | Z86: 0 | AA86: 0 | AB86: 0 | AC86: 0 | AD86: 0 | AE86: 0 | AF86: 0 | AG86: 0 | AH86: 52 | AI86: 87 | AJ86: 0 | AK86: 0 | AL86: =IF(AH86<$E$24,SUM(AJ86:$AK$144)/DDx($E$5+AH86,$E$10),0) -> 0 | AM86: 0 | AN86: =IF(AH86<$E$24,SUM(AM86:AM$144)/DDx($E$5+AH86,$E$10),0) -> 0 | AO86: 0 | AP86: =AO86-SUM($F$28:$F$31)*AN86/Daxn($E$5,$E$6,$E$10,0,1,0) -> 0
C87: 54 | D87: 88 | E87: 0 | I87: 0 | J87: 0 | K87: 0 | L87: 1 | M87: 1e-06 | N87: 0.0001 | O87: 0 | P87: 0 | Q87: 0 | R87: 3 | S87: 3e-05 | T87: 0.003 | U87: 0 | V87: 0 | W87: 0 | X87: 0 | Y87: 0.02 | Z87: 0 | AA87: 0 | AB87: 0 | AC87: 0 | AD87: 0 | AE87: 0 | AF87: 0 | AG87: 0 | AH87: 53 | AI87: 88 | AJ87: 0 | AK87: 0 | AL87: =IF(AH87<$E$24,SUM(AJ87:$AK$144)/DDx($E$5+AH87,$E$10),0) -> 0 | AM87: 0 | AN87: =IF(AH87<$E$24,SUM(AM87:AM$144)/DDx($E$5+AH87,$E$10),0) -> 0 | AO87: 0 | AP87: =AO87-SUM($F$28:$F$31)*AN87/Daxn($E$5,$E$6,$E$10,0,1,0) -> 0
C88: 55 | D88: 89 | E88: 0 | I88: 0 | J88: 0 | K88: 0 | L88: 1 | M88: 1e-06 | N88: 0.0001 | O88: 0 | P88: 0 | Q88: 0 | R88: 3 | S88: 3e-05 | T88: 0.003 | U88: 0 | V88: 0 | W88: 0 | X88: 0 | Y88: 0.02 | Z88: 0 | AA88: 0 | AB88: 0 | AC88: 0 | AD88: 0 | AE88: 0 | AF88: 0 | AG88: 0 | AH88: 54 | AI88: 89 | AJ88: 0 | AK88: 0 | AL88: =IF(AH88<$E$24,SUM(AJ88:$AK$144)/DDx($E$5+AH88,$E$10),0) -> 0 | AM88: 0 | AN88: =IF(AH88<$E$24,SUM(AM88:AM$144)/DDx($E$5+AH88,$E$10),0) -> 0 | AO88: 0 | AP88: =AO88-SUM($F$28:$F$31)*AN88/Daxn($E$5,$E$6,$E$10,0,1,0) -> 0
C89: 56 | D89: 90 | E89: 0 | I89: 0 | J89: 0 | K89: 0 | L89: 1 | M89: 1e-06 | N89: 0.0001 | O89: 0 | P89: 0 | Q89: 0 | R89: 3 | S89: 3e-05 | T89: 0.003 | U89: 0 | V89: 0 | W89: 0 | X89: 0 | Y89: 0.02 | Z89: 0 | AA89: 0 | AB89: 0 | AC89: 0 | AD89: 0 | AE89: 0 | AF89: 0 | AG89: 0 | AH89: 55 | AI89: 90 | AJ89: 0 | AK89: 0 | AL89: =IF(AH89<$E$24,SUM(AJ89:$AK$144)/DDx($E$5+AH89,$E$10),0) -> 0 | AM89: 0 | AN89: =IF(AH89<$E$24,SUM(AM89:AM$144)/DDx($E$5+AH89,$E$10),0) -> 0 | AO89: 0 | AP89: =AO89-SUM($F$28:$F$31)*AN89/Daxn($E$5,$E$6,$E$10,0,1,0) -> 0
C90: 57 | D90: =D89+1 -> 91 | E90: 0 | I90: 0 | J90: 0 | K90: 0 | L90: 1 | M90: 1e-06 | N90: 0.0001 | O90: 0 | P90: 0 | Q90: 0 | R90: 3 | S90: 3e-05 | T90: 0.003 | U90: 0 | V90: 0 | W90: 0 | X90: 0 | Y90: 0.02 | Z90: 0 | AA90: 0 | AB90: 0 | AC90: 0 | AD90: 0 | AE90: 0 | AF90: 0 | AG90: 0 | AH90: 56 | AI90: 91 | AJ90: 0 | AK90: 0 | AL90: =IF(AH90<$E$24,SUM(AJ90:$AK$144)/DDx($E$5+AH90,$E$10),0) -> 0 | AM90: 0 | AN90: =IF(AH90<$E$24,SUM(AM90:AM$144)/DDx($E$5+AH90,$E$10),0) -> 0 | AO90: 0 | AP90: =AO90-SUM($F$28:$F$31)*AN90/Daxn($E$5,$E$6,$E$10,0,1,0) -> 0
C91: 58 | D91: 92 | E91: 0 | I91: 0 | J91: 0 | K91: 0 | L91: 1 | M91: 1e-06 | N91: 0.0001 | O91: 0 | P91: 0 | Q91: 0 | R91: 3 | S91: 3e-05 | T91: 0.003 | U91: 0 | V91: 0 | W91: 0 | X91: 0 | Y91: 0.02 | Z91: 0 | AA91: 0 | AB91: 0 | AC91: 0 | AD91: 0 | AE91: 0 | AF91: 0 | AG91: 0 | AH91: 57 | AI91: 92 | AJ91: 0 | AK91: 0 | AL91: =IF(AH91<$E$24,SUM(AJ91:$AK$144)/DDx($E$5+AH91,$E$10),0) -> 0 | AM91: 0 | AN91: =IF(AH91<$E$24,SUM(AM91:AM$144)/DDx($E$5+AH91,$E$10),0) -> 0 | AO91: 0 | AP91: =AO91-SUM($F$28:$F$31)*AN91/Daxn($E$5,$E$6,$E$10,0,1,0) -> 0
C92: 59 | D92: 93 | E92: 0 | I92: 0 | J92: 0 | K92: 0 | L92: 1 | M92: 1e-06 | N92: 0.0001 | O92: 0 | P92: 0 | Q92: 0 | R92: 3 | S92: 3e-05 | T92: 0.003 | U92: 0 | V92: 0 | W92: 0 | X92: 0 | Y92: 0.02 | Z92: 0 | AA92: 0 | AB92: 0 | AC92: 0 | AD92: 0 | AE92: 0 | AF92: 0 | AG92: 0 | AH92: 58 | AI92: 93 | AJ92: 0 | AK92: 0 | AL92: =IF(AH92<$E$24,SUM(AJ92:$AK$144)/DDx($E$5+AH92,$E$10),0) -> 0 | AM92: 0 | AN92: =IF(AH92<$E$24,SUM(AM92:AM$144)/DDx($E$5+AH92,$E$10),0) -> 0 | AO92: 0 | AP92: =AO92-SUM($F$28:$F$31)*AN92/Daxn($E$5,$E$6,$E$10,0,1,0) -> 0
C93: 60 | D93: 94 | E93: 0 | I93: 0 | J93: 0 | K93: 0 | L93: 1 | M93: 1e-06 | N93: 0.0001 | O93: 0 | P93: 0 | Q93: 0 | R93: 3 | S93: 3e-05 | T93: 0.003 | U93: 0 | V93: 0 | W93: 0 | X93: 0 | Y93: 0.02 | Z93: 0 | AA93: 0 | AB93: 0 | AC93: 0 | AD93: 0 | AE93: 0 | AF93: 0 | AG93: 0 | AH93: 59 | AI93: 94 | AJ93: 0 | AK93: 0 | AL93: =IF(AH93<$E$24,SUM(AJ93:$AK$144)/DDx($E$5+AH93,$E$10),0) -> 0 | AM93: 0 | AN93: =IF(AH93<$E$24,SUM(AM93:AM$144)/DDx($E$5+AH93,$E$10),0) -> 0 | AO93: 0 | AP93: =AO93-SUM($F$28:$F$31)*AN93/Daxn($E$5,$E$6,$E$10,0,1,0) -> 0
C94: 61 | D94: 95 | E94: 0 | I94: 0 | J94: 0 | K94: 0 | L94: 1 | M94: 1e-06 | N94: 0.0001 | O94: 0 | P94: 0 | Q94: 0 | R94: 3 | S94: 3e-05 | T94: 0.003 | U94: 0 | V94: 0 | W94: 0 | X94: 0 | Y94: 0.02 | Z94: 0 | AA94: 0 | AB94: 0 | AC94: 0 | AD94: 0 | AE94: 0 | AF94: 0 | AG94: 0 | AH94: 60 | AI94: 95 | AJ94: 0 | AK94: 0 | AL94: =IF(AH94<$E$24,SUM(AJ94:$AK$144)/DDx($E$5+AH94,$E$10),0) -> 0 | AM94: 0 | AN94: =IF(AH94<$E$24,SUM(AM94:AM$144)/DDx($E$5+AH94,$E$10),0) -> 0 | AO94: 0 | AP94: =AO94-SUM($F$28:$F$31)*AN94/Daxn($E$5,$E$6,$E$10,0,1,0) -> 0
C95: 62 | D95: 96 | E95: 0 | I95: 0 | J95: 0 | K95: 0 | L95: 1 | M95: 1e-06 | N95: 0.0001 | O95: 0 | P95: 0 | Q95: 0 | R95: 3 | S95: 3e-05 | T95: 0.003 | U95: 0 | V95: 0 | W95: 0 | X95: 0 | Y95: 0.02 | Z95: 0 | AA95: 0 | AB95: 0 | AC95: 0 | AD95: 0 | AE95: 0 | AF95: 0 | AG95: 0 | AH95: 61 | AI95: 96 | AJ95: 0 | AK95: 0 | AL95: =IF(AH95<$E$24,SUM(AJ95:$AK$144)/DDx($E$5+AH95,$E$10),0) -> 0 | AM95: 0 | AN95: =IF(AH95<$E$24,SUM(AM95:AM$144)/DDx($E$5+AH95,$E$10),0) -> 0 | AO95: 0 | AP95: =AO95-SUM($F$28:$F$31)*AN95/Daxn($E$5,$E$6,$E$10,0,1,0) -> 0
C96: 63 | D96: 97 | E96: 0 | I96: 0 | J96: 0 | K96: 0 | L96: 1 | M96: 1e-06 | N96: 0.0001 | O96: 0 | P96: 0 | Q96: 0 | R96: 3 | S96: 3e-05 | T96: 0.003 | U96: 0 | V96: 0 | W96: 0 | X96: 0 | Y96: 0.02 | Z96: 0 | AA96: 0 | AB96: 0 | AC96: 0 | AD96: 0 | AE96: 0 | AF96: 0 | AG96: 0 | AH96: 62 | AI96: 97 | AJ96: 0 | AK96: 0 | AL96: =IF(AH96<$E$24,SUM(AJ96:$AK$144)/DDx($E$5+AH96,$E$10),0) -> 0 | AM96: 0 | AN96: =IF(AH96<$E$24,SUM(AM96:AM$144)/DDx($E$5+AH96,$E$10),0) -> 0 | AO96: 0 | AP96: =AO96-SUM($F$28:$F$31)*AN96/Daxn($E$5,$E$6,$E$10,0,1,0) -> 0
C97: 64 | D97: 98 | E97: 0 | I97: 0 | J97: 0 | K97: 0 | L97: 1 | M97: 1e-06 | N97: 0.0001 | O97: 0 | P97: 0 | Q97: 0 | R97: 3 | S97: 3e-05 | T97: 0.003 | U97: 0 | V97: 0 | W97: 0 | X97: 0 | Y97: 0.02 | Z97: 0 | AA97: 0 | AB97: 0 | AC97: 0 | AD97: 0 | AE97: 0 | AF97: 0 | AG97: 0 | AH97: 63 | AI97: 98 | AJ97: 0 | AK97: 0 | AL97: =IF(AH97<$E$24,SUM(AJ97:$AK$144)/DDx($E$5+AH97,$E$10),0) -> 0 | AM97: 0 | AN97: =IF(AH97<$E$24,SUM(AM97:AM$144)/DDx($E$5+AH97,$E$10),0) -> 0 | AO97: 0 | AP97: =AO97-SUM($F$28:$F$31)*AN97/Daxn($E$5,$E$6,$E$10,0,1,0) -> 0
C98: 65 | D98: =D97+1 -> 99 | E98: 0 | I98: =E98*F98*$E$17*AC98 -> 0 | J98: =G98*AB98 -> 0 | K98: 0 | L98: 1 | M98: 1e-06 | N98: 0.0001 | O98: =L98*$AC98 -> 0 | P98: =M98*$AC98*G98 -> 0 | Q98: 0 | R98: 3 | S98: 3e-05 | T98: 0.003 | U98: =R98*$AC98 -> 0 | V98: =S98*G98*$AC98 -> 0 | W98: 0 | X98: 0 | Y98: 0.02 | Z98: 0 | AA98: 0 | AB98: =n_qx($E$5,C98-1)*$E$11^C98*E98 -> 0 | AC98: 0 | AD98: =npx($E$5,C98)*$E$11^(C98)*E98 -> 0 | AE98: 0 | AF98: 0 | AG98: =(1-N98-T98)*AC98*F98 -> 0 | AH98: 64 | AI98: 99 | AJ98: =IF(AH98<$E$24,DDx($E$5+AH98+1,$E$10)*H98,0) -> 0 | AK98: 0 | AL98: =IF(AH98<$E$24,SUM(AJ98:$AK$144)/DDx($E$5+AH98,$E$10),0) -> 0 | AM98: =IF(AH98<$E$24,DDx($E$5+AH98,$E$10)*E98,0) -> 0 | AN98: =IF(AH98<$E$24,SUM(AM98:AM$144)/DDx($E$5+AH98,$E$10),0) -> 0 | AO98: 0 | AP98: =AO98-SUM($F$28:$F$31)*AN98/Daxn($E$5,$E$6,$E$10,0,1,0) -> 0
C99: 66 | D99: 100 | E99: =IF(C99<=$E$24,1,0) -> 0 | I99: 0 | J99: 0 | K99: =H99*AD99 -> 0 | L99: 1 | M99: 1e-06 | N99: 0.0001 | O99: 0 | P99: 0 | Q99: =N99*I99 -> 0 | R99: 3 | S99: 3e-05 | T99: 0.003 | U99: 0 | V99: 0 | W99: =T99*I99 -> 0 | X99: 0 | Y99: 0.02 | Z99: =IF(H99>0,X99*AC99,0) -> 0 | AA99: =Y99*AC99*H99 -> 0 | AB99: 0 | AC99: =npx($E$5,C99-1)*$E$11^(C99-1)*E99 -> 0 | AD99: 0 | AE99: =(O99+P99+U99+V99+Z99+AA99) -> 0 | AF99: =AC99*F99 -> 0 | AG99: 0 | AH99: 65 | AI99: 100 | AJ99: 0 | AK99: =IF(AH99<$E$24,cx($E$5+AH99,$E$10)*G99,0) -> 0 | AL99: =IF(AH99<$E$24,SUM(AJ99:$AK$144)/DDx($E$5+AH99,$E$10),0) -> 0 | AM99: 0 | AN99: =IF(AH99<$E$24,SUM(AM99:AM$144)/DDx($E$5+AH99,$E$10),0) -> 0 | AO99: 0 | AP99: =AO99-SUM($F$28:$F$31)*AN99/Daxn($E$5,$E$6,$E$10,0,1,0) -> 0
C100: =(C99+1) -> 67 | D100: =D99+1 -> 101 | E100: 0 | I100: 0 | J100: 0 | K100: 0 | L100: 1 | M100: 1e-06 | N100: 0.0001 | O100: 0 | P100: 0 | Q100: 0 | R100: 3 | S100: 3e-05 | T100: 0.003 | U100: 0 | V100: 0 | W100: 0 | X100: 0 | Y100: 0.02 | Z100: 0 | AA100: 0 | AB100: 0 | AC100: 0 | AD100: 0 | AE100: 0 | AF100: 0 | AG100: 0 | AH100: =AH99+1 -> 66 | AI100: =AI99+1 -> 101 | AJ100: 0 | AK100: 0 | AL100: =IF(AH100<$E$24,SUM(AJ100:$AK$144)/DDx($E$5+AH100,$E$10),0) -> 0 | AM100: 0 | AN100: =IF(AH100<$E$24,SUM(AM100:AM$144)/DDx($E$5+AH100,$E$10),0) -> 0 | AO100: =AL100-$E$15*AN100 -> 0 | AP100: =AO100-SUM($F$28:$F$31)*AN100/Daxn($E$5,$E$6,$E$10,0,1,0) -> 0
C101: 68 | D101: 102 | E101: 0 | I101: 0 | J101: 0 | K101: 0 | L101: 1 | M101: 1e-06 | N101: 0.0001 | O101: 0 | P101: 0 | Q101: 0 | R101: 3 | S101: 3e-05 | T101: 0.003 | U101: 0 | V101: 0 | W101: 0 | X101: 0 | Y101: 0.02 | Z101: 0 | AA101: 0 | AB101: 0 | AC101: 0 | AD101: 0 | AE101: 0 | AF101: 0 | AG101: 0 | AH101: 67 | AI101: 102 | AJ101: 0 | AK101: 0 | AL101: =IF(AH101<$E$24,SUM(AJ101:$AK$144)/DDx($E$5+AH101,$E$10),0) -> 0 | AM101: 0 | AN101: =IF(AH101<$E$24,SUM(AM101:AM$144)/DDx($E$5+AH101,$E$10),0) -> 0 | AO101: 0 | AP101: =AO101-SUM($F$28:$F$31)*AN101/Daxn($E$5,$E$6,$E$10,0,1,0) -> 0
C102: 69 | D102: 103 | E102: 0 | I102: 0 | J102: 0 | K102: 0 | L102: 1 | M102: 1e-06 | N102: 0.0001 | O102: 0 | P102: 0 | Q102: 0 | R102: 3 | S102: 3e-05 | T102: 0.003 | U102: 0 | V102: 0 | W102: 0 | X102: 0 | Y102: 0.02 | Z102: 0 | AA102: 0 | AB102: 0 | AC102: 0 | AD102: 0 | AE102: 0 | AF102: 0 | AG102: 0 | AH102: 68 | AI102: 103 | AJ102: 0 | AK102: 0 | AL102: =IF(AH102<$E$24,SUM(AJ102:$AK$144)/DDx($E$5+AH102,$E$10),0) -> 0 | AM102: 0 | AN102: =IF(AH102<$E$24,SUM(AM102:AM$144)/DDx($E$5+AH102,$E$10),0) -> 0 | AO102: 0 | AP102: =AO102-SUM($F$28:$F$31)*AN102/Daxn($E$5,$E$6,$E$10,0,1,0) -> 0
C103: 70 | D103: 104 | E103: 0 | I103: 0 | J103: 0 | K103: 0 | L103: 1 | M103: 1e-06 | N103: 0.0001 | O103: 0 | P103: 0 | Q103: 0 | R103: 3 | S103: 3e-05 | T103: 0.003 | U103: 0 | V103: 0 | W103: 0 | X103: 0 | Y103: 0.02 | Z103: 0 | AA103: 0 | AB103: 0 | AC103: 0 | AD103: 0 | AE103: 0 | AF103: 0 | AG103: 0 | AH103: 69 | AI103: 104 | AJ103: 0 | AK103: 0 | AL103: =IF(AH103<$E$24,SUM(AJ103:$AK$144)/DDx($E$5+AH103,$E$10),0) -> 0 | AM103: 0 | AN103: =IF(AH103<$E$24,SUM(AM103:AM$144)/DDx($E$5+AH103,$E$10),0) -> 0 | AO103: 0 | AP103: =AO103-SUM($F$28:$F$31)*AN103/Daxn($E$5,$E$6,$E$10,0,1,0) -> 0
C104: 71 | D104: 105 | E104: 0 | I104: 0 | J104: 0 | K104: 0 | L104: 1 | M104: 1e-06 | N104: 0.0001 | O104: 0 | P104: 0 | Q104: 0 | R104: 3 | S104: 3e-05 | T104: 0.003 | U104: 0 | V104: 0 | W104: 0 | X104: 0 | Y104: 0.02 | Z104: 0 | AA104: 0 | AB104: 0 | AC104: 0 | AD104: 0 | AE104: 0 | AF104: 0 | AG104: 0 | AH104: 70 | AI104: 105 | AJ104: 0 | AK104: 0 | AL104: =IF(AH104<$E$24,SUM(AJ104:$AK$144)/DDx($E$5+AH104,$E$10),0) -> 0 | AM104: 0 | AN104: =IF(AH104<$E$24,SUM(AM104:AM$144)/DDx($E$5+AH104,$E$10),0) -> 0 | AO104: 0 | AP104: =AO104-SUM($F$28:$F$31)*AN104/Daxn($E$5,$E$6,$E$10,0,1,0) -> 0
C105: 72 | D105: 106 | E105: 0 | I105: 0 | J105: 0 | K105: 0 | L105: 1 | M105: 1e-06 | N105: 0.0001 | O105: 0 | P105: 0 | Q105: 0 | R105: 3 | S105: 3e-05 | T105: 0.003 | U105: 0 | V105: 0 | W105: 0 | X105: 0 | Y105: 0.02 | Z105: 0 | AA105: 0 | AB105: 0 | AC105: 0 | AD105: 0 | AE105: 0 | AF105: 0 | AG105: 0 | AH105: 71 | AI105: 106 | AJ105: 0 | AK105: 0 | AL105: =IF(AH105<$E$24,SUM(AJ105:$AK$144)/DDx($E$5+AH105,$E$10),0) -> 0 | AM105: 0 | AN105: =IF(AH105<$E$24,SUM(AM105:AM$144)/DDx($E$5+AH105,$E$10),0) -> 0 | AO105: 0 | AP105: =AO105-SUM($F$28:$F$31)*AN105/Daxn($E$5,$E$6,$E$10,0,1,0) -> 0
C106: 73 | D106: 107 | E106: 0 | I106: 0 | J106: 0 | K106: 0 | L106: 1 | M106: 1e-06 | N106: 0.0001 | O106: 0 | P106: 0 | Q106: 0 | R106: 3 | S106: 3e-05 | T106: 0.003 | U106: 0 | V106: 0 | W106: 0 | X106: 0 | Y106: 0.02 | Z106: 0 | AA106: 0 | AB106: 0 | AC106: 0 | AD106: 0 | AE106: 0 | AF106: 0 | AG106: 0 | AH106: 72 | AI106: 107 | AJ106: 0 | AK106: 0 | AL106: =IF(AH106<$E$24,SUM(AJ106:$AK$144)/DDx($E$5+AH106,$E$10),0) -> 0 | AM106: 0 | AN106: =IF(AH106<$E$24,SUM(AM106:AM$144)/DDx($E$5+AH106,$E$10),0) -> 0 | AO106: 0 | AP106: =AO106-SUM($F$28:$F$31)*AN106/Daxn($E$5,$E$6,$E$10,0,1,0) -> 0
C107: 74 | D107: 108 | E107: 0 | I107: 0 | J107: 0 | K107: 0 | L107: 1 | M107: 1e-06 | N107: 0.0001 | O107: 0 | P107: 0 | Q107: 0 | R107: 3 | S107: 3e-05 | T107: 0.003 | U107: 0 | V107: 0 | W107: 0 | X107: 0 | Y107: 0.02 | Z107: 0 | AA107: 0 | AB107: 0 | AC107: 0 | AD107: 0 | AE107: 0 | AF107: 0 | AG107: 0 | AH107: 73 | AI107: 108 | AJ107: 0 | AK107: 0 | AL107: =IF(AH107<$E$24,SUM(AJ107:$AK$144)/DDx($E$5+AH107,$E$10),0) -> 0 | AM107: 0 | AN107: =IF(AH107<$E$24,SUM(AM107:AM$144)/DDx($E$5+AH107,$E$10),0) -> 0 | AO107: 0 | AP107: =AO107-SUM($F$28:$F$31)*AN107/Daxn($E$5,$E$6,$E$10,0,1,0) -> 0
